Workbook

Sheet LDC Info
Z3: 1 | AA3: Alectra Utilities Corporation-Brampton Rate Zone
Z4: 2 | AA4: Alectra Utilities Corporation-Enersource Rate Zone
Z5: 3 | AA5: Alectra Utilities Corporation-Horizon Utilities Rate Zone
Z6: 4 | AA6: Alectra Utilities Corporation-PowerStream Rate Zone
Z7: 5 | AA7: Alectra Utilities Corporation-Guelph Rate Zone
Z8: 6 | AA8: Algoma Power Inc.
Z9: 7 | AA9: Atikokan Hydro Inc.
Z10: 8 | AA10: Bluewater Power Distribution Corporation
Z11: 9 | AA11: Brantford Power Inc.
Z12: 10 | AA12: Burlington Hydro Inc.
Z13: 11 | AA13: Canadian Niagara Power Inc.
D14: Utility Name | E14: Wellington North Power Inc. | Z14: 12 | AA14: Centre Wellington Hydro Ltd.
Z15: 13 | AA15: Chapleau Public Utilities Corporation
D16: Assigned EB Number | E16: EB-2020-0061 | Z16: 14 | AA16: Cooperative Hydro Embrun Inc.
Z17: 15 | AA17: E.L.K. Energy Inc.
D18: Name of Contact and Title | E18: Richard Bucknall, Regulatory Manager | Z18: 16 | AA18: Elexicon Energy Inc.-Whitby Rate Zone
Z19: 17 | AA19: Elexicon Energy Inc.-Veridian Rate Zone
D20: Phone Number | E20: 519-323-1710 | Z20: 18 | AA20: Energy+ Inc.
Z21: 19 | AA21: Entegrus Powerlines Inc.-For Entegrus-Main Rate Zone
D22: Email Address | E22: rbucknall@wellingtonnorthpower.com | Z22: 20 | AA22: Entegrus Powerlines Inc.-For Former St. Thomas Energy Rate Zone
Z23: 21 | AA23: ENWIN Utilities Ltd.
D24: Test Year | E24: 2021 | Z24: 22 | AA24: EPCOR Electricity Distribution Ontario Inc.
Z25: 23 | AA25: ERTH Power Corporation - ERTH Power Main Rate Zone
D26: Bridge Year | E26: =IF(ISBLANK(E24), "", E24-1) -> 2020 | Z26: 24 | AA26: ERTH POWER CORPORATION – GODERICH RATE ZONE
Z27: 25 | AA27: Essex Powerlines Corporation
D28: Last Rebasing Year | E28: 2016 | Z28: 26 | AA28: Festival Hydro Inc.
Z29: 27 | AA29: Fort Frances Power Corporation
A30: Identify the accounting standard used for the test year | Z30: 28 | AA30: Greater Sudbury Hydro Inc.
E31: MIFRS | Z31: 29 | AA31: Grimsby Power Incorporated
Z32: 30 | AA32: Halton Hills Hydro Inc.
A33: ="Did "& E14 &" update its depreciation and capitalization policies?" -> Did Wellington North Power Inc. update its depreciation and capitalization policies? | Z33: 31 | AA33: Hearst Power Distribution Co. Ltd.
E34: No | Z34: 32 | AA34: Hydro 2000 Inc.
Z35: 33 | AA35: Hydro Hawkesbury Inc.
A36: If "yes" to cell E34, were the changes in policies reflected in a prior rebasing application? | Z36: 34 | AA36: Hydro One Networks Inc.
Z37: 35 | AA37: Hydro One Networks Inc.-Former Haldimand County Hydro Inc. Service Area
Z38: 36 | AA38: Hydro One Networks Inc.-Former Norfolk Power Distribution Inc. Service Area
A39: ="When did "&E14&" update its actual depreciation and capitalization policies?" -> When did Wellington North Power Inc. update its actual depreciation and capitalization policies? | Z39: 37 | AA39: Hydro One Networks Inc.-Former Woodstock Hydro Services Inc. Service Area
E40: 2001-01-01 | Z40: 38 | AA40: Hydro One Remote Communites Inc.
Z41: 39 | AA41: Hydro Ottawa Limited
A42: Identify the year the applicant adopted IFRS for financial reporting purposes | Z42: 40 | AA42: InnPower Corporation
Z43: 41 | AA43: Kingston Hydro Corporation
Z44: 42 | AA44: Kitchener-Wilmot Hydro Inc.
Z45: 43 | AA45: Lakefront Utilities Inc.
A46: ="Is " & E14 & " applying for cost recovery for the test and/or future year(s) for Green Energy initiatives?" -> Is Wellington North Power Inc. applying for cost recovery for the test and/or future year(s) for Green Energy initiatives? | Z46: 44 | AA46: Lakeland Power Distribution Ltd.
E47: No | Z47: 45 | AA47: Lakeland Power Distribution Ltd.-Parry Sound Service Area
Z48: 46 | AA48: London Hydro Inc.
A49: ="Is " & E14 & " an embedded distributor?" -> Is Wellington North Power Inc. an embedded distributor? | E49: Yes | Z49: 47 | AA49: Milton Hydro Distribution Inc.
Z50: 48 | AA50: Newmarket-Tay Power Distribution Ltd.-For Former Midland Power Utility Rate Zone
Z51: 49 | AA51: Newmarket-Tay Power Distribution Ltd.-For Newmarket-Tay Power Main Rate Zone
B52: Notes | Z52: 50 | AA52: Niagara Peninsula Energy Inc.
Z53: 51 | AA53: Niagara-on-the-Lake Hydro Inc.
C54: Pale green cells represent input cells. | Z54: 52 | AA54: North Bay Hydro Distribution Limited - Espanola service territory
Z55: 53 | AA55: North Bay Hydro Distribution Limited - North Bay service territory
C56: Pale blue cells represent drop-down lists. The applicant should select the appropriate item from the drop-down list. | Z56: 54 | AA56: Northern Ontario Wires Inc.
Z57: 55 | AA57: Oakville Hydro Electricity Distribution Inc.
C58: White cells contain fixed values, automatically generated values or formulae. | N58: =IF(LEN($G58)>1, (SUMPRODUCT(--($C$81:$C$1003=$C58),--($A$81:$A$1003=$D58), --($B$81:$B$1003=$B58&"_TOTAL"), $L$1:$L$889)), "") ->  | O58: =IF(LEN($G58)>1, (SUMPRODUCT(--($C$81:$C$1003=$C58),--($A$81:$A$1003=$D58), --($B$81:$B$1003=$B58&"_TOTAL"), $M$1:$M$889)), "") ->  | Z58: 56 | AA58: Orangeville Hydro Limited
Z59: 57 | AA59: Orillia Power Distribution Corporation
Z60: 58 | AA60: Oshawa PUC Networks Inc.
Z61: 59 | AA61: Ottawa River Power Corporation
Z62: 60 | AA62: Peterborough Distribution Incorporated
Z63: 61 | AA63: PUC Distribution Inc.
Z64: 62 | AA64: Renfrew Hydro Inc.
Z65: 63 | AA65: Rideau St. Lawrence Distribution Inc.
Z66: 64 | AA66: Sioux Lookout Hydro Inc.
Z67: 65 | AA67: Synergy North Corporation-Kenora Rate Zone
Z68: 66 | AA68: Synergy North Corporation-Thunder Bay Rate Zone
Z69: 67 | AA69: Tillsonburg Hydro Inc.
Z70: 68 | AA70: Toronto Hydro-Electric System Limited
Z71: 69 | AA71: Wasaga Distribution Inc.
Z72: 70 | AA72: Waterloo North Hydro Inc.
Z73: 71 | AA73: Welland Hydro-Electric System Corp.
Z74: 72 | AA74: Wellington North Power Inc.
Z75: 73 | AA75: Westario Power Inc.

Sheet Index
A15: 1 | B15: LDC Information Sheet | E15: 20 | F15: App.2-G: Service Reliability Indicators
A16: 2 | B16: Index | E16: 21 | F16: App.2-H: Other Operating Revenue (TO BE UPDATED AT THE DRAFT RATE ORDER STAGE)
A17: 3 | B17: Cost of Service Application Flowchart | E17: 22 | F17: App.2-I: Load Forecast CDM Adjustment Workform
A18: 4 | B18: List of Key References | E18: 23 | F18: App.2-IA: Load Forecast Data Instructions
A19: 5 | B19: App.2-A: List of Requested Approvals | E19: 24 | F19: App.2-IB: Actual and Forecast Load and Customer Data
A20: 6 | B20: App.2-AA: Capital Projects Table | E20: 25 | F20: App.2-JA: OM&A Summary Analysis (TO BE UPDATED AT THE DRAFT RATE ORDER STAGE)
A21: 7 | B21: App.2-AB: Capital Expenditures (TO BE UPDATED AT THE DRAFT RATE ORDER STAGE) | E21: 26 | F21: App.2-JB: Recoverable OM&A Cost Driver Table
A22: 8 | B22: App. 2-AC: Customer Engagement Worksheet | E22: 27 | F22: App.2-JC: OM&A Programs Table
A23: 9 | B23: App.2-B: General Accounting Instructions | E23: 28 | F23: App.2-K: Employee Costs (TO BE UPDATED AT THE DRAFT RATE ORDER STAGE)
A24: 10 | B24: App.2-BA: Fixed Asset Continuity Schedule | E24: 29 | F24: App.2-L: Recoverable OM&A Cost per Customer and per FTE
A25: 11 | B25: Appendix 2-BB: Service Life Comparison | E25: 30 | F25: App.2-M: Regulatory Costs Schedule (TO BE UPDATED AT THE DRAFT RATE ORDER STAGE)
A26: 12 | B26: App.2-C_DepExp: Depreciation and Amortization Expense | E26: 31 | F26: App.2-N: Shared Services and Corporate Cost Allocation
A27: 13 | B27: App.2-D: Overhead Expenses | E27: 32 | F27: App.2-OA: Capital Structure and Cost of Capital
A28: 14 | B28: App.2-EA: Account 1575 PP&E Deferral Account (2015 IFRS Adopters) - CONTACT OEB STAFF IF TAB REQUIRED | E28: 33 | F28: App.2-OB: Debt Instruments
A29: 15 | B29: App.2-EB: Account 1576 - Accounting Changes Under CGAAP (2012 Changes) - CONTACT OEB STAFF IF TAB REQUIRED | E29: 34 | F29: App.2-Q: Cost of Serving Embedded Distributor(s)
A30: 16 | B30: App.2-EC: Account 1576 - Accounting Changes Under CGAAP (2013 Changes) - CONTACT OEB STAFF IF TAB REQUIRED | E30: 35 | F30: App.2-R: Loss Factors
A31: 17 | B31: App.2-FA: Renewable Generation Connection Investment Summary (TO BE UPDATED AT THE DRAFT RATE ORDER STAGE) | E31: 36 | F31: App.2-S: Stranded Meter Treatment- CONTACT OEB STAFF IF TAB REQUIRED
A32: 18 | B32: App.2-FB: Calculation of Renewable Generation Connection Direct Benefits/Provincial Amount: Renewable Enabling Improvement Investments (TO BE UPDATED AT THE DRAFT RATE ORDER STAGE) | E32: 37 | F32: App.2-Y: Transition to MIFRS Summary Impact - CONTACT OEB STAFF IF TAB REQUIRED
A33: 19 | B33: App.2-FC: Calculation of Renewable Generation Connection Direct Benefits/Provincial Amount: Renewable Expansion Investments (TO BE UPDATED AT THE DRAFT RATE ORDER STAGE) | E33: 38 | F33: App.2-YA: One-Time Incremental IFRS Transition Costs - CONTACT OEB STAFF IF TAB REQUIRED
E34: 39 | F34: App.2-ZA: Commodity Expense
E35: 40 | F35: App.2-ZB: Cost of Power
A42: Note: | B42: Appendices for the Tariff of Rates and Charges at Current and Proposed Rates, and for the Bill Impacts are now in a separate spreadsheet model. These appendices were formerly 2-Z and 2-W.

Sheet COS Flowchart
B4: Cost of Service Rate Application Schematic
B6: The Cost of Service Rate Application Schematic is a flowchart that is included as a guide for the components of an application. The schematic demonstrates how demand and costs interrelate to derive the revenue requirement and how the revenue requirement is allocated between classes and through fixed/variable splits to derive rates that will be compensatory for the annual revenue requirement, based on the the forecasted demand. There is no form to be filled out; therefore, this Schedule is not required to be filed.

Sheet List of Key References
B2: List of Key References
A4: A list of key references for understanding the Filing Requirements has been embedded in the document below. To access the list of references and associated hyperlinks double-click the icon below.

Sheet App.2-A_Requested_Approvals
G1: File Number: | H1: =EBNUMBER -> EB-2020-0061
G2: Exhibit: | H2: 1
G3: Tab: | H3: Section 1.2.5
G4: Schedule:
G5: Page: | H5: 15-16
G7: Date: | H7: October 30 ,2020
B9: Appendix 2-A
B10: List of Requested Approvals
B12: The distributor must fill out the following sheet with the complete list of specific approvals requested and relevant section(s) of the legislation must be provided. All approvals, including accounting orders (deferral and variance accounts) new rate classes, revised specific service charges or retail service charges which the applicant is seeking, must be separately identified, as well being clearly documented in the appropriate sections of the application.
B14: Additional requests may be added by copying and pasting blank input rows, as needed.
B16: If additional requests arise, or requested approvals are removed, during the processing of the application, the distributor should update this list.
B18: =CONCATENATE('LDC Info'!E14," is seeking the following approvals in this application:") -> Wellington North Power Inc. is seeking the following approvals in this application:
B20: 1 | F20: Approval to charge distribution rates effective May 1, 2021 to recover a Base Revenue requirement and revenue deficiency, as detailed in the Revenue Requirement Workform and discussed in Exhibit 6, through applying the proposed rates as set out in the Tariff Schedule & Bill Impact model and Exhibit 8.
B22: 2 | F22: Approval of the Applicant’s Distribution System Plan as included in Exhibit 2 and filed as a stand-alone document with this Application.
B24: 3 | F24: Approval of revised Low Voltage Rates as proposed and described in Exhibit 8
B26: 4 | F26: Approval for an adjustment to the Retail Transmission Service Rates approved in the Applicant’s 2020 IRM application (EB-2009-0073) as detailed in Exhibit 8.
B28: 5 | F28: Approval to continue to charge Wholesale Market Services, Capacity -Based Recovery and Rural Rate Protection charges as approved by the OEB and detailed in Exhibit 8.
B30: 6 | F30: Approval to continue the specific Service Charges (with the exception of the MicroFIT Monthly Service charge) and Transformer Allowance as previously approved by the OEB and as detailed in Exhibit 8.
B32: 7 | F32: Approval to continue applying the MicroFIT monthly service charge of $15.69 as approved in the Applicant's 2016 Cost of Service (EB-2015-0110) and detailed in Exhibit 3, to recover operating costs in calculating and validating generation data to enable monthly settlement with the IESO.
B34: 8 | F34: Approval of the proposed Loss Factor as detailed in Exhibit 8 and calculated in Chapter 2 Filing Requirements Appendix worksheet App2-R Loss Factors.
B36: 9 | F36: Approval of the Rate Riders for a two year disposition of the Group 1 Deferral and Variance account balances as at December 31, 2019 along with the projected carrying charges in accordance with the Report of the Board on Electricity Distributors’ Deferral and Variance Account Review Initiative (EDDVAR – July 31, 2009) as detailed in Exhibit 9.
B38: 10 | F38: Approval of the Rate Riders for a two year disposition of the Group 2 Deferral and Variance account balances as at December 31, 2019 along with the projected carrying charges in accordance with the Report of the Board on Electricity Distributors’ Deferral and Variance Account Review Initiative (EDDVAR – July 31, 2009) as detailed in Exhibit 9.
B40: 11 | F40: Approval of the Rate Riders for a two year disposition for the Loss Revenue Adjustment Mechanism variance account (“LRAMVA”) for lost revenue from 2015-2019 resulting from the Conservation First Framework programs as detailed in Exhibit 4. Account disposition requested as a final balance.
B42: 12 | F42: Approval to include assets relating to a new substation (built and energized in 2018) into the Applicant’s 2021 Rate Base as detailed in Exhibit 2
B44: 13 | F44: Approval for recovery of the variance between the Advanced Capital Module (ACM) Rate Rider revenue collected since implementation of May 2016 rates versus the forecasted revenue projected in the Applicant’s 2018 IRM application (EB-2017-0082). This variance has been calculated as a ”true-up” as illustrated in Exhibit 2 and included in the EDDVAR model as detailed in Exhibit 9. The resulting Rate Rider is included within the Group 2 Deferral and Variance account balances (1508 account) which the Applicant is seeking approval for a two year disposition.
B46: 14 | F46: Acceptance of the Demand Profile methodology to determine the Non-Coincident Peak and Coincident Peak Demand Allocators as applied in the Cost Allocation model (worksheet I8) and described in Exhibit 7.
B48: 15 | F48: Disposal of the balance in the wireline pole attachment variance account as at December 31st 2019 as recorded in account 1508.
B50: 16 | F50: Disposal / recovery of balances related to OPEB accrual amount variance in account 1508 as at December 31st 2020 based upon the Actuarial Report filed with the Application.
B52: 17 | F52: Disposal / recovery of 1588 & 1589 commodity account balances at as December 31st 2019 on a final basis as detailed in Exhibit 9.
B54: 18 | F54: Disposal of 1508 sub-account balances relating to: a) Capital project variance for the 2nd line 44kV Feeder Line constructed in 2016 (as per 2015 DSP and included in the Applicant's 2016 Cost of Service application - EB-2015-0110); and b) East Energy Consultation Cost Disposal requested on a final basis as detailed in Exhibit 9
B56: 19 | F56: Requests that affiliate debt interest rate remains at 4.54% as detailed in Exhibit 5.
B58: 20 | F58: Disposal / recovery of account 1557 - MIST meters balances as at December 31st 2019 plus subsequent carrying charges calculated for January to December of 2020 and January to April of 2021 on a final basis as detailed in Exhibit 9

Sheet App.2-AA_Capital Projects
G1: File Number: | H1: =EBNUMBER -> EB-2020-0061
G2: Exhibit: | H2: 2
G3: Tab: | H3: DSP
G4: Schedule: | H4: Figure 106
G5: Page: | H5: 158
G7: Date: | H7: October 30 ,2020
A9: Appendix 2-AA
A10: Capital Projects Table
A13: Projects | B13: =C13-1 -> 2016 | C13: =D13-1 -> 2017 | D13: =E13-1 -> 2018 | E13: =BridgeYear - 1 -> 2019 | F13: =BridgeYear & " Bridge Year" -> 2020 Bridge Year | G13: =TestYear & " Test Year" -> 2021 Test Year
A14: Reporting Basis | B14: MIFRS | C14: MIFRS | D14: MIFRS | E14: MIFRS | F14: MIFRS | G14: MIFRS
A15: Project Name #1 - Special Projects
A16: 2nd line 44 kV feeder | B16: 1308427
A17: MS3 substation | C17: 9452 | D17: 1683441
A21: Sub-Total | B21: =SUM(B16:B20) -> 1308427 | C21: 9452 | D21: 1683441 | E21: 0 | F21: 0 | G21: 0
A22: Project Name #2 - Annual Projects
A23: Pole & Transformer Replacements | B23: 63564 | C23: 70668 | D23: 69163 | E23: 49230 | F23: 96881 | G23: 55000
A24: New Services | B24: 33081 | C24: 44017 | D24: 99257 | E24: 50913 | F24: 83720 | G24: 60000
A25: Meter Replacements | B25: 22201 | C25: 57396 | G25: 25000
A26: Smart Meter Re-seal and Reverification | D26: 119042 | E26: 154346 | G26: 10000
A27: PME Metering Equipment | B27: 6903 | D27: 5634 | F27: 6772 | G27: 1500
A32: Sub-Total | B32: =SUM(B23:B31) -> 125749 | C32: 172081 | D32: 293096 | E32: 254489 | F32: 187373 | G32: 151500
A33: Project Name #3 - Pole Line Construction Projects
A34: Pole Line Rebuild - Queen Street West (phase 1) | C34: 101715
A35: Pole Line Rebuild - Holstein main road | C35: 155044
A36: Pole Line Rebuild - Isabella St between Eliza St & Charles St | D36: 41247
A37: Pole Line Rebuild - Adelaide St between Clarke St and Conestoga St | D37: 44466
A38: Pole Line Rebuild - William St | E38: 76180
A39: Pole Line Rebuild - Preston St N btw Smith and Domville Sts | E39: 82890
A40: Pole Line Rebuild - York St at Queen W | E40: 23146
A41: Pole replacement - Parkside Drive | E41: 12054
A42: Pole Line Rebuild - Durham St | E42: 8799
A43: Pole relocation - Holstein Bridge | E43: 9774
A44: New pole line - Eliza St | F44: 99384
A45: Pole Line Rebuild - Tucker St | F45: 51704
A46: Pole Line Rebuild - Queen Street West (phase 2) | F46: 52752
A47: Pole Line Waterloo St | F47: 57627 | G47: 0
A48: System Service project | F48: 114476
A49: Pole Line Rebuild projects (2021) | G49: 185000
A52: Sub-Total | B52: =SUM(B33:B51) -> 0 | C52: 256759 | D52: 85713 | E52: 212843 | F52: 375943 | G52: 185000
A53: Project Name #4 - Developers / Contractors
A54: Lucas Subdivision | C54: 21716 | D54: 23119
A55: Boomer Rock | C55: 8266 | D55: 3206
A56: Cork St Townhouses | D56: 7671
A57: New Padmount Transformer - 440 King St | C57: 47885 | D57: 12399
A58: Perth St Extension | D58: 6827
A59: Emergency - Arthur Waste Water Treatement plant (contractor hit underground cabling, replaced transformer) | E59: 15754
A60: Wilson Townhouses | E60: 8822
A61: Wellington St Development | E61: 1286
A62: Frederick St Pumping station | E62: 1017
A63: Developer plans | F63: =4383+51560+4396 -> 60339
A64: Sub-Total | B64: =SUM(B54:B63) -> 0 | C64: 77867 | D64: 53222 | E64: 26879 | F64: 60339 | G64: 0
A65: Project Name #5 - Adhoc
A66: Underground Project (2020) | G66: 75000
A67: SCADA - communication upgrade | F67: 29168 | G67: 15000
A68: SCADA - switch | C68: 1113
A69: SMART Technology - Reclosures | G69: 10000
A70: Asset Replacement | F70: =16003+2329 -> 18332
A71: Sub-Total | B71: =SUM(B66:B70) -> 0 | C71: 1113 | D71: 0 | E71: 0 | F71: 47500 | G71: 100000
A72: Project Name #6 - General Plant
A73: Computer Hardware / Software / Cyber-Security | B73: 92481 | C73: 77621 | D73: 20160 | E73: 87146 | F73: =138083+6014-29168 -> 114929 | G73: =111400+26600 -> 138000
A74: Building Renovation & Accessibilty Compliance | B74: 7748 | C74: 29677 | E74: 1215 | F74: 6803 | G74: 50000
A75: Fleet Replacement | C75: 37499 | E75: 38401 | F75: 316789
A76: Tools | B76: 1704 | C76: 26511 | D76: 2144 | E76: 3795 | F76: =3276-F77+1110 -> 3009 | G76: 2500
A77: Safety Equipment | B77: 9405 | D77: 54500 | E77: 5180 | F77: 1377
A78: Sub-Total | B78: =SUM(B73:B77) -> 111338 | C78: 171308 | D78: 76804 | E78: 135737 | F78: 442907 | G78: 190500
A79: Miscellaneous | B79: 31 | C79: 24275 | D79: 37455 | E79: 45035 | F79: 2766
A80: Total | B80: =SUMPRODUCT(--($A15:$A79="Sub-Total"), B$15:B$79)+B79 -> 1545545 | C80: 712855 | D80: 2229731 | E80: 674983 | F80: 1116828 | G80: 627000
A81: Less Renewable Generation Facility Assets and Other Non-Rate-Regulated Utility Assets (input as negative)
A82: Total | B82: =B80+B81 -> 1545545 | C82: 712855 | D82: 2229731 | E82: 674983 | F82: 1116828 | G82: 627000
A84: Notes:
A86: 1 Please provide a breakdown of the major components of each capital project undertaken in each year. Please ensure that all projects below the materiality threshold are included in the miscellaneous line. Add more projects as required.
A87: 2 The applicant should group projects appropriately and avoid presentations that result in classification of significant components of the capital budget in the miscellaneous category.

Sheet App.2-AB_Capital Expenditures
AE1: File Number: | AG1: =EBNUMBER -> EB-2020-0061
AE2: Exhibit: | AG2: 2
AE3: Tab: | AG3: DSP
AE4: Schedule: | AG4: Figure 107
A5: TO BE UPDATED AT THE DRAFT RATE ORDER STAGE | AE5: Page: | AG5: 159
AE7: Date: | AG7: 2020-10-30
A9: Appendix 2-AB
A10: Table 2 - Capital Expenditure Summary from Chapter 5 Consolidated Distribution System Plan Filing Requirements
A11: First year of Forecast Period:
A12: =TestYear -> 2021
A13: CATEGORY | B13: Historical Period (previous plan1 & actual) | AC13: Forecast Period (planned)
B14: =E14-1 -> 2012 | E14: =H14-1 -> 2013 | H14: =K14-1 -> 2014 | K14: =N14-1 -> 2015 | N14: =Q14-1 -> 2016 | Q14: =T14-1 -> 2017 | T14: =W14-1 -> 2018 | W14: =Z14-1 -> 2019 | Z14: =AC14-1 -> 2020 | AC14: =A12 -> 2021 | AD14: =AC14+1 -> 2022 | AE14: =AD14+1 -> 2023 | AF14: =AE14+1 -> 2024 | AG14: =AF14+1 -> 2025
B15: Plan | C15: Actual | D15: Var | E15: Plan | F15: Actual | G15: Var | H15: Plan | I15: Actual | J15: Var | K15: Plan | L15: Actual | M15: Var | N15: Plan | O15: Actual | P15: Var | Q15: Plan | R15: Actual | S15: Var | T15: Plan | U15: Actual | V15: Var | W15: Plan | X15: Actual | Y15: Var | Z15: Plan | AA15: Actual2 | AB15: Var
B16: $ '000 | D16: % | E16: $ '000 | G16: % | H16: $ '000 | J16: % | K16: $ '000 | M16: % | N16: $ '000 | P16: % | Q16: $ '000 | S16: % | T16: $ '000 | V16: % | W16: $ '000 | Y16: % | Z16: $ '000 | AB16: % | AC16: $ '000
A17: System Access | D17: =IF(ISERROR((C17-B17)/B17),"--",(C17-B17)/B17) -> -- | G17: =IF(ISERROR((F17-E17)/E17),"--",(F17-E17)/E17) -> -- | J17: =IF(ISERROR((I17-H17)/H17),"--",(I17-H17)/H17) -> -- | M17: =IF(ISERROR((L17-K17)/K17),"--",(L17-K17)/K17) -> -- | N17: 55 | O17: 38.722 | P17: =IF(ISERROR((O17-N17)/N17),"--",(O17-N17)/N17) -> -0.2959636364 | Q17: 240 | R17: 77.353 | S17: =IF(ISERROR((R17-Q17)/Q17),"--",(R17-Q17)/Q17) -> -0.6776958333 | T17: 240 | U17: 140.741 | V17: =IF(ISERROR((U17-T17)/T17),"--",(U17-T17)/T17) -> -0.4135791667 | W17: 240 | X17: 63.63 | Y17: =IF(ISERROR((X17-W17)/W17),"--",(X17-W17)/W17) -> -0.734875 | Z17: 60 | AA17: 185.994 | AB17: =IF(ISERROR((AA17-Z17)/Z17),"--",(AA17-Z17)/Z17) -> 2.0999 | AC17: 70 | AD17: 70 | AE17: 70 | AF17: 70 | AG17: 85
A18: System Renewal | D18: =IF(ISERROR((C18-B18)/B18),"--",(C18-B18)/B18) -> -- | G18: =IF(ISERROR((F18-E18)/E18),"--",(F18-E18)/E18) -> -- | J18: =IF(ISERROR((I18-H18)/H18),"--",(I18-H18)/H18) -> -- | M18: =IF(ISERROR((L18-K18)/K18),"--",(L18-K18)/K18) -> -- | N18: 90 | O18: 113.17 | P18: =IF(ISERROR((O18-N18)/N18),"--",(O18-N18)/N18) -> 0.2574444444 | Q18: 390 | R18: 454.353 | S18: =IF(ISERROR((R18-Q18)/Q18),"--",(R18-Q18)/Q18) -> 0.1650076923 | T18: 1932 | U18: 2012.186 | V18: =IF(ISERROR((U18-T18)/T18),"--",(U18-T18)/T18) -> 0.04150414079 | W18: 290 | X18: 475.616 | Y18: =IF(ISERROR((X18-W18)/W18),"--",(X18-W18)/W18) -> 0.6400551724 | Z18: 450 | AA18: 366.678 | AB18: =IF(ISERROR((AA18-Z18)/Z18),"--",(AA18-Z18)/Z18) -> -0.18516 | AC18: 340 | AD18: 265 | AE18: 265 | AF18: 315 | AG18: 315
A19: System Service | D19: -- | G19: -- | J19: -- | M19: -- | N19: 1373.21714 | O19: 1307.297 | P19: -0.04800416342 | Q19: 0 | R19: 10.954 | S19: -- | T19: 0 | U19: 54.5 | V19: -- | W19: 0 | X19: 5.18 | Y19: -- | Z19: 0 | AA19: 114.476 | AB19: -- | AC19: 26.5 | AD19: 18.5 | AE19: 21 | AF19: 81.5 | AG19: 14
A20: General Plant | D20: -- | G20: -- | J20: -- | M20: -- | N20: 75.694 | O20: 86.356 | P20: 0.1408566069 | Q20: 138.67 | R20: 170.195 | S20: 0.2273382851 | T20: 24.47 | U20: 22.304 | V20: -0.08851655088 | W20: 421.85 | X20: 130.557 | Y20: -0.6905132156 | Z20: 473 | AA20: 449.68 | AB20: -0.04930232558 | AC20: 190.5 | AD20: 598.05 | AE20: 151.45 | AF20: 150.8 | AG20: 179.5
A21: TOTAL EXPENDITURE | B21: =SUM(B17:B20) -> 0 | C21: =SUM(C17:C20) -> 0 | D21: -- | E21: =SUM(E17:E20) -> 0 | F21: =SUM(F17:F20) -> 0 | G21: -- | H21: =SUM(H17:H20) -> 0 | I21: =SUM(I17:I20) -> 0 | J21: -- | K21: =SUM(K17:K20) -> 0 | L21: =SUM(L17:L20) -> 0 | M21: -- | N21: =SUM(N17:N20) -> 1593.91114 | O21: =SUM(O17:O20) -> 1545.545 | P21: -0.03034431392 | Q21: 768.67 | R21: 712.855 | S21: -0.07261243446 | T21: 2196.47 | U21: 2229.731 | V21: 0.01514293389 | W21: 951.85 | X21: 674.983 | Y21: -0.2908725114 | Z21: 983 | AA21: 1116.828 | AB21: 0.1361424212 | AC21: 627 | AD21: 951.55 | AE21: 507.45 | AF21: 617.3 | AG21: =SUM(AG17:AG20) -> 593.5
A22: Capital Contributions | D22: -- | G22: -- | J22: -- | M22: -- | O22: -11.555 | P22: -- | S22: -- | V22: -- | X22: -25.84 | Y22: -- | AA22: -22.8 | AB22: -- | AC22: -20 | AD22: -20 | AE22: -20 | AF22: -20 | AG22: -20
A23: Net Capital Expenditures | D23: -- | G23: -- | J23: -- | M23: -- | O23: 1533.99 | P23: -- | R23: 712.855 | S23: -- | U23: 2229.731 | V23: -- | X23: 649.143 | Y23: -- | Z23: 963 | AA23: =AA21+AA22 -> 1094.028 | AB23: 0.1360623053 | AC23: 607 | AD23: 931.55 | AE23: 487.45 | AF23: 597.3 | AG23: 573.5
A24: System O&M | D24: -- | G24: -- | J24: -- | M24: -- | N24: 651 | O24: 661.117 | P24: 0.01554070661 | Q24: 667 | R24: 666.582 | S24: -0.0006266866567 | T24: 684 | U24: 637.798 | V24: -0.06754678363 | W24: 701 | X24: 621.325 | Y24: -0.1136590585 | Z24: 719 | AA24: 623.572 | AB24: -0.1327232267 | AC24: 705 | AD24: 719.1 | AE24: 733.482 | AF24: 748.15164 | AG24: 763.1146728
A26: Notes to the Table:
A27: 1. Historical “previous plan” data is not required unless a plan has previously been filed. However, use the last OEB-approved, at least on a Total (Capital) Expenditure basis for the last cost of service rebasing year, and the applicant should include their planned budget in each subsequent historical year up to and including the Bridge Year.
A28: 2. Indicate the number of months of 'actual' data included in the last year of the Historical Period (normally a 'bridge' year):
A30: Explanatory Notes on Variances (complete only if applicable)
A31: Notes on shifts in forecast vs. historical budgets by category
A32: Bridge Year (2020) Actual are correct as at 5 months (May 31 2020)
A34: Notes on year over year Plan vs. Actual variances for Total Expenditures
A35: 2016 variance - System Access: to fewer new new services than planned; System Renewal: 3 additional transfomers replaced which were unplanned; General Plant: purchase of unplanned safety equipment (ground rod driver, ground safety mats and security cameras) 2017 & 2018 & 2019 variance - re-allocation of OEB category. In WNP’s 2015 DSP, the LDC included a budget for “Residential & Small Business meter replacement project” under Service Access. The utility was planning to replace its Smart meters over a 3-year period of 2017 to 2019 with an annual budget of $180,000 as meters were approaching their 10-year meter seal life as recognized by Measurement Canada. WNP decided it would be in the interest of its rate-payers not to replace the meters but to have them re-verified and resealed. Also, WNP revised the OEB investment for this project from “System Access” to “System Renewal” as the assets’ life, according to Measurement Canada, had been extended (renewed). 2019 variance - General Plant: In WNP’s 2015 DSP, the LDC planned to replace a bucket truck in 2019 with a budget amount of $250,000. During the quotation process it was deemed that delivery would not be until 2020 with a cost closer to $325,000. WNP also had a planned replacement of the Radial Boom Derrick “RBD” in 2020 with a budget of $345,000. WNP decided it would obtain new quotes for the RBD and defer its replacement since the vehicle remains in acceptable condition. The purchase of the bucket truck is to be completed in 2020 and therefore WNP underspent by $250,000 in the “General Plant” investment category
A37: Notes on Plan vs. Actual variance trends for individual expenditure categories

Sheet Hidden_CAPEX (hidden)
A1: Utility Name | B1: EB Number | C1: Test Year | D1: Bridge Year | E1: Last Rebasing Year | F1: Category | G1: Year | H1: Plan | I1: Actual
A2: ='LDC Info'!$E$14 -> Wellington North Power Inc. | B2: =EBNUMBER -> EB-2020-0061 | C2: =TestYear -> 2021 | D2: =BridgeYear -> 2020 | E2: =RebaseYear -> 2016 | F2: System Access | G2: ='App.2-AB_Capital Expenditures'!B14 -> 2012 | H2: ='App.2-AB_Capital Expenditures'!B17 -> 0 | I2: ='App.2-AB_Capital Expenditures'!C17 -> 0
A3: ='LDC Info'!$E$14 -> Wellington North Power Inc. | B3: EB-2020-0061 | C3: 2021 | D3: 2020 | E3: 2016 | F3: System Renewal | G3: ='App.2-AB_Capital Expenditures'!B14 -> 2012 | H3: ='App.2-AB_Capital Expenditures'!B18 -> 0 | I3: ='App.2-AB_Capital Expenditures'!C18 -> 0
A4: ='LDC Info'!$E$14 -> Wellington North Power Inc. | B4: EB-2020-0061 | C4: 2021 | D4: 2020 | E4: 2016 | F4: System Service | G4: ='App.2-AB_Capital Expenditures'!B14 -> 2012 | H4: ='App.2-AB_Capital Expenditures'!B19 -> 0 | I4: ='App.2-AB_Capital Expenditures'!C19 -> 0
A5: ='LDC Info'!$E$14 -> Wellington North Power Inc. | B5: EB-2020-0061 | C5: 2021 | D5: 2020 | E5: 2016 | F5: General Plant | G5: ='App.2-AB_Capital Expenditures'!B14 -> 2012 | H5: ='App.2-AB_Capital Expenditures'!B20 -> 0 | I5: ='App.2-AB_Capital Expenditures'!C20 -> 0
A6: ='LDC Info'!$E$14 -> Wellington North Power Inc. | B6: EB-2020-0061 | C6: 2021 | D6: 2020 | E6: 2016 | F6: Total Expenditure | G6: ='App.2-AB_Capital Expenditures'!B14 -> 2012 | H6: ='App.2-AB_Capital Expenditures'!B21 -> 0 | I6: ='App.2-AB_Capital Expenditures'!C21 -> 0
A7: ='LDC Info'!$E$14 -> Wellington North Power Inc. | B7: EB-2020-0061 | C7: 2021 | D7: 2020 | E7: 2016 | F7: Capital Contributions | G7: ='App.2-AB_Capital Expenditures'!B14 -> 2012 | H7: ='App.2-AB_Capital Expenditures'!B22 -> 0 | I7: ='App.2-AB_Capital Expenditures'!C22 -> 0
A8: ='LDC Info'!$E$14 -> Wellington North Power Inc. | B8: EB-2020-0061 | C8: 2021 | D8: 2020 | E8: 2016 | F8: Net Capital Expenditures | G8: ='App.2-AB_Capital Expenditures'!B14 -> 2012 | H8: ='App.2-AB_Capital Expenditures'!B23 -> 0 | I8: ='App.2-AB_Capital Expenditures'!C23 -> 0
A9: ='LDC Info'!$E$14 -> Wellington North Power Inc. | B9: EB-2020-0061 | C9: 2021 | D9: 2020 | E9: 2016 | F9: System O&M | G9: ='App.2-AB_Capital Expenditures'!B14 -> 2012 | H9: ='App.2-AB_Capital Expenditures'!B24 -> 0 | I9: ='App.2-AB_Capital Expenditures'!C24 -> 0
A10: ='LDC Info'!$E$14 -> Wellington North Power Inc. | B10: EB-2020-0061 | C10: 2021 | D10: 2020 | E10: 2016 | F10: System Access | G10: ='App.2-AB_Capital Expenditures'!E14 -> 2013 | H10: ='App.2-AB_Capital Expenditures'!E17 -> 0 | I10: ='App.2-AB_Capital Expenditures'!F17 -> 0
A11: ='LDC Info'!$E$14 -> Wellington North Power Inc. | B11: EB-2020-0061 | C11: 2021 | D11: 2020 | E11: 2016 | F11: System Renewal | G11: ='App.2-AB_Capital Expenditures'!E14 -> 2013 | H11: ='App.2-AB_Capital Expenditures'!E18 -> 0 | I11: ='App.2-AB_Capital Expenditures'!F18 -> 0
A12: ='LDC Info'!$E$14 -> Wellington North Power Inc. | B12: EB-2020-0061 | C12: 2021 | D12: 2020 | E12: 2016 | F12: System Service | G12: ='App.2-AB_Capital Expenditures'!E14 -> 2013 | H12: ='App.2-AB_Capital Expenditures'!E19 -> 0 | I12: ='App.2-AB_Capital Expenditures'!F19 -> 0
A13: ='LDC Info'!$E$14 -> Wellington North Power Inc. | B13: EB-2020-0061 | C13: 2021 | D13: 2020 | E13: 2016 | F13: General Plant | G13: ='App.2-AB_Capital Expenditures'!E14 -> 2013 | H13: ='App.2-AB_Capital Expenditures'!E20 -> 0 | I13: ='App.2-AB_Capital Expenditures'!F20 -> 0
A14: ='LDC Info'!$E$14 -> Wellington North Power Inc. | B14: EB-2020-0061 | C14: 2021 | D14: 2020 | E14: 2016 | F14: Total Expenditure | G14: ='App.2-AB_Capital Expenditures'!E14 -> 2013 | H14: ='App.2-AB_Capital Expenditures'!E21 -> 0 | I14: ='App.2-AB_Capital Expenditures'!F21 -> 0
A15: ='LDC Info'!$E$14 -> Wellington North Power Inc. | B15: EB-2020-0061 | C15: 2021 | D15: 2020 | E15: 2016 | F15: Capital Contributions | G15: ='App.2-AB_Capital Expenditures'!E14 -> 2013 | H15: ='App.2-AB_Capital Expenditures'!E22 -> 0 | I15: ='App.2-AB_Capital Expenditures'!F22 -> 0
A16: ='LDC Info'!$E$14 -> Wellington North Power Inc. | B16: EB-2020-0061 | C16: 2021 | D16: 2020 | E16: 2016 | F16: Net Capital Expenditures | G16: ='App.2-AB_Capital Expenditures'!E14 -> 2013 | H16: ='App.2-AB_Capital Expenditures'!E23 -> 0 | I16: ='App.2-AB_Capital Expenditures'!F23 -> 0
A17: ='LDC Info'!$E$14 -> Wellington North Power Inc. | B17: EB-2020-0061 | C17: 2021 | D17: 2020 | E17: 2016 | F17: System O&M | G17: ='App.2-AB_Capital Expenditures'!E14 -> 2013 | H17: ='App.2-AB_Capital Expenditures'!E24 -> 0 | I17: ='App.2-AB_Capital Expenditures'!F24 -> 0
A18: ='LDC Info'!$E$14 -> Wellington North Power Inc. | B18: EB-2020-0061 | C18: 2021 | D18: 2020 | E18: 2016 | F18: System Access | G18: ='App.2-AB_Capital Expenditures'!H14 -> 2014 | H18: ='App.2-AB_Capital Expenditures'!H17 -> 0 | I18: ='App.2-AB_Capital Expenditures'!I17 -> 0
A19: ='LDC Info'!$E$14 -> Wellington North Power Inc. | B19: EB-2020-0061 | C19: 2021 | D19: 2020 | E19: 2016 | F19: System Renewal | G19: ='App.2-AB_Capital Expenditures'!H14 -> 2014 | H19: ='App.2-AB_Capital Expenditures'!H18 -> 0 | I19: ='App.2-AB_Capital Expenditures'!I18 -> 0
A20: ='LDC Info'!$E$14 -> Wellington North Power Inc. | B20: EB-2020-0061 | C20: 2021 | D20: 2020 | E20: 2016 | F20: System Service | G20: ='App.2-AB_Capital Expenditures'!H14 -> 2014 | H20: ='App.2-AB_Capital Expenditures'!H19 -> 0 | I20: ='App.2-AB_Capital Expenditures'!I19 -> 0
A21: ='LDC Info'!$E$14 -> Wellington North Power Inc. | B21: EB-2020-0061 | C21: 2021 | D21: 2020 | E21: 2016 | F21: General Plant | G21: ='App.2-AB_Capital Expenditures'!H14 -> 2014 | H21: ='App.2-AB_Capital Expenditures'!H20 -> 0 | I21: ='App.2-AB_Capital Expenditures'!I20 -> 0
A22: ='LDC Info'!$E$14 -> Wellington North Power Inc. | B22: EB-2020-0061 | C22: 2021 | D22: 2020 | E22: 2016 | F22: Total Expenditure | G22: ='App.2-AB_Capital Expenditures'!H14 -> 2014 | H22: ='App.2-AB_Capital Expenditures'!H21 -> 0 | I22: ='App.2-AB_Capital Expenditures'!I21 -> 0
A23: ='LDC Info'!$E$14 -> Wellington North Power Inc. | B23: EB-2020-0061 | C23: 2021 | D23: 2020 | E23: 2016 | F23: Capital Contributions | G23: ='App.2-AB_Capital Expenditures'!H14 -> 2014 | H23: ='App.2-AB_Capital Expenditures'!H22 -> 0 | I23: ='App.2-AB_Capital Expenditures'!I22 -> 0
A24: ='LDC Info'!$E$14 -> Wellington North Power Inc. | B24: EB-2020-0061 | C24: 2021 | D24: 2020 | E24: 2016 | F24: Net Capital Expenditures | G24: ='App.2-AB_Capital Expenditures'!H14 -> 2014 | H24: ='App.2-AB_Capital Expenditures'!H23 -> 0 | I24: ='App.2-AB_Capital Expenditures'!I23 -> 0
A25: ='LDC Info'!$E$14 -> Wellington North Power Inc. | B25: EB-2020-0061 | C25: 2021 | D25: 2020 | E25: 2016 | F25: System O&M | G25: ='App.2-AB_Capital Expenditures'!H14 -> 2014 | H25: ='App.2-AB_Capital Expenditures'!H24 -> 0 | I25: ='App.2-AB_Capital Expenditures'!I24 -> 0
A26: ='LDC Info'!$E$14 -> Wellington North Power Inc. | B26: EB-2020-0061 | C26: 2021 | D26: 2020 | E26: 2016 | F26: System Access | G26: ='App.2-AB_Capital Expenditures'!K14 -> 2015 | H26: ='App.2-AB_Capital Expenditures'!K17 -> 0 | I26: ='App.2-AB_Capital Expenditures'!L17 -> 0
A27: ='LDC Info'!$E$14 -> Wellington North Power Inc. | B27: EB-2020-0061 | C27: 2021 | D27: 2020 | E27: 2016 | F27: System Renewal | G27: ='App.2-AB_Capital Expenditures'!K14 -> 2015 | H27: ='App.2-AB_Capital Expenditures'!K18 -> 0 | I27: ='App.2-AB_Capital Expenditures'!L18 -> 0
A28: ='LDC Info'!$E$14 -> Wellington North Power Inc. | B28: EB-2020-0061 | C28: 2021 | D28: 2020 | E28: 2016 | F28: System Service | G28: ='App.2-AB_Capital Expenditures'!K14 -> 2015 | H28: ='App.2-AB_Capital Expenditures'!K19 -> 0 | I28: ='App.2-AB_Capital Expenditures'!L19 -> 0
A29: ='LDC Info'!$E$14 -> Wellington North Power Inc. | B29: EB-2020-0061 | C29: 2021 | D29: 2020 | E29: 2016 | F29: General Plant | G29: ='App.2-AB_Capital Expenditures'!K14 -> 2015 | H29: ='App.2-AB_Capital Expenditures'!K20 -> 0 | I29: ='App.2-AB_Capital Expenditures'!L20 -> 0
A30: ='LDC Info'!$E$14 -> Wellington North Power Inc. | B30: EB-2020-0061 | C30: 2021 | D30: 2020 | E30: 2016 | F30: Total Expenditure | G30: ='App.2-AB_Capital Expenditures'!K14 -> 2015 | H30: ='App.2-AB_Capital Expenditures'!K21 -> 0 | I30: ='App.2-AB_Capital Expenditures'!L21 -> 0
A31: ='LDC Info'!$E$14 -> Wellington North Power Inc. | B31: EB-2020-0061 | C31: 2021 | D31: 2020 | E31: 2016 | F31: Capital Contributions | G31: ='App.2-AB_Capital Expenditures'!K14 -> 2015 | H31: ='App.2-AB_Capital Expenditures'!K22 -> 0 | I31: ='App.2-AB_Capital Expenditures'!L22 -> 0
A32: ='LDC Info'!$E$14 -> Wellington North Power Inc. | B32: EB-2020-0061 | C32: 2021 | D32: 2020 | E32: 2016 | F32: Net Capital Expenditures | G32: ='App.2-AB_Capital Expenditures'!K14 -> 2015 | H32: ='App.2-AB_Capital Expenditures'!K23 -> 0 | I32: ='App.2-AB_Capital Expenditures'!L23 -> 0
A33: ='LDC Info'!$E$14 -> Wellington North Power Inc. | B33: EB-2020-0061 | C33: 2021 | D33: 2020 | E33: 2016 | F33: System O&M | G33: ='App.2-AB_Capital Expenditures'!K14 -> 2015 | H33: ='App.2-AB_Capital Expenditures'!K24 -> 0 | I33: ='App.2-AB_Capital Expenditures'!L24 -> 0
A34: ='LDC Info'!$E$14 -> Wellington North Power Inc. | B34: =EBNUMBER -> EB-2020-0061 | C34: =TestYear -> 2021 | D34: =BridgeYear -> 2020 | E34: =RebaseYear -> 2016 | F34: System Access | G34: ='App.2-AB_Capital Expenditures'!N14 -> 2016 | H34: ='App.2-AB_Capital Expenditures'!N17 -> 55 | I34: ='App.2-AB_Capital Expenditures'!O17 -> 38.722
A35: ='LDC Info'!$E$14 -> Wellington North Power Inc. | B35: EB-2020-0061 | C35: 2021 | D35: 2020 | E35: 2016 | F35: System Renewal | G35: ='App.2-AB_Capital Expenditures'!N14 -> 2016 | H35: ='App.2-AB_Capital Expenditures'!N18 -> 90 | I35: ='App.2-AB_Capital Expenditures'!O18 -> 113.17
A36: ='LDC Info'!$E$14 -> Wellington North Power Inc. | B36: EB-2020-0061 | C36: 2021 | D36: 2020 | E36: 2016 | F36: System Service | G36: ='App.2-AB_Capital Expenditures'!N14 -> 2016 | H36: ='App.2-AB_Capital Expenditures'!N19 -> 1373.21714 | I36: ='App.2-AB_Capital Expenditures'!O19 -> 1307.297
A37: ='LDC Info'!$E$14 -> Wellington North Power Inc. | B37: EB-2020-0061 | C37: 2021 | D37: 2020 | E37: 2016 | F37: General Plant | G37: ='App.2-AB_Capital Expenditures'!N14 -> 2016 | H37: ='App.2-AB_Capital Expenditures'!N20 -> 75.694 | I37: ='App.2-AB_Capital Expenditures'!O20 -> 86.356
A38: ='LDC Info'!$E$14 -> Wellington North Power Inc. | B38: EB-2020-0061 | C38: 2021 | D38: 2020 | E38: 2016 | F38: Total Expenditure | G38: ='App.2-AB_Capital Expenditures'!N14 -> 2016 | H38: ='App.2-AB_Capital Expenditures'!N21 -> 1593.91114 | I38: ='App.2-AB_Capital Expenditures'!O21 -> 1545.545
A39: ='LDC Info'!$E$14 -> Wellington North Power Inc. | B39: EB-2020-0061 | C39: 2021 | D39: 2020 | E39: 2016 | F39: Capital Contributions | G39: ='App.2-AB_Capital Expenditures'!N14 -> 2016 | H39: ='App.2-AB_Capital Expenditures'!N22 -> 0 | I39: ='App.2-AB_Capital Expenditures'!O22 -> -11.555
A40: ='LDC Info'!$E$14 -> Wellington North Power Inc. | B40: EB-2020-0061 | C40: 2021 | D40: 2020 | E40: 2016 | F40: Net Capital Expenditures | G40: ='App.2-AB_Capital Expenditures'!N14 -> 2016 | H40: ='App.2-AB_Capital Expenditures'!N23 -> 0 | I40: ='App.2-AB_Capital Expenditures'!O23 -> 1533.99
A41: ='LDC Info'!$E$14 -> Wellington North Power Inc. | B41: EB-2020-0061 | C41: 2021 | D41: 2020 | E41: 2016 | F41: System O&M | G41: ='App.2-AB_Capital Expenditures'!N14 -> 2016 | H41: ='App.2-AB_Capital Expenditures'!N24 -> 651 | I41: ='App.2-AB_Capital Expenditures'!O24 -> 661.117
A42: ='LDC Info'!$E$14 -> Wellington North Power Inc. | B42: EB-2020-0061 | C42: 2021 | D42: 2020 | E42: 2016 | F42: System Access | G42: ='App.2-AB_Capital Expenditures'!Q14 -> 2017 | H42: ='App.2-AB_Capital Expenditures'!Q17 -> 240 | I42: ='App.2-AB_Capital Expenditures'!R17 -> 77.353
A43: ='LDC Info'!$E$14 -> Wellington North Power Inc. | B43: EB-2020-0061 | C43: 2021 | D43: 2020 | E43: 2016 | F43: System Renewal | G43: ='App.2-AB_Capital Expenditures'!Q14 -> 2017 | H43: ='App.2-AB_Capital Expenditures'!Q18 -> 390 | I43: ='App.2-AB_Capital Expenditures'!R18 -> 454.353
A44: ='LDC Info'!$E$14 -> Wellington North Power Inc. | B44: EB-2020-0061 | C44: 2021 | D44: 2020 | E44: 2016 | F44: System Service | G44: ='App.2-AB_Capital Expenditures'!Q14 -> 2017 | H44: ='App.2-AB_Capital Expenditures'!Q19 -> 0 | I44: ='App.2-AB_Capital Expenditures'!R19 -> 10.954
A45: ='LDC Info'!$E$14 -> Wellington North Power Inc. | B45: EB-2020-0061 | C45: 2021 | D45: 2020 | E45: 2016 | F45: General Plant | G45: ='App.2-AB_Capital Expenditures'!Q14 -> 2017 | H45: ='App.2-AB_Capital Expenditures'!Q20 -> 138.67 | I45: ='App.2-AB_Capital Expenditures'!R20 -> 170.195
A46: ='LDC Info'!$E$14 -> Wellington North Power Inc. | B46: EB-2020-0061 | C46: 2021 | D46: 2020 | E46: 2016 | F46: Total Expenditure | G46: ='App.2-AB_Capital Expenditures'!Q14 -> 2017 | H46: ='App.2-AB_Capital Expenditures'!Q21 -> 768.67 | I46: ='App.2-AB_Capital Expenditures'!R21 -> 712.855
A47: ='LDC Info'!$E$14 -> Wellington North Power Inc. | B47: EB-2020-0061 | C47: 2021 | D47: 2020 | E47: 2016 | F47: Capital Contributions | G47: ='App.2-AB_Capital Expenditures'!Q14 -> 2017 | H47: ='App.2-AB_Capital Expenditures'!Q22 -> 0 | I47: ='App.2-AB_Capital Expenditures'!R22 -> 0
A48: ='LDC Info'!$E$14 -> Wellington North Power Inc. | B48: EB-2020-0061 | C48: 2021 | D48: 2020 | E48: 2016 | F48: Net Capital Expenditures | G48: ='App.2-AB_Capital Expenditures'!Q14 -> 2017 | H48: ='App.2-AB_Capital Expenditures'!Q23 -> 0 | I48: ='App.2-AB_Capital Expenditures'!R23 -> 712.855
A49: ='LDC Info'!$E$14 -> Wellington North Power Inc. | B49: EB-2020-0061 | C49: 2021 | D49: 2020 | E49: 2016 | F49: System O&M | G49: ='App.2-AB_Capital Expenditures'!Q14 -> 2017 | H49: ='App.2-AB_Capital Expenditures'!Q24 -> 667 | I49: ='App.2-AB_Capital Expenditures'!R24 -> 666.582
A50: ='LDC Info'!$E$14 -> Wellington North Power Inc. | B50: EB-2020-0061 | C50: 2021 | D50: 2020 | E50: 2016 | F50: System Access | G50: ='App.2-AB_Capital Expenditures'!T14 -> 2018 | H50: ='App.2-AB_Capital Expenditures'!T17 -> 240 | I50: ='App.2-AB_Capital Expenditures'!U17 -> 140.741
A51: ='LDC Info'!$E$14 -> Wellington North Power Inc. | B51: EB-2020-0061 | C51: 2021 | D51: 2020 | E51: 2016 | F51: System Renewal | G51: ='App.2-AB_Capital Expenditures'!T14 -> 2018 | H51: ='App.2-AB_Capital Expenditures'!T18 -> 1932 | I51: ='App.2-AB_Capital Expenditures'!U18 -> 2012.186
A52: ='LDC Info'!$E$14 -> Wellington North Power Inc. | B52: EB-2020-0061 | C52: 2021 | D52: 2020 | E52: 2016 | F52: System Service | G52: ='App.2-AB_Capital Expenditures'!T14 -> 2018 | H52: ='App.2-AB_Capital Expenditures'!T19 -> 0 | I52: ='App.2-AB_Capital Expenditures'!U19 -> 54.5
A53: ='LDC Info'!$E$14 -> Wellington North Power Inc. | B53: EB-2020-0061 | C53: 2021 | D53: 2020 | E53: 2016 | F53: General Plant | G53: ='App.2-AB_Capital Expenditures'!T14 -> 2018 | H53: ='App.2-AB_Capital Expenditures'!T20 -> 24.47 | I53: ='App.2-AB_Capital Expenditures'!U20 -> 22.304
A54: ='LDC Info'!$E$14 -> Wellington North Power Inc. | B54: EB-2020-0061 | C54: 2021 | D54: 2020 | E54: 2016 | F54: Total Expenditure | G54: ='App.2-AB_Capital Expenditures'!T14 -> 2018 | H54: ='App.2-AB_Capital Expenditures'!T21 -> 2196.47 | I54: ='App.2-AB_Capital Expenditures'!U21 -> 2229.731
A55: ='LDC Info'!$E$14 -> Wellington North Power Inc. | B55: EB-2020-0061 | C55: 2021 | D55: 2020 | E55: 2016 | F55: Capital Contributions | G55: ='App.2-AB_Capital Expenditures'!T14 -> 2018 | H55: ='App.2-AB_Capital Expenditures'!T22 -> 0 | I55: ='App.2-AB_Capital Expenditures'!U22 -> 0
A56: ='LDC Info'!$E$14 -> Wellington North Power Inc. | B56: EB-2020-0061 | C56: 2021 | D56: 2020 | E56: 2016 | F56: Net Capital Expenditures | G56: ='App.2-AB_Capital Expenditures'!T14 -> 2018 | H56: ='App.2-AB_Capital Expenditures'!T23 -> 0 | I56: ='App.2-AB_Capital Expenditures'!U23 -> 2229.731
A57: ='LDC Info'!$E$14 -> Wellington North Power Inc. | B57: EB-2020-0061 | C57: 2021 | D57: 2020 | E57: 2016 | F57: System O&M | G57: ='App.2-AB_Capital Expenditures'!T14 -> 2018 | H57: ='App.2-AB_Capital Expenditures'!T24 -> 684 | I57: ='App.2-AB_Capital Expenditures'!U24 -> 637.798
A58: ='LDC Info'!$E$14 -> Wellington North Power Inc. | B58: EB-2020-0061 | C58: 2021 | D58: 2020 | E58: 2016 | F58: System Access | G58: ='App.2-AB_Capital Expenditures'!W14 -> 2019 | H58: ='App.2-AB_Capital Expenditures'!W17 -> 240 | I58: ='App.2-AB_Capital Expenditures'!X17 -> 63.63
A59: ='LDC Info'!$E$14 -> Wellington North Power Inc. | B59: EB-2020-0061 | C59: 2021 | D59: 2020 | E59: 2016 | F59: System Renewal | G59: ='App.2-AB_Capital Expenditures'!W14 -> 2019 | H59: ='App.2-AB_Capital Expenditures'!W18 -> 290 | I59: ='App.2-AB_Capital Expenditures'!X18 -> 475.616
A60: ='LDC Info'!$E$14 -> Wellington North Power Inc. | B60: EB-2020-0061 | C60: 2021 | D60: 2020 | E60: 2016 | F60: System Service | G60: ='App.2-AB_Capital Expenditures'!W14 -> 2019 | H60: ='App.2-AB_Capital Expenditures'!W19 -> 0 | I60: ='App.2-AB_Capital Expenditures'!X19 -> 5.18
A61: ='LDC Info'!$E$14 -> Wellington North Power Inc. | B61: EB-2020-0061 | C61: 2021 | D61: 2020 | E61: 2016 | F61: General Plant | G61: ='App.2-AB_Capital Expenditures'!W14 -> 2019 | H61: ='App.2-AB_Capital Expenditures'!W20 -> 421.85 | I61: ='App.2-AB_Capital Expenditures'!X20 -> 130.557
A62: ='LDC Info'!$E$14 -> Wellington North Power Inc. | B62: EB-2020-0061 | C62: 2021 | D62: 2020 | E62: 2016 | F62: Total Expenditure | G62: ='App.2-AB_Capital Expenditures'!W14 -> 2019 | H62: ='App.2-AB_Capital Expenditures'!W21 -> 951.85 | I62: ='App.2-AB_Capital Expenditures'!X21 -> 674.983
A63: ='LDC Info'!$E$14 -> Wellington North Power Inc. | B63: EB-2020-0061 | C63: 2021 | D63: 2020 | E63: 2016 | F63: Capital Contributions | G63: ='App.2-AB_Capital Expenditures'!W14 -> 2019 | H63: ='App.2-AB_Capital Expenditures'!W22 -> 0 | I63: ='App.2-AB_Capital Expenditures'!X22 -> -25.84
A64: ='LDC Info'!$E$14 -> Wellington North Power Inc. | B64: EB-2020-0061 | C64: 2021 | D64: 2020 | E64: 2016 | F64: Net Capital Expenditures | G64: ='App.2-AB_Capital Expenditures'!W14 -> 2019 | H64: ='App.2-AB_Capital Expenditures'!W23 -> 0 | I64: ='App.2-AB_Capital Expenditures'!X23 -> 649.143
A65: ='LDC Info'!$E$14 -> Wellington North Power Inc. | B65: EB-2020-0061 | C65: 2021 | D65: 2020 | E65: 2016 | F65: System O&M | G65: ='App.2-AB_Capital Expenditures'!W14 -> 2019 | H65: ='App.2-AB_Capital Expenditures'!W24 -> 701 | I65: ='App.2-AB_Capital Expenditures'!X24 -> 621.325
A66: ='LDC Info'!$E$14 -> Wellington North Power Inc. | B66: =EBNUMBER -> EB-2020-0061 | C66: =TestYear -> 2021 | D66: =BridgeYear -> 2020 | E66: =RebaseYear -> 2016 | F66: System Access | G66: ='App.2-AB_Capital Expenditures'!Z14 -> 2020 | H66: ='App.2-AB_Capital Expenditures'!Z17 -> 60 | I66: ='App.2-AB_Capital Expenditures'!AA17 -> 185.994
A67: ='LDC Info'!$E$14 -> Wellington North Power Inc. | B67: EB-2020-0061 | C67: 2021 | D67: 2020 | E67: 2016 | F67: System Renewal | G67: ='App.2-AB_Capital Expenditures'!Z14 -> 2020 | H67: ='App.2-AB_Capital Expenditures'!Z18 -> 450 | I67: ='App.2-AB_Capital Expenditures'!AA18 -> 366.678
A68: ='LDC Info'!$E$14 -> Wellington North Power Inc. | B68: EB-2020-0061 | C68: 2021 | D68: 2020 | E68: 2016 | F68: System Service | G68: ='App.2-AB_Capital Expenditures'!Z14 -> 2020 | H68: ='App.2-AB_Capital Expenditures'!Z19 -> 0 | I68: ='App.2-AB_Capital Expenditures'!AA19 -> 114.476
A69: ='LDC Info'!$E$14 -> Wellington North Power Inc. | B69: EB-2020-0061 | C69: 2021 | D69: 2020 | E69: 2016 | F69: General Plant | G69: ='App.2-AB_Capital Expenditures'!Z14 -> 2020 | H69: ='App.2-AB_Capital Expenditures'!Z20 -> 473 | I69: ='App.2-AB_Capital Expenditures'!AA20 -> 449.68
A70: ='LDC Info'!$E$14 -> Wellington North Power Inc. | B70: EB-2020-0061 | C70: 2021 | D70: 2020 | E70: 2016 | F70: Total Expenditure | G70: ='App.2-AB_Capital Expenditures'!Z14 -> 2020 | H70: ='App.2-AB_Capital Expenditures'!Z21 -> 983 | I70: ='App.2-AB_Capital Expenditures'!AA21 -> 1116.828
A71: ='LDC Info'!$E$14 -> Wellington North Power Inc. | B71: EB-2020-0061 | C71: 2021 | D71: 2020 | E71: 2016 | F71: Capital Contributions | G71: ='App.2-AB_Capital Expenditures'!Z14 -> 2020 | H71: ='App.2-AB_Capital Expenditures'!Z22 -> 0 | I71: ='App.2-AB_Capital Expenditures'!AA22 -> -22.8
A72: ='LDC Info'!$E$14 -> Wellington North Power Inc. | B72: EB-2020-0061 | C72: 2021 | D72: 2020 | E72: 2016 | F72: Net Capital Expenditures | G72: ='App.2-AB_Capital Expenditures'!Z14 -> 2020 | H72: ='App.2-AB_Capital Expenditures'!Z23 -> 963 | I72: ='App.2-AB_Capital Expenditures'!AA23 -> 1094.028
A73: ='LDC Info'!$E$14 -> Wellington North Power Inc. | B73: EB-2020-0061 | C73: 2021 | D73: 2020 | E73: 2016 | F73: System O&M | G73: ='App.2-AB_Capital Expenditures'!Z14 -> 2020 | H73: ='App.2-AB_Capital Expenditures'!Z24 -> 719 | I73: ='App.2-AB_Capital Expenditures'!AA24 -> 623.572
A74: ='LDC Info'!$E$14 -> Wellington North Power Inc. | B74: EB-2020-0061 | C74: 2021 | D74: 2020 | E74: 2016 | F74: System Access | G74: ='App.2-AB_Capital Expenditures'!AC14 -> 2021 | H74: ='App.2-AB_Capital Expenditures'!AC17 -> 70
A75: ='LDC Info'!$E$14 -> Wellington North Power Inc. | B75: EB-2020-0061 | C75: 2021 | D75: 2020 | E75: 2016 | F75: System Renewal | G75: ='App.2-AB_Capital Expenditures'!AC14 -> 2021 | H75: ='App.2-AB_Capital Expenditures'!AC18 -> 340
A76: ='LDC Info'!$E$14 -> Wellington North Power Inc. | B76: EB-2020-0061 | C76: 2021 | D76: 2020 | E76: 2016 | F76: System Service | G76: ='App.2-AB_Capital Expenditures'!AC14 -> 2021 | H76: ='App.2-AB_Capital Expenditures'!AC19 -> 26.5
A77: ='LDC Info'!$E$14 -> Wellington North Power Inc. | B77: EB-2020-0061 | C77: 2021 | D77: 2020 | E77: 2016 | F77: General Plant | G77: ='App.2-AB_Capital Expenditures'!AC14 -> 2021 | H77: ='App.2-AB_Capital Expenditures'!AC20 -> 190.5
A78: ='LDC Info'!$E$14 -> Wellington North Power Inc. | B78: EB-2020-0061 | C78: 2021 | D78: 2020 | E78: 2016 | F78: Total Expenditure | G78: ='App.2-AB_Capital Expenditures'!AC14 -> 2021 | H78: ='App.2-AB_Capital Expenditures'!AC21 -> 627
A79: ='LDC Info'!$E$14 -> Wellington North Power Inc. | B79: EB-2020-0061 | C79: 2021 | D79: 2020 | E79: 2016 | F79: Capital Contributions | G79: ='App.2-AB_Capital Expenditures'!AC14 -> 2021 | H79: ='App.2-AB_Capital Expenditures'!AC22 -> -20
A80: ='LDC Info'!$E$14 -> Wellington North Power Inc. | B80: EB-2020-0061 | C80: 2021 | D80: 2020 | E80: 2016 | F80: Net Capital Expenditures | G80: ='App.2-AB_Capital Expenditures'!AC14 -> 2021 | H80: ='App.2-AB_Capital Expenditures'!AC23 -> 607
A81: ='LDC Info'!$E$14 -> Wellington North Power Inc. | B81: EB-2020-0061 | C81: 2021 | D81: 2020 | E81: 2016 | F81: System O&M | G81: ='App.2-AB_Capital Expenditures'!AC14 -> 2021 | H81: ='App.2-AB_Capital Expenditures'!AC24 -> 705
A82: ='LDC Info'!$E$14 -> Wellington North Power Inc. | B82: EB-2020-0061 | C82: 2021 | D82: 2020 | E82: 2016 | F82: System Access | G82: ='App.2-AB_Capital Expenditures'!AD14 -> 2022 | H82: ='App.2-AB_Capital Expenditures'!AD17 -> 70
A83: ='LDC Info'!$E$14 -> Wellington North Power Inc. | B83: EB-2020-0061 | C83: 2021 | D83: 2020 | E83: 2016 | F83: System Renewal | G83: ='App.2-AB_Capital Expenditures'!AD14 -> 2022 | H83: ='App.2-AB_Capital Expenditures'!AD18 -> 265
A84: ='LDC Info'!$E$14 -> Wellington North Power Inc. | B84: EB-2020-0061 | C84: 2021 | D84: 2020 | E84: 2016 | F84: System Service | G84: ='App.2-AB_Capital Expenditures'!AD14 -> 2022 | H84: ='App.2-AB_Capital Expenditures'!AD19 -> 18.5
A85: ='LDC Info'!$E$14 -> Wellington North Power Inc. | B85: EB-2020-0061 | C85: 2021 | D85: 2020 | E85: 2016 | F85: General Plant | G85: ='App.2-AB_Capital Expenditures'!AD14 -> 2022 | H85: ='App.2-AB_Capital Expenditures'!AD20 -> 598.05
A86: ='LDC Info'!$E$14 -> Wellington North Power Inc. | B86: EB-2020-0061 | C86: 2021 | D86: 2020 | E86: 2016 | F86: Total Expenditure | G86: ='App.2-AB_Capital Expenditures'!AD14 -> 2022 | H86: ='App.2-AB_Capital Expenditures'!AD21 -> 951.55
A87: ='LDC Info'!$E$14 -> Wellington North Power Inc. | B87: EB-2020-0061 | C87: 2021 | D87: 2020 | E87: 2016 | F87: Capital Contributions | G87: ='App.2-AB_Capital Expenditures'!AD14 -> 2022 | H87: ='App.2-AB_Capital Expenditures'!AD22 -> -20
A88: ='LDC Info'!$E$14 -> Wellington North Power Inc. | B88: EB-2020-0061 | C88: 2021 | D88: 2020 | E88: 2016 | F88: Net Capital Expenditures | G88: ='App.2-AB_Capital Expenditures'!AD14 -> 2022 | H88: ='App.2-AB_Capital Expenditures'!AD23 -> 931.55
A89: ='LDC Info'!$E$14 -> Wellington North Power Inc. | B89: EB-2020-0061 | C89: 2021 | D89: 2020 | E89: 2016 | F89: System O&M | G89: ='App.2-AB_Capital Expenditures'!AD14 -> 2022 | H89: ='App.2-AB_Capital Expenditures'!AD24 -> 719.1
A90: ='LDC Info'!$E$14 -> Wellington North Power Inc. | B90: EB-2020-0061 | C90: 2021 | D90: 2020 | E90: 2016 | F90: System Access | G90: ='App.2-AB_Capital Expenditures'!AE14 -> 2023 | H90: ='App.2-AB_Capital Expenditures'!AE17 -> 70
A91: ='LDC Info'!$E$14 -> Wellington North Power Inc. | B91: EB-2020-0061 | C91: 2021 | D91: 2020 | E91: 2016 | F91: System Renewal | G91: ='App.2-AB_Capital Expenditures'!AE14 -> 2023 | H91: ='App.2-AB_Capital Expenditures'!AE18 -> 265
A92: ='LDC Info'!$E$14 -> Wellington North Power Inc. | B92: EB-2020-0061 | C92: 2021 | D92: 2020 | E92: 2016 | F92: System Service | G92: ='App.2-AB_Capital Expenditures'!AE14 -> 2023 | H92: ='App.2-AB_Capital Expenditures'!AE19 -> 21
A93: ='LDC Info'!$E$14 -> Wellington North Power Inc. | B93: EB-2020-0061 | C93: 2021 | D93: 2020 | E93: 2016 | F93: General Plant | G93: ='App.2-AB_Capital Expenditures'!AE14 -> 2023 | H93: ='App.2-AB_Capital Expenditures'!AE20 -> 151.45
A94: ='LDC Info'!$E$14 -> Wellington North Power Inc. | B94: EB-2020-0061 | C94: 2021 | D94: 2020 | E94: 2016 | F94: Total Expenditure | G94: ='App.2-AB_Capital Expenditures'!AE14 -> 2023 | H94: ='App.2-AB_Capital Expenditures'!AE21 -> 507.45
A95: ='LDC Info'!$E$14 -> Wellington North Power Inc. | B95: EB-2020-0061 | C95: 2021 | D95: 2020 | E95: 2016 | F95: Capital Contributions | G95: ='App.2-AB_Capital Expenditures'!AE14 -> 2023 | H95: ='App.2-AB_Capital Expenditures'!AE22 -> -20
A96: ='LDC Info'!$E$14 -> Wellington North Power Inc. | B96: EB-2020-0061 | C96: 2021 | D96: 2020 | E96: 2016 | F96: Net Capital Expenditures | G96: ='App.2-AB_Capital Expenditures'!AE14 -> 2023 | H96: ='App.2-AB_Capital Expenditures'!AE23 -> 487.45
A97: ='LDC Info'!$E$14 -> Wellington North Power Inc. | B97: EB-2020-0061 | C97: 2021 | D97: 2020 | E97: 2016 | F97: System O&M | G97: ='App.2-AB_Capital Expenditures'!AE14 -> 2023 | H97: ='App.2-AB_Capital Expenditures'!AE24 -> 733.482
A98: ='LDC Info'!$E$14 -> Wellington North Power Inc. | B98: =EBNUMBER -> EB-2020-0061 | C98: =TestYear -> 2021 | D98: =BridgeYear -> 2020 | E98: =RebaseYear -> 2016 | F98: System Access | G98: ='App.2-AB_Capital Expenditures'!AF14 -> 2024 | H98: ='App.2-AB_Capital Expenditures'!AF17 -> 70
A99: ='LDC Info'!$E$14 -> Wellington North Power Inc. | B99: EB-2020-0061 | C99: 2021 | D99: 2020 | E99: 2016 | F99: System Renewal | G99: ='App.2-AB_Capital Expenditures'!AF14 -> 2024 | H99: ='App.2-AB_Capital Expenditures'!AF18 -> 315
A100: ='LDC Info'!$E$14 -> Wellington North Power Inc. | B100: EB-2020-0061 | C100: 2021 | D100: 2020 | E100: 2016 | F100: System Service | G100: ='App.2-AB_Capital Expenditures'!AF14 -> 2024 | H100: ='App.2-AB_Capital Expenditures'!AF19 -> 81.5
A101: ='LDC Info'!$E$14 -> Wellington North Power Inc. | B101: EB-2020-0061 | C101: 2021 | D101: 2020 | E101: 2016 | F101: General Plant | G101: ='App.2-AB_Capital Expenditures'!AF14 -> 2024 | H101: ='App.2-AB_Capital Expenditures'!AF20 -> 150.8
A102: ='LDC Info'!$E$14 -> Wellington North Power Inc. | B102: EB-2020-0061 | C102: 2021 | D102: 2020 | E102: 2016 | F102: Total Expenditure | G102: ='App.2-AB_Capital Expenditures'!AF14 -> 2024 | H102: ='App.2-AB_Capital Expenditures'!AF21 -> 617.3
A103: ='LDC Info'!$E$14 -> Wellington North Power Inc. | B103: EB-2020-0061 | C103: 2021 | D103: 2020 | E103: 2016 | F103: Capital Contributions | G103: ='App.2-AB_Capital Expenditures'!AF14 -> 2024 | H103: ='App.2-AB_Capital Expenditures'!AF22 -> -20
A104: ='LDC Info'!$E$14 -> Wellington North Power Inc. | B104: EB-2020-0061 | C104: 2021 | D104: 2020 | E104: 2016 | F104: Net Capital Expenditures | G104: ='App.2-AB_Capital Expenditures'!AF14 -> 2024 | H104: ='App.2-AB_Capital Expenditures'!AF23 -> 597.3
A105: ='LDC Info'!$E$14 -> Wellington North Power Inc. | B105: EB-2020-0061 | C105: 2021 | D105: 2020 | E105: 2016 | F105: System O&M | G105: ='App.2-AB_Capital Expenditures'!AF14 -> 2024 | H105: ='App.2-AB_Capital Expenditures'!AF24 -> 748.15164
A106: ='LDC Info'!$E$14 -> Wellington North Power Inc. | B106: EB-2020-0061 | C106: 2021 | D106: 2020 | E106: 2016 | F106: System Access | G106: ='App.2-AB_Capital Expenditures'!AG14 -> 2025 | H106: ='App.2-AB_Capital Expenditures'!AG17 -> 85
A107: ='LDC Info'!$E$14 -> Wellington North Power Inc. | B107: EB-2020-0061 | C107: 2021 | D107: 2020 | E107: 2016 | F107: System Renewal | G107: ='App.2-AB_Capital Expenditures'!AG14 -> 2025 | H107: ='App.2-AB_Capital Expenditures'!AG18 -> 315
A108: ='LDC Info'!$E$14 -> Wellington North Power Inc. | B108: EB-2020-0061 | C108: 2021 | D108: 2020 | E108: 2016 | F108: System Service | G108: ='App.2-AB_Capital Expenditures'!AG14 -> 2025 | H108: ='App.2-AB_Capital Expenditures'!AG19 -> 14
A109: ='LDC Info'!$E$14 -> Wellington North Power Inc. | B109: EB-2020-0061 | C109: 2021 | D109: 2020 | E109: 2016 | F109: General Plant | G109: ='App.2-AB_Capital Expenditures'!AG14 -> 2025 | H109: ='App.2-AB_Capital Expenditures'!AG20 -> 179.5
A110: ='LDC Info'!$E$14 -> Wellington North Power Inc. | B110: EB-2020-0061 | C110: 2021 | D110: 2020 | E110: 2016 | F110: Total Expenditure | G110: ='App.2-AB_Capital Expenditures'!AG14 -> 2025 | H110: ='App.2-AB_Capital Expenditures'!AG21 -> 593.5
A111: ='LDC Info'!$E$14 -> Wellington North Power Inc. | B111: EB-2020-0061 | C111: 2021 | D111: 2020 | E111: 2016 | F111: Capital Contributions | G111: ='App.2-AB_Capital Expenditures'!AG14 -> 2025 | H111: ='App.2-AB_Capital Expenditures'!AG22 -> -20
A112: ='LDC Info'!$E$14 -> Wellington North Power Inc. | B112: EB-2020-0061 | C112: 2021 | D112: 2020 | E112: 2016 | F112: Net Capital Expenditures | G112: ='App.2-AB_Capital Expenditures'!AG14 -> 2025 | H112: ='App.2-AB_Capital Expenditures'!AG23 -> 573.5
A113: ='LDC Info'!$E$14 -> Wellington North Power Inc. | B113: EB-2020-0061 | C113: 2021 | D113: 2020 | E113: 2016 | F113: System O&M | G113: ='App.2-AB_Capital Expenditures'!AG14 -> 2025 | H113: ='App.2-AB_Capital Expenditures'!AG24 -> 763.1146728

Sheet App.2-AC_Customer Engagement
B1: File Number: | C1: =EBNUMBER -> EB-2020-0061
B2: Exhibit: | C2: 1
B3: Tab: | C3: Section 1.6.1
B4: Schedule: | C4: Table 24
B5: Page: | C5: 66
B7: Date: | C7: 2020-10-30
A9: Appendix 2-AC
A10: Customer Engagement Activities Summary
A12: Provide a list of customer engagement activities | B12: Provide a list of customer needs and preferences identified through each engagement activity | C12: Actions taken to respond to identified needs and preferences. If no action was taken, explain why.
A13: In-Office Customer Engagement Office is open 5 days a week during business hours where customers can telephone, e-mail or visit and speak to a knowledgeable LDC representative | B13: a) Front Counter Engagement b) Technical Engagement c) Bill query support - consumption analysis | C13: Consumer concerns and issues are dealt with immediately by knowledgeable Customer Service Representatives (CSR) and in-person. For any concerns that cannot be resolved, the Customer Service Representative (CSR) will involve the CSR Supervisor, Operations Lead-Hand, Regulatory Manager and if required, also include CEO/President of the company. Queries regarding service lay-out requests, power outage or partial power are discussed with the Lead-Hand, the Operations Technician or the CEO/President who will investigate. CSR's assist consumers with billing queries such as understanding the bill and reviewing electricity usage queries. For example, CSR's can print interval data for a specified period and present to customers information showing when their consumption appears irregular (high/low). This assists customers in understanding TOU periods and rates.
A14: March 2020 onwards: In-Office Customer Engagement On March 17 2020, WNP closed its office due to the COVID-19 pandemic and public health guidelines. Customers, contractors and suppliers were not allowed to enter the LDC's building. | B14: WNP has frequently updated its website and social media pages, advising customers to telephone or e-mail the LDC if they have queries and concerns. In August 2020, WNP started to accept customers in its office if the customers needed to talk in-person to a representative of the LDC. Customers visits are by pre-arranged appointments and with screening checks in place as well as adherence to social distancing and guidelines as per public health guidelines | C14: Between March and May 2020, customer service staff telephoned seniors to see how they were faring. The calls were not around issues with their bills or about payment, simply a check-in call to see how the senior is coping. WNP has not received any complaints about its office being closed due to COVID-19 and has maintained its service of responding to customer telephone calls and e-mails.
A15: Financial Assistance Programs a) Low-Income Emergency Assistance Program (LEAP) b) Ontario Electricity Support Program (c) Affordability Fund Trust (AFT) (d) COVID-19 Emergency Assistance Program (CEAP) (e) COVID-19 Emergency Assistance Program - Small Business (CEAP-SB) | B15: WNP provides support through two agency partners with the province's Low-income Energy Assistance Program (LEAP). This emergency financial assistance programs are designed to help low-income customers who have difficulty making their electricity bill payments. WNP promotes the Ontario Electricity Support Program (OESP) particularly to seniors who visit our offices to pay their hydro bills. The LDC takes pride in assisting seniors and at year-end 2019, WNP had 11% of its residential customer-base receiving OESP credits on their monthly hydro bill We assist seniors with completing the application. Also, we notify Applicants by telephone or e-mail if their OESP form has been rejected due to an incorrect address, name or account number. WNP promotes the Affordability Fund Trust program (starting in 2018). Promotion is through social media and WNP's website. As at May 31st 2020, the LDC had 32 customers enrolled in this program. Participation is low in AFT because customers are already enrolled in other low-income programs such as Home Assistance Program (HAP) and LEAP. Since July 2020, WNP has promoted the COVID-19 Emergency Assistance Program (CEAP) that was announced by the Provincial Government. As the LDC's office is currently closed, promotion has been through social media, WNP's website as well as mentioning the program to customers when they telephone or e-mail. | C15: WNP continues to promote financial assistance programs that are available to assist low-income customers through social media, the LDC's website, telephone calls and e-mails as well as bill inserts.
A16: Customer Connect and on-line payment services | B16: WNP provides a self-service tool, accessible through the LDC's website where a customer can review their consumption history and payment records. Customers can view their information anytime | C16: Customers contact the LDC to request initial set-up. This a secure site; hosted on its own server and not tied to the LDC's website. This is a self-service tool that is accessed by customers.
A17: [2016 & 2018] Customer Surveys - OEB Mandated | B17: Customer Satisfaction Surveys | C17: WNP received complaints from customers about being interrupted to participate in a survey. For example, WNP staff and Board Directors received negative feedback from 19 customers (2% of respondents) advising they had been interrupted or if they had a problem with their local hydro company, they would tell us directly.
A18: [March 2020-June 2020 - COVID-19 Pandemic] As part of its’ outreach, Wellington North Power (WNP) Customer Service staff are telephoning senior citizens directly to touch base on how they were faring. | B18: The calls are not around issues with their bills or about payment, simply a check-in call to see how the senior is doing. WNP has a large senior population and this outreach is a small initiative with the potential for a massive impact. | C18: Reminder calls scheduled to follow-up with senior citizens if they are "feeling down" or just need someone to talk to.
A19: [2015-2018] Annual Spring/Fall Fairs in the communities of Arthur and Mount Forest | B19: Conservation and usage reduction for small business and residential customers, Customer Connect, billing queries and Electrical Safety awareness | C19: General awareness of conservation activities and programs as well as electrical safety. In 2019, WNP did not set-up a booth at the Fairs because the CDM energy conservation initiative was to be centrally delivered by the IESO and not the LDC.
A20: Regional Planning Engagements | B20: a) WNP is invited to participate in IESO regional planning meetings b) Meetings with Hydro One | C20: a) To date, there are no regional planned projects that affect WNP b) WNP and Hydro One meet as and when required to address any issues. For example, WNP worked with Hydro One on a 2nd-line feeder to Mount Forest proposal to address current capacity limitations as well as reliability concerns.
A21: Customer Education literature | B21: WNP publishes advertisements and includes bill inserts regarding energy conservation, electrical safety and financial assistance programs available | C21: WNP publishes advertisements in the local newspaper, the "Wellington Advertiser" as this newspaper is available across the County and is "free" The LDC actively uses social media (Twitter and Facebook) to promote financial assistance programs, share information and provide updates regarding unplanned power outages.
A22: Social Media | B22: During a power outage, customers want updated information about restoration times. WNP introduced social media (Twitter and Facebook) and provide real-time updates of outages, promotion of electrical safety, energy conservation and events that the LDC will be attending | C22: The LDC has received positive customers feedback regarding notification of power outages and restoration times via social media
A23: Chamber of Commerce | B23: WNP attends the Chamber of Commerce meetings as and when invited to listen to businesses concerns about hydro and present information. For example, WNP has presented information to the Arthur Chamber of Commerce to address concerns about power outages as a result of ice storms in March of that year | C23: WNP attends Chamber of Commerce meetings as and when invited.
A24: [2018] Open House | B24: In 2018, WNP replaced one of municipal substations, MS3, which is located near a residential neighbourhood. The utility hosted an “Open-House” in April 2018, inviting 46 residents who lived close to the construction site as an opportunity to: • Provide details of why the substation is being replaced and what it entails (i.e. decommissioning of the “old” substation, removal of parts, delivery and assembly of “new” substation. • Share traffic plan: WNP worked with the Township to create a traffic plan to minimize congestion, work and noise as heavy equipment and materials are delivered to the works site. • Meet the Operations team as well as the engineering contractor and ask questions. Eight residents attended the “Open House” and appreciated WNP’s efforts to share its traffic plans to minimize noise and disruption during the construction period. | C24: Residents who attended the meeting were introduced to the CEO/President who explained the traffic plan and addressed questions raised. Customers were provided with work contact details of the CEO/President should customers have complaints or concerns.
A25: Industrial and Commercial consumer interaction | B25: If there is a power outage (even a momentarily interruption) Industrial and Commercial customers can contact the CEO/President on his cell. The CEO/President maintains personal contact with these customers advising of updates and progress. The CEO/President also personally meets with these customers periodically throughout the year to discuss matters including sharing of information regarding changing their shift patterns, expansion, reduction and demand capacity requirements | C25: Industrial and Commercial customer appreciate the accessibility to knowledgeable WNP staff who take action and support their requirements. WNP has worked with intensive energy users to understand their future energy demands and provided updated demand forecast data to Hydro One to explore opportunities. in 2016, Hydro One and WNP completed construction and energization of a 2nd line feeder with support from industrial/commercial customers to ensure their is capacity to meet future demand requirements.
A26: In preparing for its’ Cost of Service rate application, in Quarter 4 of 2019, WNP conducted Customer Surveys inviting Residential, Small Business and Industrial & Commercial customers to provide feedback | B26: Included questions concerning satisfaction, LDC trust, capital investment and prioritization; effectiveness during power outages. Provided a good insight into customer's opinions concerning investment planning priorities which have been factored into WNP's 2020 DSP | C26: From the collated responses the top “high priority” statements for investment prioritization are: 1st - “Maintaining and upgrading equipment” - 76% of all respondents; 2nd - “Reducing response time to outages” - 68% of all respondents; 3rd -“Having an on-line outage map” - 54% all respondents. Joint 4th - “Investing more in the electricity grid” - 42% of all respondents; and Joint 4th - “Investing more in tree-trimming” - 42% of all respondents. WNP has used this feedback to help shape its DSP and 5-year capital investment plan.
A46: Note: Use "ALT-ENTER" to go to the next line within a cell

Sheet App.2-B_Acctg Instructions
A1: General Instructions to MIFRS Appendices
A2: Types of Schedules to File
A4: The purpose of this tab is to provide general instructions. The specific instructions to each appendix are listed in footnotes of each appendix.
A6: The typical applicant is expected to have made capitalization and depreciation policy changes under CGAAP as permitted by the OEB on January 1, 2012 or mandated by the OEB by January 1, 2013, and adopted IFRS for reporting purposes on January 1, 2015 (transition date January 1, 2014). Most distributors filing for 2021 rates have rebased with these accounting changes reflected in a prior rebasing application. If that is the case, information relating to pre-accounting policy changes is not generally required. Most distributors may have rebased under MIFRS. If that is the case, information related to the accounting standard used prior to IFRS is not generally required. The information to be provided by applicants will depend on when the accounting policy changes were made and when they last rebased. In general, applicants should provide the following information in the appendices:
E9: Reflecting Accounting Policy Changes in Current Application | G9: Reflected Accounting Policy Changes in Prior Application3 | H9: Rebased under MIFRS in Prior Application3
E10: Accounting Policy Changes in 2012 and Adopted IFRS in 2015 | F10: Accounting Policy Changes in 2013 and Adopted IFRS in 2015 | G10: Adopted IFRS in 2015 | H10: IFRS Since 2015
B11: 2021 | C11: Test | E11: MIFRS | F11: MIFRS | G11: MIFRS | H11: MIFRS
A12: Information to be filed in 2019 CoS Application | B12: 2020 | C12: Bridge | E12: MIFRS | F12: MIFRS | G12: MIFRS | H12: MIFRS
B13: 2019 | C13: Bridge | E13: MIFRS | F13: MIFRS | G13: MIFRS | H13: MIFRS
B14: 2018 | C14: Bridge | E14: MIFRS | F14: MIFRS | G14: MIFRS | H14: MIFRS
B15: 2017 | C15: Historical | E15: MIFRS | F15: MIFRS | G15: MIFRS | H15: MIFRS
B16: 2016 | C16: Historical | E16: MIFRS | F16: MIFRS | G16: MIFRS | H16: MIFRS
B17: 2015 | C17: Historical | E17: MIFRS and Revised CGAAP1 | F17: MIFRS and Revised CGAAP1 | G17: MIFRS and Revised CGAAP1 | H17: N/A
B18: 2014 | C18: Historical | E18: Revised CGAAP | F18: CGAAP and Revised CGAAP2 | G18: N/A | H18: N/A
B19: 2013 | C19: Historical | E19: CGAAP and Revised CGAAP2 | F19: N/A | G19: N/A | H19: N/A
A21: 1) For the transition year (2014), the applicant may file two appendices, one under Revised CGAAP and one under MIFRS, depending on the materiality of impacts. See the specific instructions under each appendix below for further details.
A22: 2) For applicants that are reflecting accounting policy changes for the first time in a rebasing application, the applicant must file two appendices in the year that the applicant implemented changes to its capitalization and depreciation policies (2012 or 2013), one before and one after the policy changes.
A23: 3) Applicants should provide CGAAP and Revised CGAAP schedules (i.e. as indicated in the first two columns of the above table) to support balances in Account 1576 if the account has yet to be disposed of.
A26: Appendix 2-BA - Fixed Asset Schedule
A28: Applicants are to provide Appendix 2-BA in accordance with the years and corresponding accounting standards noted in the above table to provide a year over year continuity in fixed assets.
A29: If this is the first application where the applicant is rebasing under MIFRS, the applicant should file two appendices, one under Revised CGAAP and one under MIFRS for the transition year (2014), if the change between Revised CGAAP and MIFRS is material. If the change from the accounting standards is not material, the applicant may choose to only provide one appendix under MIFRS. However, the applicant must also indicate the fixed asset net book value balance under Revised CGAAP, the total dollar value of the change and explain why it is not material.
A33: The applicant must establish the continuity of historical cost for gross assets and accumulated depreciation by asset class by ensuring that the opening balance in the year agrees to the closing balance in the prior year.
A36: Appendix 2-Cx - Depreciation and Amortization
A38: Applicants are to provide Appendix 2-C in accordance with the years and corresponding accounting standards listed in the above table.
A39: Appendix 2-C is to be used under all of the scenarios presented in the table above. In the appendix, the applicant will need to indicate which scenario applies. The appendix is to be duplicated for each year and for each accounting standard required as per the above table.
A40: Depreciation accounting policy changes were mandated by the OEB by January 1, 2013. In general, no further changes to an applicant's depreciation policy (i.e. assets' service lives) are expected after the OEB mandated changes by January 1, 2013, unless a change is determined to be necessary in accordance with the depreciation review required under IFRS. If the applicant has made any changes to its depreciation policy subsequent to the OEB mandated changes, for the year of the change, applicants must quantify the change in depreciation. If there are significant changes to multiple asset classes, the applicant must complete Appendix 2-C before and after the change. Applicants must also explain the nature of the change, the reason for the change, quantify the impact of the change.
A42: Appendix 2-E - Account 1575, IFRS-CGAAP Transitional PP&E Amounts (2-EA), Account 1576, Accounting Changes Under CGAAP (2-EB, 2-EC) CONTACT OEB STAFF IF TAB REQUIRED
A44: 1) For an applicant that has a balance in Account 1576 to dispose:
A45: · | B45: If an applicant changed capitalization and depreciation policies effective January 1, 2012, the applicant must complete Appendix 2-EB
A46: · | B46: If an applicant changed capitalization and depreciation policies effective January 1, 2013, the applicant must complete Appendix 2-EC
A48: 2) For an applicant that has a balance in Account 1575 to dispose:
A49: · | B49: The applicant must complete 2-EA
A50: If the applicant did not make any further PP&E accounting policy changes beyond the capitalization and depreciation policy changes as mandated by the OEB by January 1, 2013 (i.e. no further changes made on transition to IFRS), the applicant must indicate this and does not need to complete Appendix 2-EA.
A54: Appendix 2-Y - Summary of Impacts to Revenue Requirement from Transition to MIFRS CONTACT OEB STAFF IF TAB REQUIRED
A56: Applicants must complete Appendix 2-Y if this is the first rebasing application under MIFRS. An applicant must provide a summary of the dollar impacts of MIFRS to each component of the revenue requirement (e.g. rate base, operating costs, etc.), including the overall impact on the proposed revenue requirement. Accordingly, the applicant must identify financial differences and resulting revenue requirement impacts arising from the adoption of MIFRS as compared to CGAAP. If the applicant is reflecting the changes in capitalization and depreciation policies for the first time in a rebasing application as well, then a comparison between MIFRS and CGAAP before the change in accounting policies should be completed. If the applicant changed capitalization and depreciation policies and reflected these changes in a prior rebasing application, then a comparison between MIFRS and CGAAP after the change in accounting policies should be completed.

Sheet App.2-BA_Fixed Asset Cont
L1: File Number: | M1: =EBNUMBER -> EB-2020-0061
L2: Exhibit: | M2: 2
L3: Tab: | M3: Section 2.1.4
L4: Schedule:
L5: Page: | M5: 19 - 28
L7: Date: | M7: 2020-10-30
A9: Appendix 2-BA
A10: Fixed Asset Continuity Schedule 1
E12: Accounting Standard | F12: MIFRS
E13: Year | F13: 2021
D15: Cost | J15: Accumulated Depreciation
A16: CCA Class 2 | B16: OEB Account 3 | C16: Description 3 | D16: Opening Balance | E16: Additions 4 | F16: Disposals 6 | G16: Closing Balance | I16: Opening Balance | J16: Additions | K16: Disposals 6 | L16: Closing Balance | M16: Net Book Value
B17: 1609 | C17: Capital Contributions Paid | D17: =G158 -> 838765.15 | E17: 0 | F17: 0 | G17: =D17+E17+F17 -> 838765.15 | I17: =L158 -> 150977.74 | J17: 33550.61 | K17: 0 | L17: =I17+J17+K17 -> 184528.35 | M17: =G17-L17 -> 654236.8 | Q17: =AVERAGE(D17,G17) -> 838765.15 | R17: =AVERAGE(I17,L17) -> 167753.045
A18: 12 | B18: 1611 | C18: Computer Software (Formally known as Account 1925) | D18: =G159 -> 416911.79 | E18: 53000 | F18: 0 | G18: =D18+E18+F18 -> 469911.79 | I18: =L159 -> 284162.06 | J18: 46072.25 | K18: 0 | L18: =I18+J18+K18 -> 330234.31 | M18: =G18-L18 -> 139677.48 | Q18: =AVERAGE(D18,G18) -> 443411.79 | R18: =AVERAGE(I18,L18) -> 307198.185
A19: CEC | B19: 1612 | C19: Land Rights (Formally known as Account 1906) | D19: 28650.65 | E19: 0 | F19: 0 | G19: 28650.65 | I19: 0 | J19: 0 | K19: 0 | L19: 0 | M19: 28650.65 | Q19: 28650.65 | R19: 0
A20: N/A | B20: 1805 | C20: Land | D20: 41987.65 | E20: 0 | F20: 0 | G20: 41987.65 | I20: 0 | J20: 0 | K20: 0 | L20: 0 | M20: 41987.65 | Q20: 41987.65 | R20: 0
A21: 47 | B21: 1808 | C21: Buildings & Fixtures - MF Building | D21: 217046.94 | E21: 0 | F21: 0 | G21: 217046.94 | I21: 30328.85 | J21: 4503.34 | K21: 0 | L21: 34832.19 | M21: 182214.75 | Q21: 217046.94 | R21: 32580.52
A22: 47 | B22: 1808 | C22: Buildings & Fixtures - MF Fence/Parking/Roof | D22: 45066.59 | E22: 0 | F22: 0 | G22: 45066.59 | I22: 13827.22 | J22: 2110.16 | K22: 0 | L22: 15937.38 | M22: 29129.21 | Q22: 45066.59 | R22: 14882.3
A23: 47 | B23: 1808 | C23: Buildings & Fixtures - MF Fixture/Flooring | D23: 57885.19 | E23: 25000 | F23: 0 | G23: 82885.19 | I23: 26602.07667 | J23: 5022.296667 | K23: 0 | L23: 31624.37333 | M23: 51260.81667 | Q23: 70385.19 | R23: 29113.225
A24: 47 | B24: 1808 | C24: Buildings & Fixtures - MF HVAC/Plumbing/Comm | D24: 41472.42 | E24: 25000 | F24: 0 | G24: 66472.42 | I24: 18837.25 | J24: 3297.583333 | K24: 0 | L24: 22134.83333 | M24: 44337.58667 | Q24: 53972.42 | R24: 20486.04167
A25: 47 | B25: 1808 | C25: Buildings & Fixtures - AR Building | D25: 3421.25 | E25: 0 | F25: 0 | G25: 3421.25 | I25: 403.69 | J25: 57.67 | K25: 0 | L25: 461.36 | M25: 2959.89 | Q25: 3421.25 | R25: 432.525
A26: 47 | B26: 1808 | C26: Buildings & Fixtures - AR Fence/Parking/Roof | D26: 10881.93 | E26: 0 | F26: 0 | G26: 10881.93 | I26: 3627.33 | J26: 518.19 | K26: 0 | L26: 4145.52 | M26: 6736.41 | Q26: 10881.93 | R26: 3886.425
A27: 47 | B27: 1808 | C27: Buildings & Fixtures - E.S. Shed Building | D27: 32499.7 | E27: 0 | F27: 0 | G27: 32499.7 | I27: 4310.88 | J27: 615.84 | K27: 0 | L27: 4926.72 | M27: 27572.98 | Q27: 32499.7 | R27: 4618.8
A28: 47 | B28: 1808 | C28: Buildings & Fixtures - E.S. Shed Fixture/Flooring | D28: 2169.1 | E28: 0 | F28: 0 | G28: 2169.1 | I28: 2169.12 | J28: 0 | K28: 0 | L28: 2169.12 | M28: -0.02 | Q28: 2169.1 | R28: 2169.12
A29: 47 | B29: 1808 | C29: Buildings & Fixtures - E.S. Shed Fence/Parking/Roof | D29: 1067.21 | E29: 0 | F29: 0 | G29: 1067.21 | I29: 498.05 | J29: 71.15 | K29: 0 | L29: 569.2 | M29: 498.01 | Q29: 1067.21 | R29: 533.625
A30: 47 | B30: 1808 | C30: Buildings & Fixtures - W.S. Shed | D30: 0 | E30: 0 | F30: 0 | G30: 0 | I30: 0 | J30: 0 | K30: 0 | L30: 0 | M30: 0 | Q30: 0 | R30: 0
A31: 13 | B31: 1810 | C31: Leasehold Improvements | D31: 0 | E31: 0 | F31: 0 | G31: 0 | I31: 0 | J31: 0 | K31: 0 | L31: 0 | M31: 0 | Q31: 0 | R31: 0
A32: 47 | B32: 1815 | C32: Transformer Station Equipment >50 kV | D32: 0 | E32: 0 | F32: 0 | G32: 0 | I32: 0 | J32: 0 | K32: 0 | L32: 0 | M32: 0 | Q32: 0 | R32: 0
A33: 47 | B33: 1820 | C33: Sub Stations Power - Overall | D33: =G174+D115 -> 1173067.27 | E33: 0 | F33: 0 | G33: 1173067.27 | I33: =L174+I115 -> 136224.87 | J33: 27394.1 | K33: 0 | L33: 163618.97 | M33: 1009448.3 | Q33: 1173067.27 | R33: 149921.92
A34: 47 | B34: 1820 | C34: Sub Stations Power - Bushing | D34: =G175+D116 -> 27469.15 | E34: 0 | F34: 0 | G34: 27469.15 | I34: =L175+I116 -> 8491.75 | J34: 1509.41 | K34: 0 | L34: 10001.16 | M34: 17467.99 | Q34: 27469.15 | R34: 9246.455
A35: 47 | B35: 1820 | C35: Sub Stations Power - Tap Changer | D35: 32005.77 | E35: 0 | F35: 0 | G35: 32005.77 | I35: 15627.81 | J35: 2096.79 | K35: 0 | L35: 17724.6 | M35: 14281.17 | Q35: 32005.77 | R35: 16676.205
A36: 47 | B36: 1820 | C36: Sub Stations Switchgear - Overall | D36: 602948.44 | E36: 0 | F36: 0 | G36: 602948.44 | I36: 80743.2 | J36: 16806.78 | K36: 0 | L36: 97549.98 | M36: 505398.46 | Q36: 602948.44 | R36: 89146.59
A37: 47 | B37: 1820 | C37: Sub Stations - Station Switch | D37: 965451.91 | E37: 0 | F37: 0 | G37: 965451.91 | I37: 73244.1 | J37: 19720.18 | K37: 0 | L37: 92964.28 | M37: 872487.63 | Q37: 965451.91 | R37: 83104.19
A38: 47 | B38: 1820 | C38: Sub Stations - Rigid Busbars | D38: 17731.18 | E38: 0 | F38: 0 | G38: 17731.18 | I38: 2958.69 | J38: 422.67 | K38: 0 | L38: 3381.36 | M38: 14349.82 | Q38: 17731.18 | R38: 3170.025
A39: 47 | B39: 1820 | C39: Sub Stations - Steel Structure | D39: 224589.49 | E39: 0 | F39: 0 | G39: 224589.49 | I39: 17677.47 | J39: 4647.75 | K39: 0 | L39: 22325.22 | M39: 202264.27 | Q39: 224589.49 | R39: 20001.345
A40: 47 | B40: 1820 | C40: Sub Stations - Fence | D40: 104906.83 | E40: 0 | F40: 0 | G40: 104906.83 | I40: 21733.54 | J40: 4315.07 | K40: 0 | L40: 26048.61 | M40: 78858.22 | Q40: 104906.83 | R40: 23891.075
A41: 47 | B41: 1825 | C41: Storage Battery Equipment | D41: 0 | E41: 0 | F41: 0 | G41: 0 | I41: 0 | J41: 0 | K41: 0 | L41: 0 | M41: 0 | Q41: =AVERAGE(D41,G41) -> 0 | R41: =AVERAGE(I41,L41) -> 0
A42: 47 | B42: 1830 | C42: Poles Towers & Fixtures - Wood | D42: =G183+D123 -> 3023082.85 | E42: 170000 | F42: -5000 | G42: 3188082.85 | I42: =L183+I123 -> 422226.5989 | J42: 76391.03667 | K42: 0 | L42: 498617.6356 | M42: 2689465.214 | Q42: 3105582.85 | R42: 460422.1172
A43: 47 | B43: 1830 | C43: Poles Towers & Fixtures - Concrete | D43: 159566.79 | E43: 0 | F43: 0 | G43: 159566.79 | I43: 20957.09 | J43: 2993.87 | K43: 0 | L43: 23950.96 | M43: 135615.83 | Q43: 159566.79 | R43: 22454.025
A44: 47 | B44: 1830 | C44: Poles Towers & Fixtures - Steel | D44: 2521.45 | E44: 0 | F44: 0 | G44: 2521.45 | I44: 332.99 | J44: 47.57 | K44: 0 | L44: 380.56 | M44: 2140.89 | Q44: 2521.45 | R44: 356.775
A45: 47 | B45: 1830 | C45: Poles Towers & Fixtures - Switches | D45: 41919.51 | E45: 0 | F45: 0 | G45: 41919.51 | I45: 5050.34 | J45: 931.53 | K45: 0 | L45: 5981.87 | M45: 35937.64 | Q45: 41919.51 | R45: 5516.105
A46: 47 | B46: 1835 | C46: O/H Conductors & Devices - Conductors | D46: =G187+D124 -> 1087576.44 | E46: 82000 | F46: 0 | G46: 1169576.44 | I46: =L187+I124 -> 96707.60667 | J46: 20458.20667 | K46: 0 | L46: 117165.8133 | M46: 1052410.627 | Q46: 1128576.44 | R46: 106936.71
A47: 47 | B47: 1835 | C47: O/H Conductors & Devices - Line Switch | D47: 31651.14 | E47: 0 | F47: 0 | G47: 31651.14 | I47: 2230.78 | J47: 704.3 | K47: 0 | L47: 2935.08 | M47: 28716.06 | Q47: 31651.14 | R47: 2582.93
A48: 47 | B48: 1835 | C48: O/H Conductors & Devices - Reclosers | D48: 304704.28 | E48: 0 | F48: 0 | G48: 304704.28 | I48: 39572 | J48: 7914.4 | K48: 0 | L48: 47486.4 | M48: 257217.88 | Q48: 304704.28 | R48: 43529.2
A49: 47 | B49: 1840 | C49: U/G Conduit-Concret encased duct banks | D49: 0 | E49: 0 | F49: 0 | G49: 0 | I49: 0 | J49: 0 | K49: 0 | L49: 0 | M49: 0 | Q49: 0 | R49: 0
A50: 47 | B50: 1840 | C50: U/G Conduit-Ducts | D50: 48310.15 | E50: 0 | F50: 0 | G50: 48310.15 | I50: 599.09 | J50: 966.78 | K50: 0 | L50: 1565.87 | M50: 46744.28 | Q50: 48310.15 | R50: 1082.48
A51: 47 | B51: 1840 | C51: U/G Conduit-UG Foundations | D51: 0 | E51: 0 | F51: 0 | G51: 0 | I51: 0 | J51: 0 | K51: 0 | L51: 0 | M51: 0 | Q51: 0 | R51: 0
A52: 47 | B52: 1845 | C52: Underground Conductors & Devices | D52: =G193+D125 -> 606776.88 | E52: 39000 | F52: 0 | G52: 645776.88 | I52: =L193+I125 -> 102832.5925 | J52: 17250.565 | K52: 0 | L52: 120083.1575 | M52: 525693.7225 | Q52: 626276.88 | R52: 111457.875
A53: 47 | B53: 1850 | C53: Distribution Transformers - Overhead | D53: 0 | E53: 0 | F53: 0 | G53: 0 | I53: 0 | J53: 0 | K53: 0 | L53: 0 | M53: 0 | Q53: 0 | R53: 0
A54: 47 | B54: 1850 | C54: Distribution Transformers - Inventory | D54: 192099.06 | E54: 0 | F54: 0 | G54: 192099.06 | I54: 2401.23825 | J54: 4802.4765 | K54: 0 | L54: 7203.71475 | M54: 184895.3453 | Q54: 192099.06 | R54: 4802.4765
A55: 47 | B55: 1850 | C55: Distribution Transformers - UG Pad-Mounted Trans | D55: 575152.01 | E55: 40000 | F55: 0 | G55: 615152.01 | I55: 108459.3275 | J55: 19762.925 | K55: 0 | L55: 128222.2525 | M55: 486929.7575 | Q55: 595152.01 | R55: 118340.79
A56: 47 | B56: 1850 | C56: Distribution Transformers - OH Trans & Voltage Reg | D56: 739819.98 | E56: 20000 | F56: -5000 | G56: 754819.98 | I56: 116617.935 | J56: 22050.35 | K56: 0 | L56: 138668.285 | M56: 616151.695 | Q56: 747319.98 | R56: 127643.11
A57: 47 | B57: 1855 | C57: Distribution Services - UG Secondary in Duct | D57: =G198+D126 -> 297815.86 | E57: 30000 | F57: 0 | G57: 327815.86 | I57: =L198+I126 -> 26347.295 | J57: 5875.56 | K57: 0 | L57: 32222.855 | M57: 295593.005 | Q57: 312815.86 | R57: 29285.075
A58: 47 | B58: 1855 | C58: Distribution Services - OH Conductors | D58: 256537.66 | E58: 10000 | F58: 0 | G58: 266537.66 | I58: 34131.2125 | J58: 6962.885 | K58: 0 | L58: 41094.0975 | M58: 225443.5625 | Q58: 261537.66 | R58: 37612.655
A59: 47 | B59: 1860 | C59: Distribution Meters | D59: 0 | E59: 0 | F59: 0 | G59: 0 | I59: 0 | J59: 0 | K59: 0 | L59: 0 | M59: 0 | Q59: 0 | R59: 0
A60: 47 | B60: 1860 | C60: Distribution Meters - Inventory | D60: 12665.87 | E60: 0 | F60: 0 | G60: 12665.87 | I60: 7697.06 | J60: 1099.58 | K60: 0 | L60: 8796.64 | M60: 3869.23 | Q60: 12665.87 | R60: 8246.85
A61: 47 | B61: 1860 | C61: Distribution Meters - Residential Energy Meters | D61: 0 | E61: 0 | F61: 0 | G61: 0 | I61: 0 | J61: 0 | K61: 0 | L61: 0 | M61: 0 | Q61: 0 | R61: 0
A62: 47 | B62: 1860 | C62: Distribution Meters - Ind/Com Energy Meters | D62: 7848.06 | E62: 0 | F62: 0 | G62: 7848.06 | I62: 2669.59 | J62: 381.37 | K62: 0 | L62: 3050.96 | M62: 4797.1 | Q62: 7848.06 | R62: 2860.275
A63: 47 | B63: 1860 | C63: Distribution Meters - Wholesale Energy Meters | D63: 91613.75 | E63: 0 | F63: 0 | G63: 91613.75 | I63: 25138.23 | J63: 4022.14 | K63: 0 | L63: 29160.37 | M63: 62453.38 | Q63: 91613.75 | R63: 27149.3
A64: 47 | B64: 1860 | C64: Distribution Meters - Current & Potential Meters | D64: 53389.76 | E64: 0 | F64: 0 | G64: 53389.76 | I64: 9807.63 | J64: 2136.89 | K64: 0 | L64: 11944.52 | M64: 41445.24 | Q64: 53389.76 | R64: 10876.075
A65: 47 | B65: 1860 | C65: Distribution Meters-Smart | D65: 866551.33 | E65: 50000 | F65: -10000 | G65: 906551.33 | I65: 311484.4633 | J65: 73613.78333 | K65: 0 | L65: 385098.2467 | M65: 521453.0833 | Q65: 886551.33 | R65: 348291.355
A66: 47 | B66: 1860 | C66: Distribution Meters-Smart-Repeaters | D66: 239.52 | E66: 0 | F66: 0 | G66: 239.52 | I66: 239.52 | J66: 0 | K66: 0 | L66: 239.52 | M66: 0 | Q66: 239.52 | R66: 239.52
A67: 47 | B67: 1860 | C67: Distribution Meters-Smart-Data Collectors | D67: 20052.61 | E67: 0 | F67: 0 | G67: 20052.61 | I67: 19952.89 | J67: 99.72 | K67: 0 | L67: 20052.61 | M67: 0 | Q67: 20052.61 | R67: 20002.75
A68: 47 | B68: 1860 | C68: Distribution Meters-Stranded | D68: 0 | E68: 0 | F68: 0 | G68: 0 | I68: 0 | J68: 0 | K68: 0 | L68: 0 | M68: 0 | Q68: 0 | R68: 0
A69: 47 | B69: 1860 | C69: Distribution Meters-Inventory | D69: 77153.46 | E69: 0 | F69: 0 | G69: 77153.46 | I69: 2571.782 | J69: 5143.564 | K69: 0 | L69: 7715.346 | M69: 69438.114 | Q69: 77153.46 | R69: 5143.564
A70: N/A | B70: 1905 | C70: Land | D70: 0 | E70: 0 | F70: 0 | G70: 0 | I70: 0 | J70: 0 | K70: 0 | L70: 0 | M70: 0 | Q70: 0 | R70: 0
A71: 47 | B71: 1908 | C71: Buildings & Fixtures | D71: 0 | E71: 0 | F71: 0 | G71: 0 | I71: 0 | J71: 0 | K71: 0 | L71: 0 | M71: 0 | Q71: 0 | R71: 0
A72: 13 | B72: 1910 | C72: Leasehold Improvements | D72: 0 | E72: 0 | F72: 0 | G72: 0 | I72: 0 | J72: 0 | K72: 0 | L72: 0 | M72: 0 | Q72: 0 | R72: 0
A73: 8 | B73: 1915 | C73: Office Furniture & Equipment (10 years) | D73: 0 | E73: 0 | F73: 0 | G73: 0 | I73: 0 | J73: 0 | K73: 0 | L73: 0 | M73: 0 | Q73: 0 | R73: 0
A74: 8 | B74: 1915 | C74: Office Furniture & Equipment (5 years) | D74: 68235.7 | E74: 7500 | F74: 0 | G74: 75735.7 | I74: 36594.48 | J74: 6984.3 | K74: 0 | L74: 43578.78 | M74: 32156.92 | Q74: 71985.7 | R74: 40086.63
A75: 10 | B75: 1920 | C75: Computer Equipment - Hardware | D75: 338771.59 | E75: 110000 | F75: 0 | G75: 448771.59 | I75: 269790.062 | J75: 34160.154 | K75: 0 | L75: 303950.216 | M75: 144821.374 | Q75: 393771.59 | R75: 286870.139
A76: 45 | B76: 1920 | C76: Computer Equip.-Hardware(Post Mar. 22/04) | D76: 0 | E76: 0 | F76: 0 | G76: 0 | I76: 0 | J76: 0 | K76: 0 | L76: 0 | M76: 0 | Q76: 0 | R76: 0
A77: 50 | B77: 1920 | C77: Computer Equip.-Hardware(Post Mar. 19/07) | D77: 0 | E77: 0 | F77: 0 | G77: 0 | I77: 0 | J77: 0 | K77: 0 | L77: 0 | M77: 0 | Q77: 0 | R77: 0
A78: 10 | B78: 1930 | C78: Transportation Equipment - Trucks and Buckets | D78: 700753.72 | E78: 0 | F78: 0 | G78: 700753.72 | I78: 340036.3 | J78: 62437.54 | K78: 0 | L78: 402473.84 | M78: 298279.88 | Q78: 700753.72 | R78: 371255.07
A79: 10 | B79: 1930 | C79: Transportation Equipment - Trailers | D79: 2477.72 | E79: 0 | F79: 0 | G79: 2477.72 | I79: 2477.72 | J79: 0 | K79: 0 | L79: 2477.72 | M79: 0 | Q79: 2477.72 | R79: 2477.72
A80: 10 | B80: 1930 | C80: Transportation Equipment - Pick-ups/Vans/Cars | D80: 102568.36 | E80: 0 | F80: 0 | G80: 102568.36 | I80: 64437.72 | J80: 15180 | K80: 0 | L80: 79617.72 | M80: 22950.64 | Q80: 102568.36 | R80: 72027.72
A81: 8 | B81: 1935 | C81: Stores Equipment | D81: 1496.77 | E81: 0 | F81: 0 | G81: =D81+E81+F81 -> 1496.77 | I81: 1496.77 | J81: 0 | K81: 0 | L81: =I81+J81+K81 -> 1496.77 | M81: 0 | Q81: 1496.77 | R81: 1496.77
A82: 8 | B82: 1940 | C82: Tools, Shop & Garage Equipment | D82: =G223 -> 31555.98 | E82: 2500 | F82: 0 | G82: 34055.98 | I82: =L223 -> 12183.54 | J82: 3184.17 | K82: 0 | L82: 15367.71 | M82: =G82-L82 -> 18688.27 | Q82: 32805.98 | R82: 13775.625
A83: 8 | B83: 1945 | C83: Measurement & Testing Equipment | D83: 24682.82 | E83: 0 | F83: 0 | G83: 24682.82 | I83: 8638.98 | J83: 2468.28 | K83: 0 | L83: 11107.26 | M83: 13575.56 | Q83: 24682.82 | R83: 9873.12
A84: 8 | B84: 1950 | C84: Power Operated Equipment | D84: 0 | E84: 0 | F84: 0 | G84: 0 | I84: 0 | J84: 0 | K84: 0 | L84: 0 | M84: 0 | Q84: 0 | R84: 0
A85: 8 | B85: 1955 | C85: Communications Equipment | D85: 26694.49 | E85: 0 | F85: 0 | G85: 26694.49 | I85: 22072.95 | J85: 2147.42 | K85: 0 | L85: 24220.37 | M85: 2474.12 | Q85: 26694.49 | R85: 23146.66
A86: 8 | B86: 1955 | C86: Communication Equipment (Smart Meters) | D86: 0 | E86: 0 | F86: 0 | G86: 0 | I86: 0 | J86: 0 | K86: 0 | L86: 0 | M86: 0 | Q86: 0 | R86: 0
A87: 8 | B87: 1960 | C87: Miscellaneous Equipment | D87: 0 | E87: 0 | F87: 0 | G87: 0 | I87: 0 | J87: 0 | K87: 0 | L87: 0 | M87: 0 | Q87: 0 | R87: 0
A88: 47 | B88: 1970 | C88: Load Management Controls Customer Premises | D88: 0 | E88: 0 | F88: 0 | G88: 0 | I88: 0 | J88: 0 | K88: 0 | L88: 0 | M88: 0 | Q88: 0 | R88: 0
A89: 47 | B89: 1975 | C89: Load Management Controls Utility Premises | D89: 0 | E89: 0 | F89: 0 | G89: 0 | I89: 0 | J89: 0 | K89: 0 | L89: 0 | M89: 0 | Q89: 0 | R89: 0
A90: 47 | B90: 1980 | C90: System Supervisor Equipment | D90: =G231+D127 -> 328804.12 | E90: 0 | F90: 0 | G90: 328804.12 | I90: =L231+I127 -> 200488.41 | J90: 27298.25 | K90: 0 | L90: 227786.66 | M90: 101017.46 | Q90: 328804.12 | R90: 214137.535
A91: 47 | B91: 1985 | C91: Miscellaneous Fixed Assets | D91: 0 | E91: 0 | F91: 0 | G91: 0 | I91: 0 | J91: 0 | K91: 0 | L91: 0 | M91: 0 | Q91: 0 | R91: 0
A92: 47 | B92: 1990 | C92: Other Tangible Property | D92: 0 | E92: 0 | F92: 0 | G92: 0 | I92: 0 | J92: 0 | K92: 0 | L92: 0 | M92: 0 | Q92: 0 | R92: 0
A93: 47 | B93: 1995 | C93: Contributions & Grants | D93: 0 | E93: 0 | F93: 0 | G93: 0 | I93: 0 | J93: 0 | K93: 0 | L93: 0 | M93: 0 | Q93: 0 | R93: 0
A94: 47 | B94: 2440 | C94: Deferred Revenue5 | D94: -482303.31 | E94: -30000 | F94: 0 | G94: -512303.31 | I94: -61067.88 | J94: -13500 | K94: 0 | L94: -74567.88 | M94: -437735.43 | Q94: -497303.31 | R94: -67817.88
B95: 2005 | C95: Property Under Finance Lease7 | D95: 0 | E95: 0 | F95: 0 | G95: 0 | I95: 0 | J95: 0 | K95: 0 | L95: 0 | M95: 0 | Q95: 0 | R95: 0
C96: Sub-Total | D96: =SUM(D17:D95) -> 14526781.99 | E96: =SUM(E17:E95) -> 634000 | F96: =SUM(F17:F95) -> -20000 | G96: =SUM(G17:G95) -> 15140781.99 | I96: =SUM(I17:I95) -> 3147622.01 | J96: =SUM(J17:J95) -> 586701.4562 | K96: =SUM(K17:K95) -> 0 | L96: =SUM(L17:L95) -> 3734323.466 | M96: =SUM(M17:M95) -> 11406458.52 | Q96: 14833781.99 | R96: 3440972.738
C97: Less Socialized Renewable Energy Generation Investments (input as negative) | G97: =D97+E97+F97 -> 0 | L97: =I97+J97+K97 -> 0 | M97: =G97+L97 -> 0
C98: Less Other Non Rate-Regulated Utility Assets (input as negative) | G98: =D98+E98+F98 -> 0 | L98: =I98+J98+K98 -> 0 | M98: =G98+L98 -> 0
C99: Total PP&E | D99: =SUM(D96:D98) -> 14526781.99 | E99: =SUM(E96:E98) -> 634000 | F99: =SUM(F96:F98) -> -20000 | G99: =SUM(G96:G98) -> 15140781.99 | I99: =SUM(I96:I98) -> 3147622.01 | J99: =SUM(J96:J98) -> 586701.4562 | K99: =SUM(K96:K98) -> 0 | L99: =SUM(L96:L98) -> 3734323.466 | M99: =SUM(M96:M98) -> 11406458.52
C100: Depreciation Expense adj. from gain or loss on the retirement of assets (pool of like assets), if applicable6
C101: Total | J101: =J99+J100 -> 586701.4562
I103: Less: Fully Allocated Depreciation
A104: 10 | C104: Transportation | I104: Transportation | K104: =J78+J80 -> 77617.54
A105: 8 | C105: Stores Equipment | I105: Stores Equipment | K105: =J81 -> 0
A106: 8 | C106: Tools, Shop | I106: Tools, Shop | K106: =J82 -> 3184.17
A107: 8 | C107: Meas/Testing | I107: Meas/Testing | K107: 2468.28
A108: 8 | C108: Communication | I108: Communication | K108: =J85 -> 2147.42
A109: 47 | C109: Deferred Revenue | I109: Deferred Revenue
I110: Net Depreciation | K110: =J101-K104-K105-K106-K107-K108-K109 -> 501284.0462
A112: 2021 | B112: 1508 - Incremental Capital Assets (2018 MS3 Substation) | D112: Year | E112: 2021
D113: Cost | J113: Accumulated Depreciation
A114: CCA Class 2 | B114: OEB Account 3 | C114: Description 3 | D114: Opening Balance | E114: Additions 4 | F114: Disposals 6 | G114: Closing Balance | I114: Opening Balance | J114: Additions | K114: Disposals 6 | L114: Closing Balance | M114: Net Book Value
A115: 47 | B115: 1508-1500-508-501 | C115: Sub Stations Power - Overall | D115: =G256 -> 402937.76 | E115: =-D115 -> -402937.76 | G115: =D115+E115+F115 -> 0 | I115: =L256 -> 26862.51 | K115: =-I115 -> -26862.51 | L115: =I115+J115+K115 -> 0 | M115: =G115-L115 -> 0
A116: 47 | B116: 1508-1500-508-502 | C116: Sub Stations Power - Bushing | D116: =G257 -> 0 | E116: =-D116 -> 0 | G116: =D116+E116+F116 -> 0 | I116: =L257 -> 0 | K116: =-I116 -> 0 | L116: =I116+J116+K116 -> 0 | M116: =G116-L116 -> 0
A117: 47 | B117: 1508-1500-508-503 | C117: Sub Stations Power - Tap Changer | D117: 0 | E117: 0 | G117: 0 | I117: 0 | K117: 0 | L117: 0 | M117: 0
A118: 47 | B118: 1508-1500-508-504 | C118: Sub Stations Switchgear - Overall | D118: 231665.64 | E118: -231665.64 | G118: 0 | I118: 17374.92 | K118: -17374.92 | L118: 0 | M118: 0
A119: 47 | B119: 1508-1500-508-505 | C119: Sub Stations - Station Switch | D119: 682029.21 | E119: -682029.21 | G119: 0 | I119: 40921.77 | K119: -40921.77 | L119: 0 | M119: 0
A120: 47 | B120: 1508-1500-508-506 | C120: Sub Stations - Rigid Busbars | D120: 0 | E120: 0 | G120: 0 | I120: 0 | K120: 0 | L120: 0 | M120: 0
A121: 47 | B121: 1508-1500-508-507 | C121: Sub Stations - Steel Structure | D121: 163086.35 | E121: -163086.35 | G121: 0 | I121: 9785.19 | K121: -9785.19 | L121: 0 | M121: 0
A122: 47 | B122: 1508-1500-508-508 | C122: Sub Stations - Fence | D122: 36241.41 | E122: -36241.41 | G122: 0 | I122: 4348.98 | K122: -4348.98 | L122: 0 | M122: 0
A123: 47 | B123: 1508-1500-508-509 | C123: Poles Towers & Fixtures - Wood | D123: 54449.32 | E123: -54449.32 | G123: 0 | I123: 3451.92 | K123: -3451.92 | L123: 0 | M123: 0
A124: 47 | B124: 1508-1500-508-510 | C124: O/H Conductors & Devices - Conductors | D124: 36258.79 | E124: -36258.79 | G124: 0 | I124: 1812.96 | K124: -1812.96 | L124: 0 | M124: 0
A125: 47 | B125: 1508-1500-508-511 | C125: U/G Conductors & Devices | D125: 5779.82 | E125: -5779.82 | G125: 0 | I125: 433.5 | K125: -433.5 | L125: 0 | M125: 0
A126: 47 | B126: 1508-1500-508-512 | C126: Reg - ICE Stn Services | D126: 54444.96 | E126: -54444.96 | G126: 0 | I126: 4083.36 | K126: -4083.36 | L126: 0 | M126: 0
A127: 47 | B127: 1508-1500-508-513 | C127: SCADA | D127: 26000 | E127: -26000 | G127: 0 | I127: 7800 | K127: -7800 | L127: 0 | M127: 0
C128: Total | D128: =SUM(D115:D127) -> 1692893.26 | E128: =SUM(E115:E127) -> -1692893.26 | F128: =SUM(F115:F127) -> 0 | J128: =SUM(J115:J127) -> 0 | K128: =SUM(K115:K127) -> -116875.11 | M128: =SUM(M115:M127) -> 0
A130: Notes:
A132: 1 | B132: Tables in the format outlined above covering all fixed asset accounts should be submitted for the Test Year, Bridge Year and all relevant historical years. At a minimum , the applicant must provide data for the earlier of: 1) all historical years back to its last rebasing; or 2) at least three years of historical actuals, in addition to Bridge Year and Test Year forecasts.
A135: 2 | B135: The "CCA Class" for fixed assets should generally agree with the CCA Class used for tax purposes in Tax Returns. Fixed Assets sub-components may be used where the underlying asset components are classified under multiple CCA Classes for tax purposes. If an applicant uses any different classes from those shown in the table, an explanation should be provided. (also see note 3).
A138: 3 | B138: The table may need to be customized for a utility's asset categories or for any new asset accounts announced or authorized by the OEB.
A140: 4 | B140: The additions in column (E) must not include construction work in progress (CWIP).
A142: 5 | B142: Effective on the date of IFRS adoption, customer contributions will no longer be recorded in Account 1995 Contributions & Grants, but will be recorded in Account 2440, Deferred Revenues. Amortization of deferred revenue will be removed from the depreciation expense shown on this fixed asset continuity schedule as it should be included as income in Appendix 2-H Other Revenues.
A144: 6 | B144: The applicant must ensure that all asset disposals have been clearly identified in the Chapter 2 Appendices for all historic, bridge and test years. Where a distributor for general financial reporting purposes under IFRS has accounted for the amount of gain or loss on the retirement of assets in a pool of like assets as a charge or credit to income, for reporting and rate application filings, the distributor shall reclassify such gains and losses as depreciation expense, and disclose the amount separately.
A148: 7 | B148: This account includes the amount recorded under finance leases for plant leased from others and used by the utility in its utility operations.
A150: Appendix 2-BA
A151: Fixed Asset Continuity Schedule 1
E153: Accounting Standard | F153: MIFRS
E154: Year | F154: 2020
D156: Cost | J156: Accumulated Depreciation
A157: CCA Class 2 | B157: OEB Account 3 | C157: Description 3 | D157: Opening Balance | E157: Additions 4 | F157: Disposals 6 | G157: Closing Balance | I157: Opening Balance | J157: Additions | K157: Disposals 6 | L157: Closing Balance | M157: Net Book Value
B158: 1609 | C158: Capital Contributions Paid | D158: =G280 -> 838765.15 | E158: 0 | F158: 0 | G158: =D158+E158+F158 -> 838765.15 | I158: =L280 -> 117427.13 | J158: 33550.61 | K158: 0 | L158: =I158+J158+K158 -> 150977.74 | M158: =G158-L158 -> 687787.41
A159: 12 | B159: 1611 | C159: Computer Software (Formally known as Account 1925) | D159: =G281 -> 314934.79 | E159: 101977 | F159: 0 | G159: =D159+E159+F159 -> 416911.79 | I159: =L281 -> 244487.85 | J159: 39674.21 | K159: 0 | L159: =I159+J159+K159 -> 284162.06 | M159: =G159-L159 -> 132749.73
A160: CEC | B160: 1612 | C160: Land Rights (Formally known as Account 1906) | D160: 28650.65 | E160: 0 | F160: 0 | G160: 28650.65 | I160: 0 | J160: 0 | K160: 0 | L160: 0 | M160: 28650.65
A161: N/A | B161: 1805 | C161: Land | D161: 41987.65 | E161: 0 | F161: 0 | G161: 41987.65 | I161: 0 | J161: 0 | K161: 0 | L161: 0 | M161: 41987.65
A162: 47 | B162: 1808 | C162: Buildings & Fixtures - MF Building | D162: 217046.94 | E162: 0 | F162: 0 | G162: 217046.94 | I162: 25825.51 | J162: 4503.34 | K162: 0 | L162: 30328.85 | M162: 186718.09
A163: 47 | B163: 1808 | C163: Buildings & Fixtures - MF Fence/Parking/Roof | D163: 45066.59 | E163: 0 | F163: 0 | G163: 45066.59 | I163: 11717.06 | J163: 2110.16 | K163: 0 | L163: 13827.22 | M163: 31239.37
A164: 47 | B164: 1808 | C164: Buildings & Fixtures - MF Fixture/Flooring | D164: 52585.19 | E164: 5300 | F164: 0 | G164: 57885.19 | I164: 22126.01 | J164: 4476.066667 | K164: 0 | L164: 26602.07667 | M164: 31283.11333
A165: 47 | B165: 1808 | C165: Buildings & Fixtures - MF HVAC/Plumbing/Comm | D165: 41472.42 | E165: 0 | F165: 0 | G165: 41472.42 | I165: 15735.16 | J165: 3102.09 | K165: 0 | L165: 18837.25 | M165: 22635.17
A166: 47 | B166: 1808 | C166: Buildings & Fixtures - AR Building | D166: 3421.25 | E166: 0 | F166: 0 | G166: 3421.25 | I166: 346.02 | J166: 57.67 | K166: 0 | L166: 403.69 | M166: 3017.56
A167: 47 | B167: 1808 | C167: Buildings & Fixtures - AR Fence/Parking/Roof | D167: 10881.93 | E167: 0 | F167: 0 | G167: 10881.93 | I167: 3109.14 | J167: 518.19 | K167: 0 | L167: 3627.33 | M167: 7254.6
A168: 47 | B168: 1808 | C168: Buildings & Fixtures - E.S. Shed Building | D168: 32499.7 | E168: 0 | F168: 0 | G168: 32499.7 | I168: 3695.04 | J168: 615.84 | K168: 0 | L168: 4310.88 | M168: 28188.82
A169: 47 | B169: 1808 | C169: Buildings & Fixtures - E.S. Shed Fixture/Flooring | D169: 2169.1 | E169: 0 | F169: 0 | G169: 2169.1 | I169: 2169.12 | J169: 0 | K169: 0 | L169: 2169.12 | M169: -0.02
A170: 47 | B170: 1808 | C170: Buildings & Fixtures - E.S. Shed Fence/Parking/Roof | D170: 1067.21 | E170: 0 | F170: 0 | G170: 1067.21 | I170: 426.9 | J170: 71.15 | K170: 0 | L170: 498.05 | M170: 569.16
A171: 47 | B171: 1808 | C171: Buildings & Fixtures - W.S. Shed | D171: 0 | E171: 0 | F171: 0 | G171: 0 | I171: 0 | J171: 0 | K171: 0 | L171: 0 | M171: 0
A172: 13 | B172: 1810 | C172: Leasehold Improvements | D172: 0 | E172: 0 | F172: 0 | G172: 0 | I172: 0 | J172: 0 | K172: 0 | L172: 0 | M172: 0
A173: 47 | B173: 1815 | C173: Transformer Station Equipment >50 kV | D173: 0 | E173: 0 | F173: 0 | G173: 0 | I173: 0 | J173: 0 | K173: 0 | L173: 0 | M173: 0
A174: 47 | B174: 1820 | C174: Sub Stations Power - Overall | D174: 770129.51 | E174: 0 | F174: 0 | G174: 770129.51 | I174: 90922.43 | J174: 18439.93 | K174: 0 | L174: 109362.36 | M174: 660767.15
A175: 47 | B175: 1820 | C175: Sub Stations Power - Bushing | D175: 27469.15 | E175: 0 | F175: 0 | G175: 27469.15 | I175: 6982.34 | J175: 1509.41 | K175: 0 | L175: 8491.75 | M175: 18977.4
A176: 47 | B176: 1820 | C176: Sub Stations Power - Tap Changer | D176: 32005.77 | E176: 0 | F176: 0 | G176: 32005.77 | I176: 13531.02 | J176: 2096.79 | K176: 0 | L176: 15627.81 | M176: 16377.96
A177: 47 | B177: 1820 | C177: Sub Stations Switchgear - Overall | D177: 371282.8 | E177: 0 | F177: 0 | G177: 371282.8 | I177: 52353.14 | J177: 11015.14 | K177: 0 | L177: 63368.28 | M177: 307914.52
A178: 47 | B178: 1820 | C178: Sub Stations - Station Switch | D178: 283422.7 | E178: 0 | F178: 0 | G178: 283422.7 | I178: 26242.74 | J178: 6079.59 | K178: 0 | L178: 32322.33 | M178: 251100.37
A179: 47 | B179: 1820 | C179: Sub Stations - Rigid Busbars | D179: 17731.18 | E179: 0 | F179: 0 | G179: 17731.18 | I179: 2536.02 | J179: 422.67 | K179: 0 | L179: 2958.69 | M179: 14772.49
A180: 47 | B180: 1820 | C180: Sub Stations - Steel Structure | D180: 61503.14 | E180: 0 | F180: 0 | G180: 61503.14 | I180: 6506.26 | J180: 1386.02 | K180: 0 | L180: 7892.28 | M180: 53610.86
A181: 47 | B181: 1820 | C181: Sub Stations - Fence | D181: 68665.42 | E181: 0 | F181: 0 | G181: 68665.42 | I181: 14519.15 | J181: 2865.41 | K181: 0 | L181: 17384.56 | M181: 51280.86
A182: 47 | B182: 1825 | C182: Storage Battery Equipment | D182: 0 | E182: 0 | F182: 0 | G182: 0 | I182: 0 | J182: 0 | K182: 0 | L182: 0 | M182: 0
A183: 47 | B183: 1830 | C183: Poles Towers & Fixtures - Wood | D183: 2800829.53 | E183: 167804 | F183: 0 | G183: 2968633.53 | I183: 347468.79 | J183: 71305.88889 | K183: 0 | L183: 418774.6789 | M183: 2549858.851
A184: 47 | B184: 1830 | C184: Poles Towers & Fixtures - Concrete | D184: 159566.79 | E184: 0 | F184: 0 | G184: 159566.79 | I184: 17963.22 | J184: 2993.87 | K184: 0 | L184: 20957.09 | M184: 138609.7
A185: 47 | B185: 1830 | C185: Poles Towers & Fixtures - Steel | D185: 2521.45 | E185: 0 | F185: 0 | G185: 2521.45 | I185: 285.42 | J185: 47.57 | K185: 0 | L185: 332.99 | M185: 2188.46
A186: 47 | B186: 1830 | C186: Poles Towers & Fixtures - Switches | D186: 41919.51 | E186: 0 | F186: 0 | G186: 41919.51 | I186: 4118.81 | J186: 931.53 | K186: 0 | L186: 5050.34 | M186: 36869.17
A187: 47 | B187: 1835 | C187: O/H Conductors & Devices - Conductors | D187: 913711.65 | E187: 137606 | F187: 0 | G187: 1051317.65 | I187: 76995.33 | J187: 17899.31667 | K187: 0 | L187: 94894.64667 | M187: 956423.0033
A188: 47 | B188: 1835 | C188: O/H Conductors & Devices - Line Switch | D188: 31651.14 | E188: 0 | F188: 0 | G188: 31651.14 | I188: 1526.48 | J188: 704.3 | K188: 0 | L188: 2230.78 | M188: 29420.36
A189: 47 | B189: 1835 | C189: O/H Conductors & Devices - Reclosers | D189: 304704.28 | E189: 0 | F189: 0 | G189: 304704.28 | I189: 31657.6 | J189: 7914.4 | K189: 0 | L189: 39572 | M189: 265132.28
A190: 47 | B190: 1840 | C190: U/G Conduit-Concret encased duct banks | D190: 0 | E190: 0 | F190: 0 | G190: 0 | I190: 0 | J190: 0 | K190: 0 | L190: 0 | M190: 0
A191: 47 | B191: 1840 | C191: U/G Conduit-Ducts | D191: 861.15 | E191: 47449 | F191: 0 | G191: 48310.15 | I191: 106.8 | J191: 492.29 | K191: 0 | L191: 599.09 | M191: 47711.06
A192: 47 | B192: 1840 | C192: U/G Conduit-UG Foundations | D192: 0 | E192: 0 | F192: 0 | G192: 0 | I192: 0 | J192: 0 | K192: 0 | L192: 0 | M192: 0
A193: 47 | B193: 1845 | C193: Underground Conductors & Devices | D193: 579208.06 | E193: 21789 | F193: 0 | G193: 600997.06 | I193: 86052.89 | J193: 16346.2025 | K193: 0 | L193: 102399.0925 | M193: 498597.9675
A194: 47 | B194: 1850 | C194: Distribution Transformers - Overhead | D194: 0 | E194: 0 | F194: 0 | G194: 0 | I194: 0 | J194: 0 | K194: 0 | L194: 0 | M194: 0
A195: 47 | B195: 1850 | C195: Distribution Transformers - Inventory | D195: 146973.06 | E195: 45126 | F195: 0 | G195: 192099.06 | I195: 0 | J195: 2401.23825 | K195: 0 | L195: 2401.23825 | M195: 189697.8218
A196: 47 | B196: 1850 | C196: Distribution Transformers - UG Pad-Mounted Trans | D196: 523168.06 | E196: 65747 | F196: -13763.05 | G196: 575152.01 | I196: 93245.16 | J196: 18441.0875 | K196: -3226.92 | L196: 108459.3275 | M196: 466692.6825
A197: 47 | B197: 1850 | C197: Distribution Transformers - OH Trans & Voltage Reg | D197: 687955.28 | E197: 57774 | F197: -5909.3 | G197: 739819.98 | I197: 96723.82 | J197: 21078.175 | K197: -1184.06 | L197: 116617.935 | M197: 623202.045
A198: 47 | B198: 1855 | C198: Distribution Services - UG Secondary in Duct | D198: 217375.9 | E198: 25995 | F198: 0 | G198: 243370.9 | I198: 18216.12 | J198: 4047.815 | K198: 0 | L198: 22263.935 | M198: 221106.965
A199: 47 | B199: 1855 | C199: Distribution Services - OH Conductors | D199: 233840.66 | E199: 22697 | F199: 0 | G199: 256537.66 | I199: 27577.04 | J199: 6554.1725 | K199: 0 | L199: 34131.2125 | M199: 222406.4475
A200: 47 | B200: 1860 | C200: Distribution Meters | D200: 0 | E200: 0 | F200: 0 | G200: 0 | I200: 0 | J200: 0 | K200: 0 | L200: 0 | M200: 0
A201: 47 | B201: 1860 | C201: Distribution Meters - Inventory | D201: 12665.87 | E201: 0 | F201: 0 | G201: 12665.87 | I201: 6597.48 | J201: 1099.58 | K201: 0 | L201: 7697.06 | M201: 4968.81
A202: 47 | B202: 1860 | C202: Distribution Meters - Residential Energy Meters | D202: 0 | E202: 0 | F202: 0 | G202: 0 | I202: 0 | J202: 0 | K202: 0 | L202: 0 | M202: 0
A203: 47 | B203: 1860 | C203: Distribution Meters - Ind/Com Energy Meters | D203: 7848.06 | E203: 0 | F203: 0 | G203: 7848.06 | I203: 2288.22 | J203: 381.37 | K203: 0 | L203: 2669.59 | M203: 5178.47
A204: 47 | B204: 1860 | C204: Distribution Meters - Wholesale Energy Meters | D204: 91613.75 | E204: 0 | F204: 0 | G204: 91613.75 | I204: 21116.09 | J204: 4022.14 | K204: 0 | L204: 25138.23 | M204: 66475.52
A205: 47 | B205: 1860 | C205: Distribution Meters - Current & Potential Meters | D205: 53389.76 | E205: 0 | F205: 0 | G205: 53389.76 | I205: 7670.74 | J205: 2136.89 | K205: 0 | L205: 9807.63 | M205: 43582.13
A206: 47 | B206: 1860 | C206: Distribution Meters-Smart | D206: 785896.53 | E206: 100453 | F206: -19798.2 | G206: 866551.33 | I206: 253484.76 | J206: 68603.08333 | K206: -10603.38 | L206: 311484.4633 | M206: 555066.8667
A207: 47 | B207: 1860 | C207: Distribution Meters-Smart-Repeaters | D207: 239.52 | E207: 0 | F207: 0 | G207: 239.52 | I207: 239.52 | J207: 0 | K207: 0 | L207: 239.52 | M207: 0
A208: 47 | B208: 1860 | C208: Distribution Meters-Smart-Data Collectors | D208: 20052.61 | E208: 0 | F208: 0 | G208: 20052.61 | I208: 19753.46 | J208: 199.43 | K208: 0 | L208: 19952.89 | M208: 99.72
A209: 47 | B209: 1860 | C209: Distribution Meters-Stranded | D209: 0 | E209: 0 | F209: 0 | G209: 0 | I209: 0 | J209: 0 | K209: 0 | L209: 0 | M209: 0
A210: 47 | B210: 1860 | C210: Distribution Meters-Inventory | D210: 79235.46 | E210: -2082 | F210: 0 | G210: 77153.46 | I210: 0 | J210: 2571.782 | K210: 0 | L210: 2571.782 | M210: 74581.678
A211: N/A | B211: 1905 | C211: Land | D211: 0 | E211: 0 | F211: 0 | G211: 0 | I211: 0 | J211: 0 | K211: 0 | L211: 0 | M211: 0
A212: 47 | B212: 1908 | C212: Buildings & Fixtures | D212: 0 | E212: 0 | F212: 0 | G212: 0 | I212: 0 | J212: 0 | K212: 0 | L212: 0 | M212: 0
A213: 13 | B213: 1910 | C213: Leasehold Improvements | D213: 0 | E213: 0 | F213: 0 | G213: 0 | I213: 0 | J213: 0 | K213: 0 | L213: 0 | M213: 0
A214: 8 | B214: 1915 | C214: Office Furniture & Equipment (10 years) | D214: 0 | E214: 0 | F214: 0 | G214: 0 | I214: 0 | J214: 0 | K214: 0 | L214: 0 | M214: 0
A215: 8 | B215: 1915 | C215: Office Furniture & Equipment (5 years) | D215: 68235.7 | E215: 0 | F215: 0 | G215: 68235.7 | I215: 29985.18 | J215: 6609.3 | K215: 0 | L215: 36594.48 | M215: 31641.22
A216: 10 | B216: 1920 | C216: Computer Equipment - Hardware | D216: 321832.87 | E216: 16938.72 | F216: 0 | G216: 338771.59 | I216: 230352.8 | J216: 39437.262 | K216: 0 | L216: 269790.062 | M216: 68981.528
A217: 45 | B217: 1920 | C217: Computer Equip.-Hardware(Post Mar. 22/04) | D217: 0 | E217: 0 | F217: 0 | G217: 0 | I217: 0 | J217: 0 | K217: 0 | L217: 0 | M217: 0
A218: 50 | B218: 1920 | C218: Computer Equip.-Hardware(Post Mar. 19/07) | D218: 0 | E218: 0 | F218: 0 | G218: 0 | I218: 0 | J218: 0 | K218: 0 | L218: 0 | M218: 0
A219: 10 | B219: 1930 | C219: Transportation Equipment - Trucks and Buckets | D219: 383964.72 | E219: 316789 | F219: 0 | G219: 700753.72 | I219: 293348.18 | J219: 46688.12 | K219: 0 | L219: 340036.3 | M219: 360717.42
A220: 10 | B220: 1930 | C220: Transportation Equipment - Trailers | D220: 2477.72 | E220: 0 | F220: 0 | G220: 2477.72 | I220: 2477.72 | J220: 0 | K220: 0 | L220: 2477.72 | M220: 0
A221: 10 | B221: 1930 | C221: Transportation Equipment - Pick-ups/Vans/Cars | D221: 102568.36 | E221: 0 | F221: 0 | G221: 102568.36 | I221: 49257.72 | J221: 15180 | K221: 0 | L221: 64437.72 | M221: 38130.64
... 476 more rows

Sheet Appendix 2-BB Service Life
N1: File Number: | P1: ='LDC Info'!E16 -> EB-2020-0061
N2: Exhibit: | P2: 2
N3: Tab: | P3: Section 2.2.2
N4: Schedule:
N5: Page: | P5: 41-43
N7: Date: | P7: 2020-10-30
A9: Appendix 2-BB
A10: Service Life Comparison
A11: Table F-1 from Kinetrics Report1
C15: Asset Details | F15: Useful Life | J15: USoA Account Number | K15: USoA Account Description | L15: Current | N15: Proposed | P15: Outside Range of Min, Max TUL?
A16: Parent* | B16: # | C16: Category| Component | Type | F16: MIN UL | G16: TUL | H16: MAX UL | L16: Years | M16: Rate | N16: Years | O16: Rate | P16: Below Min TUL | Q16: Above Max TUL
A17: OH | B17: 1 | C17: Fully Dressed Wood Poles | D17: Overall | F17: 35 | G17: 45 | H17: 75 | J17: 1830 | K17: Poles, Towers and Fixtures | L17: 45 | M17: =IF(ISERROR(1/L17), "", 1/L17) -> 0.02222222222 | N17: 45 | O17: =IF(ISERROR(1/N17), "", 1/N17) -> 0.02222222222 | P17: =IF(ISBLANK(N17),"",IF(N17<F17,"Yes","No")) -> No | Q17: =IF(ISBLANK(N17),"",IF(N17>H17,"Yes","No")) -> No
D18: Cross Arm | E18: Wood | F18: 20 | G18: 40 | H18: 55 | J18: 1830 | K18: Poles, Towers and Fixtures | L18: 45 | M18: 0.02222222222 | N18: 45 | O18: 0.02222222222 | P18: =IF(ISBLANK(N18),"",IF(N18<F18,"Yes","No")) -> No | Q18: =IF(ISBLANK(N18),"",IF(N18>H18,"Yes","No")) -> No
E19: Steel | F19: 30 | G19: 70 | H19: 95 | J19: 1830 | K19: Poles, Towers and Fixtures | L19: 45 | M19: 0.02222222222 | N19: 45 | O19: 0.02222222222 | P19: No | Q19: No
B20: 2 | C20: Fully Dressed Concrete Poles | D20: Overall | F20: 50 | G20: 60 | H20: 80 | J20: 1830 | K20: Poles, Towers and Fixtures | L20: 60 | M20: 0.01666666667 | N20: 60 | O20: 0.01666666667 | P20: No | Q20: No
D21: Cross Arm | E21: Wood | F21: 20 | G21: 40 | H21: 55 | J21: 1830 | K21: Poles, Towers and Fixtures | L21: 40 | M21: 0.025 | N21: 40 | O21: 0.025 | P21: No | Q21: No
E22: Steel | F22: 30 | G22: 70 | H22: 95 | J22: 1830 | K22: Poles, Towers and Fixtures | L22: 60 | M22: 0.01666666667 | N22: 60 | O22: 0.01666666667 | P22: No | Q22: No
B23: 3 | C23: Fully Dressed Steel Poles | D23: Overall | F23: 60 | G23: 60 | H23: 80 | J23: 1830 | K23: Poles, Towers and Fixtures | L23: 60 | M23: 0.01666666667 | N23: 60 | O23: 0.01666666667 | P23: No | Q23: No
D24: Cross Arm | E24: Wood | F24: 20 | G24: 40 | H24: 55 | J24: 1830 | K24: Poles, Towers and Fixtures | L24: 40 | M24: 0.025 | N24: 40 | O24: 0.025 | P24: No | Q24: No
E25: Steel | F25: 30 | G25: 70 | H25: 95 | J25: 1830 | K25: Poles, Towers and Fixtures | L25: 60 | M25: 0.01666666667 | N25: 60 | O25: 0.01666666667 | P25: No | Q25: No
B26: 4 | C26: OH Line Switch | F26: 30 | G26: 45 | H26: 55 | J26: 1835 | K26: Overhead Conductors & Devices | L26: 45 | M26: 0.02222222222 | N26: 45 | O26: 0.02222222222 | P26: No | Q26: No
B27: 5 | C27: OH Line Switch Motor | F27: 15 | G27: 25 | H27: 25 | J27: 1835 | K27: Overhead Conductors & Devices | L27: 25 | M27: 0.04 | N27: 25 | O27: 0.04 | P27: No | Q27: No
B28: 6 | C28: OH Line Switch RTU | F28: 15 | G28: 20 | H28: 20 | J28: 1835 | K28: Overhead Conductors & Devices | L28: 20 | M28: 0.05 | N28: 20 | O28: 0.05 | P28: No | Q28: No
B29: 7 | C29: OH Integral Switches | F29: 35 | G29: 45 | H29: 60 | J29: 1835 | K29: Overhead Conductors & Devices | L29: 45 | M29: 0.02222222222 | N29: 45 | O29: 0.02222222222 | P29: No | Q29: No
B30: 8 | C30: OH Conductors | F30: 50 | G30: 60 | H30: 75 | J30: 1835 | K30: Overhead Conductors & Devices | L30: 60 | M30: 0.01666666667 | N30: 60 | O30: 0.01666666667 | P30: No | Q30: No
B31: 9 | C31: OH Transformers & Voltage Regulators | F31: 30 | G31: 40 | H31: 60 | J31: 1850 | K31: Line Transformers | L31: 40 | M31: 0.025 | N31: 40 | O31: 0.025 | P31: No | Q31: No
B32: 10 | C32: OH Shunt Capacitor Banks | F32: 25 | G32: 30 | H32: 40 | J32: N/A
B33: 11 | C33: Reclosers | F33: 25 | G33: 40 | H33: 55 | J33: N/A
A34: TS & MS | B34: 12 | C34: Power Transformers | D34: Overall | F34: 30 | G34: 45 | H34: 60 | J34: 1850 | K34: Line Transformers | L34: 40 | M34: 0.025 | N34: 40 | O34: 0.025 | P34: No | Q34: No
D35: Bushing | F35: 10 | G35: 20 | H35: 30
D36: Tap Changer | F36: 20 | G36: 30 | H36: 60
B37: 13 | C37: Station Service Transformer | F37: 30 | G37: 45 | H37: 55
B38: 14 | C38: Station Grounding Transformer | F38: 30 | G38: 40 | H38: 40 | J38: 1820 | K38: Distribution Station Equipment | L38: 40 | M38: 0.025 | N38: 40 | O38: 0.025 | P38: No | Q38: No
B39: 15 | C39: Station DC System | D39: Overall | F39: 10 | G39: 20 | H39: 30 | J39: 1820 | K39: Distribution Station Equipment | L39: 20 | M39: 0.05 | N39: 20 | O39: 0.05 | P39: No | Q39: No
D40: Battery Bank | F40: 10 | G40: 15 | H40: 15 | J40: 1820 | K40: Distribution Station Equipment | L40: 15 | M40: 0.06666666667 | N40: 15 | O40: 0.06666666667 | P40: No | Q40: No
D41: Charger | F41: 20 | G41: 20 | H41: 30 | J41: 1820 | K41: Distribution Station Equipment | L41: 20 | M41: 0.05 | N41: 20 | O41: 0.05 | P41: No | Q41: No
B42: 16 | C42: Station Metal Clad Switchgear | D42: Overall | F42: 30 | G42: 40 | H42: 60 | J42: 1820 | K42: Distribution Station Equipment | L42: 40 | M42: 0.025 | N42: 40 | O42: 0.025 | P42: No | Q42: No
D43: Removable Breaker | F43: 25 | G43: 40 | H43: 60
B44: 17 | C44: Station Independent Breakers | F44: 35 | G44: 45 | H44: 65 | J44: 1820 | K44: Distribution Station Equipment | L44: 45 | M44: 0.02222222222 | N44: 45 | O44: 0.02222222222 | P44: No | Q44: No
B45: 18 | C45: Station Switch | F45: 30 | G45: 50 | H45: 60 | J45: 1820 | K45: Distribution Station Equipment | L45: 50 | M45: 0.02 | N45: 50 | O45: 0.02 | P45: No | Q45: No
B46: 19 | C46: Electromechanical Relays | F46: 25 | G46: 35 | H46: 50 | J46: 1820 | K46: Distribution Station Equipment | L46: 35 | M46: 0.02857142857 | N46: 35 | O46: 0.02857142857 | P46: No | Q46: No
B47: 20 | C47: Solid State Relays | F47: 10 | G47: 30 | H47: 45 | J47: 1820 | K47: Distribution Station Equipment | L47: 30 | M47: 0.03333333333 | N47: 30 | O47: 0.03333333333 | P47: No | Q47: No
B48: 21 | C48: Digital & Numeric Relays | F48: 15 | G48: 20 | H48: 20 | J48: 1820 | K48: Distribution Station Equipment | L48: 20 | M48: 0.05 | N48: 20 | O48: 0.05 | P48: No | Q48: No
B49: 22 | C49: Rigid Busbars | F49: 30 | G49: 55 | H49: 60 | J49: 1820 | K49: Distribution Station Equipment | L49: 55 | M49: 0.01818181818 | N49: 55 | O49: 0.01818181818 | P49: No | Q49: No
B50: 23 | C50: Steel Structure | F50: 35 | G50: 50 | H50: 90 | J50: 1820 | K50: Distribution Station Equipment | L50: 50 | M50: 0.02 | N50: 50 | O50: 0.02 | P50: No | Q50: No
A51: UG | B51: 24 | C51: Primary Paper Insulated Lead Covered (PILC) Cables | F51: 60 | G51: 65 | H51: 75 | J51: N/A
B52: 25 | C52: Primary Ethylene-Propylene Rubber (EPR) Cables | F52: 20 | G52: 25 | H52: 25 | J52: 1845 | K52: Underground Conductors & Devices | L52: 25 | M52: 0.04 | N52: 25 | O52: 0.04 | P52: No | Q52: No
B53: 26 | C53: Primary Non-Tree Retardant (TR) Cross Linked Polyethylene (XLPE) Cables Direct Buried | F53: 20 | G53: 25 | H53: 30 | J53: 1845 | K53: Underground Conductors & Devices | L53: 25 | M53: 0.04 | N53: 25 | O53: 0.04 | P53: No | Q53: No
B54: 27 | C54: Primary Non-TR XLPE Cables in Duct | F54: 20 | G54: 25 | H54: 30 | J54: 1845 | K54: Underground Conductors & Devices | L54: 25 | M54: 0.04 | N54: 25 | O54: 0.04 | P54: No | Q54: No
B55: 30 | C55: Secondary PILC Cables | F55: 70 | G55: 75 | H55: 80
B56: 31 | C56: Secondary Cables Direct Buried | F56: 25 | G56: 35 | H56: 40 | J56: 1855 | K56: Services | L56: 35 | M56: 0.02857142857 | N56: 35 | O56: 0.02857142857 | P56: No | Q56: No
B57: 32 | C57: Secondary Cables in Duct | F57: 35 | G57: 40 | H57: 60 | J57: 1855 | K57: Services | L57: 40 | M57: 0.025 | N57: 40 | O57: 0.025 | P57: No | Q57: No
B58: 33 | C58: Network Tranformers | D58: Overall | F58: 20 | G58: 35 | H58: 50
D59: Protector | F59: 20 | G59: 35 | H59: 40
B60: 34 | C60: Pad-Mounted Transformers | F60: 25 | G60: 40 | H60: 45 | J60: 1850 | K60: Line Transformers | L60: 40 | M60: 0.025 | N60: 40 | O60: 0.025 | P60: No | Q60: No
B61: 35 | C61: Submersible/Vault Transformers | F61: 25 | G61: 35 | H61: 45 | J61: 1850 | K61: Line Transformers | L61: 35 | M61: 0.02857142857 | N61: 35 | O61: 0.02857142857 | P61: No | Q61: No
B62: 36 | C62: UG Foundation | F62: 35 | G62: 55 | H62: 70 | J62: 1840 | K62: Underground Conduit | L62: 55 | M62: 0.01818181818 | N62: 55 | O62: 0.01818181818 | P62: No | Q62: No
B63: 37 | C63: UG Vaults | D63: Overall | F63: 40 | G63: 60 | H63: 80
D64: Roof | F64: 20 | G64: 30 | H64: 45
B65: 38 | C65: UG Vault Switches | F65: 20 | G65: 35 | H65: 50 | J65: 1845 | K65: Underground Conductors & Devices | L65: 35 | M65: 0.02857142857 | N65: 35 | O65: 0.02857142857 | P65: No | Q65: No
B66: 39 | C66: Pad-Mounted Switchgear | F66: 20 | G66: 30 | H66: 45 | J66: 1845 | K66: Underground Conductors & Devices | L66: 30 | M66: 0.03333333333 | N66: 30 | O66: 0.03333333333 | P66: No | Q66: No
B67: 40 | C67: Ducts | F67: 30 | G67: 50 | H67: 85 | J67: 1840 | K67: Underground Conduit | L67: 50 | M67: 0.02 | N67: 50 | O67: 0.02 | P67: No | Q67: No
B68: 41 | C68: Concrete Encased Duct Banks | F68: 35 | G68: 55 | H68: 80 | J68: 1840 | K68: Underground Conduit | L68: 55 | M68: 0.01818181818 | N68: 55 | O68: 0.01818181818 | P68: No | Q68: No
B69: 42 | C69: Cable Chambers | F69: 50 | G69: 60 | H69: 80 | J69: 1840 | K69: Underground Conduit | L69: 60 | M69: 0.01666666667 | N69: 60 | O69: 0.01666666667 | P69: No | Q69: No
A70: S | B70: 43 | C70: Remote SCADA | F70: 15 | G70: 20 | H70: 30
A73: Table F-2 from Kinetrics Report1
C75: Asset Details | F75: Useful Life Range | J75: USoA Account Number | K75: USoA Account Description | L75: Current | N75: Proposed | P75: Outside Range of Min, Max TUL?
B76: # | C76: Category| Component | Type | L76: Years | M76: Rate | N76: Years | O76: Rate | P76: Below Min Range | Q76: Above Max Range
B77: 1 | C77: Office Equipment | F77: 5 | G77: 15 | J77: 1915 | K77: Office Furniture & Equipment | L77: 8 | M77: =IF(ISERROR(1/L77), "", 1/L77) -> 0.125 | N77: 8 | O77: =IF(ISERROR(1/N77), "", 1/N77) -> 0.125 | P77: =IF(ISBLANK(N77),"",IF(N77<F77,"Yes","No")) -> No | Q77: =IF(ISBLANK(N77),"",IF(N77>G77,"Yes","No")) -> No
B78: 2 | C78: Vehicles | D78: Trucks & Buckets | F78: 5 | G78: 15 | J78: 1930 | K78: Transportation Equipment | L78: 12 | M78: =IF(ISERROR(1/L78), "", 1/L78) -> 0.08333333333 | N78: 12 | O78: =IF(ISERROR(1/N78), "", 1/N78) -> 0.08333333333 | P78: =IF(ISBLANK(N78),"",IF(N78<F78,"Yes","No")) -> No | Q78: =IF(ISBLANK(N78),"",IF(N78>G78,"Yes","No")) -> No
D79: Trailers | F79: 5 | G79: 20 | J79: 1930 | K79: Transportation Equipment | L79: 10 | M79: 0.1 | N79: 10 | O79: 0.1 | P79: No | Q79: No
D80: Vans | F80: 5 | G80: 10 | J80: 1930 | K80: Transportation Equipment | L80: 5 | M80: 0.2 | N80: 5 | O80: 0.2 | P80: No | Q80: No
B81: 3 | C81: Administrative Buildings | F81: 50 | G81: 75 | J81: 200/201 | K81: Building & Fixtures | L81: 60 | M81: 0.01666666667 | N81: 60 | O81: 0.01666666667 | P81: No | Q81: No
B82: 4 | C82: Leasehold Improvements | F82: Lease dependent | P82: =IF(ISBLANK(N82),"",IF(N82<F82,"Yes","No")) ->  | Q82: =IF(ISBLANK(N82),"",IF(N82>G82,"Yes","No")) -> 
B83: 5 | C83: Station Buildings | D83: Station Buildings | F83: 50 | G83: 75 | J83: 1808 | K83: Building & Fixtures | L83: 60 | M83: 0.01666666667 | N83: 60 | O83: 0.01666666667 | P83: No | Q83: No
D84: Parking | F84: 25 | G84: 30 | J84: 1808 | K84: Building & Fixtures | L84: 25 | M84: 0.04 | N84: 25 | O84: 0.04 | P84: No | Q84: No
D85: Fence | F85: 25 | G85: 60 | J85: 1808 | K85: Building & Fixtures | L85: 25 | M85: 0.04 | N85: 25 | O85: 0.04 | P85: No | Q85: No
D86: Roof | F86: 20 | G86: 30 | J86: 1808 | K86: Building & Fixtures | L86: 25 | M86: 0.04 | N86: 25 | O86: 0.04 | P86: No | Q86: No
B87: 6 | C87: Computer Equipment | D87: Hardware | F87: 3 | G87: 5 | J87: 1920 | K87: Computer Equipment - Hardware | L87: 5 | M87: 0.2 | N87: 5 | O87: 0.2 | P87: No | Q87: No
D88: Software | F88: 2 | G88: 5 | J88: 1925 | K88: Computer Equipment - Software | L88: 5 | M88: 0.2 | N88: 5 | O88: 0.2 | P88: No | Q88: No
B89: 7 | C89: Equipment | D89: Power Operated | F89: 5 | G89: 10
D90: Stores | F90: 5 | G90: 10 | J90: 1935 | K90: Stores Equipment | L90: 8 | M90: 0.125 | N90: 8 | O90: 0.125 | P90: No | Q90: No
D91: Tools, Shop, Garage Equipment | F91: 5 | G91: 10 | J91: 1940 | K91: Tools, Shops Garage Equipment | L91: 8 | M91: 0.125 | N91: 8 | O91: 0.125 | P91: No | Q91: No
D92: Measurement & Testing Equipment | F92: 5 | G92: 10 | J92: 1945 | K92: Measurement and Testing Equipment | L92: 8 | M92: 0.125 | N92: 8 | O92: 0.125 | P92: No | Q92: No
B93: 8 | C93: Communication | D93: Towers | F93: 60 | G93: 70
D94: Wireless | F94: 2 | G94: 10 | J94: 1955 | K94: Communication Equipment | L94: 10 | M94: 0.1 | N94: 10 | O94: 0.1 | P94: No | Q94: No
B95: 9 | C95: Residential Energy Meters | F95: 25 | G95: 35 | J95: 1860 | K95: Meters - Mechanical | L95: 25 | M95: 0.04 | N95: 25 | O95: 0.04 | P95: No | Q95: No
B96: 10 | C96: Industrial/Commercial Energy Meters | F96: 25 | G96: 35 | J96: 1860 | K96: Industrial/Commercial Energy Meters | L96: 25 | M96: 0.04 | N96: 25 | O96: 0.04 | P96: No | Q96: No
B97: 11 | C97: Wholesale Energy Meters | F97: 15 | G97: 30 | J97: 1860 | K97: Wholesale Energy Meters | L97: 15 | M97: 0.06666666667 | N97: 15 | O97: 0.06666666667 | P97: No | Q97: No
B98: 12 | C98: Current & Potential Transformer (CT & PT) | F98: 35 | G98: 50 | J98: 1860 | K98: Current & Potential Transformer (CT & PT) | L98: 40 | M98: 0.025 | N98: 40 | O98: 0.025 | P98: No | Q98: No
B99: 13 | C99: Smart Meters | F99: 5 | G99: 15 | J99: 1860 | K99: Smart Meters | L99: 15 | M99: 0.06666666667 | N99: 15 | O99: 0.06666666667 | P99: No | Q99: No
B100: 14 | C100: Repeaters - Smart Metering | F100: 10 | G100: 15 | J100: 1860 | K100: Repeaters - Smart Metering | L100: 15 | M100: 0.06666666667 | N100: 15 | O100: 0.06666666667 | P100: No | Q100: No
B101: 15 | C101: Data Collectors - Smart Metering | F101: 15 | G101: 20 | J101: 1860 | K101: Data Collectors - Smart Metering | L101: 15 | M101: 0.06666666667 | N101: 15 | O101: 0.06666666667 | P101: No | Q101: No
A104: * TS & MS = Transformer and Municipal Stations UG = Underground Systems S = Monitoring and Control Systems
A106: Note 1: | B106: Tables F-1 and F-2 above are to be used as a reference in order to complete columns J, K, L and N.
B107: See pages 17-19 of Kinetrics Report

Sheet App.2-C_DepExp
A9: Appendix 2-C | Y9: CGAAP
A10: Depreciation and Amortization Expense | Y10: Revised CGAAP
Y11: MIFRS
A12: This appendix is to be completed in conjunction with the accounting instructions in Appendix 2-B
A14: Scenario that applies | C14: Applicable Years and Accounting Standard | R14: Year Reflected in Schedule Below | S14: Accounting Standard Reflected in Schedule Below | Y14: 2012
A15: Rebasing for the first time with depreciation policy changes made in 2012. | C15: ="This appendix must be duplicated and completed for the years 2012 to " & TestYear & ". The appendix for 2012 is to be completed under CGAAP (prior to changes in depreciation policies)." &" The appendix for 2012 to 2014 must be completed under Revised CGAAP (after changes in depreciation policies). The appendix for 2014 to " & TestYear & " is to be completed under MIFRS (2014 if changes to MIFRS are material)." -> This appendix must be duplicated and completed for the years 2012 to 2021. The appendix for 2012 is to be completed under CGAAP (prior to changes in depreciation policies). The appendix for 2012 to 2014 must be completed under Revised CGAAP (after changes in depreciation policies). The appendix for 2014 to 2021 is to be completed under MIFRS (2014 if changes to MIFRS are material). | Y15: 2013
A16: Rebasing for the first time with depreciation policy changes made in 2013. | C16: ="This appendix must be duplicated and completed for the years 2013 to " & TestYear & ". The appendix for 2013 is to be completed under CGAAP (prior to changes in depreciation policies)."&" The appendix for 2013 to 2014 must be completed under Revised CGAAP (after changes in depreciation policies). The appendix for 2014 to " & TestYear & " is to be completed under MIFRS (2014 if changes to MIFRS are material)." -> This appendix must be duplicated and completed for the years 2013 to 2021. The appendix for 2013 is to be completed under CGAAP (prior to changes in depreciation policies). The appendix for 2013 to 2014 must be completed under Revised CGAAP (after changes in depreciation policies). The appendix for 2014 to 2021 is to be completed under MIFRS (2014 if changes to MIFRS are material). | Y16: 2014
A17: Already rebased with depreciation policy changes in a prior rate application and rebasing MIFRS for the first time. | C17: This appendix must be completed for 2014 to the test year. The appendix for 2014 is to be completed under Revised CGAAP (after changes in depreciation policies). The appendix for 2014 to the test year is to be completed under MIFRS (2014 if changes to MIFRS are material). | Y17: 2015
A18: Already rebased under MIFRS in a prior rate application | C18: ="This appendix must be completed under MIFRS for each year for the earlier of: 1) all historical years back to its last rebasing; or 2) at least three years of historical actuals, in addition to Bridge Year and Test Year forecasts." -> This appendix must be completed under MIFRS for each year for the earlier of: 1) all historical years back to its last rebasing; or 2) at least three years of historical actuals, in addition to Bridge Year and Test Year forecasts. | R18: 2016 | S18: MIFRS | Y18: 2016
Y19: 2017
A20: 2016 | C20: Book Values | J20: Service Lives | N20: Depreciation Expense | Y20: 2018
A21: Account | B21: Description | C21: Opening Net Book Value of Existing Assets as at Date of Policy Change (Jan. 1) 1 | D21: Less Fully Depreciated 7 | E21: Net Amount of Existing Assets Before Policy Change to be Depreciated | F21: Opening Gross Book Value of Assets Acquired After Policy Change 2 | G21: Less Fully Depreciated 8 | H21: Net Amount of Assets Acquired After Policy Change to be Depreciated | I21: Current Year Additions | J21: Average Remaining Life of Assets Existing Before Policy Change 3 | K21: Depreciation Rate Assets Acquired After Policy Change | L21: Life of Assets Acquired After Policy Change 4 | M21: Depreciation Rate on New Additions | N21: Depreciation Expense on Assets Existing Before Policy Change | O21: Depreciation Expense on Assets Acquired After Policy Change | P21: Depreciation Expense on Current Year Additions 5 | Q21: Total Current Year Depreciation Expense | R21: Depreciation Expense per Appendix 2-BA Fixed Assets, Column J | S21: Variance 6
C22: a | D22: b | E22: c = a-b | F22: d | G22: e | H22: f = d- e | I22: g | J22: h | K22: i = 1/h | L22: j | M22: k = 1/j | N22: l = c/h | O22: m = f/j | P22: n = g*0.5/j | Q22: o = l+m+n | R22: p | S22: q = p-o
A23: 1609 | B23: Capital Contributions Paid | C23: ='App.2-BA_Fixed Asset Cont'!D628 -> 0 | D23: 0 | E23: =C23-D23 -> 0 | F23: 0 | H23: =F23-G23 -> 0 | I23: ='App.2-BA_Fixed Asset Cont'!E628 -> 838765.15 | J23: =L23 -> 25 | K23: =IF(J23=0,0,1/J23) -> 0.04 | L23: 25 | M23: =IF(L23=0,0,1/L23) -> 0.04 | N23: =IF(J23=0,0,+E23/J23) -> 0 | O23: =IF(L23=0,0,+H23/L23) -> 0 | P23: =IF(L23=0,0,+(I23*0.5)/L23) -> 16775.303 | Q23: =IF(ISERROR(+N23+O23+P23), 0, +N23+O23+P23) -> 16775.303 | R23: ='App.2-BA_Fixed Asset Cont'!J628 -> 16775.3 | S23: =IF(ISERROR(+R23-Q23), 0, +R23-Q23) -> -0.003000000001
A24: 1611 | B24: Computer Software (Formally known as Account 1925) | C24: 236661.27 | D24: 211456 | E24: =C24-D24 -> 25205.27 | F24: =22643.88+10319.64 -> 32963.52 | G24: 0 | H24: =F24-G24 -> 32963.52 | I24: ='App.2-BA_Fixed Asset Cont'!E629 -> 68352.64 | J24: 2.7 | K24: =IF(J24=0,0,1/J24) -> 0.3703703704 | L24: 5 | M24: =IF(L24=0,0,1/L24) -> 0.2 | N24: =IF(J24=0,0,+E24/J24) -> 9335.285185 | O24: =IF(L24=0,0,+H24/L24) -> 6592.704 | P24: =IF(L24=0,0,+(I24*0.5)/L24) -> 6835.264 | Q24: =IF(ISERROR(+N24+O24+P24), 0, +N24+O24+P24) -> 22763.25319 | R24: ='App.2-BA_Fixed Asset Cont'!J629 -> 23900.71 | S24: =IF(ISERROR(+R24-Q24), 0, +R24-Q24) -> 1137.456815
A25: 1612 | B25: Land Rights (Formally known as Account 1906) | C25: 19239.55 | D25: 0 | E25: =C25-D25 -> 19239.55 | F25: 9411.1 | H25: =F25-G25 -> 9411.1 | I25: ='App.2-BA_Fixed Asset Cont'!E630 -> 0 | J25: =L25 -> 0 | K25: =IF(J25=0,0,1/J25) -> 0 | L25: 0 | M25: =IF(L25=0,0,1/L25) -> 0 | N25: =IF(J25=0,0,+E25/J25) -> 0 | O25: =IF(L25=0,0,+H25/L25) -> 0 | P25: =IF(L25=0,0,+(I25*0.5)/L25) -> 0 | Q25: =IF(ISERROR(+N25+O25+P25), 0, +N25+O25+P25) -> 0 | R25: ='App.2-BA_Fixed Asset Cont'!J630 -> 0 | S25: =IF(ISERROR(+R25-Q25), 0, +R25-Q25) -> 0
A26: 1805 | B26: Land | C26: ='App.2-BA_Fixed Asset Cont'!D631 -> 41987.65 | D26: 0 | E26: 41987.65 | G26: 0 | H26: 0 | I26: ='App.2-BA_Fixed Asset Cont'!E631 -> 0 | J26: 0 | K26: 0 | L26: 0 | M26: 0 | N26: 0 | O26: =IF(L26=0,0,+H26/L26) -> 0 | P26: 0 | Q26: 0 | R26: ='App.2-BA_Fixed Asset Cont'!J631 -> 0 | S26: 0
A27: 1808 | B27: Buildings & Fixtures - MF Building | C27: 176971.77 | E27: 176971.77 | F27: 35510.27 | G27: 0 | H27: 35510.27 | I27: ='App.2-BA_Fixed Asset Cont'!E632 -> 0 | J27: 34.5 | K27: 0.02898550725 | L27: 60 | M27: 0.01666666667 | N27: 5129.616522 | O27: 591.8378333 | P27: 0 | Q27: 5721.454355 | R27: ='App.2-BA_Fixed Asset Cont'!J632 -> 4427.26 | S27: -1294.194355
A28: 1808 | B28: Buildings & Fixtures - MF Fence/Parking/Roof | C28: 34681.59 | D28: 0 | E28: 34681.59 | F28: 4250 | G28: 0 | H28: 4250 | I28: ='App.2-BA_Fixed Asset Cont'!E633 -> 0 | J28: 20.5 | K28: 0.0487804878 | L28: 25 | M28: 0.04 | N28: 1691.784878 | O28: 170 | P28: 0 | Q28: 1861.784878 | R28: ='App.2-BA_Fixed Asset Cont'!J633 -> 1864.76 | S28: 2.975121951
A29: 1808 | B29: Buildings & Fixtures - MF Fixture/Flooring | C29: 15884.17 | D29: 0 | E29: 15884.17 | F29: 36701.02 | H29: 36701.02 | I29: ='App.2-BA_Fixed Asset Cont'!E634 -> 0 | J29: 8.5 | K29: 0.1176470588 | L29: 15 | M29: 0.06666666667 | N29: 1868.725882 | O29: 2446.734667 | P29: 0 | Q29: 4315.460549 | R29: ='App.2-BA_Fixed Asset Cont'!J634 -> 4299.35 | S29: -16.11054902
A30: 1808 | B30: Buildings & Fixtures - MF HVAC/Plumbing/Comm | C30: 17683.32 | D30: 0 | E30: 17683.32 | F30: 3597 | G30: 0 | H30: 3597 | I30: ='App.2-BA_Fixed Asset Cont'!E635 -> 0 | J30: 11.6 | K30: 0.08620689655 | L30: 15 | M30: 0.06666666667 | N30: 1524.424138 | O30: 239.8 | P30: 0 | Q30: 1764.224138 | R30: ='App.2-BA_Fixed Asset Cont'!J635 -> 1755.87 | S30: -8.354137931
A31: 1808 | B31: Buildings & Fixtures - AR Building | C31: 3421.25 | D31: 0 | E31: =C31-D31 -> 3421.25 | G31: 0 | H31: =F31-G31 -> 0 | I31: ='App.2-BA_Fixed Asset Cont'!E636 -> 0 | J31: 45.5 | K31: =IF(J31=0,0,1/J31) -> 0.02197802198 | L31: 60 | M31: =IF(L31=0,0,1/L31) -> 0.01666666667 | N31: =IF(J31=0,0,+E31/J31) -> 75.19230769 | O31: =IF(L31=0,0,+H31/L31) -> 0 | P31: =IF(L31=0,0,+(I31*0.5)/L31) -> 0 | Q31: =IF(ISERROR(+N31+O31+P31), 0, +N31+O31+P31) -> 75.19230769 | R31: ='App.2-BA_Fixed Asset Cont'!J636 -> 57.67 | S31: =IF(ISERROR(+R31-Q31), 0, +R31-Q31) -> -17.52230769
A32: 1808 | B32: Buildings & Fixtures - AR Fence/Parking/Roof | C32: 10881.93 | D32: 0 | E32: 10881.93 | G32: 0 | H32: 0 | I32: ='App.2-BA_Fixed Asset Cont'!E637 -> 0 | J32: 21 | K32: 0.04761904762 | L32: 25 | M32: 0.04 | N32: 518.1871429 | O32: 0 | P32: 0 | Q32: 518.1871429 | R32: ='App.2-BA_Fixed Asset Cont'!J637 -> 518.19 | S32: 0.002857142857
A33: 1808 | B33: Buildings & Fixtures - E.S. Shed Building | C33: 32500 | D33: 0 | E33: 32500 | G33: 0 | H33: 0 | I33: ='App.2-BA_Fixed Asset Cont'!E638 -> 0 | J33: 49.5 | K33: 0.0202020202 | L33: 60 | M33: 0.01666666667 | N33: 656.5656566 | O33: 0 | P33: 0 | Q33: 656.5656566 | R33: ='App.2-BA_Fixed Asset Cont'!J638 -> 615.84 | S33: -40.72565657
A34: 1808 | B34: Buildings & Fixtures - E.S. Shed Fixture/Flooring | C34: 2169.1 | D34: 0 | E34: 2169.1 | G34: 0 | H34: 0 | I34: ='App.2-BA_Fixed Asset Cont'!E639 -> 0 | J34: 4 | K34: 0.25 | L34: 15 | M34: 0.06666666667 | N34: 542.275 | O34: 0 | P34: 0 | Q34: 542.275 | R34: ='App.2-BA_Fixed Asset Cont'!J639 -> 542.28 | S34: 0.005
A35: 1808 | B35: Buildings & Fixtures - E.S. Shed Fence/Parking/Roof | C35: 1067.21 | D35: 0 | E35: 1067.21 | G35: 0 | H35: 0 | I35: ='App.2-BA_Fixed Asset Cont'!E640 -> 0 | J35: 15 | K35: 0.06666666667 | L35: 25 | M35: 0.04 | N35: 71.14733333 | O35: 0 | P35: 0 | Q35: 71.14733333 | R35: ='App.2-BA_Fixed Asset Cont'!J640 -> 71.15 | S35: 0.002666666667
A36: 1808 | B36: Buildings & Fixtures - W.S. Shed | C36: ='App.2-BA_Fixed Asset Cont'!D641 -> 0 | D36: 0 | E36: 0 | G36: 0 | H36: 0 | I36: ='App.2-BA_Fixed Asset Cont'!E641 -> 0 | J36: 60 | K36: 0.01666666667 | L36: 60 | M36: 0.01666666667 | N36: 0 | O36: 0 | P36: 0 | Q36: 0 | R36: ='App.2-BA_Fixed Asset Cont'!J641 -> 0 | S36: 0
A37: 1810 | B37: Leasehold Improvements | C37: ='App.2-BA_Fixed Asset Cont'!D642 -> 0 | D37: 0 | E37: 0 | G37: 0 | H37: 0 | I37: ='App.2-BA_Fixed Asset Cont'!E642 -> 0 | J37: 0 | K37: 0 | L37: 0 | M37: 0 | N37: 0 | O37: 0 | P37: 0 | Q37: 0 | R37: ='App.2-BA_Fixed Asset Cont'!J642 -> 0 | S37: 0
A38: 1815 | B38: Transformer Station Equipment >50 kV | C38: ='App.2-BA_Fixed Asset Cont'!D643 -> 0 | D38: 0 | E38: 0 | H38: 0 | I38: ='App.2-BA_Fixed Asset Cont'!E643 -> 0 | J38: 0 | K38: 0 | L38: 0 | M38: 0 | N38: 0 | O38: 0 | P38: 0 | Q38: 0 | R38: ='App.2-BA_Fixed Asset Cont'!J643 -> 0 | S38: 0
A39: 1820 | B39: Sub Stations Power - Overall | C39: 166846.52 | D39: 1459 | E39: 165387.52 | F39: =237845.58+360430 -> 598275.58 | G39: 0 | H39: 598275.58 | I39: ='App.2-BA_Fixed Asset Cont'!E644 -> 0 | J39: 33 | K39: 0.0303030303 | L39: 45 | M39: 0.02222222222 | N39: 5011.74303 | O39: 13295.01289 | P39: 0 | Q39: 18306.75592 | R39: ='App.2-BA_Fixed Asset Cont'!J644 -> 18296.23 | S39: -10.52591919
A40: 1820 | B40: Sub Stations Power - Bushing | C40: 10876.12 | D40: 0 | E40: 10876.12 | G40: 0 | H40: 0 | I40: ='App.2-BA_Fixed Asset Cont'!E645 -> 16593.03 | J40: 16 | K40: 0.0625 | L40: 20 | M40: 0.05 | N40: 679.7575 | O40: 0 | P40: 414.82575 | Q40: 1094.58325 | R40: ='App.2-BA_Fixed Asset Cont'!J645 -> 1094.59 | S40: 0.00675
A41: 1820 | B41: Sub Stations Power - Tap Changer | C41: 32005.78 | D41: 0 | E41: 32005.78 | G41: 0 | H41: 0 | I41: ='App.2-BA_Fixed Asset Cont'!E646 -> 0 | J41: 15.5 | K41: 0.06451612903 | L41: 30 | M41: 0.03333333333 | N41: 2064.889032 | O41: 0 | P41: 0 | Q41: 2064.889032 | R41: ='App.2-BA_Fixed Asset Cont'!J646 -> 2096.81 | S41: 31.92096774
A42: 1820 | B42: Sub Stations Switchgear - Overall | C42: 106833.37 | D42: 0 | E42: 106833.37 | F42: 264451 | G42: 0 | H42: 264451 | I42: ='App.2-BA_Fixed Asset Cont'!E647 -> 0 | J42: 24 | K42: 0.04166666667 | L42: 40 | M42: 0.025 | N42: 4451.390417 | O42: 6611.275 | P42: 0 | Q42: 11062.66542 | R42: ='App.2-BA_Fixed Asset Cont'!J647 -> 11015.14 | S42: -47.52541667
A43: 1820 | B43: Sub Stations - Station Switch | C43: 35228.41 | D43: 0 | E43: 35228.41 | F43: 248194 | G43: 0 | H43: 248194 | I43: ='App.2-BA_Fixed Asset Cont'!E648 -> 0 | J43: 32 | K43: 0.03125 | L43: 50 | M43: 0.02 | N43: 1100.887813 | O43: 4963.88 | P43: 0 | Q43: 6064.767813 | R43: ='App.2-BA_Fixed Asset Cont'!J648 -> 6079.59 | S43: 14.8221875
A44: 1820 | B44: Sub Stations - Rigid Busbars | C44: 17731.18 | D44: 0 | E44: =C44-D44 -> 17731.18 | G44: 0 | H44: =F44-G44 -> 0 | I44: ='App.2-BA_Fixed Asset Cont'!E649 -> 0 | J44: 41 | K44: =IF(J44=0,0,1/J44) -> 0.0243902439 | L44: 55 | M44: =IF(L44=0,0,1/L44) -> 0.01818181818 | N44: =IF(J44=0,0,+E44/J44) -> 432.4678049 | O44: =IF(L44=0,0,+H44/L44) -> 0 | P44: =IF(L44=0,0,+(I44*0.5)/L44) -> 0 | Q44: =IF(ISERROR(+N44+O44+P44), 0, +N44+O44+P44) -> 432.4678049 | R44: ='App.2-BA_Fixed Asset Cont'!J649 -> 422.67 | S44: =IF(ISERROR(+R44-Q44), 0, +R44-Q44) -> -9.797804878
A45: 1820 | B45: Sub Stations - Steel Structure | C45: 17614.21 | D45: 0 | E45: 17614.21 | F45: 43889 | G45: 0 | H45: 43889 | I45: ='App.2-BA_Fixed Asset Cont'!E650 -> 0 | J45: 34.5 | K45: 0.02898550725 | L45: 50 | M45: 0.02 | N45: 510.5568116 | O45: 877.78 | P45: 0 | Q45: 1388.336812 | R45: ='App.2-BA_Fixed Asset Cont'!J650 -> 1386.02 | S45: -2.316811594
A46: 1820 | B46: Sub Stations - Fence | C46: 13630.57 | D46: 0 | E46: 13630.57 | F46: 51712 | H46: 51712 | I46: ='App.2-BA_Fixed Asset Cont'!E651 -> 0 | J46: 15 | K46: 0.06666666667 | L46: 20 | M46: 0.05 | N46: 908.7046667 | O46: 2585.6 | P46: 0 | Q46: 3494.304667 | R46: ='App.2-BA_Fixed Asset Cont'!J651 -> 3229.9 | S46: -264.4046667
A47: 1825 | B47: Storage Battery Equipment | C47: ='App.2-BA_Fixed Asset Cont'!D652 -> 0 | D47: 0 | E47: 0 | G47: 0 | H47: 0 | I47: ='App.2-BA_Fixed Asset Cont'!E652 -> 0 | J47: 0 | K47: 0 | L47: 0 | M47: 0 | N47: 0 | O47: 0 | P47: 0 | Q47: 0 | R47: ='App.2-BA_Fixed Asset Cont'!J652 -> 0 | S47: 0
A48: 1830 | B48: Poles Towers & Fixtures - Wood | C48: 1816106.12 | D48: 2791 | E48: 1813315.12 | F48: =148064.31+75282.93+77794 -> 301141.24 | G48: 0 | H48: 301141.24 | I48: ='App.2-BA_Fixed Asset Cont'!E653 -> 226512.34 | J48: 37 | K48: 0.02702702703 | L48: 45 | M48: 0.02222222222 | N48: 49008.51676 | O48: 6692.027556 | P48: 2516.803778 | Q48: 58217.34809 | R48: ='App.2-BA_Fixed Asset Cont'!J653 -> 56968.73 | S48: -1248.61809
A49: 1830 | B49: Poles Towers & Fixtures - Concrete | C49: 167724.76 | D49: 4438 | E49: 163286.76 | G49: 0 | H49: 0 | I49: ='App.2-BA_Fixed Asset Cont'!E654 -> 0 | J49: 48 | K49: 0.02083333333 | L49: 60 | M49: 0.01666666667 | N49: 3401.8075 | O49: 0 | P49: 0 | Q49: 3401.8075 | R49: ='App.2-BA_Fixed Asset Cont'!J654 -> 2993.87 | S49: -407.9375
A50: 1830 | B50: Poles Towers & Fixtures - Steel | C50: 2521.46 | D50: 0 | E50: 2521.46 | H50: 0 | I50: ='App.2-BA_Fixed Asset Cont'!E655 -> 0 | J50: 50 | K50: 0.02 | L50: 60 | M50: 0.01666666667 | N50: 50.4292 | O50: 0 | P50: 0 | Q50: 50.4292 | R50: ='App.2-BA_Fixed Asset Cont'!J655 -> 47.57 | S50: -2.8592
A51: 1830 | B51: Poles Towers & Fixtures - Switches | C51: 0 | D51: 0 | E51: 0 | F51: =1127.36+18750.78 -> 19878.14 | G51: 0 | H51: 19878.14 | I51: ='App.2-BA_Fixed Asset Cont'!E656 -> 22041.37 | J51: 45 | K51: 0.02222222222 | L51: 45 | M51: 0.02222222222 | N51: 0 | O51: 441.7364444 | P51: 244.9041111 | Q51: 686.6405556 | R51: ='App.2-BA_Fixed Asset Cont'!J656 -> 686.62 | S51: -0.02055555556
A52: 1835 | B52: O/H Conductors & Devices - Conductors | C52: 454673.42 | D52: 719 | E52: 453954.42 | F52: =80009.56+51847.17+8348 -> 140204.73 | G52: 0 | H52: 140204.73 | I52: ='App.2-BA_Fixed Asset Cont'!E657 -> 128279.81 | J52: 50 | K52: 0.02 | L52: 60 | M52: 0.01666666667 | N52: 9079.0884 | O52: 2336.7455 | P52: 1068.998417 | Q52: 12484.83232 | R52: ='App.2-BA_Fixed Asset Cont'!J657 -> 12304.07 | S52: -180.7623167
A53: 1835 | B53: O/H Conductors & Devices - Line Switch | C53: 4657.66 | D53: 0 | E53: 4657.66 | G53: 0 | H53: 0 | I53: ='App.2-BA_Fixed Asset Cont'!E658 -> 0 | J53: 45 | K53: 0.02222222222 | L53: 45 | M53: 0.02222222222 | N53: 103.5035556 | O53: 0 | P53: 0 | Q53: 103.5035556 | R53: ='App.2-BA_Fixed Asset Cont'!J658 -> 104.45 | S53: 0.9464444444
A54: 1835 | B54: O/H Conductors & Devices - Reclosers | C54: 0 | D54: 0 | E54: 0 | F54: 304704 | G54: 0 | H54: 304704 | I54: ='App.2-BA_Fixed Asset Cont'!E659 -> 0 | J54: 40 | K54: 0.025 | L54: 40 | M54: 0.025 | N54: 0 | O54: 7617.6 | P54: 0 | Q54: 7617.6 | R54: ='App.2-BA_Fixed Asset Cont'!J659 -> 7914.4 | S54: 296.8
A55: 1840 | B55: U/G Conduit-Concret encased duct banks | C55: ='App.2-BA_Fixed Asset Cont'!D660 -> 0 | D55: 0 | E55: 0 | G55: 0 | H55: 0 | I55: ='App.2-BA_Fixed Asset Cont'!E660 -> 0 | J55: 55 | K55: 0.01818181818 | L55: 55 | M55: 0.01818181818 | N55: 0 | O55: 0 | P55: 0 | Q55: 0 | R55: ='App.2-BA_Fixed Asset Cont'!J660 -> 0 | S55: 0
A56: 1840 | B56: U/G Conduit-Ducts | C56: ='App.2-BA_Fixed Asset Cont'!D661 -> 861.15 | D56: 0 | E56: 861.15 | G56: 0 | H56: 0 | I56: ='App.2-BA_Fixed Asset Cont'!E661 -> 0 | J56: 50 | K56: 0.02 | L56: 50 | M56: 0.02 | N56: 17.223 | O56: 0 | P56: 0 | Q56: 17.223 | R56: ='App.2-BA_Fixed Asset Cont'!J661 -> 17.8 | S56: 0.577
A57: 1840 | B57: U/G Conduit-UG Foundations | C57: ='App.2-BA_Fixed Asset Cont'!D662 -> 0 | D57: 0 | E57: 0 | G57: 0 | H57: 0 | I57: ='App.2-BA_Fixed Asset Cont'!E662 -> 0 | J57: 55 | K57: 0.01818181818 | L57: 55 | M57: 0.01818181818 | N57: 0 | O57: 0 | P57: 0 | Q57: 0 | R57: ='App.2-BA_Fixed Asset Cont'!J662 -> 0 | S57: 0
A58: 1845 | B58: Underground Conductors & Devices | C58: 323223.67 | D58: 0 | E58: 323223.67 | F58: =61892.62+123029.26+23676 -> 208597.88 | G58: 0 | H58: 208597.88 | I58: ='App.2-BA_Fixed Asset Cont'!E663 -> 0 | J58: 33 | K58: 0.0303030303 | L58: 40 | M58: 0.025 | N58: 9794.656667 | O58: 5214.947 | P58: 0 | Q58: 15009.60367 | R58: ='App.2-BA_Fixed Asset Cont'!J663 -> 14889.18 | S58: -120.4236667
A59: 1850 | B59: Distribution Transformers - Overhead | C59: ='App.2-BA_Fixed Asset Cont'!D664 -> 0 | D59: 0 | E59: 0 | G59: 0 | H59: 0 | I59: ='App.2-BA_Fixed Asset Cont'!E664 -> 0 | J59: 0 | K59: 0 | L59: 0 | M59: 0 | N59: 0 | O59: 0 | P59: 0 | Q59: 0 | R59: ='App.2-BA_Fixed Asset Cont'!J664 -> 0 | S59: 0
A60: 1850 | B60: Distribution Transformers - Inventory | C60: 158534.97 | D60: 0 | E60: 158534.97 | F60: =31531.93+6885 -> 38416.93 | G60: 0 | H60: 38416.93 | I60: ='App.2-BA_Fixed Asset Cont'!E665 -> 681.24 | J60: 40 | K60: 0.025 | L60: 40 | M60: 0.025 | N60: 3963.37425 | O60: 960.42325 | P60: 8.5155 | Q60: 4932.313 | R60: ='App.2-BA_Fixed Asset Cont'!J665 -> 0 | S60: -4932.313
A61: 1850 | B61: Distribution Transformers - UG Pad-Mounted Trans | C61: 437845.94 | D61: 0 | E61: 437845.94 | F61: 31891.59 | G61: 0 | H61: 31891.59 | I61: ='App.2-BA_Fixed Asset Cont'!E666 -> 2912.28 | J61: 31 | K61: 0.03225806452 | L61: 40 | M61: 0.025 | N61: 14124.06258 | O61: 797.28975 | P61: 36.4035 | Q61: 14957.75583 | R61: ='App.2-BA_Fixed Asset Cont'!J666 -> 15555.62 | S61: 597.8641694
A62: 1850 | B62: Distribution Transformers - OH Trans & Voltage Reg | C62: 321955.34 | D62: 0 | E62: 321955.34 | F62: =58123.03+58181.47 -> 116304.5 | G62: 0 | H62: 116304.5 | I62: ='App.2-BA_Fixed Asset Cont'!E667 -> 65142.57 | J62: 31 | K62: 0.03225806452 | L62: 40 | M62: 0.025 | N62: 10385.65613 | O62: 2907.6125 | P62: 814.282125 | Q62: 14107.55075 | R62: ='App.2-BA_Fixed Asset Cont'!J667 -> 15739.43 | S62: 1631.879246
A63: 1855 | B63: Distribution Services - UG Secondary in Duct | C63: 82929.52 | D63: 0 | E63: 82929.52 | F63: =8622.65+68695.25 -> 77317.9 | G63: 0 | H63: 77317.9 | I63: ='App.2-BA_Fixed Asset Cont'!E668 -> 7163.6 | J63: 51 | K63: 0.01960784314 | L63: 60 | M63: 0.01666666667 | N63: 1626.06902 | O63: 1288.631667 | P63: 59.69666667 | Q63: 2974.397353 | R63: ='App.2-BA_Fixed Asset Cont'!J668 -> 2932.28 | S63: -42.11735294
A64: 1855 | B64: Distribution Services - OH Conductors | C64: 102912.87 | D64: 0 | E64: 102912.87 | F64: =20364.33+14654.05 -> 35018.38 | G64: 0 | H64: 35018.38 | I64: ='App.2-BA_Fixed Asset Cont'!E669 -> 27739.59 | J64: 33 | K64: 0.0303030303 | L64: 40 | M64: 0.025 | N64: 3118.571818 | O64: 875.4595 | P64: 346.744875 | Q64: 4340.776193 | R64: ='App.2-BA_Fixed Asset Cont'!J669 -> 4227.64 | S64: -113.1361932
A65: 1860 | B65: Distribution Meters | C65: ='App.2-BA_Fixed Asset Cont'!D670 -> 0 | D65: 0 | E65: 0 | G65: 0 | H65: 0 | I65: ='App.2-BA_Fixed Asset Cont'!E670 -> 0 | J65: 0 | K65: 0 | L65: 0 | M65: 0 | N65: 0 | O65: 0 | P65: 0 | Q65: 0 | R65: ='App.2-BA_Fixed Asset Cont'!J670 -> 0 | S65: 0
A66: 1860 | B66: Distribution Meters - Inventory | C66: 14766 | D66: 0 | E66: 14766 | H66: 0 | I66: ='App.2-BA_Fixed Asset Cont'!E671 -> 0 | J66: 12 | K66: 0.08333333333 | L66: 15 | M66: 0.06666666667 | N66: 1230.5 | O66: 0 | P66: 0 | Q66: 1230.5 | R66: ='App.2-BA_Fixed Asset Cont'!J671 -> 1099.58 | S66: -130.92
A67: 1860 | B67: Distribution Meters - Residential Energy Meters | C67: 0 | D67: 0 | E67: 0 | G67: 0 | H67: 0 | I67: ='App.2-BA_Fixed Asset Cont'!E672 -> 0 | J67: 0 | K67: 0 | L67: 0 | M67: 0 | N67: 0 | O67: 0 | P67: 0 | Q67: 0 | R67: ='App.2-BA_Fixed Asset Cont'!J672 -> 0 | S67: 0
A68: 1860 | B68: Distribution Meters - Ind/Com Energy Meters | C68: 9981.09 | D68: 0 | E68: 9981.09 | G68: 0 | H68: 0 | I68: ='App.2-BA_Fixed Asset Cont'!E673 -> 0 | J68: 20 | K68: 0.05 | L68: 25 | M68: 0.04 | N68: 499.0545 | O68: 0 | P68: 0 | Q68: 499.0545 | R68: ='App.2-BA_Fixed Asset Cont'!J673 -> 493.62 | S68: -5.4345
A69: 1860 | B69: Distribution Meters - Wholesale Energy Meters | C69: 71393.53 | D69: 0 | E69: 71393.53 | G69: 0 | H69: 0 | I69: ='App.2-BA_Fixed Asset Cont'!E674 -> 6903 | J69: 21 | K69: 0.04761904762 | L69: 30 | M69: 0.03333333333 | N69: 3399.691905 | O69: 0 | P69: 115.05 | Q69: 3514.741905 | R69: ='App.2-BA_Fixed Asset Cont'!J674 -> 3463.18 | S69: -51.56190476
A70: 1860 | B70: Distribution Meters - Current & Potential Meters | C70: 1883.81 | D70: 0 | E70: 1883.81 | G70: 0 | H70: 0 | I70: ='App.2-BA_Fixed Asset Cont'!E675 -> 51505.95 | J70: 25 | K70: 0.04 | L70: 25 | M70: 0.04 | N70: 75.3524 | O70: 0 | P70: 1030.119 | Q70: 1105.4714 | R70: ='App.2-BA_Fixed Asset Cont'!J675 -> 1106.77 | S70: 1.2986
A71: 1860 | B71: Distribution Meters-Smart | C71: 426789.89 | D71: 27224 | E71: 399565.89 | F71: =28290.16+23847.08 -> 52137.24 | G71: 18452 | H71: 33685.24 | I71: ='App.2-BA_Fixed Asset Cont'!E676 -> 45531.5 | J71: 9.2 | K71: 0.1086956522 | L71: 15 | M71: 0.06666666667 | N71: 43431.075 | O71: 2245.682667 | P71: 1517.716667 | Q71: 47194.47433 | R71: ='App.2-BA_Fixed Asset Cont'!J676 -> 46561.85 | S71: -632.6243333
A72: 1860 | B72: Distribution Meters-Smart-Repeaters | C72: 239.7 | D72: 0 | E72: 239.7 | G72: 0 | H72: 0 | I72: ='App.2-BA_Fixed Asset Cont'!E677 -> 0 | J72: 5 | K72: 0.2 | L72: 5 | M72: 0.2 | N72: 47.94 | O72: 0 | P72: 0 | Q72: 47.94 | R72: ='App.2-BA_Fixed Asset Cont'!J677 -> 0 | S72: -47.94
A73: 1860 | B73: Distribution Meters-Smart-Data Collectors | C73: 19055.32 | D73: 19055.45 | E73: -0.13 | G73: 0 | H73: 0 | I73: ='App.2-BA_Fixed Asset Cont'!E678 -> 997.16 | J73: 5 | K73: 0.2 | L73: 5 | M73: 0.2 | N73: -0.026 | O73: 0 | P73: 99.716 | Q73: 99.69 | R73: ='App.2-BA_Fixed Asset Cont'!J678 -> 99.72 | S73: 0.03
A74: 1860 | B74: Distribution Meters-Stranded | C74: 0.03999999998 | D74: 0 | E74: 0.03999999998 | G74: 0 | H74: 0 | I74: ='App.2-BA_Fixed Asset Cont'!E679 -> 0 | J74: 25 | K74: 0.04 | L74: 25 | M74: 0.04 | N74: 0.001599999999 | O74: 0 | P74: 0 | Q74: 0.001599999999 | R74: ='App.2-BA_Fixed Asset Cont'!J679 -> 0 | S74: -0.001599999999
A75: 1860 | B75: Distribution Meters-Inventory | C75: 47566 | D75: 0 | E75: 47566 | F75: =-13540.47-3506.78 -> -17047.25 | H75: -17047.25 | I75: ='App.2-BA_Fixed Asset Cont'!E680 -> 1867.04 | J75: 15 | K75: 0.06666666667 | L75: 15 | M75: 0.06666666667 | N75: 3171.066667 | O75: -1136.483333 | P75: 62.23466667 | Q75: 2096.818 | R75: ='App.2-BA_Fixed Asset Cont'!J680 -> 0 | S75: -2096.818
A76: 1905 | B76: Land | C76: ='App.2-BA_Fixed Asset Cont'!D681 -> 0 | D76: 0 | E76: 0 | G76: 0 | H76: 0 | I76: ='App.2-BA_Fixed Asset Cont'!E681 -> 0 | J76: 0 | K76: 0 | L76: 0 | M76: 0 | N76: 0 | O76: 0 | P76: 0 | Q76: 0 | R76: ='App.2-BA_Fixed Asset Cont'!J681 -> 0 | S76: 0
A77: 1908 | B77: Buildings & Fixtures | C77: ='App.2-BA_Fixed Asset Cont'!D682 -> 0 | D77: 0 | E77: 0 | G77: 0 | H77: 0 | I77: ='App.2-BA_Fixed Asset Cont'!E682 -> 0 | J77: 0 | K77: 0 | L77: 0 | M77: 0 | N77: 0 | O77: 0 | P77: 0 | Q77: 0 | R77: ='App.2-BA_Fixed Asset Cont'!J682 -> 0 | S77: 0
A78: 1910 | B78: Leasehold Improvements | C78: ='App.2-BA_Fixed Asset Cont'!D683 -> 0 | D78: 0 | E78: 0 | G78: 0 | H78: 0 | I78: ='App.2-BA_Fixed Asset Cont'!E683 -> 0 | J78: 0 | K78: 0 | L78: 0 | M78: 0 | N78: 0 | O78: 0 | P78: 0 | Q78: 0 | R78: ='App.2-BA_Fixed Asset Cont'!J683 -> 0 | S78: 0
A79: 1915 | B79: Office Furniture & Equipment (10 years) | C79: ='App.2-BA_Fixed Asset Cont'!D684 -> 0 | D79: 0 | E79: 0 | G79: 0 | H79: 0 | I79: ='App.2-BA_Fixed Asset Cont'!E684 -> 0 | J79: 0 | K79: 0 | L79: 0 | M79: 0 | N79: 0 | O79: 0 | P79: 0 | Q79: 0 | R79: ='App.2-BA_Fixed Asset Cont'!J684 -> 0 | S79: 0
A80: 1915 | B80: Office Furniture & Equipment (5 years) | C80: 38169.57 | D80: 0 | E80: 38169.57 | F80: 1229.99 | G80: 0 | H80: 1229.99 | I80: ='App.2-BA_Fixed Asset Cont'!E685 -> 482 | J80: 10 | K80: 0.1 | L80: 10 | M80: 0.1 | N80: 3816.957 | O80: 122.999 | P80: 24.1 | Q80: 3964.056 | R80: ='App.2-BA_Fixed Asset Cont'!J685 -> 3531.28 | S80: -432.776
A81: 1920 | B81: Computer Equipment - Hardware | C81: 148916.23 | D81: 25881 | E81: 123035.23 | F81: =75779.74+18484.39 -> 94264.13 | G81: 2618 | H81: 91646.13 | I81: ='App.2-BA_Fixed Asset Cont'!E686 -> 9573.67 | J81: 4.6 | K81: 0.2173913043 | L81: 5 | M81: 0.2 | N81: 26746.78913 | O81: 18329.226 | P81: 957.367 | Q81: 46033.38213 | R81: ='App.2-BA_Fixed Asset Cont'!J686 -> 43545.98 | S81: -2487.40213
A82: 1920 | B82: Computer Equip.-Hardware(Post Mar. 22/04) | C82: ='App.2-BA_Fixed Asset Cont'!D687 -> 0 | D82: 0 | E82: 0 | G82: 0 | H82: 0 | I82: ='App.2-BA_Fixed Asset Cont'!E687 -> 0 | J82: 0 | K82: 0 | L82: 0 | M82: 0 | N82: 0 | O82: 0 | P82: 0 | Q82: 0 | R82: ='App.2-BA_Fixed Asset Cont'!J687 -> 0 | S82: 0
A83: 1920 | B83: Computer Equip.-Hardware(Post Mar. 19/07) | C83: ='App.2-BA_Fixed Asset Cont'!D688 -> 0 | D83: 0 | E83: 0 | G83: 0 | H83: 0 | I83: ='App.2-BA_Fixed Asset Cont'!E688 -> 0 | J83: 0 | K83: 0 | L83: 0 | M83: 0 | N83: 0 | O83: 0 | P83: 0 | Q83: 0 | R83: ='App.2-BA_Fixed Asset Cont'!J688 -> 0 | S83: 0
A84: 1930 | B84: Transportation Equipment - Trucks and Buckets | C84: 354413.51 | D84: 0 | E84: 354413.51 | G84: 0 | H84: 0 | I84: ='App.2-BA_Fixed Asset Cont'!E689 -> 0 | J84: 10 | K84: 0.1 | L84: 10 | M84: 0.1 | N84: 35441.351 | O84: 0 | P84: 0 | Q84: 35441.351 | R84: ='App.2-BA_Fixed Asset Cont'!J689 -> 37440.71 | S84: 1999.359
A85: 1930 | B85: Transportation Equipment - Trailers | C85: 2477.72 | D85: 0 | E85: 2477.72 | G85: 0 | H85: 0 | I85: ='App.2-BA_Fixed Asset Cont'!E690 -> 0 | J85: 8 | K85: 0.125 | L85: 8 | M85: 0.125 | N85: 309.715 | O85: 0 | P85: 0 | Q85: 309.715 | R85: ='App.2-BA_Fixed Asset Cont'!J690 -> 0 | S85: -309.715
A86: 1930 | B86: Transportation Equipment - Pick-ups/Vans/Cars | C86: 26667.91 | D86: 26668 | E86: -0.09000000003 | F86: 29551.21 | H86: 29551.21 | I86: ='App.2-BA_Fixed Asset Cont'!E691 -> 0 | J86: 5 | K86: 0.2 | L86: 5 | M86: 0.2 | N86: -0.01800000001 | O86: 5910.242 | P86: 0 | Q86: 5910.224 | R86: ='App.2-BA_Fixed Asset Cont'!J691 -> 5336.47 | S86: -573.754
A87: 1935 | B87: Stores Equipment | C87: 1496.77 | D87: 0 | E87: 1496.77 | H87: 0 | I87: ='App.2-BA_Fixed Asset Cont'!E692 -> 0 | J87: 8 | K87: 0.125 | L87: 8 | M87: 0.125 | N87: 187.09625 | O87: 0 | P87: 0 | Q87: 187.09625 | R87: ='App.2-BA_Fixed Asset Cont'!J692 -> 236.01 | S87: 48.91375
A88: 1940 | B88: Tools, Shop & Garage Equipment | C88: 4031.53 | D88: 0 | E88: 4031.53 | F88: =1245+3339.69 -> 4584.69 | H88: 4584.69 | I88: ='App.2-BA_Fixed Asset Cont'!E693 -> 11109.4 | J88: =L88 -> 10 | K88: 0.1 | L88: 10 | M88: 0.1 | N88: 403.153 | O88: 458.469 | P88: 555.47 | Q88: 1417.092 | R88: ='App.2-BA_Fixed Asset Cont'!J693 -> 1478.21 | S88: 61.118
A89: 1945 | B89: Measurement & Testing Equipment | C89: ='App.2-BA_Fixed Asset Cont'!D694 -> 0 | D89: 0 | E89: 0 | H89: 0 | I89: ='App.2-BA_Fixed Asset Cont'!E694 -> 0 | J89: 10 | K89: 0.1 | L89: 10 | M89: 0.1 | N89: 0 | O89: 0 | P89: 0 | Q89: 0 | R89: ='App.2-BA_Fixed Asset Cont'!J694 -> 0 | S89: 0
A90: 1950 | B90: Power Operated Equipment | C90: ='App.2-BA_Fixed Asset Cont'!D695 -> 0 | D90: 0 | E90: 0 | H90: 0 | I90: ='App.2-BA_Fixed Asset Cont'!E695 -> 0 | J90: 0 | K90: 0 | L90: 0 | M90: 0 | N90: 0 | O90: 0 | P90: 0 | Q90: 0 | R90: ='App.2-BA_Fixed Asset Cont'!J695 -> 0 | S90: 0
A91: 1955 | B91: Communications Equipment | C91: 9261.63 | D91: 0 | E91: 9261.63 | H91: 0 | I91: ='App.2-BA_Fixed Asset Cont'!E696 -> 13391.38 | J91: 5 | K91: 0.2 | L91: 5 | M91: 0.2 | N91: 1852.326 | O91: 0 | P91: 1339.138 | Q91: 3191.464 | R91: ='App.2-BA_Fixed Asset Cont'!J696 -> 2826.74 | S91: -364.724
A92: 1955 | B92: Communication Equipment (Smart Meters) | C92: ='App.2-BA_Fixed Asset Cont'!D697 -> 0 | D92: 0 | E92: 0 | H92: 0 | I92: ='App.2-BA_Fixed Asset Cont'!E697 -> 0 | J92: 0 | K92: 0 | L92: 0 | M92: 0 | N92: 0 | O92: 0 | P92: 0 | Q92: 0 | R92: ='App.2-BA_Fixed Asset Cont'!J697 -> 0 | S92: 0
A93: 1960 | B93: Miscellaneous Equipment | C93: ='App.2-BA_Fixed Asset Cont'!D698 -> 0 | D93: 0 | E93: 0 | H93: 0 | I93: ='App.2-BA_Fixed Asset Cont'!E698 -> 0 | J93: 0 | K93: 0 | L93: 0 | M93: 0 | N93: 0 | O93: 0 | P93: 0 | Q93: 0 | R93: ='App.2-BA_Fixed Asset Cont'!J698 -> 0 | S93: 0
A94: 1970 | B94: Load Management Controls Customer Premises | C94: ='App.2-BA_Fixed Asset Cont'!D699 -> 0 | D94: 0 | E94: 0 | H94: 0 | I94: ='App.2-BA_Fixed Asset Cont'!E699 -> 0 | J94: 0 | K94: 0 | L94: 0 | M94: 0 | N94: 0 | O94: 0 | P94: 0 | Q94: 0 | R94: ='App.2-BA_Fixed Asset Cont'!J699 -> 0 | S94: 0
A95: 1975 | B95: Load Management Controls Utility Premises | C95: ='App.2-BA_Fixed Asset Cont'!D700 -> 0 | D95: 0 | E95: 0 | H95: 0 | I95: ='App.2-BA_Fixed Asset Cont'!E700 -> 0 | J95: 0 | K95: 0 | L95: 0 | M95: 0 | N95: 0 | O95: 0 | P95: 0 | Q95: 0 | R95: ='App.2-BA_Fixed Asset Cont'!J700 -> 0 | S95: 0
A96: 1980 | B96: System Supervisor Equipment | C96: 87770.11 | D96: 0 | E96: 87770.11 | F96: 186917.74 | H96: 186917.74 | I96: ='App.2-BA_Fixed Asset Cont'!E701 -> 0 | J96: 6.5 | K96: 0.1538461538 | L96: 10 | M96: 0.1 | N96: 13503.09385 | O96: 18691.774 | P96: 0 | Q96: 32194.86785 | R96: ='App.2-BA_Fixed Asset Cont'!J701 -> 32719.4 | S96: 524.5321538
A97: 1985 | B97: Miscellaneous Fixed Assets | C97: ='App.2-BA_Fixed Asset Cont'!D702 -> 0 | D97: 0 | E97: 0 | H97: 0 | I97: ='App.2-BA_Fixed Asset Cont'!E702 -> 0 | J97: 0 | K97: 0 | L97: 0 | M97: 0 | N97: 0 | O97: 0 | P97: 0 | Q97: 0 | R97: ='App.2-BA_Fixed Asset Cont'!J702 -> 0 | S97: 0
A98: 1990 | B98: Other Tangible Property | C98: ='App.2-BA_Fixed Asset Cont'!D703 -> 0 | E98: 0 | H98: 0 | I98: ='App.2-BA_Fixed Asset Cont'!E703 -> 0 | J98: 0 | K98: 0 | L98: 0 | M98: 0 | N98: 0 | O98: 0 | P98: 0 | Q98: 0 | R98: ='App.2-BA_Fixed Asset Cont'!J703 -> 0 | S98: 0
A99: 1995 | B99: Contributions & Grants | C99: ='App.2-BA_Fixed Asset Cont'!D704 -> 0 | E99: 0 | H99: 0 | I99: ='App.2-BA_Fixed Asset Cont'!E704 -> 0 | J99: 0 | K99: 0 | L99: 0 | M99: 0 | N99: 0 | O99: 0 | P99: 0 | Q99: 0 | R99: ='App.2-BA_Fixed Asset Cont'!J704 -> 0 | S99: 0
A100: 2440 | B100: Deferred Revenue5 | C100: -330563 | E100: -330563 | F100: =11565-113297 -> -101732 | H100: -101732 | I100: ='App.2-BA_Fixed Asset Cont'!E705 -> -11555 | J100: 34.5 | K100: 0.02898550725 | L100: 45 | M100: 0.02222222222 | N100: -9581.536232 | O100: -2260.711111 | P100: -128.3888889 | Q100: -11970.63623 | R100: ='App.2-BA_Fixed Asset Cont'!J705 -> -11709.67 | S100: 260.9662319
A101: 2005 | B101: Property Under Finance Lease7 | C101: ='App.2-BA_Fixed Asset Cont'!D706 -> 0 | E101: 0 | H101: 0 | K101: 0 | M101: 0 | N101: 0 | O101: 0 | P101: 0 | Q101: 0 | S101: 0
E102: 0 | H102: 0 | K102: 0 | M102: 0 | N102: 0 | O102: 0 | P102: 0 | Q102: 0 | S102: 0
E103: 0 | H103: 0 | K103: 0 | M103: 0 | N103: 0 | O103: 0 | P103: 0 | Q103: 0 | S103: 0
E104: 0 | H104: 0 | K104: 0 | M104: 0 | N104: 0 | O104: 0 | P104: 0 | Q104: 0 | S104: 0
E105: 0 | H105: 0 | K105: 0 | M105: 0 | N105: 0 | O105: 0 | P105: 0 | Q105: 0 | S105: 0
E106: 0 | H106: 0 | K106: 0 | M106: 0 | N106: 0 | O106: 0 | P106: 0 | Q106: 0 | S106: 0
E107: 0 | H107: 0 | K107: 0 | M107: 0 | N107: 0 | O107: 0 | P107: 0 | Q107: 0 | S107: 0
E108: =C108-D108 -> 0 | H108: =F108-G108 -> 0 | K108: =IF(J108=0,0,1/J108) -> 0 | M108: =IF(L108=0,0,1/L108) -> 0 | N108: =IF(J108=0,0,+E108/J108) -> 0 | O108: 0 | P108: 0 | Q108: 0 | S108: =IF(ISERROR(+R108-Q108), 0, +R108-Q108) -> 0
E109: 0 | H109: 0 | K109: 0 | M109: 0 | N109: 0 | O109: =IF(L109=0,0,+H109/L109) -> 0 | P109: =IF(L109=0,0,+(I109*0.5)/L109) -> 0 | Q109: =IF(ISERROR(+N109+O109+P109), 0, +N109+O109+P109) -> 0 | S109: 0
B110: Total | C110: =SUM(C23:C109) -> 5802179.21 | D110: =SUM(D23:D109) -> 319691.45 | E110: 5482487.76 | F110: 2852335.53 | G110: 21070 | H110: 2831265.53 | I110: 1533989.72 | N110: =SUM(N23:N109) -> 265780.1431 | O110: 109868.2958 | P110: 34694.26417 | Q110: 410342.703 | R110: 401060.84 | S110: -9281.863008
Y112: 2017
A113: 2017 | C113: Book Values | J113: Service Lives | N113: Depreciation Expense | Y113: 2018
A114: Account | B114: Description | C114: Opening Net Book Value of Existing Assets as at Date of Policy Change (Jan. 1) 1 | D114: Less Fully Depreciated 7 | E114: Net Amount of Existing Assets Before Policy Change to be Depreciated | F114: Opening Gross Book Value of Assets Acquired After Policy Change 2 | G114: Less Fully Depreciated 8 | H114: Net Amount of Assets Acquired After Policy Change to be Depreciated | I114: Current Year Additions | J114: Average Remaining Life of Assets Existing Before Policy Change 3 | K114: Depreciation Rate Assets Acquired After Policy Change | L114: Life of Assets Acquired After Policy Change 4 | M114: Depreciation Rate on New Additions | N114: Depreciation Expense on Assets Existing Before Policy Change | O114: Depreciation Expense on Assets Acquired After Policy Change | P114: Depreciation Expense on Current Year Additions 5 | Q114: Total Current Year Depreciation Expense | R114: Depreciation Expense per Appendix 2-BA Fixed Assets, Column J | S114: Variance 6
C115: a | D115: b | E115: c = a-b | F115: d | G115: e | H115: f = d- e | I115: g | J115: h | K115: i = 1/h | L115: j | M115: k = 1/j | N115: l = c/h | O115: m = f/j | P115: n = g*0.5/j | Q115: o = l+m+n | R115: p | S115: q = p-o
A116: 1609 | B116: Capital Contributions Paid | C116: 0 | D116: =D23+G23 -> 0 | E116: =C116-D116 -> 0 | F116: =F23+I23 -> 838765.15 | H116: =F116-G116 -> 838765.15 | I116: ='App.2-BA_Fixed Asset Cont'!E524 -> 0 | J116: =L116 -> 25 | K116: =IF(J116=0,0,1/J116) -> 0.04 | L116: 25 | M116: =IF(L116=0,0,1/L116) -> 0.04 | N116: =IF(J116=0,0,+E116/J116) -> 0 | O116: =IF(L116=0,0,+H116/L116) -> 33550.606 | P116: =IF(L116=0,0,+(I116*0.5)/L116) -> 0 | Q116: =IF(ISERROR(+N116+O116+P116), 0, +N116+O116+P116) -> 33550.606 | R116: ='App.2-BA_Fixed Asset Cont'!J524 -> 33550.61 | S116: =IF(ISERROR(+R116-Q116), 0, +R116-Q116) -> 0.004000000001
A117: 1611 | B117: Computer Software (Formally known as Account 1925) | C117: 236661.27 | D117: =D24+G24 -> 211456 | E117: =C117-D117 -> 25205.27 | F117: =F24+I24 -> 101316.16 | H117: =F117-G117 -> 101316.16 | I117: ='App.2-BA_Fixed Asset Cont'!E525 -> 30801.07 | J117: 2.7 | K117: =IF(J117=0,0,1/J117) -> 0.3703703704 | L117: 5 | M117: =IF(L117=0,0,1/L117) -> 0.2 | N117: =IF(J117=0,0,+E117/J117) -> 9335.285185 | O117: =IF(L117=0,0,+H117/L117) -> 20263.232 | P117: =IF(L117=0,0,+(I117*0.5)/L117) -> 3080.107 | Q117: =IF(ISERROR(+N117+O117+P117), 0, +N117+O117+P117) -> 32678.62419 | R117: ='App.2-BA_Fixed Asset Cont'!J525 -> 32348.57 | S117: =IF(ISERROR(+R117-Q117), 0, +R117-Q117) -> -330.0541852
A118: 1612 | B118: Land Rights (Formally known as Account 1906) | C118: 19239.55 | D118: 0 | E118: =C118-D118 -> 19239.55 | F118: =F25+I25 -> 9411.1 | H118: =F118-G118 -> 9411.1 | I118: ='App.2-BA_Fixed Asset Cont'!E526 -> 0 | J118: =L118 -> 0 | K118: =IF(J118=0,0,1/J118) -> 0 | L118: 0 | M118: =IF(L118=0,0,1/L118) -> 0 | N118: =IF(J118=0,0,+E118/J118) -> 0 | O118: =IF(L118=0,0,+H118/L118) -> 0 | P118: =IF(L118=0,0,+(I118*0.5)/L118) -> 0 | Q118: =IF(ISERROR(+N118+O118+P118), 0, +N118+O118+P118) -> 0 | R118: ='App.2-BA_Fixed Asset Cont'!J526 -> 0 | S118: =IF(ISERROR(+R118-Q118), 0, +R118-Q118) -> 0
A119: 1805 | B119: Land | C119: 41987.65 | D119: 0 | E119: 41987.65 | F119: 0 | H119: 0 | I119: ='App.2-BA_Fixed Asset Cont'!E527 -> 0 | J119: 0 | K119: 0 | L119: 0 | M119: 0 | N119: 0 | O119: =IF(L119=0,0,+H119/L119) -> 0 | P119: 0 | Q119: 0 | R119: ='App.2-BA_Fixed Asset Cont'!J527 -> 0 | S119: 0
A120: 1808 | B120: Buildings & Fixtures - MF Building | C120: 176971.77 | D120: 0 | E120: 176971.77 | F120: 35510.27 | H120: 35510.27 | I120: ='App.2-BA_Fixed Asset Cont'!E528 -> 3350 | J120: 34.5 | K120: 0.02898550725 | L120: 60 | M120: 0.01666666667 | N120: 5129.616522 | O120: 591.8378333 | P120: 27.91666667 | Q120: 5749.371022 | R120: ='App.2-BA_Fixed Asset Cont'!J528 -> 4455.18 | S120: -1294.191022
A121: 1808 | B121: Buildings & Fixtures - MF Fence/Parking/Roof | C121: 34681.59 | D121: 0 | E121: 34681.59 | F121: 4250 | H121: 4250 | I121: ='App.2-BA_Fixed Asset Cont'!E529 -> 6135 | J121: 20.5 | K121: 0.0487804878 | L121: 25 | M121: 0.04 | N121: 1691.784878 | O121: 170 | P121: 122.7 | Q121: 1984.484878 | R121: ='App.2-BA_Fixed Asset Cont'!J529 -> 1987.46 | S121: 2.975121951
A122: 1808 | B122: Buildings & Fixtures - MF Fixture/Flooring | C122: 15884.17 | D122: 0 | E122: 15884.17 | F122: 36701.02 | H122: 36701.02 | I122: ='App.2-BA_Fixed Asset Cont'!E530 -> 0 | J122: 8.5 | K122: 0.1176470588 | L122: 15 | M122: 0.06666666667 | N122: 1868.725882 | O122: 2446.734667 | P122: 0 | Q122: 4315.460549 | R122: ='App.2-BA_Fixed Asset Cont'!J530 -> 4299.35 | S122: -16.11054902
A123: 1808 | B123: Buildings & Fixtures - MF HVAC/Plumbing/Comm | C123: 17683.32 | D123: 0 | E123: 17683.32 | F123: 3597 | H123: 3597 | I123: ='App.2-BA_Fixed Asset Cont'!E531 -> 20192.1 | J123: 11.6 | K123: 0.08620689655 | L123: 15 | M123: 0.06666666667 | N123: 1524.424138 | O123: 239.8 | P123: 673.07 | Q123: 2437.294138 | R123: ='App.2-BA_Fixed Asset Cont'!J531 -> 2428.94 | S123: -8.354137931
A124: 1808 | B124: Buildings & Fixtures - AR Building | C124: 3421.25 | D124: 0 | E124: =C124-D124 -> 3421.25 | F124: 0 | H124: =F124-G124 -> 0 | I124: ='App.2-BA_Fixed Asset Cont'!E532 -> 0 | J124: 45.5 | K124: =IF(J124=0,0,1/J124) -> 0.02197802198 | L124: 60 | M124: =IF(L124=0,0,1/L124) -> 0.01666666667 | N124: =IF(J124=0,0,+E124/J124) -> 75.19230769 | O124: =IF(L124=0,0,+H124/L124) -> 0 | P124: =IF(L124=0,0,+(I124*0.5)/L124) -> 0 | Q124: =IF(ISERROR(+N124+O124+P124), 0, +N124+O124+P124) -> 75.19230769 | R124: ='App.2-BA_Fixed Asset Cont'!J532 -> 57.67 | S124: =IF(ISERROR(+R124-Q124), 0, +R124-Q124) -> -17.52230769
A125: 1808 | B125: Buildings & Fixtures - AR Fence/Parking/Roof | C125: 10881.93 | D125: 0 | E125: 10881.93 | F125: 0 | H125: 0 | I125: ='App.2-BA_Fixed Asset Cont'!E533 -> 0 | J125: 21 | K125: 0.04761904762 | L125: 25 | M125: 0.04 | N125: 518.1871429 | O125: 0 | P125: 0 | Q125: 518.1871429 | R125: ='App.2-BA_Fixed Asset Cont'!J533 -> 518.19 | S125: 0.002857142857
A126: 1808 | B126: Buildings & Fixtures - E.S. Shed Building | C126: 32500 | D126: 0 | E126: 32500 | F126: 0 | H126: 0 | I126: ='App.2-BA_Fixed Asset Cont'!E534 -> 0 | J126: 49.5 | K126: 0.0202020202 | L126: 60 | M126: 0.01666666667 | N126: 656.5656566 | O126: 0 | P126: 0 | Q126: 656.5656566 | R126: ='App.2-BA_Fixed Asset Cont'!J534 -> 615.84 | S126: -40.72565657
A127: 1808 | B127: Buildings & Fixtures - E.S. Shed Fixture/Flooring | C127: 2169.1 | D127: 0 | E127: 2169.1 | F127: 0 | H127: 0 | I127: ='App.2-BA_Fixed Asset Cont'!E535 -> 0 | J127: 4 | K127: 0.25 | L127: 15 | M127: 0.06666666667 | N127: 542.275 | O127: 0 | P127: 0 | Q127: 542.275 | R127: ='App.2-BA_Fixed Asset Cont'!J535 -> 542.28 | S127: 0.005
A128: 1808 | B128: Buildings & Fixtures - E.S. Shed Fence/Parking/Roof | C128: 1067.21 | D128: 0 | E128: 1067.21 | F128: 0 | H128: 0 | I128: ='App.2-BA_Fixed Asset Cont'!E536 -> 0 | J128: 15 | K128: 0.06666666667 | L128: 25 | M128: 0.04 | N128: 71.14733333 | O128: 0 | P128: 0 | Q128: 71.14733333 | R128: ='App.2-BA_Fixed Asset Cont'!J536 -> 71.15 | S128: 0.002666666667
A129: 1808 | B129: Buildings & Fixtures - W.S. Shed | C129: 0 | D129: 0 | E129: 0 | F129: 0 | H129: 0 | I129: ='App.2-BA_Fixed Asset Cont'!E537 -> 0 | J129: 60 | K129: 0.01666666667 | L129: 60 | M129: 0.01666666667 | N129: 0 | O129: 0 | P129: 0 | Q129: 0 | R129: ='App.2-BA_Fixed Asset Cont'!J537 -> 0 | S129: 0
A130: 1810 | B130: Leasehold Improvements | C130: 0 | D130: 0 | E130: 0 | F130: 0 | H130: 0 | I130: ='App.2-BA_Fixed Asset Cont'!E538 -> 0 | J130: 0 | K130: 0 | L130: 0 | M130: 0 | N130: 0 | O130: 0 | P130: 0 | Q130: 0 | R130: ='App.2-BA_Fixed Asset Cont'!J538 -> 0 | S130: 0
A131: 1815 | B131: Transformer Station Equipment >50 kV | C131: 0 | D131: 0 | E131: 0 | F131: 0 | H131: 0 | I131: ='App.2-BA_Fixed Asset Cont'!E539 -> 0 | J131: 0 | K131: 0 | L131: 0 | M131: 0 | N131: 0 | O131: 0 | P131: 0 | Q131: 0 | R131: ='App.2-BA_Fixed Asset Cont'!J539 -> 0 | S131: 0
A132: 1820 | B132: Sub Stations Power - Overall | C132: 166846.52 | D132: 1459 | E132: 165387.52 | F132: 598275.58 | H132: 598275.58 | I132: ='App.2-BA_Fixed Asset Cont'!E540 -> 6466.53 | J132: 33 | K132: 0.0303030303 | L132: 45 | M132: 0.02222222222 | N132: 5011.74303 | O132: 13295.01289 | P132: 71.85033333 | Q132: 18378.60625 | R132: ='App.2-BA_Fixed Asset Cont'!J540 -> 18368.08 | S132: -10.52625253
A133: 1820 | B133: Sub Stations Power - Bushing | C133: 10876.12 | D133: 0 | E133: 10876.12 | F133: 16593.03 | H133: 16593.03 | I133: ='App.2-BA_Fixed Asset Cont'!E541 -> 0 | J133: 16 | K133: 0.0625 | L133: 20 | M133: 0.05 | N133: 679.7575 | O133: 829.6515 | P133: 0 | Q133: 1509.409 | R133: ='App.2-BA_Fixed Asset Cont'!J541 -> 1509.41 | S133: 0.001
A134: 1820 | B134: Sub Stations Power - Tap Changer | C134: 32005.78 | D134: 0 | E134: 32005.78 | F134: 0 | H134: 0 | I134: ='App.2-BA_Fixed Asset Cont'!E542 -> 0 | J134: 15.5 | K134: 0.06451612903 | L134: 30 | M134: 0.03333333333 | N134: 2064.889032 | O134: 0 | P134: 0 | Q134: 2064.889032 | R134: ='App.2-BA_Fixed Asset Cont'!J542 -> 2096.81 | S134: 31.92096774
A135: 1820 | B135: Sub Stations Switchgear - Overall | C135: 106833.37 | D135: 0 | E135: 106833.37 | F135: 264451 | H135: 264451 | I135: ='App.2-BA_Fixed Asset Cont'!E543 -> 0 | J135: 24 | K135: 0.04166666667 | L135: 40 | M135: 0.025 | N135: 4451.390417 | O135: 6611.275 | P135: 0 | Q135: 11062.66542 | R135: ='App.2-BA_Fixed Asset Cont'!J543 -> 11015.14 | S135: -47.52541667
A136: 1820 | B136: Sub Stations - Station Switch | C136: 35228.41 | D136: 0 | E136: 35228.41 | F136: 248194 | H136: 248194 | I136: ='App.2-BA_Fixed Asset Cont'!E544 -> 0 | J136: 32 | K136: 0.03125 | L136: 50 | M136: 0.02 | N136: 1100.887813 | O136: 4963.88 | P136: 0 | Q136: 6064.767813 | R136: ='App.2-BA_Fixed Asset Cont'!J544 -> 6079.59 | S136: 14.8221875
A137: 1820 | B137: Sub Stations - Rigid Busbars | C137: 17731.18 | D137: 0 | E137: 17731.18 | F137: 0 | H137: 0 | I137: ='App.2-BA_Fixed Asset Cont'!E545 -> 0 | J137: 41 | K137: 0.0243902439 | L137: 55 | M137: 0.01818181818 | N137: 432.4678049 | O137: 0 | P137: 0 | Q137: 432.4678049 | R137: ='App.2-BA_Fixed Asset Cont'!J545 -> 422.67 | S137: -9.797804878
A138: 1820 | B138: Sub Stations - Steel Structure | C138: 17614.21 | D138: 0 | E138: 17614.21 | F138: 43889 | H138: 43889 | I138: ='App.2-BA_Fixed Asset Cont'!E546 -> 0 | J138: 34.5 | K138: 0.02898550725 | L138: 50 | M138: 0.02 | N138: 510.5568116 | O138: 877.78 | P138: 0 | Q138: 1388.336812 | R138: ='App.2-BA_Fixed Asset Cont'!J546 -> 1386.02 | S138: -2.316811594
A139: 1820 | B139: Sub Stations - Fence | C139: 13630.57 | D139: 0 | E139: 13630.57 | F139: 51712 | H139: 51712 | I139: ='App.2-BA_Fixed Asset Cont'!E547 -> 0 | J139: 15 | K139: 0.06666666667 | L139: 25 | M139: 0.04 | N139: 908.7046667 | O139: 2068.48 | P139: 0 | Q139: 2977.184667 | R139: ='App.2-BA_Fixed Asset Cont'!J547 -> 2732.49 | S139: -244.6946667
A140: 1825 | B140: Storage Battery Equipment | C140: 0 | D140: 0 | E140: 0 | F140: 0 | H140: 0 | I140: ='App.2-BA_Fixed Asset Cont'!E548 -> 0 | J140: 0 | K140: 0 | L140: 0 | M140: 0 | N140: 0 | O140: 0 | P140: 0 | Q140: 0 | R140: ='App.2-BA_Fixed Asset Cont'!J548 -> 0 | S140: 0
A141: 1830 | B141: Poles Towers & Fixtures - Wood | C141: 1816106.12 | D141: 2791 | E141: 1813315.12 | F141: 527653.58 | H141: 527653.58 | I141: ='App.2-BA_Fixed Asset Cont'!E549 -> 174041.73 | J141: 37 | K141: 0.02702702703 | L141: 45 | M141: 0.02222222222 | N141: 49008.51676 | O141: 11725.63511 | P141: 1933.797 | Q141: 62667.94887 | R141: ='App.2-BA_Fixed Asset Cont'!J549 -> 61314.53 | S141: -1353.418868
A142: 1830 | B142: Poles Towers & Fixtures - Concrete | C142: 167724.76 | D142: 4438 | E142: 163286.76 | F142: 0 | H142: 0 | I142: ='App.2-BA_Fixed Asset Cont'!E550 -> 0 | J142: 48 | K142: 0.02083333333 | L142: 60 | M142: 0.01666666667 | N142: 3401.8075 | O142: 0 | P142: 0 | Q142: 3401.8075 | R142: ='App.2-BA_Fixed Asset Cont'!J550 -> 2993.87 | S142: -407.9375
A143: 1830 | B143: Poles Towers & Fixtures - Steel | C143: 2521.46 | D143: 0 | E143: 2521.46 | F143: 0 | H143: 0 | I143: ='App.2-BA_Fixed Asset Cont'!E551 -> 0 | J143: 50 | K143: 0.02 | L143: 60 | M143: 0.01666666667 | N143: 50.4292 | O143: 0 | P143: 0 | Q143: 50.4292 | R143: ='App.2-BA_Fixed Asset Cont'!J551 -> 47.57 | S143: -2.8592
A144: 1830 | B144: Poles Towers & Fixtures - Switches | C144: 0 | D144: 0 | E144: 0 | F144: 41919.51 | H144: 41919.51 | I144: ='App.2-BA_Fixed Asset Cont'!E552 -> 0 | J144: 45 | K144: 0.02222222222 | L144: 45 | M144: 0.02222222222 | N144: 0 | O144: 931.5446667 | P144: 0 | Q144: 931.5446667 | R144: ='App.2-BA_Fixed Asset Cont'!J552 -> 931.53 | S144: -0.01466666667
A145: 1835 | B145: O/H Conductors & Devices - Conductors | C145: 454673.42 | D145: 719 | E145: 453954.42 | F145: 268484.54 | H145: 268484.54 | I145: ='App.2-BA_Fixed Asset Cont'!E553 -> 82813.34 | J145: 50 | K145: 0.02 | L145: 60 | M145: 0.01666666667 | N145: 9079.0884 | O145: 4474.742333 | P145: 690.1111667 | Q145: 14243.9419 | R145: ='App.2-BA_Fixed Asset Cont'!J553 -> 14098.47 | S145: -145.4719
A146: 1835 | B146: O/H Conductors & Devices - Line Switch | C146: 4657.66 | D146: 0 | E146: 4657.66 | F146: 0 | H146: 0 | I146: ='App.2-BA_Fixed Asset Cont'!E554 -> 0 | J146: 45 | K146: 0.02222222222 | L146: 45 | M146: 0.02222222222 | N146: 103.5035556 | O146: 0 | P146: 0 | Q146: 103.5035556 | R146: ='App.2-BA_Fixed Asset Cont'!J554 -> 104.45 | S146: 0.9464444444
A147: 1835 | B147: O/H Conductors & Devices - Reclosers | C147: 0 | D147: 0 | E147: 0 | F147: 304704 | H147: 304704 | I147: ='App.2-BA_Fixed Asset Cont'!E555 -> 0 | J147: 40 | K147: 0.025 | L147: 40 | M147: 0.025 | N147: 0 | O147: 7617.6 | P147: 0 | Q147: 7617.6 | R147: ='App.2-BA_Fixed Asset Cont'!J555 -> 7914.4 | S147: 296.8
A148: 1840 | B148: U/G Conduit-Concret encased duct banks | C148: 0 | D148: 0 | E148: 0 | F148: 0 | H148: 0 | I148: ='App.2-BA_Fixed Asset Cont'!E556 -> 0 | J148: 55 | K148: 0.01818181818 | L148: 55 | M148: 0.01818181818 | N148: 0 | O148: 0 | P148: 0 | Q148: 0 | R148: ='App.2-BA_Fixed Asset Cont'!J556 -> 0 | S148: 0
A149: 1840 | B149: U/G Conduit-Ducts | C149: 861.15 | D149: 0 | E149: 861.15 | F149: 0 | H149: 0 | I149: ='App.2-BA_Fixed Asset Cont'!E557 -> 0 | J149: 50 | K149: 0.02 | L149: 50 | M149: 0.02 | N149: 17.223 | O149: 0 | P149: 0 | Q149: 17.223 | R149: ='App.2-BA_Fixed Asset Cont'!J557 -> 17.8 | S149: 0.577
A150: 1840 | B150: U/G Conduit-UG Foundations | C150: 0 | D150: 0 | E150: 0 | F150: 0 | H150: 0 | I150: ='App.2-BA_Fixed Asset Cont'!E558 -> 0 | J150: 55 | K150: 0.01818181818 | L150: 55 | M150: 0.01818181818 | N150: 0 | O150: 0 | P150: 0 | Q150: 0 | R150: ='App.2-BA_Fixed Asset Cont'!J558 -> 0 | S150: 0
A151: 1845 | B151: Underground Conductors & Devices | C151: 323223.67 | D151: 0 | E151: 323223.67 | F151: 208597.88 | H151: 208597.88 | I151: ='App.2-BA_Fixed Asset Cont'!E559 -> 2764.86 | J151: 33 | K151: 0.0303030303 | L151: 40 | M151: 0.025 | N151: 9794.656667 | O151: 5214.947 | P151: 34.56075 | Q151: 15044.16442 | R151: ='App.2-BA_Fixed Asset Cont'!J559 -> 14923.74 | S151: -120.4244167
A152: 1850 | B152: Distribution Transformers - Overhead | C152: 0 | D152: 0 | E152: 0 | F152: 0 | H152: 0 | I152: ='App.2-BA_Fixed Asset Cont'!E560 -> 0 | J152: 0 | K152: 0 | L152: 0 | M152: 0 | N152: 0 | O152: 0 | P152: 0 | Q152: 0 | R152: ='App.2-BA_Fixed Asset Cont'!J560 -> 0 | S152: 0
A153: 1850 | B153: Distribution Transformers - Inventory | C153: 158534.97 | D153: 0 | E153: 158534.97 | F153: 39098.17 | H153: 39098.17 | I153: ='App.2-BA_Fixed Asset Cont'!E561 -> -15928.87 | J153: 40 | K153: 0.025 | L153: 40 | M153: 0.025 | N153: 3963.37425 | O153: 977.45425 | P153: -199.110875 | Q153: 4741.717625 | R153: ='App.2-BA_Fixed Asset Cont'!J561 -> 0 | S153: -4741.717625
A154: 1850 | B154: Distribution Transformers - UG Pad-Mounted Trans | C154: 437845.94 | D154: 0 | E154: 437845.94 | F154: 34803.87 | H154: 34803.87 | I154: ='App.2-BA_Fixed Asset Cont'!E562 -> 5877.13 | J154: 31 | K154: 0.03225806452 | L154: 40 | M154: 0.025 | N154: 14124.06258 | O154: 870.09675 | P154: 73.464125 | Q154: 15067.62346 | R154: ='App.2-BA_Fixed Asset Cont'!J562 -> 15643.44 | S154: 575.8165444
A155: 1850 | B155: Distribution Transformers - OH Trans & Voltage Reg | C155: 321955.34 | D155: 0 | E155: 321955.34 | F155: 181447.07 | H155: 181447.07 | I155: ='App.2-BA_Fixed Asset Cont'!E563 -> 58290.78 | J155: 31 | K155: 0.03225806452 | L155: 40 | M155: 0.025 | N155: 10385.65613 | O155: 4536.17675 | P155: 728.63475 | Q155: 15650.46763 | R155: ='App.2-BA_Fixed Asset Cont'!J563 -> 17280.15 | S155: 1629.682371
A156: 1855 | B156: Distribution Services - UG Secondary in Duct | C156: 82929.52 | D156: 0 | E156: 82929.52 | F156: 84481.5 | H156: 84481.5 | I156: ='App.2-BA_Fixed Asset Cont'!E564 -> 14766.71 | J156: 51 | K156: 0.01960784314 | L156: 60 | M156: 0.01666666667 | N156: 1626.06902 | O156: 1408.025 | P156: 123.0559167 | Q156: 3157.149936 | R156: ='App.2-BA_Fixed Asset Cont'!J564 -> 3117.79 | S156: -39.35993627
A157: 1855 | B157: Distribution Services - OH Conductors | C157: 102912.87 | D157: 0 | E157: 102912.87 | F157: 62757.97 | H157: 62757.97 | I157: ='App.2-BA_Fixed Asset Cont'!E565 -> 27055.55 | J157: 33 | K157: 0.0303030303 | L157: 40 | M157: 0.025 | N157: 3118.571818 | O157: 1568.94925 | P157: 338.194375 | Q157: 5025.715443 | R157: ='App.2-BA_Fixed Asset Cont'!J565 -> 4800.15 | S157: -225.5654432
A158: 1860 | B158: Distribution Meters | C158: 0 | D158: 0 | E158: 0 | F158: 0 | H158: 0 | I158: ='App.2-BA_Fixed Asset Cont'!E566 -> 0 | J158: 0 | K158: 0 | L158: 0 | M158: 0 | N158: 0 | O158: 0 | P158: 0 | Q158: 0 | R158: ='App.2-BA_Fixed Asset Cont'!J566 -> 0 | S158: 0
A159: 1860 | B159: Distribution Meters - Inventory | C159: 14766 | D159: 0 | E159: 14766 | F159: 0 | H159: 0 | I159: ='App.2-BA_Fixed Asset Cont'!E567 -> 0 | J159: 12 | K159: 0.08333333333 | L159: 15 | M159: 0.06666666667 | N159: 1230.5 | O159: 0 | P159: 0 | Q159: 1230.5 | R159: ='App.2-BA_Fixed Asset Cont'!J567 -> 1099.58 | S159: -130.92
A160: 1860 | B160: Distribution Meters - Residential Energy Meters | C160: 0 | D160: 0 | E160: 0 | F160: 0 | H160: 0 | I160: ='App.2-BA_Fixed Asset Cont'!E568 -> 0 | J160: 0 | K160: 0 | L160: 0 | M160: 0 | N160: 0 | O160: 0 | P160: 0 | Q160: 0 | R160: ='App.2-BA_Fixed Asset Cont'!J568 -> 0 | S160: 0
A161: 1860 | B161: Distribution Meters - Ind/Com Energy Meters | C161: 9981.09 | D161: 0 | E161: 9981.09 | F161: 0 | H161: 0 | I161: ='App.2-BA_Fixed Asset Cont'!E569 -> 0 | J161: 20 | K161: 0.05 | L161: 25 | M161: 0.04 | N161: 499.0545 | O161: 0 | P161: 0 | Q161: 499.0545 | R161: ='App.2-BA_Fixed Asset Cont'!J569 -> 493.62 | S161: -5.4345
A162: 1860 | B162: Distribution Meters - Wholesale Energy Meters | C162: 71393.53 | D162: 0 | E162: 71393.53 | F162: 6903 | H162: 6903 | I162: ='App.2-BA_Fixed Asset Cont'!E570 -> 0 | J162: 21 | K162: 0.04761904762 | L162: 30 | M162: 0.03333333333 | N162: 3399.691905 | O162: 230.1 | P162: 0 | Q162: 3629.791905 | R162: ='App.2-BA_Fixed Asset Cont'!J570 -> 3578.23 | S162: -51.56190476
A163: 1860 | B163: Distribution Meters - Current & Potential Meters | C163: 1883.81 | D163: 0 | E163: 1883.81 | F163: 51505.95 | H163: 51505.95 | I163: ='App.2-BA_Fixed Asset Cont'!E571 -> 0 | J163: 25 | K163: 0.04 | L163: 25 | M163: 0.04 | N163: 75.3524 | O163: 2060.238 | P163: 0 | Q163: 2135.5904 | R163: ='App.2-BA_Fixed Asset Cont'!J571 -> 2136.89 | S163: 1.2996
A164: 1860 | B164: Distribution Meters-Smart | C164: 426789.89 | D164: 45676 | E164: 381113.89 | F164: 97668.74 | G164: 13484 | H164: 84184.74 | I164: ='App.2-BA_Fixed Asset Cont'!E572 -> 57413.18 | J164: 9.2 | K164: 0.1086956522 | L164: 15 | M164: 0.06666666667 | N164: 41425.42283 | O164: 5612.316 | P164: 1913.772667 | Q164: 48951.51149 | R164: ='App.2-BA_Fixed Asset Cont'!J572 -> 48607.56 | S164: -343.9514928
A165: 1860 | B165: Distribution Meters-Smart-Repeaters | C165: 239.7 | D165: 0 | E165: 239.7 | F165: 0 | H165: 0 | I165: ='App.2-BA_Fixed Asset Cont'!E573 -> 0 | J165: 5 | K165: 0.2 | L165: 5 | M165: 0.2 | N165: 47.94 | O165: 0 | P165: 0 | Q165: 47.94 | R165: ='App.2-BA_Fixed Asset Cont'!J573 -> 0 | S165: -47.94
A166: 1860 | B166: Distribution Meters-Smart-Data Collectors | C166: 19055.32 | D166: 19055.45 | E166: -0.13 | F166: 997.16 | H166: 997.16 | I166: ='App.2-BA_Fixed Asset Cont'!E574 -> 0 | J166: 5 | K166: 0.2 | L166: 5 | M166: 0.2 | N166: -0.026 | O166: 199.432 | P166: 0 | Q166: 199.406 | R166: ='App.2-BA_Fixed Asset Cont'!J574 -> 199.43 | S166: 0.024
A167: 1860 | B167: Distribution Meters-Stranded | C167: 0.03999999998 | D167: 0 | E167: 0.03999999998 | F167: 0 | H167: 0 | I167: ='App.2-BA_Fixed Asset Cont'!E575 -> 0 | J167: 25 | K167: 0.04 | L167: 25 | M167: 0.04 | N167: 0.001599999999 | O167: 0 | P167: 0 | Q167: 0.001599999999 | R167: ='App.2-BA_Fixed Asset Cont'!J575 -> 0 | S167: -0.001599999999
A168: 1860 | B168: Distribution Meters-Inventory | C168: 47566 | D168: 0 | E168: 47566 | F168: -15180.21 | H168: -15180.21 | I168: ='App.2-BA_Fixed Asset Cont'!E576 -> 46710.4 | J168: 15 | K168: 0.06666666667 | L168: 15 | M168: 0.06666666667 | N168: 3171.066667 | O168: -1012.014 | P168: 1557.013333 | Q168: 3716.066 | R168: ='App.2-BA_Fixed Asset Cont'!J576 -> 0 | S168: -3716.066
A169: 1905 | B169: Land | C169: 0 | D169: 0 | E169: 0 | F169: 0 | H169: 0 | I169: ='App.2-BA_Fixed Asset Cont'!E577 -> 0 | J169: 0 | K169: 0 | L169: 0 | M169: 0 | N169: 0 | O169: 0 | P169: 0 | Q169: 0 | R169: ='App.2-BA_Fixed Asset Cont'!J577 -> 0 | S169: 0
A170: 1908 | B170: Buildings & Fixtures | C170: 0 | D170: 0 | E170: 0 | F170: 0 | H170: 0 | I170: ='App.2-BA_Fixed Asset Cont'!E578 -> 0 | J170: 0 | K170: 0 | L170: 0 | M170: 0 | N170: 0 | O170: 0 | P170: 0 | Q170: 0 | R170: ='App.2-BA_Fixed Asset Cont'!J578 -> 0 | S170: 0
A171: 1910 | B171: Leasehold Improvements | C171: 0 | D171: 0 | E171: 0 | F171: 0 | H171: 0 | I171: ='App.2-BA_Fixed Asset Cont'!E579 -> 0 | J171: 0 | K171: 0 | L171: 0 | M171: 0 | N171: 0 | O171: 0 | P171: 0 | Q171: 0 | R171: ='App.2-BA_Fixed Asset Cont'!J579 -> 0 | S171: 0
A172: 1915 | B172: Office Furniture & Equipment (10 years) | C172: 0 | D172: 0 | E172: 0 | F172: 0 | H172: 0 | I172: ='App.2-BA_Fixed Asset Cont'!E580 -> 0 | J172: 0 | K172: 0 | L172: 0 | M172: 0 | N172: 0 | O172: 0 | P172: 0 | Q172: 0 | R172: ='App.2-BA_Fixed Asset Cont'!J580 -> 0 | S172: 0
A173: 1915 | B173: Office Furniture & Equipment (5 years) | C173: 38169.57 | D173: 0 | E173: 38169.57 | F173: 1711.99 | H173: 1711.99 | I173: ='App.2-BA_Fixed Asset Cont'!E581 -> 21823.96 | J173: 10 | K173: 0.1 | L173: 10 | M173: 0.1 | N173: 3816.957 | O173: 171.199 | P173: 1091.198 | Q173: 5079.354 | R173: ='App.2-BA_Fixed Asset Cont'!J581 -> 4559.25 | S173: -520.104
A174: 1920 | B174: Computer Equipment - Hardware | C174: 148916.23 | D174: 28499 | E174: =C174-D174 -> 120417.23 | F174: 103837.8 | H174: =F174-G174 -> 103837.8 | I174: ='App.2-BA_Fixed Asset Cont'!E582 -> 18774.28 | J174: 4.5 | K174: =IF(J174=0,0,1/J174) -> 0.2222222222 | L174: 5 | M174: =IF(L174=0,0,1/L174) -> 0.2 | N174: =IF(J174=0,0,+E174/J174) -> 26759.38444 | O174: =IF(L174=0,0,+H174/L174) -> 20767.56 | P174: =IF(L174=0,0,+(I174*0.5)/L174) -> 1877.428 | Q174: =IF(ISERROR(+N174+O174+P174), 0, +N174+O174+P174) -> 49404.37244 | R174: ='App.2-BA_Fixed Asset Cont'!J582 -> 46717.07 | S174: =IF(ISERROR(+R174-Q174), 0, +R174-Q174) -> -2687.302444
A175: 1920 | B175: Computer Equip.-Hardware(Post Mar. 22/04) | C175: 0 | D175: 0 | E175: 0 | F175: 0 | H175: 0 | I175: ='App.2-BA_Fixed Asset Cont'!E583 -> 0 | J175: 0 | K175: 0 | L175: 0 | M175: 0 | N175: 0 | O175: =IF(L175=0,0,+H175/L175) -> 0 | P175: 0 | Q175: 0 | R175: ='App.2-BA_Fixed Asset Cont'!J583 -> 0 | S175: 0
A176: 1920 | B176: Computer Equip.-Hardware(Post Mar. 19/07) | C176: 0 | D176: 0 | E176: 0 | F176: 0 | H176: 0 | I176: ='App.2-BA_Fixed Asset Cont'!E584 -> 0 | J176: 0 | K176: 0 | L176: 0 | M176: 0 | N176: 0 | O176: 0 | P176: 0 | Q176: 0 | R176: ='App.2-BA_Fixed Asset Cont'!J584 -> 0 | S176: 0
A177: 1930 | B177: Transportation Equipment - Trucks and Buckets | C177: 354413.51 | D177: 0 | E177: 354413.51 | F177: 0 | H177: 0 | I177: ='App.2-BA_Fixed Asset Cont'!E585 -> 0 | J177: 10 | K177: 0.1 | L177: 10 | M177: 0.1 | N177: 35441.351 | O177: 0 | P177: 0 | Q177: 35441.351 | R177: ='App.2-BA_Fixed Asset Cont'!J585 -> 36034.43 | S177: 593.079
A178: 1930 | B178: Transportation Equipment - Trailers | C178: 2477.72 | D178: 0 | E178: 2477.72 | F178: 0 | H178: 0 | I178: ='App.2-BA_Fixed Asset Cont'!E586 -> 0 | J178: 8 | K178: 0.125 | L178: 8 | M178: 0.125 | N178: 309.715 | O178: 0 | P178: 0 | Q178: 309.715 | R178: ='App.2-BA_Fixed Asset Cont'!J586 -> 0 | S178: -309.715
A179: 1930 | B179: Transportation Equipment - Pick-ups/Vans/Cars | C179: 26667.91 | D179: 26668 | E179: -0.09000000003 | F179: 29551.21 | H179: 29551.21 | I179: ='App.2-BA_Fixed Asset Cont'!E587 -> 37499.44 | J179: 5 | K179: 0.2 | L179: 5 | M179: 0.2 | N179: -0.01800000001 | O179: 5910.242 | P179: 3749.944 | Q179: 9660.168 | R179: ='App.2-BA_Fixed Asset Cont'!J587 -> 9086.47 | S179: -573.698
A180: 1935 | B180: Stores Equipment | C180: 1496.77 | D180: 0 | E180: 1496.77 | F180: 0 | H180: 0 | I180: ='App.2-BA_Fixed Asset Cont'!E588 -> 0 | J180: 8 | K180: 0.125 | L180: 8 | M180: 0.125 | N180: 187.09625 | O180: 0 | P180: 0 | Q180: 187.09625 | R180: ='App.2-BA_Fixed Asset Cont'!J588 -> 236.01 | S180: 48.91375
A181: 1940 | B181: Tools, Shop & Garage Equipment | C181: 4031.53 | D181: =D88+G88 -> 0 | E181: 4031.53 | F181: =F88+I88 -> 15694.09 | H181: 15694.09 | I181: ='App.2-BA_Fixed Asset Cont'!E589 -> 0 | J181: 10 | K181: 0.1 | L181: 10 | M181: 0.1 | N181: 403.153 | O181: 1569.409 | P181: 0 | Q181: 1972.562 | R181: ='App.2-BA_Fixed Asset Cont'!J589 -> 2033.68 | S181: 61.118
A182: 1945 | B182: Measurement & Testing Equipment | C182: 0 | D182: 0 | E182: 0 | F182: 0 | H182: 0 | I182: ='App.2-BA_Fixed Asset Cont'!E590 -> 24682.82 | J182: =L182 -> 10 | K182: 0.1 | L182: 10 | M182: 0.1 | N182: 0 | O182: 0 | P182: 1234.141 | Q182: 1234.141 | R182: ='App.2-BA_Fixed Asset Cont'!J590 -> 1234.14 | S182: -0.001
A183: 1950 | B183: Power Operated Equipment | C183: 0 | D183: 0 | E183: 0 | F183: 0 | H183: 0 | I183: ='App.2-BA_Fixed Asset Cont'!E591 -> 0 | J183: 0 | K183: 0 | L183: 0 | M183: 0 | N183: 0 | O183: 0 | P183: 0 | Q183: 0 | R183: ='App.2-BA_Fixed Asset Cont'!J591 -> 0 | S183: 0
A184: 1955 | B184: Communications Equipment | C184: 9261.63 | D184: 0 | E184: 9261.63 | F184: 13391.38 | H184: 13391.38 | I184: ='App.2-BA_Fixed Asset Cont'!E592 -> 591.48 | J184: 5 | K184: 0.2 | L184: 5 | M184: 0.2 | N184: 1852.326 | O184: 2678.276 | P184: 59.148 | Q184: 4589.75 | R184: ='App.2-BA_Fixed Asset Cont'!J592 -> 3301.69 | S184: -1288.06
A185: 1955 | B185: Communication Equipment (Smart Meters) | C185: 0 | D185: 0 | E185: 0 | F185: 0 | H185: 0 | I185: ='App.2-BA_Fixed Asset Cont'!E593 -> 0 | J185: 0 | K185: 0 | L185: 0 | M185: 0 | N185: 0 | O185: 0 | P185: 0 | Q185: 0 | R185: ='App.2-BA_Fixed Asset Cont'!J593 -> 0 | S185: 0
A186: 1960 | B186: Miscellaneous Equipment | C186: 0 | D186: 0 | E186: 0 | F186: 0 | H186: 0 | I186: ='App.2-BA_Fixed Asset Cont'!E594 -> 0 | J186: 0 | K186: 0 | L186: 0 | M186: 0 | N186: 0 | O186: 0 | P186: 0 | Q186: 0 | R186: ='App.2-BA_Fixed Asset Cont'!J594 -> 0 | S186: 0
A187: 1970 | B187: Load Management Controls Customer Premises | C187: 0 | D187: 0 | E187: 0 | F187: 0 | H187: 0 | I187: ='App.2-BA_Fixed Asset Cont'!E595 -> 0 | J187: 0 | K187: 0 | L187: 0 | M187: 0 | N187: 0 | O187: 0 | P187: 0 | Q187: 0 | R187: ='App.2-BA_Fixed Asset Cont'!J595 -> 0 | S187: 0
A188: 1975 | B188: Load Management Controls Utility Premises | C188: 0 | D188: 0 | E188: 0 | F188: 0 | H188: 0 | I188: ='App.2-BA_Fixed Asset Cont'!E596 -> 0 | J188: 0 | K188: 0 | L188: 0 | M188: 0 | N188: 0 | O188: 0 | P188: 0 | Q188: 0 | R188: ='App.2-BA_Fixed Asset Cont'!J596 -> 0 | S188: 0
A189: 1980 | B189: System Supervisor Equipment | C189: 87770.11 | D189: 0 | E189: 87770.11 | F189: 186917.74 | H189: 186917.74 | I189: ='App.2-BA_Fixed Asset Cont'!E597 -> 1112.85 | J189: 6.5 | K189: 0.1538461538 | L189: 10 | M189: 0.1 | N189: 13503.09385 | O189: 18691.774 | P189: 55.6425 | Q189: 32250.51035 | R189: ='App.2-BA_Fixed Asset Cont'!J597 -> 32775.04 | S189: 524.5296538
A190: 1985 | B190: Miscellaneous Fixed Assets | C190: 0 | D190: 0 | E190: 0 | F190: 0 | H190: 0 | I190: ='App.2-BA_Fixed Asset Cont'!E598 -> 0 | J190: 0 | K190: 0 | L190: 0 | M190: 0 | N190: 0 | O190: 0 | P190: 0 | Q190: 0 | R190: ='App.2-BA_Fixed Asset Cont'!J598 -> 0 | S190: 0
A191: 1990 | B191: Other Tangible Property | C191: 0 | D191: 0 | E191: 0 | F191: 0 | H191: 0 | I191: ='App.2-BA_Fixed Asset Cont'!E599 -> 0 | J191: 0 | K191: 0 | L191: 0 | M191: 0 | N191: 0 | O191: 0 | P191: 0 | Q191: 0 | R191: ='App.2-BA_Fixed Asset Cont'!J599 -> 0 | S191: 0
A192: 1995 | B192: Contributions & Grants | C192: 0 | D192: 0 | E192: 0 | F192: 0 | H192: 0 | I192: ='App.2-BA_Fixed Asset Cont'!E600 -> 0 | J192: 0 | K192: 0 | L192: 0 | M192: 0 | N192: 0 | O192: 0 | P192: 0 | Q192: 0 | R192: ='App.2-BA_Fixed Asset Cont'!J600 -> 0 | S192: 0
A193: 2440 | B193: Deferred Revenue5 | C193: -330563 | D193: 0 | E193: -330563 | F193: -113287 | H193: -113287 | I193: ='App.2-BA_Fixed Asset Cont'!E601 -> 0 | J193: 34.5 | K193: 0.02898550725 | L193: 35 | M193: 0.02857142857 | N193: -9581.536232 | O193: -3236.771429 | P193: 0 | Q193: -12818.30766 | R193: ='App.2-BA_Fixed Asset Cont'!J601 -> -11854.1 | S193: 964.2076605
A194: 2005 | B194: Property Under Finance Lease7 | C194: 0 | D194: 0 | E194: 0 | H194: 0 | K194: 0 | M194: 0 | N194: 0 | O194: 0 | P194: 0 | Q194: 0 | S194: 0
E195: 0 | H195: 0 | K195: 0 | M195: 0 | N195: 0 | O195: 0 | P195: 0 | Q195: 0 | S195: 0
E196: 0 | H196: 0 | K196: 0 | M196: 0 | N196: 0 | O196: 0 | P196: 0 | Q196: 0 | S196: 0
E197: 0 | H197: 0 | K197: 0 | M197: 0 | N197: 0 | O197: 0 | P197: 0 | Q197: 0 | S197: 0
E198: 0 | H198: 0 | K198: 0 | M198: 0 | N198: 0 | O198: 0 | P198: 0 | Q198: 0 | S198: 0
E199: 0 | H199: 0 | K199: 0 | M199: 0 | N199: 0 | O199: 0 | P199: 0 | Q199: 0 | S199: 0
E200: 0 | H200: 0 | K200: 0 | M200: 0 | N200: 0 | O200: 0 | P200: 0 | Q200: 0 | S200: 0
E201: 0 | H201: 0 | K201: 0 | M201: 0 | N201: 0 | O201: 0 | P201: 0 | Q201: 0 | S201: 0
E202: 0 | H202: 0 | K202: 0 | M202: 0 | N202: 0 | O202: 0 | P202: 0 | Q202: 0 | S202: 0
E203: 0 | H203: 0 | K203: 0 | M203: 0 | N203: 0 | O203: 0 | P203: 0 | Q203: 0 | S203: 0
E204: 0 | H204: 0 | K204: 0 | M204: 0 | N204: 0 | O204: 0 | P204: 0 | Q204: 0 | S204: 0
E205: 0 | H205: 0 | K205: 0 | M205: 0 | N205: 0 | O205: 0 | P205: 0 | Q205: 0 | S205: 0
E206: 0 | H206: 0 | K206: 0 | M206: 0 | N206: 0 | O206: 0 | P206: 0 | Q206: 0 | S206: 0
E207: 0 | H207: 0 | K207: 0 | M207: 0 | N207: 0 | O207: 0 | P207: 0 | Q207: 0 | S207: 0
E208: 0 | H208: 0 | K208: 0 | M208: 0 | N208: 0 | O208: 0 | P208: 0 | Q208: 0 | S208: 0
E209: 0 | H209: 0 | K209: 0 | M209: 0 | N209: 0 | O209: 0 | P209: 0 | Q209: 0 | S209: 0
E210: 0 | H210: 0 | K210: 0 | M210: 0 | N210: 0 | O210: 0 | P210: 0 | Q210: 0 | S210: 0
... 397 more rows

Sheet App.2-D_Overhead
G1: File Number: | H1: =EBNUMBER -> EB-2020-0061
G2: Exhibit: | H2: 2
G3: Tab: | H3: Section 2.2.3
G4: Schedule:
G5: Page: | H5: 44
G7: Date: | H7: 2020-10-30
A9: Appendix 2-D
A10: Overhead Expense
A12: Applicants are to provide a breakdown of OM&A before capitalization in the below table. OM&A before capitalization may be broken down by cost center, program, drivers or another format best suited to focus on capitalized vs. uncapitalized OM&A.
A14: OM&A Before Capitalization
B15: =F15-4 -> 2017 | C15: =F15-3 -> 2018 | D15: =F15-2 -> 2019 | E15: =F15-1 -> 2020 | F15: =TestYear -> 2021
B16: Historical Year | C16: Historical Year | D16: Historical Year | E16: Bridge Year | F16: Test Year
A17: Operating and Maintenance | B17: ='App.2-JA_OM&A_Summary_Analys'!W13+'App.2-JA_OM&A_Summary_Analys'!W14+B47 -> 835273.42 | C17: ='App.2-JA_OM&A_Summary_Analys'!X13+'App.2-JA_OM&A_Summary_Analys'!X14+C47 -> 867230.02 | D17: ='App.2-JA_OM&A_Summary_Analys'!Y13+'App.2-JA_OM&A_Summary_Analys'!Y14+D47 -> 802699.98 | E17: ='App.2-JA_OM&A_Summary_Analys'!Z13+'App.2-JA_OM&A_Summary_Analys'!Z14+E47 -> 797372.33 | F17: ='App.2-JA_OM&A_Summary_Analys'!AB13+'App.2-JA_OM&A_Summary_Analys'!AB14+F47 -> 868800
A18: Billing and collecting | B18: ='App.2-JA_OM&A_Summary_Analys'!W15 -> 347236.82 | C18: ='App.2-JA_OM&A_Summary_Analys'!X15 -> 351744.6 | D18: ='App.2-JA_OM&A_Summary_Analys'!Y15 -> 402260.42 | E18: ='App.2-JA_OM&A_Summary_Analys'!Z15 -> 409608.74 | F18: ='App.2-JA_OM&A_Summary_Analys'!AB15 -> 415500
A19: Community Relations | B19: ='App.2-JA_OM&A_Summary_Analys'!W16 -> 6835.4 | C19: ='App.2-JA_OM&A_Summary_Analys'!X16 -> 9832.73 | D19: ='App.2-JA_OM&A_Summary_Analys'!Y16 -> 7369.64 | E19: ='App.2-JA_OM&A_Summary_Analys'!Z16 -> 5846.78 | F19: ='App.2-JA_OM&A_Summary_Analys'!AB16 -> 7500
A20: General and Administrative | B20: ='App.2-JA_OM&A_Summary_Analys'!W17 -> 697404.1 | C20: ='App.2-JA_OM&A_Summary_Analys'!X17 -> 713858.81 | D20: ='App.2-JA_OM&A_Summary_Analys'!Y17 -> 788126.26 | E20: ='App.2-JA_OM&A_Summary_Analys'!Z17 -> 836090.49 | F20: ='App.2-JA_OM&A_Summary_Analys'!AB17 -> 797500
A27: Total OM&A Before Capitalization (B) | B27: =SUM(B17:B26) -> 1886749.74 | C27: =SUM(C17:C26) -> 1942666.16 | D27: =SUM(D17:D26) -> 2000456.3 | E27: =SUM(E17:E26) -> 2048918.34 | F27: =SUM(F17:F26) -> 2089300
A29: Applicants are to provide a breakdown of capitalized OM&A in the below table. Capitalized OM&A may be broken down using the categories listed in the table below if possible. Otherwise, applicants are to provide its own break down of capitalized OM&A.
A31: Capitalized OM&A | G31: Directly | H31: Explanation for Change in Overhead Capitalized
B32: =F32-4 -> 2017 | C32: =F32-3 -> 2018 | D32: =F32-2 -> 2019 | E32: =F32-1 -> 2020 | F32: =TestYear -> 2021 | G32: Attributable?
B33: Historical Year | C33: Historical Year | D33: Historical Year | E33: Bridge Year | F33: Test Year | G33: (Yes/No)
A34: employee benefits | B34: 26654.55 | C34: 34559.13 | D34: 26637.85 | E34: 26000 | F34: 26000 | G34: Yes | H34: Directly attributable to labour costs charged to capital
A35: costs of site preparation
A36: initial delivery and handling costs
A37: costs of testing whether the asset is functioning properly
A38: professional fees
A39: Direct Wages | B39: 106767 | C39: 145210 | D39: 114794 | E39: 110000 | F39: 110000 | G39: Yes | H39: Direct Wages
A40: costs of opening a new facility
A41: costs of introducing a new product or service (including costs of advertising and promotional activities)
A42: costs of conducting business in a new location or with a new class of customer (including costs of staff training)
A43: administration and other general overhead costs | B43: =B39*1.58-B34-B39 -> 35270.31 | C43: 49662.67 | D43: =D39*1.58-D34-D39 -> 39942.67 | E43: =E39*1.58-E34-E39 -> 37800 | F43: 37800 | G43: Yes | H43: Directly attributable to operations labour & equipment costs charged to capital
A45: Insert description of additional item(s) and new rows if needed
A47: Total Capitalized OM&A (A) | B47: =SUM(B34:B46) -> 168691.86 | C47: =SUM(C34:C46) -> 229431.8 | D47: =SUM(D34:D46) -> 181374.52 | E47: =SUM(E34:E46) -> 173800 | F47: =SUM(F34:F46) -> 173800
A49: % of Capitalized OM&A (=A/B) | B49: =IF(ISERROR(B47/B27),"0%",B47/B27) -> 0.08940870982 | C49: =IF(ISERROR(C47/C27),"0%",C47/C27) -> 0.1181015064 | D49: =IF(ISERROR(D47/D27),"0%",D47/D27) -> 0.09066657442 | E49: =IF(ISERROR(E47/E27),"0%",E47/E27) -> 0.08482524491 | F49: =IF(ISERROR(F47/F27),"0%",F47/F27) -> 0.08318575599

Sheet App.2-EA_Account 1575 (2015) (hidden)
H1: File Number: | I1: =EBNUMBER -> EB-2020-0061
H2: Exhibit:
H3: Tab:
H4: Schedule:
H5: Page:
H7: Date:
A9: Appendix 2-EA
A10: Account 1575 - IFRS-CGAAP Transitional PP&E Amounts
A11: 2015 Adopters of IFRS for Financial Reporting Purposes
A13: For applicants that adopted IFRS on January 1, 2015 for financial reporting purposes
B17: 2014 | C17: =TestYear-3 -> 2018 | D17: =TestYear-2 -> 2019 | E17: =CONCATENATE(TestYear-1," Bridge Year") -> 2020 Bridge Year | F17: =CONCATENATE(TestYear," Rebasing Year") -> 2021 Rebasing Year
A18: Reporting Basis | B18: CGAAP | C18: CGAAP | D18: CGAAP | E18: MIFRS | F18: MIFRS
B19: Actual | C19: Actual | D19: Actual | E19: Forecast | F19: Forecast
D20: $ | E20: $
A21: PP&E Values under CGAAP
A22: Opening net PP&E - Note 1 | C22: =+B25 -> 0 | D22: =+C25 -> 0 | E22: =+D25 -> 0
A23: Net Additions - Note 4
A24: Net Depreciation (amounts should be negative) - Note 4
A25: Closing net PP&E (1) | B25: =SUM(B22:B24) -> 0 | C25: =SUM(C22:C24) -> 0 | D25: =SUM(D22:D24) -> 0 | E25: =SUM(E22:E24) -> 0
A27: PP&E Values under MIFRS (Starts from 2014, the transition year)
A28: Opening net PP&E - Note 1 | C28: =+B31 -> 0 | D28: =+C31 -> 0 | E28: =+D31 -> 0
A29: Net Additions - Note 4
A30: Net Depreciation (amounts should be negative) - Note 4
A31: Closing net PP&E (2) | B31: =SUM(B28:B30) -> 0 | C31: =SUM(C28:C30) -> 0 | D31: =SUM(D28:D30) -> 0 | E31: =SUM(E28:E30) -> 0
A33: Difference in Closing net PP&E, former CGAAP vs. revised CGAAP | B33: =B25-B31 -> 0 | C33: =C25-C31 -> 0 | D33: =D25-D31 -> 0 | E33: =E25-E31 -> 0
A36: Effect on Deferral and Variance Account Rate Riders
A37: Closing balance in Account 1575 | F37: =IF(ISERROR(E33), 0, E33) -> 0 | H37: WACC
A38: Return on Rate Base Associated with Account 1575 balance at WACC - Note 2 | F38: =E33*I37*I38 -> 0 | G38: # of years of rate rider disposition period
A39: Amount included in Deferral and Variance Account Rate Rider Calculation | F39: =F37+F38 -> 0
A41: Notes:
A42: 1 For an applicant that adopted IFRS on January 1, 2015, the PP&E values as of January 1, 2014 under both CGAAP and MIFRS should be the same.
A43: 2 Return on rate base associated with deferred balance is calculated as:
A44: the deferral account closing balance as of 2017 x WACC X # of years of rate rider disposition period
A45: * Please note that the calculation should be adjusted once WACC is updated and finalized in the rate application.
A46: 3 The PP&E deferral account is cleared by including the total balance in the deferral and variance account rate rider calculation.
A47: 4 Net additions are additions net of disposals; Net depreciation is additions to depreciation net of disposals.

Sheet App.2-EB_Account 1576 (2012) (hidden)
K1: File Number: | L1: =EBNUMBER -> EB-2020-0061
K2: Exhibit:
K3: Tab:
K4: Schedule:
K5: Page:
K7: Date:
A9: Appendix 2-EB
A10: Account 1576 - Accounting Changes under CGAAP
A11: 2012 Changes in Accounting Policies under CGAAP
A13: For applicants with a balance in Account 1576 and made capitalization and depreciation expense accounting policy changes under CGAAP effective January 1, 2012. This is the first time the applicant is rebasing with changes in these accounting policies.
B17: Prior Years Rebasing | C17: 2012 | D17: 2013 | E17: 2014 | F17: 2015 | G17: 2016 | H17: 2017 | I17: 2018 Rebasing Year
A18: Reporting Basis | B18: CGAAP | C18: CGAAP | D18: CGAAP | E18: CGAAP | F18: MIFRS - Note 5 | G18: MIFRS | H18: MIFRS | I18: MIFRS
B19: Forecast | C19: Actual | D19: Actual | E19: Actual | F19: Actual | G19: Actual | H19: Forecast | I19: Forecast
C20: $ | D20: $ | E20: $ | F20: $ | G20: $ | H20: $
A21: PP&E Values under former CGAAP
A22: Opening net PP&E - Note 1 | D22: =+C25 -> 0 | E22: =+D25 -> 0 | F22: =+E25 -> 0 | G22: =+F25 -> 0 | H22: =+G25 -> 0
A23: Net Additions - Note 4
A24: Net Depreciation (amounts should be negative) - Note 4
A25: Closing net PP&E (1) | C25: =C22+C23+C24 -> 0 | D25: 0 | E25: 0 | F25: 0 | G25: 0 | H25: 0
A27: PP&E Values under revised CGAAP (Starts from 2012)
A28: Opening net PP&E - Note 1 | D28: =+C31 -> 0 | E28: =+D31 -> 0 | F28: =+E31 -> 0 | G28: =+F31 -> 0 | H28: =+G31 -> 0
A29: Net Additions - Note 4
A30: Net Depreciation (amounts should be negative) - Note 4
A31: Closing net PP&E (2) | C31: =SUM(C28:C30) -> 0 | D31: 0 | E31: 0 | F31: 0 | G31: 0 | H31: 0
A33: Difference in Closing net PP&E, former CGAAP vs. revised CGAAP | C33: =C25-C31 -> 0 | D33: 0 | E33: 0 | F33: 0 | G33: 0 | H33: 0
A36: Effect on Deferral and Variance Account Rate Riders
A37: Closing balance in Account 1576 | I37: =IF(ISERROR(H33), 0, H33) -> 0 | K37: WACC
A38: Return on Rate Base Associated with Account 1576 balance at WACC - Note 2 | I38: =H33*L37*L38 -> 0 | J38: # of years of rate rider disposition period
A39: Amount included in Deferral and Variance Account Rate Rider Calculation | I39: =I37+I38 -> 0
A41: Notes:
A42: 1 For an applicant that made the capitalization and depreciation expense accounting policy changes on January 1, 2012, the PP&E values as of January 1, 2012 under both former CGAAP and revised CGAAP should be the same.
A43: 2 Return on rate base associated with Account 1576 balance is calculated as:
A44: the variance account ending balance as of 2017 x WACC X # of years of rate rider disposition period
A45: * Please note that the calculation should be adjusted once WACC is updated and finalized in the rate application.
A46: 3 Account 1576 is cleared by including the total balance in the deferral and variance account rate rider calculation.
A47: 4 Net additions are additions net of disposals; Net depreciation is additions to depreciation net of disposals.
A48: 5 Differences due to the adoption of MIFRS are to be shown separately in Account 1575 in Appendix 2-EA as Accounts 1575 and 1576 cannot be used interchangably.

Sheet App.2-EC_Account 1576 (2013) (hidden)
J1: File Number: | K1: =EBNUMBER -> EB-2020-0061
J2: Exhibit:
J3: Tab:
J4: Schedule:
J5: Page:
J7: Date:
A9: Appendix 2-EC
A10: Account 1576 - Accounting Changes under CGAAP
A11: 2013 Changes in Accounting Policies under CGAAP
A13: For applicants with a balance in Account 1576 and made capitalization and depreciation expense accounting policy changes under CGAAP effective January 1, 2013. This is the first time the applicant is rebasing with changes in these accounting policies.
B17: Prior Years Rebasing | C17: 2013 | D17: 2014 | E17: 2015 | F17: 2016 | G17: 2017 | H17: 2018 Rebasing Year
A18: Reporting Basis | B18: CGAAP | C18: CGAAP | D18: CGAAP | E18: MIFRS - Note 5 | F18: MIFRS | G18: MIFRS | H18: MIFRS
B19: Actual | C19: Actual | D19: Actual | E19: Actual | F19: Actual | G19: Forecast | H19: Forecast
C20: $ | D20: $ | F20: $
A21: PP&E Values under former CGAAP
A22: Opening net PP&E - Note 1 | D22: =+C25 -> 0 | E22: =+D25 -> 0 | F22: =+E25 -> 0 | G22: =+F25 -> 0
A23: Net Additions - Note 4
A24: Net Depreciation (amounts should be negative) - Note 4
A25: Closing net PP&E (1) | C25: =C22+C23+C24 -> 0 | D25: =D22+D23+D24 -> 0 | E25: =E22+E23+E24 -> 0 | F25: =F22+F23+F24 -> 0 | G25: =G22+G23+G24 -> 0
A27: PP&E Values under revised CGAAP (Starts from 2012)
A28: Opening net PP&E - Note 1 | D28: =+C31 -> 0 | E28: =+D31 -> 0 | F28: =+E31 -> 0 | G28: =+F31 -> 0
A29: Net Additions - Note 4
A30: Net Depreciation (amounts should be negative) - Note 4
A31: Closing net PP&E (2) | C31: =SUM(C28:C30) -> 0 | D31: =SUM(D28:D30) -> 0 | E31: =SUM(E28:E30) -> 0 | F31: =SUM(F28:F30) -> 0 | G31: =SUM(G28:G30) -> 0
A33: Difference in Closing net PP&E, former CGAAP vs. revised CGAAP | C33: =C25-C31 -> 0 | D33: =D25-D31 -> 0 | E33: =E25-E31 -> 0 | F33: =F25-F31 -> 0 | G33: =G25-G31 -> 0
A36: Effect on Deferral and Variance Account Rate Riders
A37: Closing balance in Account 1576 | H37: =IF(ISERROR(G33), 0, G33) -> 0 | J37: WACC
A38: Return on Rate Base Associated with Account 1576 balance at WACC - Note 2 | H38: =G33*K37*K38 -> 0 | I38: # of years of rate rider disposition period
A39: Amount included in Deferral and Variance Account Rate Rider Calculation | H39: =H37+H38 -> 0
A41: Notes:
A42: 1 For an applicant that made the capitalization and depreciation expense accounting policy changes on January 1, 2013, the PP&E values as of January 1, 2013 under both former CGAAP and revised CGAAP should be the same.
A43: 2 Return on rate base associated with Account 1576 balance is calculated as:
A44: the variance account ending balance as of 2017 x WACC X # of years of rate rider disposition period
A45: * Please note that the calculation should be adjusted once WACC is updated and finalized in the rate application.
A46: 3 Account 1576 is cleared by including the total balance in the deferral and variance account rate rider calculation.
A47: 4 Net additions are additions net of disposals; Net depreciation is additions to depreciation net of disposals.
A48: 5 Differences due to the adoption of MIFRS are to be shown separately in Account 1575 in Appendix 2-EA as Accounts 1575 and 1576 cannot be used interchangably.

Sheet Hidden_REG Invest. (hidden)
A1: Utility Name | B1: EB Number | C1: Test Year | D1: Bridge Year | E1: Last Rebasing Year | F1: Renewable Generation Connection Investment Summary | G1: Year | H1: Amount
A2: ='LDC Info'!$E$14 -> Wellington North Power Inc. | B2: =EBNUMBER -> EB-2020-0061 | C2: =TestYear -> 2021 | D2: =BridgeYear -> 2020 | E2: =RebaseYear -> 2016 | F2: REI Investments_A_Total Capital Costs | G2: ='App.2-FA Proposed REG Invest.'!$C$31 -> 2016 | H2: ='App.2-FA Proposed REG Invest.'!C62 -> 0
A3: ='LDC Info'!$E$14 -> Wellington North Power Inc. | B3: EB-2020-0061 | C3: 2021 | D3: 2020 | E3: 2016 | F3: REI Investments_A_Total OM&A Start-Up | G3: ='App.2-FA Proposed REG Invest.'!$C$31 -> 2016 | H3: ='App.2-FA Proposed REG Invest.'!$C63 -> 0
A4: ='LDC Info'!$E$14 -> Wellington North Power Inc. | B4: EB-2020-0061 | C4: 2021 | D4: 2020 | E4: 2016 | F4: REI Investments_A_Total OM&A Ongoing | G4: ='App.2-FA Proposed REG Invest.'!$C$31 -> 2016 | H4: ='App.2-FA Proposed REG Invest.'!$C64 -> 0
A5: ='LDC Info'!$E$14 -> Wellington North Power Inc. | B5: EB-2020-0061 | C5: 2021 | D5: 2020 | E5: 2016 | F5: REI Investments_A_Total Capital Costs | G5: ='App.2-FA Proposed REG Invest.'!$D$31 -> 2017 | H5: ='App.2-FA Proposed REG Invest.'!D62 -> 0
A6: ='LDC Info'!$E$14 -> Wellington North Power Inc. | B6: EB-2020-0061 | C6: 2021 | D6: 2020 | E6: 2016 | F6: REI Investments_A_Total OM&A Start-Up | G6: ='App.2-FA Proposed REG Invest.'!$D$31 -> 2017 | H6: ='App.2-FA Proposed REG Invest.'!D63 -> 0
A7: ='LDC Info'!$E$14 -> Wellington North Power Inc. | B7: EB-2020-0061 | C7: 2021 | D7: 2020 | E7: 2016 | F7: REI Investments_A_Total OM&A Ongoing | G7: ='App.2-FA Proposed REG Invest.'!$D$31 -> 2017 | H7: ='App.2-FA Proposed REG Invest.'!D64 -> 0
A8: ='LDC Info'!$E$14 -> Wellington North Power Inc. | B8: EB-2020-0061 | C8: 2021 | D8: 2020 | E8: 2016 | F8: REI Investments_A_Total Capital Costs | G8: ='App.2-FA Proposed REG Invest.'!$E$31 -> 2018 | H8: ='App.2-FA Proposed REG Invest.'!E62 -> 0
A9: ='LDC Info'!$E$14 -> Wellington North Power Inc. | B9: EB-2020-0061 | C9: 2021 | D9: 2020 | E9: 2016 | F9: REI Investments_A_Total OM&A Start-Up | G9: ='App.2-FA Proposed REG Invest.'!$E$31 -> 2018 | H9: ='App.2-FA Proposed REG Invest.'!E63 -> 0
A10: ='LDC Info'!$E$14 -> Wellington North Power Inc. | B10: EB-2020-0061 | C10: 2021 | D10: 2020 | E10: 2016 | F10: REI Investments_A_Total OM&A Ongoing | G10: ='App.2-FA Proposed REG Invest.'!$E$31 -> 2018 | H10: ='App.2-FA Proposed REG Invest.'!E64 -> 0
A11: ='LDC Info'!$E$14 -> Wellington North Power Inc. | B11: EB-2020-0061 | C11: 2021 | D11: 2020 | E11: 2016 | F11: REI Investments_A_Total Capital Costs | G11: ='App.2-FA Proposed REG Invest.'!$F$31 -> 2019 | H11: ='App.2-FA Proposed REG Invest.'!F62 -> 0
A12: ='LDC Info'!$E$14 -> Wellington North Power Inc. | B12: EB-2020-0061 | C12: 2021 | D12: 2020 | E12: 2016 | F12: REI Investments_A_Total OM&A Start-Up | G12: ='App.2-FA Proposed REG Invest.'!$F$31 -> 2019 | H12: ='App.2-FA Proposed REG Invest.'!F63 -> 0
A13: ='LDC Info'!$E$14 -> Wellington North Power Inc. | B13: EB-2020-0061 | C13: 2021 | D13: 2020 | E13: 2016 | F13: REI Investments_A_Total OM&A Ongoing | G13: ='App.2-FA Proposed REG Invest.'!$F$31 -> 2019 | H13: ='App.2-FA Proposed REG Invest.'!F64 -> 0
A14: ='LDC Info'!$E$14 -> Wellington North Power Inc. | B14: EB-2020-0061 | C14: 2021 | D14: 2020 | E14: 2016 | F14: REI Investments_A_Total Capital Costs | G14: ='App.2-FA Proposed REG Invest.'!$G$31 -> 2020 | H14: ='App.2-FA Proposed REG Invest.'!G62 -> 0
A15: ='LDC Info'!$E$14 -> Wellington North Power Inc. | B15: EB-2020-0061 | C15: 2021 | D15: 2020 | E15: 2016 | F15: REI Investments_A_Total OM&A Start-Up | G15: ='App.2-FA Proposed REG Invest.'!$G$31 -> 2020 | H15: ='App.2-FA Proposed REG Invest.'!G63 -> 0
A16: ='LDC Info'!$E$14 -> Wellington North Power Inc. | B16: EB-2020-0061 | C16: 2021 | D16: 2020 | E16: 2016 | F16: REI Investments_A_Total OM&A Ongoing | G16: ='App.2-FA Proposed REG Invest.'!$G$31 -> 2020 | H16: ='App.2-FA Proposed REG Invest.'!G64 -> 0
A17: ='LDC Info'!$E$14 -> Wellington North Power Inc. | B17: EB-2020-0061 | C17: 2021 | D17: 2020 | E17: 2016 | F17: REI Investments_A_Total Capital Costs | G17: ='App.2-FA Proposed REG Invest.'!$H$31 -> 2021 | H17: ='App.2-FA Proposed REG Invest.'!H62 -> 0
A18: ='LDC Info'!$E$14 -> Wellington North Power Inc. | B18: EB-2020-0061 | C18: 2021 | D18: 2020 | E18: 2016 | F18: REI Investments_A_Total OM&A Start-Up | G18: ='App.2-FA Proposed REG Invest.'!$H$31 -> 2021 | H18: ='App.2-FA Proposed REG Invest.'!H63 -> 0
A19: ='LDC Info'!$E$14 -> Wellington North Power Inc. | B19: EB-2020-0061 | C19: 2021 | D19: 2020 | E19: 2016 | F19: REI Investments_A_Total OM&A Ongoing | G19: ='App.2-FA Proposed REG Invest.'!$H$31 -> 2021 | H19: ='App.2-FA Proposed REG Invest.'!H64 -> 0
A20: ='LDC Info'!$E$14 -> Wellington North Power Inc. | B20: EB-2020-0061 | C20: 2021 | D20: 2020 | E20: 2016 | F20: REI Investments_A_Total Capital Costs | G20: ='App.2-FA Proposed REG Invest.'!$I$31 -> 2022 | H20: ='App.2-FA Proposed REG Invest.'!I62 -> 0
A21: ='LDC Info'!$E$14 -> Wellington North Power Inc. | B21: EB-2020-0061 | C21: 2021 | D21: 2020 | E21: 2016 | F21: REI Investments_A_Total OM&A Start-Up | G21: ='App.2-FA Proposed REG Invest.'!$I$31 -> 2022 | H21: ='App.2-FA Proposed REG Invest.'!I63 -> 0
A22: ='LDC Info'!$E$14 -> Wellington North Power Inc. | B22: EB-2020-0061 | C22: 2021 | D22: 2020 | E22: 2016 | F22: REI Investments_A_Total OM&A Ongoing | G22: ='App.2-FA Proposed REG Invest.'!$I$31 -> 2022 | H22: ='App.2-FA Proposed REG Invest.'!I64 -> 0
A23: ='LDC Info'!$E$14 -> Wellington North Power Inc. | B23: EB-2020-0061 | C23: 2021 | D23: 2020 | E23: 2016 | F23: REI Investments_A_Total Capital Costs | G23: ='App.2-FA Proposed REG Invest.'!$J$31 -> 2023 | H23: ='App.2-FA Proposed REG Invest.'!J62 -> 0
A24: ='LDC Info'!$E$14 -> Wellington North Power Inc. | B24: EB-2020-0061 | C24: 2021 | D24: 2020 | E24: 2016 | F24: REI Investments_A_Total OM&A Start-Up | G24: ='App.2-FA Proposed REG Invest.'!$J$31 -> 2023 | H24: ='App.2-FA Proposed REG Invest.'!J63 -> 0
A25: ='LDC Info'!$E$14 -> Wellington North Power Inc. | B25: EB-2020-0061 | C25: 2021 | D25: 2020 | E25: 2016 | F25: REI Investments_A_Total OM&A Ongoing | G25: ='App.2-FA Proposed REG Invest.'!$J$31 -> 2023 | H25: ='App.2-FA Proposed REG Invest.'!J64 -> 0
A26: ='LDC Info'!$E$14 -> Wellington North Power Inc. | B26: EB-2020-0061 | C26: 2021 | D26: 2020 | E26: 2016 | F26: REI Investments_A_Total Capital Costs | G26: ='App.2-FA Proposed REG Invest.'!$K$31 -> 2024 | H26: ='App.2-FA Proposed REG Invest.'!K62 -> 0
A27: ='LDC Info'!$E$14 -> Wellington North Power Inc. | B27: EB-2020-0061 | C27: 2021 | D27: 2020 | E27: 2016 | F27: REI Investments_A_Total OM&A Start-Up | G27: ='App.2-FA Proposed REG Invest.'!$K$31 -> 2024 | H27: ='App.2-FA Proposed REG Invest.'!K63 -> 0
A28: ='LDC Info'!$E$14 -> Wellington North Power Inc. | B28: EB-2020-0061 | C28: 2021 | D28: 2020 | E28: 2016 | F28: REI Investments_A_Total OM&A Ongoing | G28: ='App.2-FA Proposed REG Invest.'!$K$31 -> 2024 | H28: ='App.2-FA Proposed REG Invest.'!K64 -> 0
A29: ='LDC Info'!$E$14 -> Wellington North Power Inc. | B29: EB-2020-0061 | C29: 2021 | D29: 2020 | E29: 2016 | F29: REI Investments_A_Total Capital Costs | G29: ='App.2-FA Proposed REG Invest.'!$L$31 -> 2025 | H29: ='App.2-FA Proposed REG Invest.'!L62 -> 0
A30: ='LDC Info'!$E$14 -> Wellington North Power Inc. | B30: EB-2020-0061 | C30: 2021 | D30: 2020 | E30: 2016 | F30: REI Investments_A_Total OM&A Start-Up | G30: ='App.2-FA Proposed REG Invest.'!$L$31 -> 2025 | H30: ='App.2-FA Proposed REG Invest.'!L63 -> 0
A31: ='LDC Info'!$E$14 -> Wellington North Power Inc. | B31: EB-2020-0061 | C31: 2021 | D31: 2020 | E31: 2016 | F31: REI Investments_A_Total OM&A Ongoing | G31: ='App.2-FA Proposed REG Invest.'!$L$31 -> 2025 | H31: ='App.2-FA Proposed REG Invest.'!L64 -> 0
A32: ='LDC Info'!$E$14 -> Wellington North Power Inc. | B32: EB-2020-0061 | C32: 2021 | D32: 2020 | E32: 2016 | F32: Expansion Investments_B_Total Capital Costs | G32: ='App.2-FA Proposed REG Invest.'!$C$31 -> 2016 | H32: ='App.2-FA Proposed REG Invest.'!C99 -> 0
A33: ='LDC Info'!$E$14 -> Wellington North Power Inc. | B33: EB-2020-0061 | C33: 2021 | D33: 2020 | E33: 2016 | F33: Expansion Investments_B_Total OM&A Start-Up | G33: ='App.2-FA Proposed REG Invest.'!$C$31 -> 2016 | H33: ='App.2-FA Proposed REG Invest.'!C100 -> 0
A34: ='LDC Info'!$E$14 -> Wellington North Power Inc. | B34: EB-2020-0061 | C34: 2021 | D34: 2020 | E34: 2016 | F34: Expansion Investments_B_Total OM&A Ongoing | G34: ='App.2-FA Proposed REG Invest.'!$C$31 -> 2016 | H34: ='App.2-FA Proposed REG Invest.'!C101 -> 0
A35: ='LDC Info'!$E$14 -> Wellington North Power Inc. | B35: EB-2020-0061 | C35: 2021 | D35: 2020 | E35: 2016 | F35: Expansion Investments_B_Total Capital Costs | G35: ='App.2-FA Proposed REG Invest.'!$D$31 -> 2017 | H35: ='App.2-FA Proposed REG Invest.'!D99 -> 0
A36: ='LDC Info'!$E$14 -> Wellington North Power Inc. | B36: EB-2020-0061 | C36: 2021 | D36: 2020 | E36: 2016 | F36: Expansion Investments_B_Total OM&A Start-Up | G36: ='App.2-FA Proposed REG Invest.'!$D$31 -> 2017 | H36: ='App.2-FA Proposed REG Invest.'!D100 -> 0
A37: ='LDC Info'!$E$14 -> Wellington North Power Inc. | B37: EB-2020-0061 | C37: 2021 | D37: 2020 | E37: 2016 | F37: Expansion Investments_B_Total OM&A Ongoing | G37: ='App.2-FA Proposed REG Invest.'!$D$31 -> 2017 | H37: ='App.2-FA Proposed REG Invest.'!D101 -> 0
A38: ='LDC Info'!$E$14 -> Wellington North Power Inc. | B38: EB-2020-0061 | C38: 2021 | D38: 2020 | E38: 2016 | F38: Expansion Investments_B_Total Capital Costs | G38: ='App.2-FA Proposed REG Invest.'!$E$31 -> 2018 | H38: ='App.2-FA Proposed REG Invest.'!E99 -> 0
A39: ='LDC Info'!$E$14 -> Wellington North Power Inc. | B39: EB-2020-0061 | C39: 2021 | D39: 2020 | E39: 2016 | F39: Expansion Investments_B_Total OM&A Start-Up | G39: ='App.2-FA Proposed REG Invest.'!$E$31 -> 2018 | H39: ='App.2-FA Proposed REG Invest.'!E100 -> 0
A40: ='LDC Info'!$E$14 -> Wellington North Power Inc. | B40: EB-2020-0061 | C40: 2021 | D40: 2020 | E40: 2016 | F40: Expansion Investments_B_Total OM&A Ongoing | G40: ='App.2-FA Proposed REG Invest.'!$E$31 -> 2018 | H40: ='App.2-FA Proposed REG Invest.'!E101 -> 0
A41: ='LDC Info'!$E$14 -> Wellington North Power Inc. | B41: EB-2020-0061 | C41: 2021 | D41: 2020 | E41: 2016 | F41: Expansion Investments_B_Total Capital Costs | G41: ='App.2-FA Proposed REG Invest.'!$F$31 -> 2019 | H41: ='App.2-FA Proposed REG Invest.'!F99 -> 0
A42: ='LDC Info'!$E$14 -> Wellington North Power Inc. | B42: EB-2020-0061 | C42: 2021 | D42: 2020 | E42: 2016 | F42: Expansion Investments_B_Total OM&A Start-Up | G42: ='App.2-FA Proposed REG Invest.'!$F$31 -> 2019 | H42: ='App.2-FA Proposed REG Invest.'!F100 -> 0
A43: ='LDC Info'!$E$14 -> Wellington North Power Inc. | B43: EB-2020-0061 | C43: 2021 | D43: 2020 | E43: 2016 | F43: Expansion Investments_B_Total OM&A Ongoing | G43: ='App.2-FA Proposed REG Invest.'!$F$31 -> 2019 | H43: ='App.2-FA Proposed REG Invest.'!F101 -> 0
A44: ='LDC Info'!$E$14 -> Wellington North Power Inc. | B44: EB-2020-0061 | C44: 2021 | D44: 2020 | E44: 2016 | F44: Expansion Investments_B_Total Capital Costs | G44: ='App.2-FA Proposed REG Invest.'!$G$31 -> 2020 | H44: ='App.2-FA Proposed REG Invest.'!G99 -> 0
A45: ='LDC Info'!$E$14 -> Wellington North Power Inc. | B45: EB-2020-0061 | C45: 2021 | D45: 2020 | E45: 2016 | F45: Expansion Investments_B_Total OM&A Start-Up | G45: ='App.2-FA Proposed REG Invest.'!$G$31 -> 2020 | H45: ='App.2-FA Proposed REG Invest.'!G100 -> 0
A46: ='LDC Info'!$E$14 -> Wellington North Power Inc. | B46: EB-2020-0061 | C46: 2021 | D46: 2020 | E46: 2016 | F46: Expansion Investments_B_Total OM&A Ongoing | G46: ='App.2-FA Proposed REG Invest.'!$G$31 -> 2020 | H46: ='App.2-FA Proposed REG Invest.'!G101 -> 0
A47: ='LDC Info'!$E$14 -> Wellington North Power Inc. | B47: EB-2020-0061 | C47: 2021 | D47: 2020 | E47: 2016 | F47: Expansion Investments_B_Total Capital Costs | G47: ='App.2-FA Proposed REG Invest.'!$H$31 -> 2021 | H47: ='App.2-FA Proposed REG Invest.'!H99 -> 0
A48: ='LDC Info'!$E$14 -> Wellington North Power Inc. | B48: EB-2020-0061 | C48: 2021 | D48: 2020 | E48: 2016 | F48: Expansion Investments_B_Total OM&A Start-Up | G48: ='App.2-FA Proposed REG Invest.'!$H$31 -> 2021 | H48: ='App.2-FA Proposed REG Invest.'!H100 -> 0
A49: ='LDC Info'!$E$14 -> Wellington North Power Inc. | B49: EB-2020-0061 | C49: 2021 | D49: 2020 | E49: 2016 | F49: Expansion Investments_B_Total OM&A Ongoing | G49: ='App.2-FA Proposed REG Invest.'!$H$31 -> 2021 | H49: ='App.2-FA Proposed REG Invest.'!H101 -> 0
A50: ='LDC Info'!$E$14 -> Wellington North Power Inc. | B50: EB-2020-0061 | C50: 2021 | D50: 2020 | E50: 2016 | F50: Expansion Investments_B_Total Capital Costs | G50: ='App.2-FA Proposed REG Invest.'!$I$31 -> 2022 | H50: ='App.2-FA Proposed REG Invest.'!I99 -> 0
A51: ='LDC Info'!$E$14 -> Wellington North Power Inc. | B51: EB-2020-0061 | C51: 2021 | D51: 2020 | E51: 2016 | F51: Expansion Investments_B_Total OM&A Start-Up | G51: ='App.2-FA Proposed REG Invest.'!$I$31 -> 2022 | H51: ='App.2-FA Proposed REG Invest.'!I100 -> 0
A52: ='LDC Info'!$E$14 -> Wellington North Power Inc. | B52: EB-2020-0061 | C52: 2021 | D52: 2020 | E52: 2016 | F52: Expansion Investments_B_Total OM&A Ongoing | G52: ='App.2-FA Proposed REG Invest.'!$I$31 -> 2022 | H52: ='App.2-FA Proposed REG Invest.'!I101 -> 0
A53: ='LDC Info'!$E$14 -> Wellington North Power Inc. | B53: EB-2020-0061 | C53: 2021 | D53: 2020 | E53: 2016 | F53: Expansion Investments_B_Total Capital Costs | G53: ='App.2-FA Proposed REG Invest.'!$J$31 -> 2023 | H53: ='App.2-FA Proposed REG Invest.'!J99 -> 0
A54: ='LDC Info'!$E$14 -> Wellington North Power Inc. | B54: EB-2020-0061 | C54: 2021 | D54: 2020 | E54: 2016 | F54: Expansion Investments_B_Total OM&A Start-Up | G54: ='App.2-FA Proposed REG Invest.'!$J$31 -> 2023 | H54: ='App.2-FA Proposed REG Invest.'!J100 -> 0
A55: ='LDC Info'!$E$14 -> Wellington North Power Inc. | B55: EB-2020-0061 | C55: 2021 | D55: 2020 | E55: 2016 | F55: Expansion Investments_B_Total OM&A Ongoing | G55: ='App.2-FA Proposed REG Invest.'!$J$31 -> 2023 | H55: ='App.2-FA Proposed REG Invest.'!J101 -> 0
A56: ='LDC Info'!$E$14 -> Wellington North Power Inc. | B56: EB-2020-0061 | C56: 2021 | D56: 2020 | E56: 2016 | F56: Expansion Investments_B_Total Capital Costs | G56: ='App.2-FA Proposed REG Invest.'!$K$31 -> 2024 | H56: ='App.2-FA Proposed REG Invest.'!K99 -> 0
A57: ='LDC Info'!$E$14 -> Wellington North Power Inc. | B57: EB-2020-0061 | C57: 2021 | D57: 2020 | E57: 2016 | F57: Expansion Investments_B_Total OM&A Start-Up | G57: ='App.2-FA Proposed REG Invest.'!$K$31 -> 2024 | H57: ='App.2-FA Proposed REG Invest.'!K100 -> 0
A58: ='LDC Info'!$E$14 -> Wellington North Power Inc. | B58: EB-2020-0061 | C58: 2021 | D58: 2020 | E58: 2016 | F58: Expansion Investments_B_Total OM&A Ongoing | G58: ='App.2-FA Proposed REG Invest.'!$K$31 -> 2024 | H58: ='App.2-FA Proposed REG Invest.'!K101 -> 0
A59: ='LDC Info'!$E$14 -> Wellington North Power Inc. | B59: EB-2020-0061 | C59: 2021 | D59: 2020 | E59: 2016 | F59: Expansion Investments_B_Total Capital Costs | G59: ='App.2-FA Proposed REG Invest.'!$L$31 -> 2025 | H59: ='App.2-FA Proposed REG Invest.'!L99 -> 0
A60: ='LDC Info'!$E$14 -> Wellington North Power Inc. | B60: EB-2020-0061 | C60: 2021 | D60: 2020 | E60: 2016 | F60: Expansion Investments_B_Total OM&A Start-Up | G60: ='App.2-FA Proposed REG Invest.'!$L$31 -> 2025 | H60: ='App.2-FA Proposed REG Invest.'!L100 -> 0
A61: ='LDC Info'!$E$14 -> Wellington North Power Inc. | B61: EB-2020-0061 | C61: 2021 | D61: 2020 | E61: 2016 | F61: Expansion Investments_B_Total OM&A Ongoing | G61: ='App.2-FA Proposed REG Invest.'!$L$31 -> 2025 | H61: ='App.2-FA Proposed REG Invest.'!L101 -> 0

Sheet Hidden_REG Improvement (hidden)
A1: Utility Name | B1: EB Number | C1: Test Year | D1: Bridge Year | E1: Last Rebasing Year | F1: Renewable Generation Connection Direct Benefits/Provincial Amount Renewable Enabling Improvement Investments | G1: Year | H1: Amount
A2: ='LDC Info'!$E$14 -> Wellington North Power Inc. | B2: =EBNUMBER -> EB-2020-0061 | C2: =TestYear -> 2021 | D2: =BridgeYear -> 2020 | E2: =RebaseYear -> 2016 | F2: Provincial Rate Protection | G2: ='App.2-FB Calc of REG Improvemnt'!D17 -> 2016 | H2: ='App.2-FB Calc of REG Improvemnt'!F$44 -> 0
A3: ='LDC Info'!$E$14 -> Wellington North Power Inc. | B3: EB-2020-0061 | C3: 2021 | D3: 2020 | E3: 2016 | F3: Provincial Rate Protection | G3: ='App.2-FB Calc of REG Improvemnt'!G17 -> 2017 | H3: ='App.2-FB Calc of REG Improvemnt'!I$44 -> 0
A4: ='LDC Info'!$E$14 -> Wellington North Power Inc. | B4: EB-2020-0061 | C4: 2021 | D4: 2020 | E4: 2016 | F4: Provincial Rate Protection | G4: ='App.2-FB Calc of REG Improvemnt'!J17 -> 2018 | H4: ='App.2-FB Calc of REG Improvemnt'!L$44 -> 0
A5: ='LDC Info'!$E$14 -> Wellington North Power Inc. | B5: EB-2020-0061 | C5: 2021 | D5: 2020 | E5: 2016 | F5: Provincial Rate Protection | G5: ='App.2-FB Calc of REG Improvemnt'!M17 -> 2019 | H5: ='App.2-FB Calc of REG Improvemnt'!O$44 -> 0
A6: ='LDC Info'!$E$14 -> Wellington North Power Inc. | B6: EB-2020-0061 | C6: 2021 | D6: 2020 | E6: 2016 | F6: Provincial Rate Protection | G6: ='App.2-FB Calc of REG Improvemnt'!P17 -> 2020 | H6: ='App.2-FB Calc of REG Improvemnt'!R$44 -> 0
A7: ='LDC Info'!$E$14 -> Wellington North Power Inc. | B7: EB-2020-0061 | C7: 2021 | D7: 2020 | E7: 2016 | F7: Provincial Rate Protection | G7: ='App.2-FB Calc of REG Improvemnt'!S17 -> 2021 | H7: ='App.2-FB Calc of REG Improvemnt'!U$44 -> 0
A8: ='LDC Info'!$E$14 -> Wellington North Power Inc. | B8: EB-2020-0061 | C8: 2021 | D8: 2020 | E8: 2016 | F8: Provincial Rate Protection | G8: ='App.2-FB Calc of REG Improvemnt'!V17 -> 2022 | H8: ='App.2-FB Calc of REG Improvemnt'!X$44 -> 0
A9: ='LDC Info'!$E$14 -> Wellington North Power Inc. | B9: EB-2020-0061 | C9: 2021 | D9: 2020 | E9: 2016 | F9: Provincial Rate Protection | G9: ='App.2-FB Calc of REG Improvemnt'!Y17 -> 2023 | H9: ='App.2-FB Calc of REG Improvemnt'!AA$44 -> 0
A10: ='LDC Info'!$E$14 -> Wellington North Power Inc. | B10: EB-2020-0061 | C10: 2021 | D10: 2020 | E10: 2016 | F10: Provincial Rate Protection | G10: ='App.2-FB Calc of REG Improvemnt'!AB17 -> 2024 | H10: ='App.2-FB Calc of REG Improvemnt'!AD$44 -> 0
A11: ='LDC Info'!$E$14 -> Wellington North Power Inc. | B11: EB-2020-0061 | C11: 2021 | D11: 2020 | E11: 2016 | F11: Provincial Rate Protection | G11: ='App.2-FB Calc of REG Improvemnt'!AE17 -> 2025 | H11: ='App.2-FB Calc of REG Improvemnt'!AG$44 -> 0

Sheet Hidden_REG Expansion (hidden)
A1: Utility Name | B1: EB Number | C1: Test Year | D1: Bridge Year | E1: Last Rebasing Year | F1: Calculation of Renewable Generation Connection Direct Benefits/Provincial Amount Renewable Expansion Investments | G1: Year | H1: Amount
A2: ='LDC Info'!$E$14 -> Wellington North Power Inc. | B2: =EBNUMBER -> EB-2020-0061 | C2: =TestYear -> 2021 | D2: =BridgeYear -> 2020 | E2: =RebaseYear -> 2016 | F2: Provincial Rate Protection | G2: ='App.2-FC Calc of REG Expansion'!D$17 -> 2016 | H2: ='App.2-FC Calc of REG Expansion'!F$44 -> 0
A3: ='LDC Info'!$E$14 -> Wellington North Power Inc. | B3: EB-2020-0061 | C3: 2021 | D3: 2020 | E3: 2016 | F3: Provincial Rate Protection | G3: ='App.2-FC Calc of REG Expansion'!G$17 -> 2017 | H3: ='App.2-FC Calc of REG Expansion'!I$44 -> 0
A4: ='LDC Info'!$E$14 -> Wellington North Power Inc. | B4: EB-2020-0061 | C4: 2021 | D4: 2020 | E4: 2016 | F4: Provincial Rate Protection | G4: ='App.2-FC Calc of REG Expansion'!J$17 -> 2018 | H4: ='App.2-FC Calc of REG Expansion'!L$44 -> 0
A5: ='LDC Info'!$E$14 -> Wellington North Power Inc. | B5: EB-2020-0061 | C5: 2021 | D5: 2020 | E5: 2016 | F5: Provincial Rate Protection | G5: ='App.2-FC Calc of REG Expansion'!M$17 -> 2019 | H5: ='App.2-FC Calc of REG Expansion'!O$44 -> 0
A6: ='LDC Info'!$E$14 -> Wellington North Power Inc. | B6: EB-2020-0061 | C6: 2021 | D6: 2020 | E6: 2016 | F6: Provincial Rate Protection | G6: ='App.2-FC Calc of REG Expansion'!P$17 -> 2020 | H6: ='App.2-FC Calc of REG Expansion'!R$44 -> 0
A7: ='LDC Info'!$E$14 -> Wellington North Power Inc. | B7: EB-2020-0061 | C7: 2021 | D7: 2020 | E7: 2016 | F7: Provincial Rate Protection | G7: ='App.2-FC Calc of REG Expansion'!S$17 -> 2021 | H7: ='App.2-FC Calc of REG Expansion'!U$44 -> 0
A8: ='LDC Info'!$E$14 -> Wellington North Power Inc. | B8: EB-2020-0061 | C8: 2021 | D8: 2020 | E8: 2016 | F8: Provincial Rate Protection | G8: ='App.2-FC Calc of REG Expansion'!V$17 -> 2022 | H8: ='App.2-FC Calc of REG Expansion'!X$44 -> 0
A9: ='LDC Info'!$E$14 -> Wellington North Power Inc. | B9: EB-2020-0061 | C9: 2021 | D9: 2020 | E9: 2016 | F9: Provincial Rate Protection | G9: ='App.2-FC Calc of REG Expansion'!Y$17 -> 2023 | H9: ='App.2-FC Calc of REG Expansion'!AA$44 -> 0
A10: ='LDC Info'!$E$14 -> Wellington North Power Inc. | B10: EB-2020-0061 | C10: 2021 | D10: 2020 | E10: 2016 | F10: Provincial Rate Protection | G10: ='App.2-FC Calc of REG Expansion'!AB$17 -> 2024 | H10: ='App.2-FC Calc of REG Expansion'!AD$44 -> 0
A11: ='LDC Info'!$E$14 -> Wellington North Power Inc. | B11: EB-2020-0061 | C11: 2021 | D11: 2020 | E11: 2016 | F11: Provincial Rate Protection | G11: ='App.2-FC Calc of REG Expansion'!AE$17 -> 2025 | H11: ='App.2-FC Calc of REG Expansion'!AG$44 -> 0

Sheet App.2-FA Proposed REG Invest.
K1: File Number: | L1: 0
K2: Exhibit: | L2: n/a
K3: Tab:
A4: TO BE UPDATED AT DRAFT RATE ORDER STAGE | K4: Schedule:
K5: Page:
K7: Date:
A9: Appendix 2-FA
A10: Renewable Generation Connection Investment Summary (past investments or over the future rate setting period)
A12: Enter the details of the Renewable Generation Connection projects as described in the appropriate section of the Filing Requirements.
A13: All costs entered on this page will be transferred to the appropriate cells in the appendices that follow.
A14: For Part A, Renewable Enabling Improvements (REI), these amounts will be transferred to Appendix 2 - FB
A15: For Part B, Expansions, these amounts will be transferred to Appendix 2 - FC
A17: If there are more than five projects proposed to be in-service in a certain year, please amend the tables below and ensure that the formulae for the Total Amounts in any given rate year are updated.
A18: Based on the current methodology and allocation, amounts allocated represent 6% for REI Connection Investments and 17% for Expansion Investments. (EB-2009-0349, 6-10-2010, p. 15, note 9)
A19: Ensure that OM&A costs below are not included in Recoverable OM&A (App. 2-JA)
A20: There are two scenarios described below. Separate sets of spreadsheets (2-FA, 2-FB, 2-FC) should be submited for each scenario as required.
A21: Scenario 1: | B21: Past Investments with No Recovery. The distributor has made investments in the past (during the IRM Years), but has not received approval for these projects and therefore did not receive
B22: revenue from the IESO under Regulation 330/09 and did not receive ratepayer revenue for the direct benefit portion of the investment.
B23: The WCA percentage, debt percentages, interest rates, kWh, tax rates, amortization period, CCA Class and percentage should correspond to the distributor's last Cost of Service approval.
B24: The Direct Benefit portion of the calculated Revenue Requirement for each year should be summed and can be applied for recovery from the distributor's ratepayers through a rate rider.
B25: The Provincial Recovery portion of the calculated Revenue Requirement for each year should be summed and can be applied for recovery from the IESO through a separate order.
A27: Scenario 2: | B27: Investments in the Test Year and Beyond. Distributor plans to make investments in 2021 and/or beyond. These investments should be added to 2-FA in the appropriate year.
B28: The WCA percentage, debt percentages, interest rates, kWh, tax rates, amortization period, CCA Class and percentage should correspond to the distributor's current application.
A30: Part A | H30: Test Year
A31: REI Investments (Direct Benefit at 6%) | C31: =D31-1 -> 2016 | D31: =E31-1 -> 2017 | E31: =F31-1 -> 2018 | F31: =G31-1 -> 2019 | G31: =H31-1 -> 2020 | H31: ='LDC Info'!$E$24 -> 2021 | I31: =H31+1 -> 2022 | J31: =I31+1 -> 2023 | K31: =J31+1 -> 2024 | L31: =K31+1 -> 2025
A32: Project 1
A33: Name: REI Connection Project
A34: Capital Costs | C34: 0 | D34: 0 | E34: 0 | F34: 0 | G34: 0 | H34: 0 | I34: 0 | J34: 0 | K34: 0 | L34: 0
A35: Incremental OM&A (Start-Up) | C35: 0 | D35: 0 | E35: 0 | F35: 0 | G35: 0 | H35: 0 | I35: 0 | J35: 0 | K35: 0 | L35: 0
A36: Incremental OM&A (Ongoing) | C36: 0 | D36: 0 | E36: 0 | F36: 0 | G36: 0 | H36: 0 | I36: 0 | J36: 0 | K36: 0 | L36: 0
A38: Project 2
A39: Name: REI Connection Project
A40: Capital Costs | C40: 0 | D40: 0 | E40: 0 | F40: 0 | G40: 0 | H40: 0 | I40: 0 | J40: 0 | K40: 0 | L40: 0
A41: Incremental OM&A (Start-Up) | C41: 0 | D41: 0 | E41: 0 | F41: 0 | G41: 0 | H41: 0 | I41: 0 | J41: 0 | K41: 0 | L41: 0
A42: Incremental OM&A (Ongoing) | C42: 0 | D42: 0 | E42: 0 | F42: 0 | G42: 0 | H42: 0 | I42: 0 | J42: 0 | K42: 0 | L42: 0
A44: Project 3
A45: Name: REI Connection Project
A46: Capital Costs | C46: 0 | D46: 0 | E46: 0 | F46: 0 | G46: 0 | H46: 0 | I46: 0 | J46: 0 | K46: 0 | L46: 0
A47: Incremental OM&A (Start-Up) | C47: 0 | D47: 0 | E47: 0 | F47: 0 | G47: 0 | H47: 0 | I47: 0 | J47: 0 | K47: 0 | L47: 0
A48: Incremental OM&A (Ongoing) | C48: 0 | D48: 0 | E48: 0 | F48: 0 | G48: 0 | H48: 0 | I48: 0 | J48: 0 | K48: 0 | L48: 0
A50: Project 4
A51: Name: REI Connection Project
A52: Capital Costs | C52: 0 | D52: 0 | E52: 0 | F52: 0 | G52: 0 | H52: 0 | I52: 0 | J52: 0 | K52: 0 | L52: 0
A53: Incremental OM&A (Start-Up) | C53: 0 | D53: 0 | E53: 0 | F53: 0 | G53: 0 | H53: 0 | I53: 0 | J53: 0 | K53: 0 | L53: 0
A54: Incremental OM&A (Ongoing) | C54: 0 | D54: 0 | E54: 0 | F54: 0 | G54: 0 | H54: 0 | I54: 0 | J54: 0 | K54: 0 | L54: 0
A56: Project 5
A57: Name: REI Connection Project
A58: Capital Costs | C58: 0 | D58: 0 | E58: 0 | F58: 0 | G58: 0 | H58: 0 | I58: 0 | J58: 0 | K58: 0 | L58: 0
A59: Incremental OM&A (Start-Up) | C59: 0 | D59: 0 | E59: 0 | F59: 0 | G59: 0 | H59: 0 | I59: 0 | J59: 0 | K59: 0 | L59: 0
A60: Incremental OM&A (Ongoing) | C60: 0 | D60: 0 | E60: 0 | F60: 0 | G60: 0 | H60: 0 | I60: 0 | J60: 0 | K60: 0 | L60: 0
A62: Total Capital Costs | C62: =SUM(C58,C52,C46,C40,C34) -> 0 | D62: 0 | E62: 0 | F62: 0 | G62: 0 | H62: 0 | I62: 0 | J62: 0 | K62: 0 | L62: 0
A63: Total Incremental OM&A (Start-Up) | C63: 0 | D63: 0 | E63: 0 | F63: 0 | G63: 0 | H63: 0 | I63: 0 | J63: 0 | K63: 0 | L63: 0
A64: Total Incremental OM&A (Ongoing) | C64: 0 | D64: 0 | E64: 0 | F64: 0 | G64: 0 | H64: 0 | I64: 0 | J64: 0 | K64: 0 | L64: 0
A67: Part B | H67: Test Year
A68: Expansion Investments (Direct Benefit at 17%) | C68: =D68-1 -> 2016 | D68: =E68-1 -> 2017 | E68: =F68-1 -> 2018 | F68: =G68-1 -> 2019 | G68: =H68-1 -> 2020 | H68: =H31 -> 2021 | I68: =H68+1 -> 2022 | J68: =I68+1 -> 2023 | K68: =J68+1 -> 2024 | L68: =K68+1 -> 2025
A69: Project 1
A70: Name: Expansion Connection Project
A71: Capital Costs | C71: 0 | D71: 0 | E71: 0 | F71: 0 | G71: 0 | H71: 0 | I71: 0 | J71: 0 | K71: 0 | L71: 0
A72: Incremental OM&A (Start-Up) | C72: 0 | D72: 0 | E72: 0 | F72: 0 | G72: 0 | H72: 0 | I72: 0 | J72: 0 | K72: 0 | L72: 0
A73: Incremental OM&A (Ongoing) | C73: 0 | D73: 0 | E73: 0 | F73: 0 | G73: 0 | H73: 0 | I73: 0 | J73: 0 | K73: 0 | L73: 0
A75: Project 2
A76: Name: Expansion Connection Project
A77: Capital Costs | C77: 0 | D77: 0 | E77: 0 | F77: 0 | G77: 0 | H77: 0 | I77: 0 | J77: 0 | K77: 0 | L77: 0
A78: Incremental OM&A (Start-Up) | C78: 0 | D78: 0 | E78: 0 | F78: 0 | G78: 0 | H78: 0 | I78: 0 | J78: 0 | K78: 0 | L78: 0
A79: Incremental OM&A (Ongoing) | C79: 0 | D79: 0 | E79: 0 | F79: 0 | G79: 0 | H79: 0 | I79: 0 | J79: 0 | K79: 0 | L79: 0
A81: Project 3
A82: Name: Expansion Connection Project
A83: Capital Costs | C83: 0 | D83: 0 | E83: 0 | F83: 0 | G83: 0 | H83: 0 | I83: 0 | J83: 0 | K83: 0 | L83: 0
A84: Incremental OM&A (Start-Up) | C84: 0 | D84: 0 | E84: 0 | F84: 0 | G84: 0 | H84: 0 | I84: 0 | J84: 0 | K84: 0 | L84: 0
A85: Incremental OM&A (Ongoing) | C85: 0 | D85: 0 | E85: 0 | F85: 0 | G85: 0 | H85: 0 | I85: 0 | J85: 0 | K85: 0 | L85: 0
A87: Project 4
A88: Name: Expansion Connection Project
A89: Capital Costs | C89: 0 | D89: 0 | E89: 0 | F89: 0 | G89: 0 | H89: 0 | I89: 0 | J89: 0 | K89: 0 | L89: 0
A90: Incremental OM&A (Start-Up) | C90: 0 | D90: 0 | E90: 0 | F90: 0 | G90: 0 | H90: 0 | I90: 0 | J90: 0 | K90: 0 | L90: 0
A91: Incremental OM&A (Ongoing) | C91: 0 | D91: 0 | E91: 0 | F91: 0 | G91: 0 | H91: 0 | I91: 0 | J91: 0 | K91: 0 | L91: 0
A93: Project 5
A94: Name: Expansion Connection Project
A95: Capital Costs | C95: 0 | D95: 0 | E95: 0 | F95: 0 | G95: 0 | H95: 0 | I95: 0 | J95: 0 | K95: 0 | L95: 0
A96: Incremental OM&A (Start-Up) | C96: 0 | D96: 0 | E96: 0 | F96: 0 | G96: 0 | H96: 0 | I96: 0 | J96: 0 | K96: 0 | L96: 0
A97: Incremental OM&A (Ongoing) | C97: 0 | D97: 0 | E97: 0 | F97: 0 | G97: 0 | H97: 0 | I97: 0 | J97: 0 | K97: 0 | L97: 0
A99: Total Capital Costs | C99: =SUM(C95,C89,C83,C77,C71) -> 0 | D99: 0 | E99: 0 | F99: 0 | G99: 0 | H99: 0 | I99: 0 | J99: 0 | K99: 0 | L99: 0
A100: Total Incremental OM&A (Start-Up) | C100: 0 | D100: 0 | E100: 0 | F100: 0 | G100: 0 | H100: 0 | I100: 0 | J100: 0 | K100: 0 | L100: 0
A101: Total Incremental OM&A (Ongoing) | C101: 0 | D101: 0 | E101: 0 | F101: 0 | G101: 0 | H101: 0 | I101: 0 | J101: 0 | K101: 0 | L101: 0

Sheet App.2-FB Calc of REG Improvemnt
R1: File Number: | S1: 0
R2: Exhibit: | S2: n/a
R3: Tab:
A4: TO BE UPDATED AT DRAFT RATE ORDER STAGE | R4: Schedule:
R5: Page:
R7: Date:
A9: Appendix 2-FB
A10: Calculation of Renewable Generation Connection Direct Benefits/Provincial Amount: Renewable Enabling Improvement Investments
A12: This table will calculate the distributor/provincial shares of the investments entered in Part A of Appendix 2-FA.
A13: Enter values in green shaded cells: WCA percentage, debt percentages, interest rates, kWh, tax rates, amortization period, CCA Class and percentage.
A14: For historical investments, enter these variables that were approved in your last cost of service test year. For 2021 and beyond, enter variables as in the application.
A15: Rate Riders related to the direct benefit portion of the renewable investments are not calculated for the Test Year as these assets and costs are already in the distributor's rate base/revenue requirement.
S16: Test Year
D17: =G17-1 -> 2016 | G17: =J17-1 -> 2017 | J17: =M17-1 -> 2018 | M17: =P17-1 -> 2019 | P17: =S17-1 -> 2020 | S17: ='LDC Info'!$E$24 -> 2021 | V17: =S17+1 -> 2022 | Y17: =V17+1 -> 2023 | Z17: 2016 | AB17: =Y17+1 -> 2024 | AE17: =AB17+1 -> 2025 | AH17: =AE17+1 -> 2026
E18: Direct Benefit | F18: Provincial | H18: Direct Benefit | I18: Provincial | K18: Direct Benefit | L18: Provincial | N18: Direct Benefit | O18: Provincial | Q18: Direct Benefit | R18: Provincial | T18: Direct Benefit | U18: Provincial | W18: Direct Benefit | X18: Provincial | Z18: Direct Benefit | AA18: Provincial | AC18: Direct Benefit | AD18: Provincial | AF18: Direct Benefit | AG18: Provincial | AI18: Direct Benefit | AJ18: Provincial
D19: Total | E19: 0.06 | F19: 0.94 | G19: Total | H19: 0.06 | I19: 0.94 | J19: Total | K19: 0.06 | L19: 0.94 | M19: Total | N19: 0.06 | O19: 0.94 | P19: Total | Q19: 0.06 | R19: 0.94 | S19: Total | T19: 0.06 | U19: 0.94 | V19: Total | W19: 0.06 | X19: 0.94 | Y19: Total | Z19: 0.06 | AA19: 0.94 | AB19: Total | AC19: 0.06 | AD19: 0.94 | AE19: Total | AF19: 0.06 | AG19: 0.94 | AH19: Total | AI19: 0.06 | AJ19: 0.94
A20: Net Fixed Assets (average) | D20: =E83 -> 0 | E20: =D20*E19 -> 0 | F20: =D20*F19 -> 0 | G20: =F83 -> 0 | H20: =G20*H19 -> 0 | I20: =G20*I19 -> 0 | J20: =G83 -> 0 | K20: =J20*K19 -> 0 | L20: =J20*L19 -> 0 | M20: =H83 -> 0 | N20: =M20*N19 -> 0 | O20: =M20*O19 -> 0 | P20: =I83 -> 0 | Q20: =P20*Q19 -> 0 | R20: =P20*R19 -> 0 | S20: =J83 -> 0 | T20: =S20*T19 -> 0 | U20: =S20*U19 -> 0 | V20: =K83 -> 0 | W20: =V20*W19 -> 0 | X20: =V20*X19 -> 0 | Y20: =L83 -> 0 | Z20: =Y20*Z19 -> 0 | AA20: =Y20*AA19 -> 0 | AB20: =M83 -> 0 | AC20: =AB20*AC19 -> 0 | AD20: =AB20*AD19 -> 0 | AE20: =N83 -> 0 | AF20: =AE20*AF19 -> 0 | AG20: =AE20*AG19 -> 0 | AH20: =O83 -> 0 | AI20: =AH20*AI19 -> 0 | AJ20: =AH20*AJ19 -> 0
A21: Incremental OM&A (on-going, N/A for Provincial Recovery) | D21: 0 | E21: =D21*E19 -> 0 | F21: =D21*F19 -> 0 | G21: 0 | H21: =G21*H19 -> 0 | I21: =G21*I19 -> 0 | J21: 0 | K21: =J21*K19 -> 0 | L21: =J21*L19 -> 0 | M21: 0 | N21: =M21*N19 -> 0 | O21: =M21*O19 -> 0 | P21: 0 | Q21: =P21*Q19 -> 0 | R21: =P21*R19 -> 0 | S21: 0 | T21: =S21*T19 -> 0 | U21: =S21*U19 -> 0 | V21: 0 | W21: =V21*W19 -> 0 | X21: =V21*X19 -> 0 | Y21: 0 | Z21: =Y21*Z19 -> 0 | AA21: =Y21*AA19 -> 0 | AB21: 0 | AC21: =AB21*AC19 -> 0 | AD21: =AB21*AD19 -> 0 | AE21: 0 | AF21: =AE21*AF19 -> 0 | AG21: =AE21*AG19 -> 0 | AH21: 0 | AI21: =AH21*AI19 -> 0 | AJ21: =AH21*AJ19 -> 0
A22: Incremental OM&A (start-up, applicable for Provincial Recovery) | D22: 0 | E22: =D22*E19 -> 0 | F22: =D22*F19 -> 0 | G22: 0 | H22: =G22*H19 -> 0 | I22: =G22*I19 -> 0 | J22: 0 | K22: =J22*K19 -> 0 | L22: =J22*L19 -> 0 | M22: 0 | N22: =M22*N19 -> 0 | O22: =M22*O19 -> 0 | P22: 0 | Q22: =P22*Q19 -> 0 | R22: =P22*R19 -> 0 | S22: 0 | T22: =S22*T19 -> 0 | U22: =S22*U19 -> 0 | V22: 0 | W22: =V22*W19 -> 0 | X22: =V22*X19 -> 0 | Y22: 0 | Z22: =Y22*Z19 -> 0 | AA22: =Y22*AA19 -> 0 | AB22: 0 | AC22: =AB22*AC19 -> 0 | AD22: =AB22*AD19 -> 0 | AE22: 0 | AF22: =AE22*AF19 -> 0 | AG22: =AE22*AG19 -> 0 | AH22: 0 | AI22: =AH22*AI19 -> 0 | AJ22: =AH22*AJ19 -> 0
A23: Rebasing Year vs. Test Year | B23: ='LDC Info'!E28 -> 2016 | C23: ='LDC Info'!E24 -> 2021
A24: Allowance for Working Capital (enter rate) | E24: =IF(AND(D$17>=$B$23, D$17<$C$23),(E21+E22)*$B$24,(E21+E22)*$C$24) -> 0 | F24: =IF(AND(D$17>=$B$23, D$17<$C$23),(F22)*$B$24,(F22)*$C$24) -> 0 | H24: =IF(AND(G$17>=$B$23, G$17<$C$23),(H21+H22)*$B$24,(H21+H22)*$C$24) -> 0 | I24: =IF(AND(G$17>=$B$23, G$17<$C$23),(I22)*$B$24,(I22)*$C$24) -> 0 | K24: =IF(AND(J$17>=$B$23, J$17<$C$23),(K21+K22)*$B$24,(K21+K22)*$C$24) -> 0 | L24: =IF(AND(J$17>=$B$23, J$17<$C$23),(L22)*$B$24,(L22)*$C$24) -> 0 | N24: =IF(AND(M$17>=$B$23, M$17<$C$23),(N21+N22)*$B$24,(N21+N22)*$C$24) -> 0 | O24: =IF(AND(M$17>=$B$23, M$17<$C$23),(O22)*$B$24,(O22)*$C$24) -> 0 | Q24: =IF(AND(P$17>=$B$23, P$17<$C$23),(Q21+Q22)*$B$24,(Q21+Q22)*$C$24) -> 0 | R24: =IF(AND(P$17>=$B$23, P$17<$C$23),(R22)*$B$24,(R22)*$C$24) -> 0 | T24: =IF(AND(S$17>=$B$23, S$17<$C$23),(T21+T22)*$B$24,(T21+T22)*$C$24) -> 0 | U24: =IF(AND(S$17>=$B$23, S$17<$C$23),(U22)*$B$24,(U22)*$C$24) -> 0 | W24: =IF(AND(V$17>=$B$23, V$17<$C$23),(W21+W22)*$B$24,(W21+W22)*$C$24) -> 0 | X24: =IF(AND(V$17>=$B$23, V$17<$C$23),(X22)*$B$24,(X22)*$C$24) -> 0 | Z24: =IF(AND(Y$17>=$B$23, Y$17<$C$23),(Z21+Z22)*$B$24,(Z21+Z22)*$C$24) -> 0 | AA24: =IF(AND(Y$17>=$B$23, Y$17<$C$23),(AA22)*$B$24,(AA22)*$C$24) -> 0 | AC24: =IF(AND(AB$17>=$B$23, AB$17<$C$23),(AC21+AC22)*$B$24,(AC21+AC22)*$C$24) -> 0 | AD24: =IF(AND(AB$17>=$B$23, AB$17<$C$23),(AD22)*$B$24,(AD22)*$C$24) -> 0 | AF24: =IF(AND(AE$17>=$B$23, AE$17<$C$23),(AF21+AF22)*$B$24,(AF21+AF22)*$C$24) -> 0 | AG24: =IF(AND(AE$17>=$B$23, AE$17<$C$23),(AG22)*$B$24,(AG22)*$C$24) -> 0 | AI24: =IF(AND(AH$17>=$B$23, AH$17<$C$23),(AI21+AI22)*$B$24,(AI21+AI22)*$C$24) -> 0 | AJ24: =IF(AND(AH$17>=$B$23, AH$17<$C$23),(AJ22)*$B$24,(AJ22)*$C$24) -> 0
A25: Rate Base | E25: =SUM(E20+E24) -> 0 | F25: =SUM(F20+F24) -> 0 | H25: =SUM(H20+H24) -> 0 | I25: =SUM(I20+I24) -> 0 | K25: =SUM(K20+K24) -> 0 | L25: =SUM(L20+L24) -> 0 | N25: =SUM(N20+N24) -> 0 | O25: =SUM(O20+O24) -> 0 | Q25: =SUM(Q20+Q24) -> 0 | R25: =SUM(R20+R24) -> 0 | T25: =SUM(T20+T24) -> 0 | U25: =SUM(U20+U24) -> 0 | W25: =SUM(W20+W24) -> 0 | X25: =SUM(X20+X24) -> 0 | Z25: =SUM(Z20+Z24) -> 0 | AA25: =SUM(AA20+AA24) -> 0 | AC25: =SUM(AC20+AC24) -> 0 | AD25: =SUM(AD20+AD24) -> 0 | AF25: =SUM(AF20+AF24) -> 0 | AG25: =SUM(AG20+AG24) -> 0 | AI25: =SUM(AI20+AI24) -> 0 | AJ25: =SUM(AJ20+AJ24) -> 0
A27: Rebasing Year vs. Test Year | B27: =B23 -> 2016 | C27: =C23 -> 2021
A28: Deemed ST Debt | B28: 0.04 | C28: 0.04 | E28: =E25*$B$28 -> 0 | F28: =F25*$B$28 -> 0 | H28: =H25*$B$28 -> 0 | I28: =I25*$B$28 -> 0 | K28: =K25*$B$28 -> 0 | L28: =L25*$B$28 -> 0 | N28: =N25*$B$28 -> 0 | O28: =O25*$B$28 -> 0 | Q28: =Q25*$B$28 -> 0 | R28: =R25*$B$28 -> 0 | T28: =T25*$C$28 -> 0 | U28: =U25*$C$28 -> 0 | W28: =W25*$C$28 -> 0 | X28: =X25*$C$28 -> 0 | Z28: =Z25*$C$28 -> 0 | AA28: =AA25*$C$28 -> 0 | AC28: =AC25*$C$28 -> 0 | AD28: =AD25*$C$28 -> 0 | AF28: =AF25*$C$28 -> 0 | AG28: =AG25*$C$28 -> 0 | AI28: =AI25*$C$28 -> 0 | AJ28: =AJ25*$C$28 -> 0
A29: Deemed LT Debt | B29: 0.56 | C29: 0.56 | E29: =E25*$B$29 -> 0 | F29: =F25*$B$29 -> 0 | H29: =H25*$B$29 -> 0 | I29: =I25*$B$29 -> 0 | K29: =K25*$B$29 -> 0 | L29: =L25*$B$29 -> 0 | N29: =N25*$B$29 -> 0 | O29: =O25*$B$29 -> 0 | Q29: =Q25*$B$29 -> 0 | R29: =R25*$B$29 -> 0 | T29: =T25*$C$29 -> 0 | U29: =U25*$C$29 -> 0 | W29: =W25*$C$29 -> 0 | X29: =X25*$C$29 -> 0 | Z29: =Z25*$C$29 -> 0 | AA29: =AA25*$C$29 -> 0 | AC29: =AC25*$C$29 -> 0 | AD29: =AD25*$C$29 -> 0 | AF29: =AF25*$C$29 -> 0 | AG29: =AG25*$C$29 -> 0 | AI29: =AI25*$C$29 -> 0 | AJ29: =AJ25*$C$29 -> 0
A30: Deemed Equity | B30: 0.4 | C30: 0.4 | E30: =E25*$B$30 -> 0 | F30: =F25*$B$30 -> 0 | H30: =H25*$B$30 -> 0 | I30: =I25*$B$30 -> 0 | K30: =K25*$B$30 -> 0 | L30: =L25*$B$30 -> 0 | N30: =N25*$B$30 -> 0 | O30: =O25*$B$30 -> 0 | Q30: =Q25*$B$30 -> 0 | R30: =R25*$B$30 -> 0 | T30: =T25*$C$30 -> 0 | U30: =U25*$C$30 -> 0 | W30: =W25*$C$30 -> 0 | X30: =X25*$C$30 -> 0 | Z30: =Z25*$C$30 -> 0 | AA30: =AA25*$C$30 -> 0 | AC30: =AC25*$C$30 -> 0 | AD30: =AD25*$C$30 -> 0 | AF30: =AF25*$C$30 -> 0 | AG30: =AG25*$C$30 -> 0 | AI30: =AI25*$C$30 -> 0 | AJ30: =AJ25*$C$30 -> 0
A32: ST Interest (enter rate) | E32: =E28*$B32 -> 0 | F32: 0 | H32: 0 | I32: 0 | K32: 0 | L32: 0 | N32: 0 | O32: 0 | Q32: 0 | R32: 0 | T32: =T28*$C32 -> 0 | U32: 0 | W32: =W28*$C32 -> 0 | X32: 0 | Z32: =Z28*$C32 -> 0 | AA32: 0 | AC32: =AC28*$C32 -> 0 | AD32: 0 | AF32: =AF28*$C32 -> 0 | AG32: 0 | AI32: =AI28*$C32 -> 0 | AJ32: 0
A33: LT Interest (enter rate) | E33: 0 | F33: 0 | H33: 0 | I33: 0 | K33: 0 | L33: 0 | N33: 0 | O33: 0 | Q33: 0 | R33: 0 | T33: 0 | U33: 0 | W33: 0 | X33: 0 | Z33: 0 | AA33: 0 | AC33: 0 | AD33: 0 | AF33: 0 | AG33: 0 | AI33: =AI29*$C33 -> 0 | AJ33: 0
A34: Return on Equity (enter rate) | E34: 0 | F34: 0 | H34: 0 | I34: 0 | K34: 0 | L34: 0 | N34: 0 | O34: 0 | Q34: 0 | R34: 0 | T34: 0 | U34: 0 | W34: 0 | X34: 0 | Z34: 0 | AA34: 0 | AC34: 0 | AD34: 0 | AF34: 0 | AG34: 0 | AI34: =AI30*$C34 -> 0 | AJ34: 0
A35: Cost of Capital Total | E35: =SUM(E32:E34) -> 0 | F35: =SUM(F32:F34) -> 0 | H35: =SUM(H32:H34) -> 0 | I35: =SUM(I32:I34) -> 0 | K35: =SUM(K32:K34) -> 0 | L35: =SUM(L32:L34) -> 0 | N35: =SUM(N32:N34) -> 0 | O35: =SUM(O32:O34) -> 0 | Q35: =SUM(Q32:Q34) -> 0 | R35: =SUM(R32:R34) -> 0 | T35: =SUM(T32:T34) -> 0 | U35: =SUM(U32:U34) -> 0 | W35: =SUM(W32:W34) -> 0 | X35: =SUM(X32:X34) -> 0 | Z35: =SUM(Z32:Z34) -> 0 | AA35: =SUM(AA32:AA34) -> 0 | AC35: =SUM(AC32:AC34) -> 0 | AD35: =SUM(AD32:AD34) -> 0 | AF35: =SUM(AF32:AF34) -> 0 | AG35: =SUM(AG32:AG34) -> 0 | AI35: =SUM(AI32:AI34) -> 0 | AJ35: =SUM(AJ32:AJ34) -> 0
A37: OM&A | E37: =E21+E22 -> 0 | F37: =F22 -> 0 | H37: =H21+H22 -> 0 | I37: =I22 -> 0 | K37: =K21+K22 -> 0 | L37: =L22 -> 0 | N37: =N21+N22 -> 0 | O37: =O22 -> 0 | Q37: =Q21+Q22 -> 0 | R37: =R22 -> 0 | T37: =T21+T22 -> 0 | U37: =U22 -> 0 | W37: =W21+W22 -> 0 | X37: =X22 -> 0 | Z37: =Z21+Z22 -> 0 | AA37: =AA22 -> 0 | AC37: =AC21+AC22 -> 0 | AD37: =AD22 -> 0 | AF37: =AF21+AF22 -> 0 | AG37: =AG22 -> 0 | AI37: =AI21+AI22 -> 0 | AJ37: =AJ22 -> 0
A38: Amortization | D38: =+E77+E78 -> 0 | E38: =D38*E$19 -> 0 | F38: =D38*F$19 -> 0 | G38: =+F77+F78 -> 0 | H38: =G38*H$19 -> 0 | I38: =G38*I$19 -> 0 | J38: =+G77+G78 -> 0 | K38: =J38*K$19 -> 0 | L38: =J38*L$19 -> 0 | M38: =+H77+H78 -> 0 | N38: =M38*N$19 -> 0 | O38: =M38*O$19 -> 0 | P38: =+I77+I78 -> 0 | Q38: =P38*Q$19 -> 0 | R38: =P38*R$19 -> 0 | S38: =+J77+J78 -> 0 | T38: =S38*T$19 -> 0 | U38: =S38*U$19 -> 0 | V38: =+K77+K78 -> 0 | W38: =V38*W$19 -> 0 | X38: =V38*X$19 -> 0 | Y38: =+L77+L78 -> 0 | Z38: =Y38*Z$19 -> 0 | AA38: =Y38*AA$19 -> 0 | AB38: =+M77+M78 -> 0 | AC38: =AB38*AC$19 -> 0 | AD38: =AB38*AD$19 -> 0 | AE38: =+N77+N78 -> 0 | AF38: =AE38*AF$19 -> 0 | AG38: =AE38*AG$19 -> 0 | AH38: =+O77+O78 -> 0 | AI38: =AH38*AI$19 -> 0 | AJ38: =AH38*AJ$19 -> 0
A39: Grossed-up PILs | E39: =+E66 -> 0 | F39: =+F66 -> 0 | H39: =+H66 -> 0 | I39: =+I66 -> 0 | K39: =+K66 -> 0 | L39: =+L66 -> 0 | N39: =+N66 -> 0 | O39: =+O66 -> 0 | Q39: =+Q66 -> 0 | R39: =+R66 -> 0 | T39: =+T66 -> 0 | U39: =+U66 -> 0 | W39: =+W66 -> 0 | X39: =+X66 -> 0 | Z39: =+Z66 -> 0 | AA39: =+AA66 -> 0 | AC39: =+AC66 -> 0 | AD39: =+AD66 -> 0 | AF39: =+AF66 -> 0 | AG39: =+AG66 -> 0 | AI39: =+AI66 -> 0 | AJ39: =+AJ66 -> 0
A41: Revenue Requirement | E41: =SUM(E35:E39) -> 0 | F41: =SUM(F35:F39) -> 0 | H41: =SUM(H35:H39) -> 0 | I41: 0 | K41: =SUM(K35:K39) -> 0 | L41: 0 | N41: =SUM(N35:N39) -> 0 | O41: 0 | Q41: =SUM(Q35:Q39) -> 0 | R41: 0 | T41: =SUM(T35:T39) -> 0 | U41: 0 | W41: =SUM(W35:W39) -> 0 | X41: 0 | Z41: =SUM(Z35:Z39) -> 0 | AA41: 0 | AC41: =SUM(AC35:AC39) -> 0 | AD41: 0 | AF41: =SUM(AF35:AF39) -> 0 | AG41: 0 | AI41: =SUM(AI35:AI39) -> 0 | AJ41: 0
A44: Provincial Rate Protection | F44: =F41 -> 0 | I44: =I41 -> 0 | L44: =L41 -> 0 | O44: =O41 -> 0 | R44: =R41 -> 0 | U44: =U41 -> 0 | X44: =X41 -> 0 | AA44: =AA41 -> 0 | AD44: =AD41 -> 0 | AG44: =AG41 -> 0 | AJ44: =AJ41 -> 0
A46: Monthly Amount Paid by IESO | F46: =F44/12 -> 0 | I46: =I44/12 -> 0 | L46: =L44/12 -> 0 | O46: =O44/12 -> 0 | R46: =R44/12 -> 0 | U46: =U44/12 -> 0 | X46: =X44/12 -> 0 | AA46: =AA44/12 -> 0 | AD46: =AD44/12 -> 0 | AG46: =AG44/12 -> 0 | AJ46: =AJ44/12 -> 0
A48: Note 1: The distributor should follow the regulatory accounting set out in the Accounting Procedure Handbook Guidance FAQs issued in March 2015. Q10 of the APH FAQs states that: “For approved eligible investments as defined under O.Reg. 330/09 under the OEB Act, a variance account will continue to be used for the purpose of recording variances between the revenue requirement based on actual costs of approved eligible investments and the revenue received from the IESO.” The answer for Q10 provides the accounting guidance for this variance account: “Distributors that have included eligible investments to connect qualifying facilities in their DS plans are to establish the variance Account 1533 Renewable Generation Connection Funding Adder Deferral Account, Sub-account Provincial Rate Protection Payment Variances following OEB approval for investments forecast to enter service beyond the test year for purposes of implementing rate protection pursuant to O.Reg. 330/09. The purpose of this variance account is to track the variance between the distributor’s revenue requirement associated with the portion of the actual capital and/or operating costs that are eligible for rate protection, as incurred by the distributor for eligible renewable enabling and expansion investments, and the rate protection payments collected from the IESO.” The answer further provides the journal entries to record the variances. Distributors should follow the instructions in the answer for recording the journal entries in the variance account 1533.
A50: Note 2: For the Test Year, Costs and Revenues of the Direct Benefit are to be included in the test year applicant Rate Base and Revenues.
A52: PILs Calculation | T52: Test Year
E53: =G17-1 -> 2016 | H53: =G17 -> 2017 | K53: =J17 -> 2018 | N53: =M17 -> 2019 | Q53: =P17 -> 2020 | T53: =S17 -> 2021 | W53: =V17 -> 2022 | Z53: =Y17 -> 2023 | AC53: =AB17 -> 2024 | AF53: =AE17 -> 2025 | AI53: =AH17 -> 2026
A54: Income Tax | E54: Direct Benefit | F54: Provincial | H54: Direct Benefit | I54: Provincial | K54: Direct Benefit | L54: Provincial | N54: Direct Benefit | O54: Provincial | Q54: Direct Benefit | R54: Provincial | T54: Direct Benefit | U54: Provincial | W54: Direct Benefit | X54: Provincial | Z54: Direct Benefit | AA54: Provincial | AC54: Direct Benefit | AD54: Provincial | AF54: Direct Benefit | AG54: Provincial | AI54: Direct Benefit | AJ54: Provincial
AB55: Total | AE55: Total | AH55: Total
A56: Net Income - ROE on Rate Base | E56: =E34 -> 0 | F56: =F34 -> 0 | H56: =H34 -> 0 | I56: =I34 -> 0 | K56: =K34 -> 0 | L56: =L34 -> 0 | N56: =N34 -> 0 | O56: =O34 -> 0 | Q56: =Q34 -> 0 | R56: =R34 -> 0 | T56: =T34 -> 0 | U56: =U34 -> 0 | W56: =W34 -> 0 | X56: =X34 -> 0 | Z56: =Z34 -> 0 | AA56: =AA34 -> 0 | AC56: =AC34 -> 0 | AD56: =AD34 -> 0 | AF56: =AF34 -> 0 | AG56: =AG34 -> 0 | AI56: =AI34 -> 0 | AJ56: =AJ34 -> 0
A57: Amortization (6% DB and 94% P) | E57: =E38 -> 0 | F57: =F38 -> 0 | H57: =H38 -> 0 | I57: =I38 -> 0 | K57: =K38 -> 0 | L57: =L38 -> 0 | N57: =N38 -> 0 | O57: =O38 -> 0 | Q57: =Q38 -> 0 | R57: =R38 -> 0 | T57: =T38 -> 0 | U57: =U38 -> 0 | W57: =W38 -> 0 | X57: =X38 -> 0 | Z57: =Z38 -> 0 | AA57: =AA38 -> 0 | AC57: =AC38 -> 0 | AD57: =AD38 -> 0 | AF57: =AF38 -> 0 | AG57: =AG38 -> 0 | AI57: =AI38 -> 0 | AJ57: =AJ38 -> 0
A58: CCA (6% DB and 94% P) | E58: =-E95*$E$19 -> 0 | F58: =-E95*$F$19 -> 0 | H58: =-F95*$E$19 -> 0 | I58: =-F95*$F$19 -> 0 | K58: =-G95*$E$19 -> 0 | L58: =-G95*$F$19 -> 0 | N58: =-H95*$E$19 -> 0 | O58: =-H95*$F$19 -> 0 | Q58: =-I95*$E$19 -> 0 | R58: =-I95*$F$19 -> 0 | T58: =-J95*$E$19 -> 0 | U58: =-J95*$F$19 -> 0 | W58: =-K95*$E$19 -> 0 | X58: =-K95*$F$19 -> 0 | Z58: =-L95*$E$19 -> 0 | AA58: =-L95*$F$19 -> 0 | AC58: =-M95*$E$19 -> 0 | AD58: =-M95*$F$19 -> 0 | AF58: =-N95*$E$19 -> 0 | AG58: =-N95*$F$19 -> 0 | AI58: =-Q95*$E$19 -> 0 | AJ58: =-Q95*$F$19 -> 0
A59: Taxable income | E59: =SUM(E56:E58) -> 0 | F59: =SUM(F56:F58) -> 0 | H59: =SUM(H56:H58) -> 0 | I59: 0 | K59: =SUM(K56:K58) -> 0 | L59: 0 | N59: =SUM(N56:N58) -> 0 | O59: 0 | Q59: =SUM(Q56:Q58) -> 0 | R59: 0 | T59: =SUM(T56:T58) -> 0 | U59: 0 | W59: =SUM(W56:W58) -> 0 | X59: 0 | Z59: =SUM(Z56:Z58) -> 0 | AA59: =SUM(AA56:AA58) -> 0 | AC59: =SUM(AC56:AC58) -> 0 | AD59: =SUM(AD56:AD58) -> 0 | AF59: =SUM(AF56:AF58) -> 0 | AG59: =SUM(AG56:AG58) -> 0 | AI59: =SUM(AI56:AI58) -> 0 | AJ59: =SUM(AJ56:AJ58) -> 0
B60: =B27 -> 2016 | C60: =C27 -> 2021
A61: Tax Rate (to be entered) | E61: =IF(AND(E$53>=$B$60, E$53<$C$60),$B$61,$C$61) -> 0 | F61: =IF(AND(E$53>=$B$60, E$53<$C$60),$B$61,$C$61) -> 0 | H61: =IF(AND(H$53>=$B$60, H$53<$C$60),$B$61,$C$61) -> 0 | I61: =IF(AND(H$53>=$B$60, H$53<$C$60),$B$61,$C$61) -> 0 | K61: =IF(AND(K$53>=$B$60, K$53<$C$60),$B$61,$C$61) -> 0 | L61: =IF(AND(K$53>=$B$60, K$53<$C$60),$B$61,$C$61) -> 0 | N61: =IF(AND(N$53>=$B$60, N$53<$C$60),$B$61,$C$61) -> 0 | O61: =IF(AND(N$53>=$B$60, N$53<$C$60),$B$61,$C$61) -> 0 | Q61: =IF(AND(Q$53>=$B$60, Q$53<$C$60),$B$61,$C$61) -> 0 | R61: =IF(AND(Q$53>=$B$60, Q$53<$C$60),$B$61,$C$61) -> 0 | T61: =IF(AND(T$53>=$B$60, T$53<$C$60),$B$61,$C$61) -> 0 | U61: =IF(AND(T$53>=$B$60, T$53<$C$60),$B$61,$C$61) -> 0 | W61: =IF(AND(W$53>=$B$60, W$53<$C$60),$B$61,$C$61) -> 0 | X61: =IF(AND(W$53>=$B$60, W$53<$C$60),$B$61,$C$61) -> 0 | Z61: =IF(AND(Z$53>=$B$60, Z$53<$C$60),$B$61,$C$61) -> 0 | AA61: =IF(AND(Z$53>=$B$60, Z$53<$C$60),$B$61,$C$61) -> 0 | AC61: =IF(AND(AC$53>=$B$60, AC$53<$C$60),$B$61,$C$61) -> 0 | AD61: =IF(AND(AC$53>=$B$60, AC$53<$C$60),$B$61,$C$61) -> 0 | AF61: =IF(AND(AF$53>=$B$60, AF$53<$C$60),$B$61,$C$61) -> 0 | AG61: =IF(AND(AF$53>=$B$60, AF$53<$C$60),$B$61,$C$61) -> 0 | AI61: =IF(AND(AI$53>=$B$60, AI$53<$C$60),$B$61,$C$61) -> 0 | AJ61: =IF(AND(AI$53>=$B$60, AI$53<$C$60),$B$61,$C$61) -> 0
A63: Income Taxes Payable | E63: =E59*E61 -> 0 | F63: =F59*F61 -> 0 | H63: =H59*H61 -> 0 | I63: =I59*I61 -> 0 | K63: =K59*K61 -> 0 | L63: =L59*L61 -> 0 | N63: =N59*N61 -> 0 | O63: =O59*O61 -> 0 | Q63: =Q59*Q61 -> 0 | R63: =R59*R61 -> 0 | T63: =T59*T61 -> 0 | U63: =U59*U61 -> 0 | W63: =W59*W61 -> 0 | X63: =X59*X61 -> 0 | Z63: =Z59*Z61 -> 0 | AA63: =AA59*AA61 -> 0 | AC63: =AC59*AC61 -> 0 | AD63: =AD59*AD61 -> 0 | AF63: =AF59*AF61 -> 0 | AG63: =AG59*AG61 -> 0 | AI63: =AI59*AI61 -> 0 | AJ63: =AJ59*AJ61 -> 0
A64: Gross Up
A65: Income Taxes Payable | E65: =E63/(1-E61) -> 0 | F65: =F63/(1-F61) -> 0 | H65: =H63/(1-H61) -> 0 | I65: =I63/(1-I61) -> 0 | K65: =K63/(1-K61) -> 0 | L65: =L63/(1-L61) -> 0 | N65: =N63/(1-N61) -> 0 | O65: =O63/(1-O61) -> 0 | Q65: =Q63/(1-Q61) -> 0 | R65: =R63/(1-R61) -> 0 | T65: =T63/(1-T61) -> 0 | U65: =U63/(1-U61) -> 0 | W65: =W63/(1-W61) -> 0 | X65: =X63/(1-X61) -> 0 | Z65: =Z63/(1-Z61) -> 0 | AA65: =AA63/(1-AA61) -> 0 | AC65: =AC63/(1-AC61) -> 0 | AD65: =AD63/(1-AD61) -> 0 | AF65: =AF63/(1-AF61) -> 0 | AG65: =AG63/(1-AG61) -> 0 | AI65: =AI63/(1-AI61) -> 0 | AJ65: =AJ63/(1-AJ61) -> 0
A66: Grossed Up PILs | E66: =+E65 -> 0 | F66: =+F65 -> 0 | H66: =+H65 -> 0 | I66: =+I65 -> 0 | K66: =+K65 -> 0 | L66: 0 | N66: =+N65 -> 0 | O66: 0 | Q66: =+Q65 -> 0 | R66: 0 | T66: =+T65 -> 0 | U66: 0 | W66: =+W65 -> 0 | X66: 0 | Z66: =+Z65 -> 0 | AA66: 0 | AC66: =+AC65 -> 0 | AD66: 0 | AF66: =+AF65 -> 0 | AG66: 0 | AI66: =+AI65 -> 0 | AJ66: 0
J68: Test Year
E69: =F69-1 -> 2016 | F69: =G69-1 -> 2017 | G69: =H69-1 -> 2018 | H69: =I69-1 -> 2019 | I69: =J69-1 -> 2020 | J69: ='LDC Info'!E24 -> 2021 | K69: =J69+1 -> 2022 | L69: =K69+1 -> 2023 | M69: =L69+1 -> 2024 | N69: =M69+1 -> 2025 | O69: =N69+1 -> 2026
A70: Net Fixed Assets
A71: Enter applicable amortization in years: | B71: 40
A72: Opening Gross Fixed Assets | F72: =E74 -> 0 | G72: 0 | H72: 0 | I72: 0 | J72: 0 | K72: 0 | L72: 0 | M72: 0 | N72: 0 | O72: 0
A73: Capital Additions | E73: ='App.2-FA Proposed REG Invest.'!C62 -> 0 | F73: ='App.2-FA Proposed REG Invest.'!D62 -> 0 | G73: ='App.2-FA Proposed REG Invest.'!E62 -> 0 | H73: ='App.2-FA Proposed REG Invest.'!F62 -> 0 | I73: ='App.2-FA Proposed REG Invest.'!G62 -> 0 | J73: ='App.2-FA Proposed REG Invest.'!H62 -> 0 | K73: ='App.2-FA Proposed REG Invest.'!I62 -> 0 | L73: ='App.2-FA Proposed REG Invest.'!J62 -> 0 | M73: ='App.2-FA Proposed REG Invest.'!K62 -> 0 | N73: ='App.2-FA Proposed REG Invest.'!L62 -> 0 | O73: ='App.2-FA Proposed REG Invest.'!M62 -> 0
A74: Closing Gross Fixed Assets | E74: =SUM(E72:E73) -> 0 | F74: 0 | G74: 0 | H74: 0 | I74: 0 | J74: 0 | K74: 0 | L74: 0 | M74: 0 | N74: 0 | O74: =SUM(O72:O73) -> 0
A76: Opening Accumulated Amortization | F76: =+E79 -> 0 | G76: =+F79 -> 0 | H76: 0 | I76: 0 | J76: 0 | K76: 0 | L76: 0 | M76: 0 | N76: 0 | O76: 0
A77: Current Year Amortization (before additions) | E77: =IF(ISERROR(E72/$B$71), 0, E72/$B$71) -> 0 | F77: =IF(ISERROR(F72/$B$71), 0, F72/$B$71) -> 0 | G77: 0 | H77: 0 | I77: 0 | J77: 0 | K77: 0 | L77: 0 | M77: 0 | N77: 0 | O77: =IF(ISERROR(O72/$B$71), 0, O72/$B$71) -> 0
A78: Capital Additions Amortization (half year) | E78: =E73/$B$71/2 -> 0 | F78: =F73/$B$71/2 -> 0 | G78: 0 | H78: 0 | I78: 0 | J78: 0 | K78: 0 | L78: 0 | M78: 0 | N78: 0 | O78: =O73/$B$71/2 -> 0
A79: Closing Accumulated Amortization | E79: =SUM(E76+E77+E78) -> 0 | F79: 0 | G79: 0 | H79: 0 | I79: 0 | J79: 0 | K79: 0 | L79: 0 | M79: 0 | N79: 0 | O79: =SUM(O76+O77+O78) -> 0
A81: Opening Net Fixed Assets | E81: =E72-E76 -> 0 | F81: 0 | G81: 0 | H81: 0 | I81: 0 | J81: 0 | K81: 0 | L81: 0 | M81: 0 | N81: 0 | O81: =O72-O76 -> 0
A82: Closing Net Fixed Assets | E82: =E74-E79 -> 0 | F82: 0 | G82: 0 | H82: 0 | I82: 0 | J82: 0 | K82: 0 | L82: 0 | M82: 0 | N82: 0 | O82: =O74-O79 -> 0
A83: Average Net Fixed Assets | E83: =SUM(E81:E82)/2 -> 0 | F83: 0 | G83: 0 | H83: 0 | I83: 0 | J83: 0 | K83: 0 | L83: 0 | M83: 0 | N83: 0 | O83: =SUM(O81:O82)/2 -> 0
A85: UCC for PILs Calculation | J85: Test Year
E86: =E69 -> 2016 | F86: =F69 -> 2017 | G86: =G69 -> 2018 | H86: 2019 | I86: 2020 | J86: 2021 | K86: 2022 | L86: 2023 | M86: 2024 | N86: 2025 | O86: =O69 -> 2026
A88: Opening UCC | E88: =E72 -> 0 | F88: =E96 -> 0 | G88: 0 | H88: 0 | I88: 0 | J88: 0 | K88: 0 | L88: 0 | M88: 0 | N88: 0 | O88: 0
A89: Capital Additions | E89: =E73 -> 0 | F89: 0 | G89: 0 | H89: 0 | I89: 0 | J89: 0 | K89: 0 | L89: 0 | M89: 0 | N89: 0 | O89: =O73 -> 0
A90: UCC Before Half Year Rule | E90: =SUM(E88:E89) -> 0 | F90: 0 | G90: 0 | H90: 0 | I90: 0 | J90: 0 | K90: 0 | L90: 0 | M90: 0 | N90: 0 | O90: =SUM(O88:O89) -> 0
A91: Capital Additions (half year) | E91: =E89/2 -> 0 | F91: 0 | G91: 0 | H91: 0 | I91: 0 | J91: 0 | K91: 0 | L91: 0 | M91: 0 | N91: 0 | O91: =O89/2 -> 0
A92: Reduced UCC | E92: =E90-E91 -> 0 | F92: 0 | G92: 0 | H92: 0 | I92: 0 | J92: 0 | K92: 0 | L92: 0 | M92: 0 | N92: 0 | O92: =O90-O91 -> 0
A93: CCA Rate Class (to be entered)
A94: CCA Rate (to be entered)
A95: CCA | E95: =E92*$B$94 -> 0 | F95: =F92*$B$94 -> 0 | G95: 0 | H95: 0 | I95: 0 | J95: 0 | K95: 0 | L95: 0 | M95: 0 | N95: 0 | O95: =O92*$B$94 -> 0
A96: Closing UCC | E96: =E90-E95 -> 0 | F96: 0 | G96: 0 | H96: 0 | I96: 0 | J96: 0 | K96: 0 | L96: 0 | M96: 0 | N96: 0 | O96: =O90-O95 -> 0

Sheet App.2-FC Calc of REG Expansion
R1: File Number: | S1: 0
R2: Exhibit: | S2: n/a
R3: Tab:
A4: TO BE UPDATED AT DRAFT RATE ORDER STAGE | R4: Schedule:
R5: Page:
R7: Date:
A9: Appendix 2-FC
A10: Calculation of Renewable Generation Connection Direct Benefits/Provincial Amount: Renewable Expansion Investments
A12: This table will calculate the distributor/provincial shares of the investments entered in Part B of Appendix 2-FA.
A13: Enter values in green shaded cells: WCA percentage, debt percentages, interest rates, kWh, tax rates, amortization period, CCA Class and percentage.
A14: For historical investments, enter these variables that were approved in your last cost of service test year. For 2021 and beyond, enter variables as in the application.
A15: Rate Riders related to the direct benefit portion of the renewable investments are not calculated for the Test Year as these assets and costs are already in the distributor's rate base/revenue requirement.
S16: Test Year
D17: =G17-1 -> 2016 | G17: =J17-1 -> 2017 | J17: =M17-1 -> 2018 | M17: =P17-1 -> 2019 | P17: =S17-1 -> 2020 | S17: ='LDC Info'!$E$24 -> 2021 | V17: =S17+1 -> 2022 | Y17: =V17+1 -> 2023 | Z17: 2016 | AB17: =Y17+1 -> 2024 | AE17: =AB17+1 -> 2025 | AH17: =AE17+1 -> 2026
E18: Direct Benefit | F18: Provincial | H18: Direct Benefit | I18: Provincial | K18: Direct Benefit | L18: Provincial | N18: Direct Benefit | O18: Provincial | Q18: Direct Benefit | R18: Provincial | T18: Direct Benefit | U18: Provincial | W18: Direct Benefit | X18: Provincial | Z18: Direct Benefit | AA18: Provincial | AC18: Direct Benefit | AD18: Provincial | AF18: Direct Benefit | AG18: Provincial | AI18: Direct Benefit | AJ18: Provincial
D19: Total | E19: 0.17 | F19: 0.83 | G19: Total | H19: 0.17 | I19: 0.83 | J19: Total | K19: 0.17 | L19: 0.83 | M19: Total | N19: 0.17 | O19: 0.83 | P19: Total | Q19: 0.17 | R19: 0.83 | S19: Total | T19: 0.17 | U19: 0.83 | V19: Total | W19: 0.17 | X19: 0.83 | Y19: Total | Z19: 0.17 | AA19: 0.83 | AB19: Total | AC19: 0.17 | AD19: 0.83 | AE19: Total | AF19: 0.17 | AG19: 0.83 | AH19: Total | AI19: 0.17 | AJ19: 0.83
A20: Net Fixed Assets (average) | D20: =E83 -> 0 | E20: =D20*E19 -> 0 | F20: =D20*F19 -> 0 | G20: =F83 -> 0 | H20: =G20*H19 -> 0 | I20: =G20*I19 -> 0 | J20: =G83 -> 0 | K20: =J20*K19 -> 0 | L20: =J20*L19 -> 0 | M20: =H83 -> 0 | N20: =M20*N19 -> 0 | O20: =M20*O19 -> 0 | P20: =I83 -> 0 | Q20: =P20*Q19 -> 0 | R20: =P20*R19 -> 0 | S20: =J83 -> 0 | T20: =S20*T19 -> 0 | U20: =S20*U19 -> 0 | V20: =K83 -> 0 | W20: =V20*W19 -> 0 | X20: =V20*X19 -> 0 | Y20: =L83 -> 0 | Z20: =Y20*Z19 -> 0 | AA20: =Y20*AA19 -> 0 | AB20: =M83 -> 0 | AC20: =AB20*AC19 -> 0 | AD20: =AB20*AD19 -> 0 | AE20: =N83 -> 0 | AF20: =AE20*AF19 -> 0 | AG20: =AE20*AG19 -> 0 | AH20: =O83 -> 0 | AI20: =AH20*AI19 -> 0 | AJ20: =AH20*AJ19 -> 0
A21: Incremental OM&A (on-going, N/A for Provincial Recovery) | D21: 0 | E21: =D21*E19 -> 0 | F21: =D21*F19 -> 0 | G21: 0 | H21: =G21*H19 -> 0 | I21: =G21*I19 -> 0 | J21: 0 | K21: =J21*K19 -> 0 | L21: =J21*L19 -> 0 | M21: 0 | N21: =M21*N19 -> 0 | O21: =M21*O19 -> 0 | P21: 0 | Q21: =P21*Q19 -> 0 | R21: =P21*R19 -> 0 | S21: 0 | T21: =S21*T19 -> 0 | U21: =S21*U19 -> 0 | V21: 0 | W21: =V21*W19 -> 0 | X21: =V21*X19 -> 0 | Y21: 0 | Z21: =Y21*Z19 -> 0 | AA21: =Y21*AA19 -> 0 | AB21: 0 | AC21: =AB21*AC19 -> 0 | AD21: =AB21*AD19 -> 0 | AE21: 0 | AF21: =AE21*AF19 -> 0 | AG21: =AE21*AG19 -> 0 | AH21: 0 | AI21: =AH21*AI19 -> 0 | AJ21: =AH21*AJ19 -> 0
A22: Incremental OM&A (start-up, applicable for Provincial Recovery) | D22: 0 | E22: =D22*E19 -> 0 | F22: =D22*F19 -> 0 | G22: 0 | H22: =G22*H19 -> 0 | I22: =G22*I19 -> 0 | J22: 0 | K22: =J22*K19 -> 0 | L22: =J22*L19 -> 0 | M22: 0 | N22: =M22*N19 -> 0 | O22: =M22*O19 -> 0 | P22: 0 | Q22: =P22*Q19 -> 0 | R22: =P22*R19 -> 0 | S22: 0 | T22: =S22*T19 -> 0 | U22: =S22*U19 -> 0 | V22: 0 | W22: =V22*W19 -> 0 | X22: =V22*X19 -> 0 | Y22: 0 | Z22: =Y22*Z19 -> 0 | AA22: =Y22*AA19 -> 0 | AB22: 0 | AC22: =AB22*AC19 -> 0 | AD22: =AB22*AD19 -> 0 | AE22: 0 | AF22: =AE22*AF19 -> 0 | AG22: =AE22*AG19 -> 0 | AH22: 0 | AI22: =AH22*AI19 -> 0 | AJ22: =AH22*AJ19 -> 0
A23: Rebasing Year vs. Test Year | B23: ='LDC Info'!E28 -> 2016 | C23: ='LDC Info'!E24 -> 2021
A24: Allowance for Working Capital (enter rate) | E24: =IF(AND(D$17>=$B$23, D$17<$C$23),(E21+E22)*$B$24,(E21+E22)*$C$24) -> 0 | F24: =IF(AND(D$17>=$B$23, D$17<$C$23),(F22)*$B$24,(F22)*$C$24) -> 0 | H24: =IF(AND(G$17>=$B$23, G$17<$C$23),(H21+H22)*$B$24,(H21+H22)*$C$24) -> 0 | I24: =IF(AND(G$17>=$B$23, G$17<$C$23),(I22)*$B$24,(I22)*$C$24) -> 0 | K24: =IF(AND(J$17>=$B$23, J$17<$C$23),(K21+K22)*$B$24,(K21+K22)*$C$24) -> 0 | L24: =IF(AND(J$17>=$B$23, J$17<$C$23),(L22)*$B$24,(L22)*$C$24) -> 0 | N24: =IF(AND(M$17>=$B$23, M$17<$C$23),(N21+N22)*$B$24,(N21+N22)*$C$24) -> 0 | O24: =IF(AND(M$17>=$B$23, M$17<$C$23),(O22)*$B$24,(O22)*$C$24) -> 0 | Q24: =IF(AND(P$17>=$B$23, P$17<$C$23),(Q21+Q22)*$B$24,(Q21+Q22)*$C$24) -> 0 | R24: =IF(AND(P$17>=$B$23, P$17<$C$23),(R22)*$B$24,(R22)*$C$24) -> 0 | T24: =IF(AND(S$17>=$B$23, S$17<$C$23),(T21+T22)*$B$24,(T21+T22)*$C$24) -> 0 | U24: =IF(AND(S$17>=$B$23, S$17<$C$23),(U22)*$B$24,(U22)*$C$24) -> 0 | W24: =IF(AND(V$17>=$B$23, V$17<$C$23),(W21+W22)*$B$24,(W21+W22)*$C$24) -> 0 | X24: =IF(AND(V$17>=$B$23, V$17<$C$23),(X22)*$B$24,(X22)*$C$24) -> 0 | Z24: =IF(AND(Y$17>=$B$23, Y$17<$C$23),(Z21+Z22)*$B$24,(Z21+Z22)*$C$24) -> 0 | AA24: =IF(AND(Y$17>=$B$23, Y$17<$C$23),(AA22)*$B$24,(AA22)*$C$24) -> 0 | AC24: =IF(AND(AB$17>=$B$23, AB$17<$C$23),(AC21+AC22)*$B$24,(AC21+AC22)*$C$24) -> 0 | AD24: =IF(AND(AB$17>=$B$23, AB$17<$C$23),(AD22)*$B$24,(AD22)*$C$24) -> 0 | AF24: =IF(AND(AE$17>=$B$23, AE$17<$C$23),(AF21+AF22)*$B$24,(AF21+AF22)*$C$24) -> 0 | AG24: =IF(AND(AE$17>=$B$23, AE$17<$C$23),(AG22)*$B$24,(AG22)*$C$24) -> 0 | AI24: =IF(AND(AH$17>=$B$23, AH$17<$C$23),(AI21+AI22)*$B$24,(AI21+AI22)*$C$24) -> 0 | AJ24: =IF(AND(AH$17>=$B$23, AH$17<$C$23),(AJ22)*$B$24,(AJ22)*$C$24) -> 0
A25: Rate Base | E25: =SUM(E20+E24) -> 0 | F25: =SUM(F20+F24) -> 0 | H25: =SUM(H20+H24) -> 0 | I25: =SUM(I20+I24) -> 0 | K25: =SUM(K20+K24) -> 0 | L25: =SUM(L20+L24) -> 0 | N25: =SUM(N20+N24) -> 0 | O25: =SUM(O20+O24) -> 0 | Q25: =SUM(Q20+Q24) -> 0 | R25: =SUM(R20+R24) -> 0 | T25: =SUM(T20+T24) -> 0 | U25: =SUM(U20+U24) -> 0 | W25: =SUM(W20+W24) -> 0 | X25: =SUM(X20+X24) -> 0 | Z25: =SUM(Z20+Z24) -> 0 | AA25: =SUM(AA20+AA24) -> 0 | AC25: =SUM(AC20+AC24) -> 0 | AD25: =SUM(AD20+AD24) -> 0 | AF25: =SUM(AF20+AF24) -> 0 | AG25: =SUM(AG20+AG24) -> 0 | AI25: =SUM(AI20+AI24) -> 0 | AJ25: =SUM(AJ20+AJ24) -> 0
B27: =B23 -> 2016 | C27: =C23 -> 2021
A28: Deemed ST Debt | B28: 0.04 | C28: 0.04 | E28: =E25*$B$28 -> 0 | F28: =F25*$B$28 -> 0 | H28: =H25*$B$28 -> 0 | I28: =I25*$B$28 -> 0 | K28: =K25*$B$28 -> 0 | L28: =L25*$B$28 -> 0 | N28: =N25*$B$28 -> 0 | O28: =O25*$B$28 -> 0 | Q28: =Q25*$B$28 -> 0 | R28: =R25*$B$28 -> 0 | T28: =T25*$C$28 -> 0 | U28: =U25*$C$28 -> 0 | W28: =W25*$C$28 -> 0 | X28: =X25*$C$28 -> 0 | Z28: =Z25*$C$28 -> 0 | AA28: =AA25*$C$28 -> 0 | AC28: =AC25*$C$28 -> 0 | AD28: =AD25*$C$28 -> 0 | AF28: =AF25*$C$28 -> 0 | AG28: =AG25*$C$28 -> 0 | AI28: =AI25*$C$28 -> 0 | AJ28: =AJ25*$C$28 -> 0
A29: Deemed LT Debt | B29: 0.56 | C29: 0.56 | E29: =E25*$B$29 -> 0 | F29: =F25*$B$29 -> 0 | H29: =H25*$B$29 -> 0 | I29: =I25*$B$29 -> 0 | K29: =K25*$B$29 -> 0 | L29: =L25*$B$29 -> 0 | N29: =N25*$B$29 -> 0 | O29: =O25*$B$29 -> 0 | Q29: =Q25*$B$29 -> 0 | R29: =R25*$B$29 -> 0 | T29: =T25*$C$29 -> 0 | U29: =U25*$C$29 -> 0 | W29: =W25*$C$29 -> 0 | X29: =X25*$C$29 -> 0 | Z29: =Z25*$C$29 -> 0 | AA29: =AA25*$C$29 -> 0 | AC29: =AC25*$C$29 -> 0 | AD29: =AD25*$C$29 -> 0 | AF29: =AF25*$C$29 -> 0 | AG29: =AG25*$C$29 -> 0 | AI29: =AI25*$C$29 -> 0 | AJ29: =AJ25*$C$29 -> 0
A30: Deemed Equity | B30: 0.4 | C30: 0.4 | E30: =E25*$B$30 -> 0 | F30: =F25*$B$30 -> 0 | H30: =H25*$B$30 -> 0 | I30: =I25*$B$30 -> 0 | K30: =K25*$B$30 -> 0 | L30: =L25*$B$30 -> 0 | N30: =N25*$B$30 -> 0 | O30: =O25*$B$30 -> 0 | Q30: =Q25*$B$30 -> 0 | R30: =R25*$B$30 -> 0 | T30: =T25*$C$30 -> 0 | U30: =U25*$C$30 -> 0 | W30: =W25*$C$30 -> 0 | X30: =X25*$C$30 -> 0 | Z30: =Z25*$C$30 -> 0 | AA30: =AA25*$C$30 -> 0 | AC30: =AC25*$C$30 -> 0 | AD30: =AD25*$C$30 -> 0 | AF30: =AF25*$C$30 -> 0 | AG30: =AG25*$C$30 -> 0 | AI30: =AI25*$C$30 -> 0 | AJ30: =AJ25*$C$30 -> 0
A32: ST Interest (enter rate) | E32: =E28*$B32 -> 0 | F32: 0 | H32: 0 | I32: 0 | K32: 0 | L32: 0 | N32: 0 | O32: 0 | Q32: 0 | R32: 0 | T32: =T28*$C32 -> 0 | U32: 0 | W32: =W28*$C32 -> 0 | X32: 0 | Z32: =Z28*$C32 -> 0 | AA32: 0 | AC32: =AC28*$C32 -> 0 | AD32: 0 | AF32: =AF28*$C32 -> 0 | AG32: 0 | AI32: =AI28*$C32 -> 0 | AJ32: 0
A33: LT Interest (enter rate) | E33: 0 | F33: 0 | H33: 0 | I33: 0 | K33: 0 | L33: 0 | N33: 0 | O33: 0 | Q33: 0 | R33: 0 | T33: 0 | U33: 0 | W33: 0 | X33: 0 | Z33: 0 | AA33: 0 | AC33: 0 | AD33: 0 | AF33: 0 | AG33: 0 | AI33: =AI29*$C33 -> 0 | AJ33: 0
A34: Return on Equity (enter rate) | E34: 0 | F34: 0 | H34: 0 | I34: 0 | K34: 0 | L34: 0 | N34: 0 | O34: 0 | Q34: 0 | R34: 0 | T34: 0 | U34: 0 | W34: 0 | X34: 0 | Z34: 0 | AA34: 0 | AC34: 0 | AD34: 0 | AF34: 0 | AG34: 0 | AI34: =AI30*$C34 -> 0 | AJ34: 0
A35: Cost of Capital Total | E35: =SUM(E32:E34) -> 0 | F35: =SUM(F32:F34) -> 0 | H35: =SUM(H32:H34) -> 0 | I35: =SUM(I32:I34) -> 0 | K35: =SUM(K32:K34) -> 0 | L35: =SUM(L32:L34) -> 0 | N35: =SUM(N32:N34) -> 0 | O35: =SUM(O32:O34) -> 0 | Q35: =SUM(Q32:Q34) -> 0 | R35: =SUM(R32:R34) -> 0 | T35: =SUM(T32:T34) -> 0 | U35: =SUM(U32:U34) -> 0 | W35: =SUM(W32:W34) -> 0 | X35: =SUM(X32:X34) -> 0 | Z35: =SUM(Z32:Z34) -> 0 | AA35: =SUM(AA32:AA34) -> 0 | AC35: =SUM(AC32:AC34) -> 0 | AD35: =SUM(AD32:AD34) -> 0 | AF35: =SUM(AF32:AF34) -> 0 | AG35: =SUM(AG32:AG34) -> 0 | AI35: =SUM(AI32:AI34) -> 0 | AJ35: =SUM(AJ32:AJ34) -> 0
A37: OM&A | E37: =E21+E22 -> 0 | F37: =F22 -> 0 | H37: =H21+H22 -> 0 | I37: =I22 -> 0 | K37: =K21+K22 -> 0 | L37: =L22 -> 0 | N37: =N21+N22 -> 0 | O37: =O22 -> 0 | Q37: =Q21+Q22 -> 0 | R37: =R22 -> 0 | T37: =T21+T22 -> 0 | U37: =U22 -> 0 | W37: =W21+W22 -> 0 | X37: =X22 -> 0 | Z37: =Z21+Z22 -> 0 | AA37: =AA22 -> 0 | AC37: =AC21+AC22 -> 0 | AD37: =AD22 -> 0 | AF37: =AF21+AF22 -> 0 | AG37: =AG22 -> 0 | AI37: =AI21+AI22 -> 0 | AJ37: =AJ22 -> 0
A38: Amortization | D38: =+E77+E78 -> 0 | E38: =D38*E$19 -> 0 | F38: =D38*F$19 -> 0 | G38: =+F77+F78 -> 0 | H38: =G38*H$19 -> 0 | I38: =G38*I$19 -> 0 | J38: =+G77+G78 -> 0 | K38: =J38*K$19 -> 0 | L38: =J38*L$19 -> 0 | M38: =+H77+H78 -> 0 | N38: =M38*N$19 -> 0 | O38: =M38*O$19 -> 0 | P38: =+I77+I78 -> 0 | Q38: =P38*Q$19 -> 0 | R38: =P38*R$19 -> 0 | S38: =+J77+J78 -> 0 | T38: =S38*T$19 -> 0 | U38: =S38*U$19 -> 0 | V38: =+K77+K78 -> 0 | W38: =V38*W$19 -> 0 | X38: =V38*X$19 -> 0 | Y38: =+L77+L78 -> 0 | Z38: =Y38*Z$19 -> 0 | AA38: =Y38*AA$19 -> 0 | AB38: =+M77+M78 -> 0 | AC38: =AB38*AC$19 -> 0 | AD38: =AB38*AD$19 -> 0 | AE38: =+N77+N78 -> 0 | AF38: =AE38*AF$19 -> 0 | AG38: =AE38*AG$19 -> 0 | AH38: =+O77+O78 -> 0 | AI38: =AH38*AI$19 -> 0 | AJ38: =AH38*AJ$19 -> 0
A39: Grossed-up PILs | E39: =+E66 -> 0 | F39: =+F66 -> 0 | H39: =+H66 -> 0 | I39: =+I66 -> 0 | K39: =+K66 -> 0 | L39: =+L66 -> 0 | N39: =+N66 -> 0 | O39: =+O66 -> 0 | Q39: =+Q66 -> 0 | R39: =+R66 -> 0 | T39: =+T66 -> 0 | U39: =+U66 -> 0 | W39: =+W66 -> 0 | X39: =+X66 -> 0 | Z39: =+Z66 -> 0 | AA39: =+AA66 -> 0 | AC39: =+AC66 -> 0 | AD39: =+AD66 -> 0 | AF39: =+AF66 -> 0 | AG39: =+AG66 -> 0 | AI39: =+AI66 -> 0 | AJ39: =+AJ66 -> 0
A41: Revenue Requirement | E41: =SUM(E35:E39) -> 0 | F41: =SUM(F35:F39) -> 0 | H41: =SUM(H35:H39) -> 0 | I41: 0 | K41: =SUM(K35:K39) -> 0 | L41: 0 | N41: =SUM(N35:N39) -> 0 | O41: 0 | Q41: =SUM(Q35:Q39) -> 0 | R41: 0 | T41: =SUM(T35:T39) -> 0 | U41: 0 | W41: =SUM(W35:W39) -> 0 | X41: 0 | Z41: =SUM(Z35:Z39) -> 0 | AA41: 0 | AC41: =SUM(AC35:AC39) -> 0 | AD41: 0 | AF41: =SUM(AF35:AF39) -> 0 | AG41: 0 | AI41: =SUM(AI35:AI39) -> 0 | AJ41: 0
A44: Provincial Rate Protection | F44: =F41 -> 0 | I44: =I41 -> 0 | L44: =L41 -> 0 | O44: =O41 -> 0 | R44: =R41 -> 0 | U44: =U41 -> 0 | X44: =X41 -> 0 | AA44: =AA41 -> 0 | AD44: =AD41 -> 0 | AG44: =AG41 -> 0 | AJ44: =AJ41 -> 0
A46: Monthly Amount Paid by IESO | F46: =F44/12 -> 0 | I46: =I44/12 -> 0 | L46: =L44/12 -> 0 | O46: =O44/12 -> 0 | R46: =R44/12 -> 0 | U46: =U44/12 -> 0 | X46: =X44/12 -> 0 | AA46: =AA44/12 -> 0 | AD46: =AD44/12 -> 0 | AG46: =AG44/12 -> 0 | AJ46: =AJ44/12 -> 0
A48: Note 1: The distributor should follow the regulatory accounting set out in the Accounting Procedure Handbook Guidance FAQs issued in March 2015. Q10 of the APH FAQs states that: “For approved eligible investments as defined under O.Reg. 330/09 under the OEB Act, a variance account will continue to be used for the purpose of recording variances between the revenue requirement based on actual costs of approved eligible investments and the revenue received from the IESO.” The answer for Q10 provides the accounting guidance for this variance account: “Distributors that have included eligible investments to connect qualifying facilities in their DS plans are to establish the variance Account 1533 Renewable Generation Connection Funding Adder Deferral Account, Sub-account Provincial Rate Protection Payment Variances following OEB approval for investments forecast to enter service beyond the test year for purposes of implementing rate protection pursuant to O.Reg. 330/09. The purpose of this variance account is to track the variance between the distributor’s revenue requirement associated with the portion of the actual capital and/or operating costs that are eligible for rate protection, as incurred by the distributor for eligible renewable enabling and expansion investments, and the rate protection payments collected from the IESO.” The answer further provides the journal entries to record the variances. Distributors should follow the instructions in the answer for recording the journal entries in the variance account 1533.
A50: Note 2: For the Test Year, Costs and Revenues of the Direct Benefit are to be included in the test year applicant Rate Base and Revenues.
A52: PILs Calculation | T52: Test Year
E53: =G17-1 -> 2016 | H53: =G17 -> 2017 | K53: =J17 -> 2018 | N53: =M17 -> 2019 | Q53: =P17 -> 2020 | T53: =S17 -> 2021 | W53: =V17 -> 2022 | Z53: =Y17 -> 2023 | AC53: =AB17 -> 2024 | AF53: =AE17 -> 2025 | AI53: =AH17 -> 2026
A54: Income Tax | E54: Direct Benefit | F54: Provincial | H54: Direct Benefit | I54: Provincial | K54: Direct Benefit | L54: Provincial | N54: Direct Benefit | O54: Provincial | Q54: Direct Benefit | R54: Provincial | T54: Direct Benefit | U54: Provincial | W54: Direct Benefit | X54: Provincial | Z54: Direct Benefit | AA54: Provincial | AC54: Direct Benefit | AD54: Provincial | AF54: Direct Benefit | AG54: Provincial | AI54: Direct Benefit | AJ54: Provincial
AB55: Total | AE55: Total | AH55: Total
A56: Net Income - ROE on Rate Base | E56: =E34 -> 0 | F56: =F34 -> 0 | H56: =H34 -> 0 | I56: =I34 -> 0 | K56: =K34 -> 0 | L56: =L34 -> 0 | N56: =N34 -> 0 | O56: =O34 -> 0 | Q56: =Q34 -> 0 | R56: =R34 -> 0 | T56: =T34 -> 0 | U56: =U34 -> 0 | W56: =W34 -> 0 | X56: =X34 -> 0 | Z56: =Z34 -> 0 | AA56: =AA34 -> 0 | AC56: =AC34 -> 0 | AD56: =AD34 -> 0 | AF56: =AF34 -> 0 | AG56: =AG34 -> 0 | AI56: =AI34 -> 0 | AJ56: =AJ34 -> 0
A57: Amortization (6% DB and 94% P) | E57: =E38 -> 0 | F57: =F38 -> 0 | H57: =H38 -> 0 | I57: =I38 -> 0 | K57: =K38 -> 0 | L57: =L38 -> 0 | N57: =N38 -> 0 | O57: =O38 -> 0 | Q57: =Q38 -> 0 | R57: =R38 -> 0 | T57: =T38 -> 0 | U57: =U38 -> 0 | W57: =W38 -> 0 | X57: =X38 -> 0 | Z57: =Z38 -> 0 | AA57: =AA38 -> 0 | AC57: =AC38 -> 0 | AD57: =AD38 -> 0 | AF57: =AF38 -> 0 | AG57: =AG38 -> 0 | AI57: =AI38 -> 0 | AJ57: =AJ38 -> 0
A58: CCA (6% DB and 94% P) | E58: =-E95*$E$19 -> 0 | F58: =-E95*$F$19 -> 0 | H58: =-F95*$E$19 -> 0 | I58: =-F95*$F$19 -> 0 | K58: =-G95*$E$19 -> 0 | L58: =-G95*$F$19 -> 0 | N58: =-H95*$E$19 -> 0 | O58: =-H95*$F$19 -> 0 | Q58: =-I95*$E$19 -> 0 | R58: =-I95*$F$19 -> 0 | T58: =-J95*$E$19 -> 0 | U58: =-J95*$F$19 -> 0 | W58: =-K95*$E$19 -> 0 | X58: =-K95*$F$19 -> 0 | Z58: =-L95*$E$19 -> 0 | AA58: =-L95*$F$19 -> 0 | AC58: =-M95*$E$19 -> 0 | AD58: =-M95*$F$19 -> 0 | AF58: =-N95*$E$19 -> 0 | AG58: =-N95*$F$19 -> 0 | AI58: =-Q95*$E$19 -> 0 | AJ58: =-Q95*$F$19 -> 0
A59: Taxable income | E59: =SUM(E56:E58) -> 0 | F59: =SUM(F56:F58) -> 0 | H59: =SUM(H56:H58) -> 0 | I59: 0 | K59: =SUM(K56:K58) -> 0 | L59: 0 | N59: =SUM(N56:N58) -> 0 | O59: 0 | Q59: =SUM(Q56:Q58) -> 0 | R59: 0 | T59: =SUM(T56:T58) -> 0 | U59: 0 | W59: =SUM(W56:W58) -> 0 | X59: 0 | Z59: =SUM(Z56:Z58) -> 0 | AA59: =SUM(AA56:AA58) -> 0 | AC59: =SUM(AC56:AC58) -> 0 | AD59: =SUM(AD56:AD58) -> 0 | AF59: =SUM(AF56:AF58) -> 0 | AG59: =SUM(AG56:AG58) -> 0 | AI59: =SUM(AI56:AI58) -> 0 | AJ59: =SUM(AJ56:AJ58) -> 0
B60: =B27 -> 2016 | C60: =C27 -> 2021
A61: Tax Rate (to be entered) | E61: =IF(AND(E$53>=$B$60, E$53<$C$60),$B$61,$C$61) -> 0 | F61: =IF(AND(E$53>=$B$60, E$53<$C$60),$B$61,$C$61) -> 0 | H61: =IF(AND(H$53>=$B$60, H$53<$C$60),$B$61,$C$61) -> 0 | I61: =IF(AND(H$53>=$B$60, H$53<$C$60),$B$61,$C$61) -> 0 | K61: =IF(AND(K$53>=$B$60, K$53<$C$60),$B$61,$C$61) -> 0 | L61: =IF(AND(K$53>=$B$60, K$53<$C$60),$B$61,$C$61) -> 0 | N61: =IF(AND(N$53>=$B$60, N$53<$C$60),$B$61,$C$61) -> 0 | O61: =IF(AND(N$53>=$B$60, N$53<$C$60),$B$61,$C$61) -> 0 | Q61: =IF(AND(Q$53>=$B$60, Q$53<$C$60),$B$61,$C$61) -> 0 | R61: =IF(AND(Q$53>=$B$60, Q$53<$C$60),$B$61,$C$61) -> 0 | T61: =IF(AND(T$53>=$B$60, T$53<$C$60),$B$61,$C$61) -> 0 | U61: =IF(AND(T$53>=$B$60, T$53<$C$60),$B$61,$C$61) -> 0 | W61: =IF(AND(W$53>=$B$60, W$53<$C$60),$B$61,$C$61) -> 0 | X61: =IF(AND(W$53>=$B$60, W$53<$C$60),$B$61,$C$61) -> 0 | Z61: =IF(AND(Z$53>=$B$60, Z$53<$C$60),$B$61,$C$61) -> 0 | AA61: =IF(AND(Z$53>=$B$60, Z$53<$C$60),$B$61,$C$61) -> 0 | AC61: =IF(AND(AC$53>=$B$60, AC$53<$C$60),$B$61,$C$61) -> 0 | AD61: =IF(AND(AC$53>=$B$60, AC$53<$C$60),$B$61,$C$61) -> 0 | AF61: =IF(AND(AF$53>=$B$60, AF$53<$C$60),$B$61,$C$61) -> 0 | AG61: =IF(AND(AF$53>=$B$60, AF$53<$C$60),$B$61,$C$61) -> 0 | AI61: =IF(AND(AI$53>=$B$60, AI$53<$C$60),$B$61,$C$61) -> 0 | AJ61: =IF(AND(AI$53>=$B$60, AI$53<$C$60),$B$61,$C$61) -> 0
A63: Income Taxes Payable | E63: =E59*E61 -> 0 | F63: =F59*F61 -> 0 | H63: =H59*H61 -> 0 | I63: =I59*I61 -> 0 | K63: =K59*K61 -> 0 | L63: =L59*L61 -> 0 | N63: =N59*N61 -> 0 | O63: =O59*O61 -> 0 | Q63: =Q59*Q61 -> 0 | R63: =R59*R61 -> 0 | T63: =T59*T61 -> 0 | U63: =U59*U61 -> 0 | W63: =W59*W61 -> 0 | X63: =X59*X61 -> 0 | Z63: =Z59*Z61 -> 0 | AA63: =AA59*AA61 -> 0 | AC63: =AC59*AC61 -> 0 | AD63: =AD59*AD61 -> 0 | AF63: =AF59*AF61 -> 0 | AG63: =AG59*AG61 -> 0 | AI63: =AI59*AI61 -> 0 | AJ63: =AJ59*AJ61 -> 0
A64: Gross Up
A65: Income Taxes Payable | E65: =E63/(1-E61) -> 0 | F65: =F63/(1-F61) -> 0 | H65: =H63/(1-H61) -> 0 | I65: =I63/(1-I61) -> 0 | K65: =K63/(1-K61) -> 0 | L65: =L63/(1-L61) -> 0 | N65: =N63/(1-N61) -> 0 | O65: =O63/(1-O61) -> 0 | Q65: =Q63/(1-Q61) -> 0 | R65: =R63/(1-R61) -> 0 | T65: =T63/(1-T61) -> 0 | U65: =U63/(1-U61) -> 0 | W65: =W63/(1-W61) -> 0 | X65: =X63/(1-X61) -> 0 | Z65: =Z63/(1-Z61) -> 0 | AA65: =AA63/(1-AA61) -> 0 | AC65: =AC63/(1-AC61) -> 0 | AD65: =AD63/(1-AD61) -> 0 | AF65: =AF63/(1-AF61) -> 0 | AG65: =AG63/(1-AG61) -> 0 | AI65: =AI63/(1-AI61) -> 0 | AJ65: =AJ63/(1-AJ61) -> 0
A66: Grossed Up PILs | E66: =+E65 -> 0 | F66: =+F65 -> 0 | H66: =+H65 -> 0 | I66: =+I65 -> 0 | K66: =+K65 -> 0 | L66: 0 | N66: =+N65 -> 0 | O66: 0 | Q66: =+Q65 -> 0 | R66: 0 | T66: =+T65 -> 0 | U66: 0 | W66: =+W65 -> 0 | X66: 0 | Z66: =+Z65 -> 0 | AA66: 0 | AC66: =+AC65 -> 0 | AD66: 0 | AF66: =+AF65 -> 0 | AG66: 0 | AI66: =+AI65 -> 0 | AJ66: 0
J68: Test Year
E69: =F69-1 -> 2016 | F69: =G69-1 -> 2017 | G69: =H69-1 -> 2018 | H69: =I69-1 -> 2019 | I69: =J69-1 -> 2020 | J69: ='LDC Info'!E24 -> 2021 | K69: =J69+1 -> 2022 | L69: =K69+1 -> 2023 | M69: =L69+1 -> 2024 | N69: =M69+1 -> 2025 | O69: =N69+1 -> 2026
A70: Net Fixed Assets
A71: Enter applicable amortization in years: | B71: 40
A72: Opening Gross Fixed Assets | F72: =E74 -> 0 | G72: 0 | H72: 0 | I72: 0 | J72: 0 | K72: 0 | L72: 0 | M72: 0 | N72: 0 | O72: 0
A73: Capital Additions | E73: ='App.2-FA Proposed REG Invest.'!C99 -> 0 | F73: ='App.2-FA Proposed REG Invest.'!D99 -> 0 | G73: ='App.2-FA Proposed REG Invest.'!E99 -> 0 | H73: ='App.2-FA Proposed REG Invest.'!F99 -> 0 | I73: ='App.2-FA Proposed REG Invest.'!G99 -> 0 | J73: ='App.2-FA Proposed REG Invest.'!H99 -> 0 | K73: ='App.2-FA Proposed REG Invest.'!I99 -> 0 | L73: ='App.2-FA Proposed REG Invest.'!J99 -> 0 | M73: ='App.2-FA Proposed REG Invest.'!K99 -> 0 | N73: ='App.2-FA Proposed REG Invest.'!L99 -> 0 | O73: ='App.2-FA Proposed REG Invest.'!M99 -> 0
A74: Closing Gross Fixed Assets | E74: =SUM(E72:E73) -> 0 | F74: 0 | G74: 0 | H74: 0 | I74: 0 | J74: 0 | K74: 0 | L74: 0 | M74: 0 | N74: 0 | O74: =SUM(O72:O73) -> 0
A76: Opening Accumulated Amortization | E76: 0 | F76: =+E79 -> 0 | G76: =+F79 -> 0 | H76: 0 | I76: 0 | J76: 0 | K76: 0 | L76: 0 | M76: 0 | N76: 0 | O76: 0
A77: Current Year Amortization (before additions) | E77: =IF(ISERROR(E72/$B$71), 0, E72/$B$71) -> 0 | F77: =IF(ISERROR(F72/$B$71), 0, F72/$B$71) -> 0 | G77: 0 | H77: 0 | I77: 0 | J77: 0 | K77: 0 | L77: 0 | M77: 0 | N77: 0 | O77: =IF(ISERROR(O72/$B$71), 0, O72/$B$71) -> 0
A78: Capital Additions Amortization (half year) | E78: =E73/$B$71/2 -> 0 | F78: =F73/$B$71/2 -> 0 | G78: 0 | H78: 0 | I78: 0 | J78: 0 | K78: 0 | L78: 0 | M78: 0 | N78: 0 | O78: =O73/$B$71/2 -> 0
A79: Closing Accumulated Amortization | E79: =SUM(E76+E77+E78) -> 0 | F79: 0 | G79: 0 | H79: 0 | I79: 0 | J79: 0 | K79: 0 | L79: 0 | M79: 0 | N79: 0 | O79: =SUM(O76+O77+O78) -> 0
A81: Opening Net Fixed Assets | E81: =E72-E76 -> 0 | F81: 0 | G81: 0 | H81: 0 | I81: 0 | J81: 0 | K81: 0 | L81: 0 | M81: 0 | N81: 0 | O81: =O72-O76 -> 0
A82: Closing Net Fixed Assets | E82: =E74-E79 -> 0 | F82: 0 | G82: 0 | H82: 0 | I82: 0 | J82: 0 | K82: 0 | L82: 0 | M82: 0 | N82: 0 | O82: =O74-O79 -> 0
A83: Average Net Fixed Assets | E83: =SUM(E81:E82)/2 -> 0 | F83: 0 | G83: 0 | H83: 0 | I83: 0 | J83: 0 | K83: 0 | L83: 0 | M83: 0 | N83: 0 | O83: =SUM(O81:O82)/2 -> 0
A85: UCC for PILs Calculation | J85: =J68 -> Test Year
E86: =E69 -> 2016 | F86: =F69 -> 2017 | G86: =G69 -> 2018 | H86: 2019 | I86: 2020 | J86: 2021 | K86: 2022 | L86: 2023 | M86: 2024 | N86: 2025 | O86: =O69 -> 2026
A88: Opening UCC | E88: =E72 -> 0 | F88: =E96 -> 0 | G88: 0 | H88: 0 | I88: 0 | J88: 0 | K88: 0 | L88: 0 | M88: 0 | N88: 0 | O88: 0
A89: Capital Additions | E89: =E73 -> 0 | F89: 0 | G89: 0 | H89: 0 | I89: 0 | J89: 0 | K89: 0 | L89: 0 | M89: 0 | N89: 0 | O89: =O73 -> 0
A90: UCC Before Half Year Rule | E90: =SUM(E88:E89) -> 0 | F90: 0 | G90: 0 | H90: 0 | I90: 0 | J90: 0 | K90: 0 | L90: 0 | M90: 0 | N90: 0 | O90: =SUM(O88:O89) -> 0
A91: Capital Additions (half year) | E91: =E89/2 -> 0 | F91: 0 | G91: 0 | H91: 0 | I91: 0 | J91: 0 | K91: 0 | L91: 0 | M91: 0 | N91: 0 | O91: =O89/2 -> 0
A92: Reduced UCC | E92: =E90-E91 -> 0 | F92: 0 | G92: 0 | H92: 0 | I92: 0 | J92: 0 | K92: 0 | L92: 0 | M92: 0 | N92: 0 | O92: =O90-O91 -> 0
A93: CCA Rate Class (to be entered)
A94: CCA Rate (to be entered)
A95: CCA | E95: =E92*$B$94 -> 0 | F95: =F92*$B$94 -> 0 | G95: 0 | H95: 0 | I95: 0 | J95: 0 | K95: 0 | L95: 0 | M95: 0 | N95: 0 | O95: =O92*$B$94 -> 0
A96: Closing UCC | E96: =E90-E95 -> 0 | F96: 0 | G96: 0 | H96: 0 | I96: 0 | J96: 0 | K96: 0 | L96: 0 | M96: 0 | N96: 0 | O96: =O90-O95 -> 0

Sheet App.2-G SQI
M1: File Number: | O1: =EBNUMBER -> EB-2020-0061
M2: Exhibit: | O2: 2
M3: Tab: | O3: Section 2.5.8
M4: Schedule:
M5: Page: | O5: 62
M7: Date: | O7: 2020-10-30
A9: Appendix 2-G
A10: Service Reliability and Quality Indicators
A13: Service Reliability
A15: Index | B15: Including outages caused by loss of supply | G15: Excluding outages caused by loss of supply | L15: Excluding Major Event Days
B16: =TestYear-6 -> 2015 | C16: =TestYear-5 -> 2016 | D16: =TestYear-4 -> 2017 | E16: =TestYear-3 -> 2018 | F16: =TestYear-2 -> 2019 | G16: =B16 -> 2015 | H16: 2016 | I16: 2017 | J16: 2018 | K16: 2019 | L16: 2015 | M16: 2016 | N16: 2017 | O16: 2018 | P16: 2019
A17: SAIDI | B17: 9.31 | C17: 5.05 | D17: 3.79 | E17: 10.03 | F17: 0.84 | G17: 0.06 | H17: 0.69 | I17: 0.1 | J17: 4.32 | K17: 0.84 | L17: 0.06 | M17: 0.34 | N17: 0.1 | O17: 0.16 | P17: 0.24
A18: SAIFI | B18: 4.76 | C18: 3.01 | D18: 4.04 | E18: 4.51 | F18: 2.04 | G18: 0.06 | H18: 0.28 | I18: 0.16 | J18: 3.09 | K18: 2.04 | L18: 0.06 | M18: 0.2 | N18: 0.16 | O18: 0.33 | P18: 0.2
A20: 5 Year Historical Average
A21: SAIDI | F21: =IF(ISERROR(AVERAGE(B17:F17)), "", AVERAGE(B17:F17)) -> 5.804 | K21: =IF(ISERROR(AVERAGE(G17:K17)), "", AVERAGE(G17:K17)) -> 1.202 | P21: =IF(ISERROR(AVERAGE(L17:P17)), "", AVERAGE(L17:P17)) -> 0.18
A22: SAIFI | F22: =IF(ISERROR(AVERAGE(B18:F18)), "", AVERAGE(B18:F18)) -> 3.672 | K22: =IF(ISERROR(AVERAGE(G18:K18)), "", AVERAGE(G18:K18)) -> 1.126 | P22: =IF(ISERROR(AVERAGE(L18:P18)), "", AVERAGE(L18:P18)) -> 0.19
A24: SAIDI = System Average Interruption Duration Index
A25: SAIFI = System Average Interruption Frequency Index
A27: Service Quality
A29: Indicator | E29: OEB Minimum Standard | G29: =B16 -> 2015 | H29: =C16 -> 2016 | I29: =D16 -> 2017 | J29: =E16 -> 2018 | K29: =F16 -> 2019
A30: Low Voltage Connections | E30: 0.9 | G30: 1 | H30: 1 | I30: 1 | J30: 1 | K30: 1
A31: High Voltage Connections | E31: 0.9 | G31: n/a | H31: n/a | I31: n/a | J31: n/a | K31: n/a
A32: Telephone Accessibility | E32: 0.65 | G32: 1 | H32: 0.9992 | I32: 0.9972 | J32: 0.99 | K32: 0.99
A33: Appointments Met | E33: 0.9 | G33: 0.956 | H33: 0.9898 | I33: 0.9942 | J33: 0.9909 | K33: 0.9811
A34: Written Response to Enquires | E34: 0.8 | G34: 1 | H34: 1 | I34: 1 | J34: 0.9695 | K34: 0.9735
A35: Emergency Urban Response | E35: 0.8 | G35: 1 | H35: 1 | I35: 1 | J35: 1 | K35: 1
A36: Emergency Rural Response | E36: 0.8 | G36: n/a | H36: n/a | I36: n/a | J36: n/a | K36: n/a
A37: Telephone Call Abandon Rate | E37: 0.1 | G37: 0 | H37: 0 | I37: 0 | J37: 0 | K37: 0.0004
A38: Appointment Scheduling | E38: 0.9 | G38: 0.986 | H38: 0.997 | I38: 1 | J38: 0.9953 | K38: 0.9937
A39: Rescheduling a Missed Appointment | E39: 1 | G39: 1 | H39: 1 | I39: 1 | J39: 1 | K39: 1
A40: Reconnection Performance Standard | E40: 0.85 | G40: 1 | H40: 1 | I40: 1 | J40: 1 | K40: 1

Sheet App.2-H_Other_Oper_Rev
K1: File Number: | L1: =EBNUMBER -> EB-2020-0061
K2: Exhibit: | L2: 3
K3: Tab: | L3: Section 3.4.1
A4: TO BE UPDATED AT THE DRAFT RATE ORDER STAGE | K4: Schedule:
K5: Page: | L5: 71
K7: Date: | L7: 2020-10-30
A9: Appendix 2-H
A10: Other Operating Revenue
A12: USoA # | B12: USoA Description | C12: =D13 - 1 &" Actual"&CHAR(178) -> 2012 Actual² | D12: 2013 Actual² | E12: 2014 Actual² | F12: 2015 Actual² | G12: =H13 - 1 &" Actual"&CHAR(178) -> 2016 Actual² | H12: =I13 - 1 &" Actual"&CHAR(178) -> 2017 Actual² | I12: =I13 & " Actual" & CHAR(178) -> 2018 Actual² | J12: =J13& " Actual" -> 2019 Actual | K12: Bridge Year | L12: Test Year | N12: CGAAP
C13: =D13-1 -> 2012 | D13: =E13-1 -> 2013 | E13: =F13-1 -> 2014 | F13: =G13-1 -> 2015 | G13: =H13-1 -> 2016 | H13: =I13-1 -> 2017 | I13: =J13-1 -> 2018 | J13: 2019 | K13: =BridgeYear -> 2020 | L13: =TestYear -> 2021 | N13: Enter Transition Year
B14: Reporting Basis | G14: MIFRS | H14: MIFRS | I14: MIFRS | J14: MIFRS | K14: MIFRS | L14: MIFRS | N14: MIFRS
A15: 4235 | B15: Specific Service Charges | G15: -65689.35 | H15: -56991.4 | I15: -49669.38 | J15: -49666.19 | K15: -35941.79 | L15: -34000 | N15: 2012
A16: 4225 | B16: Late Payment Charges | G16: -32462.85 | H16: -25259.01 | I16: -26043.49 | J16: -26204.18 | K16: -22403.65 | L16: -24500 | N16: 2012
A17: 4082 | B17: Retail Services Revenues | G17: -5689.3 | H17: -5619.1 | I17: -5595.8 | J17: -7615.5 | K17: -8264.83 | L17: -8265 | N17: 2012
A18: etc.
A19: 4084 | B19: 4084-Service Transaction Requests (STR) Revenues | G19: -41 | H19: -37.75 | I19: -52.25 | J19: -220.75 | K19: -456.39 | L19: -456.39
A20: 4086 | B20: 4086-SSS Administration Revenue | G20: -13399.4 | H20: -13485.99 | I20: -13543.71 | J20: -13648.74 | K20: -13799.25 | L20: -13799.25 | N20: 2012
A21: 4210 | B21: 4210-Rent from Electric Property | G21: -30420.46 | H21: -27938.37 | I21: -29624.44 | J21: -29224.7 | K21: -29910.1 | L21: -48739.51 | N21: 2012
A22: 4245 | B22: 4245-Government Assistance Directly Credited to Income | G22: -11709.67 | H22: -11854.1 | I22: -11854.1 | J22: -12503.01 | K22: 0 | L22: 0 | N22: 2012
A23: 4355 | B23: 4355-Gain on Disposition of Utility and Other Property | G23: 0 | H23: -9862.83 | I23: -2497.53 | J23: -10000 | K23: 0 | L23: -5000 | N23: 2012
A24: 4360 | B24: 4360-Loss on Disposition of Utility and Other Property | G24: 20210.15 | H24: 17502.98 | I24: 30374.86 | J24: 51691.62 | K24: 25505.99 | L24: 25000 | N24: 2012
A25: 4375 | B25: 4375-Revenues from Non-Utility Operations | G25: -150225.56 | H25: -160998.95 | I25: -181570.48 | J25: -537757.38 | K25: -182757.25 | L25: -170000 | N25: 2012
A26: 4380 | B26: 4380-Expenses of Non-Utility Operations | G26: 155562.8 | H26: 142554.24 | I26: 140574.23 | J26: 471517.26 | K26: 156733.3 | L26: 150000 | N26: 2012
A27: 4390 | B27: 4390-Miscellaneous Non-Operating Income | G27: -170 | H27: -470 | I27: -2786.7 | J27: -2750 | K27: -1588.44 | L27: -900 | N27: 2012
A28: 4405 | B28: 4405-Interest and Dividend Income | G28: -12121.89 | H28: -11923.76 | I28: -27582.38 | J28: -28105.45 | K28: -14727.99 | L28: -4800 | N28: 2012
A39: Specific Service Charges | C39: =C15 -> 0 | D39: 0 | E39: 0 | F39: 0 | G39: -65689.35 | H39: -56991.4 | I39: -49669.38 | J39: -49666.19 | K39: -35941.79 | L39: -34000
A40: Late Payment Charges | C40: =C16 -> 0 | D40: 0 | E40: 0 | F40: 0 | G40: -32462.85 | H40: -25259.01 | I40: -26043.49 | J40: -26204.18 | K40: -22403.65 | L40: -24500
A41: Other Operating Revenues | G41: =SUM(G17:G22) -> -61259.83 | H41: =SUM(H17:H22) -> -58935.31 | I41: -60670.3 | J41: -63212.7 | K41: -52430.57 | L41: -71260.15
A42: Other Income or Deductions | G42: =SUM(G23:G28) -> 13255.5 | H42: =SUM(H23:H28) -> -23198.32 | I42: -43488 | J42: -55403.95 | K42: -16834.39 | L42: -5700
A43: Total | C43: =SUM(C39:C42) -> 0 | D43: =SUM(D39:D42) -> 0 | E43: =SUM(E39:E42) -> 0 | F43: =SUM(F39:F42) -> 0 | G43: =SUM(G39:G42) -> -146156.53 | H43: -164384.04 | I43: -179871.17 | J43: -194487.02 | K43: -127610.4 | L43: -135460.15
A45: Description Account(s)
A46: Specific Service Charges: 4235
A47: Late Payment Charges: 4225
A48: Other Distribution Revenues: 4082, 4084, 4090, 4205, 4210, 4215, 4220, 4230, 4240, 4245
A49: Other Income and Expenses: 4305, 4310, 4315, 4320, 4325, 4330, 4335, 4340, 4345, 4350, 4355, 4357, 4360, 4362, 4365, 4370, 4375, 4380, 4385, 4390, 4395, 4398, 4405, 4410, 4415, 4420
A52: Note: Add all applicable accounts listed above to the table and include all relevant information.
A54: Account Breakdown Details
A56: For each "Other Operating Revenue" and "Other Income or Deductions" Account, a detailed breakdown of the account components is required. See the example below for Account 4405, Interest and Dividend Income. Tables for the detailed breakdowns will be generated after cell B89 is filled in.
A59: Example: Account 4405 - Interest and Dividend Income
C60: =C12 -> 2012 Actual² | D60: 2013 Actual² | E60: 2014 Actual² | F60: 2015 Actual² | G60: 2016 Actual² | H60: 2017 Actual² | I60: 2018 Actual² | J60: 2019 Actual | K60: Bridge Year | L60: Test Year | N60: =N12 -> CGAAP
C61: =C13 -> 2012 | D61: 2013 | E61: 2014 | F61: 2015 | G61: 2016 | H61: 2017 | I61: 2018 | J61: 2019 | K61: 2020 | L61: 2021 | N61: =N13 -> Enter Transition Year
A62: Reporting Basis | C62: =IF(C14=0, "", C14) ->  | G62: MIFRS | H62: MIFRS | I62: MIFRS | J62: MIFRS | K62: MIFRS | L62: MIFRS | N62: =IF(N14=0, "", N14) -> MIFRS
A63: Short-term Investment Interest | N63: 2012
A64: Bank Deposit Interest | N64: 2012
A65: Miscellaneous Interest Revenue | N65: 2012
A66: etc.1
A69: Total | C69: =SUM(C63:C68) -> 0 | D69: 0 | E69: 0 | F69: 0 | G69: 0 | H69: 0 | I69: 0 | J69: 0 | K69: 0 | L69: 0
A72: Notes:
A73: 1 | B73: List and specify any other interest revenue.
A74: 2 | B74: For applicants rebasing under IFRS for the first time, in the transition year (2014) to IFRS, the applicant is to present information in both MIFRS and CGAAP. In column N, present CGAAP transition year information.
B75: 6 | C75: Enter the number of "Other Operating Revenue" and "Other Income or Deductions" Accounts that require a detailed breakdown of the account components.
A79: Accounts 4082, 4084, 4086, 4210 & 4245 Revenue
C80: =C$12 -> 2012 Actual² | D80: 2013 Actual² | E80: 2014 Actual² | F80: 2015 Actual² | G80: 2016 Actual² | H80: 2017 Actual² | I80: 2018 Actual² | J80: 2019 Actual | K80: Bridge Year | L80: Test Year | N80: =N$12 -> CGAAP
C81: =C$13 -> 2012 | D81: 2013 | E81: 2014 | F81: 2015 | G81: 2016 | H81: 2017 | I81: 2018 | J81: 2019 | K81: 2020 | L81: 2021 | N81: =N$13 -> Enter Transition Year
A82: Reporting Basis | C82: =IF(#REF!=0, "",#REF!) ->  | D82: =IF(#REF!=0, "",#REF!) ->  | E82: =IF(#REF!=0, "",#REF!) ->  | F82: =IF(#REF!=0, "",#REF!) ->  | G82: =IF(G14=0, "", G14) -> MIFRS | H82: MIFRS | I82: MIFRS | J82: MIFRS | K82: MIFRS | L82: MIFRS | N82: =IF(N$14=0, "", N$14) -> MIFRS
A83: 4082 Retail Service Revenues | G83: -5689.3 | H83: -5619.1 | I83: -5595.8 | J83: -7615.5 | K83: -8264.83 | L83: -8265 | N83: 2012
A84: 4084 STR Retail Service Revenues | G84: -41 | H84: -37.75 | I84: -52.25 | J84: -220.75 | K84: -456.39 | L84: -456.39 | N84: 2012
A85: 4086-SSS Administration Revenue | G85: -13399.4 | H85: -13485.99 | I85: -13543.71 | J85: -13648.74 | K85: -13799.25 | L85: -13799.25 | N85: 2012
A86: 4210-Rent from Electric Property | G86: -30420.46 | H86: -27938.37 | I86: -29624.44 | J86: -29224.7 | K86: -29910.1 | L86: -48739.51 | N86: 2012
A87: 4245-Government Assistance Directly Credited to Income | G87: -11709.67 | H87: -11854.1 | I87: -11854.1 | J87: -12503.01 | K87: 0 | L87: 0 | N87: 2012
A91: Total | C91: =SUM(C83:C90) -> 0 | D91: 0 | E91: 0 | F91: 0 | G91: -61259.83 | H91: -58935.31 | I91: -60670.3 | J91: -63212.7 | K91: -52430.57 | L91: -71260.15
A93: Account 4360, 4365 Gains & Losses
C94: =C$12 -> 2012 Actual² | D94: 2013 Actual² | E94: 2014 Actual² | F94: 2015 Actual² | G94: 2016 Actual² | H94: 2017 Actual² | I94: 2018 Actual² | J94: 2019 Actual | K94: Bridge Year | L94: Test Year | N94: =N$12 -> CGAAP
C95: =C$13 -> 2012 | D95: 2013 | E95: 2014 | F95: 2015 | G95: 2016 | H95: 2017 | I95: 2018 | J95: 2019 | K95: 2020 | L95: 2021 | N95: =N$13 -> Enter Transition Year
A96: Reporting Basis | C96: =IF(C34=0, "", C34) ->  | G96: =IF(G82=0, "", G82) -> MIFRS | H96: =IF(H82=0, "", H82) -> MIFRS | I96: MIFRS | J96: MIFRS | K96: MIFRS | L96: MIFRS | N96: =IF(N$14=0, "", N$14) -> MIFRS
A97: 4355-Gain on Disposition of Utility and Other Property | H97: -9862.83 | I97: -2497.53 | J97: -10000 | N97: 2012
A98: 4360-Loss on Disposition of Utility and Other Property | G98: 20210.15 | H98: 17502.98 | I98: 30374.86 | J98: 51691.62 | K98: 25505.99 | L98: 25000 | N98: 2012
A105: Total | C105: =SUM(C97:C104) -> 0 | D105: =SUM(D97:D104) -> 0 | E105: =SUM(E97:E104) -> 0 | F105: =SUM(F97:F104) -> 0 | G105: =SUM(G97:G104) -> 20210.15 | H105: =SUM(H97:H104) -> 7640.15 | I105: =SUM(I97:I104) -> 27877.33 | J105: =SUM(J97:J104) -> 41691.62 | K105: =SUM(K97:K104) -> 25505.99 | L105: =SUM(L97:L104) -> 25000
A107: Account 4390 - Misc Non-Operating Income
C108: =C$12 -> 2012 Actual² | D108: 2013 Actual² | E108: 2014 Actual² | F108: 2015 Actual² | G108: 2016 Actual² | H108: 2017 Actual² | I108: 2018 Actual² | J108: 2019 Actual | K108: Bridge Year | L108: Test Year | N108: =N$12 -> CGAAP
C109: =C$13 -> 2012 | D109: 2013 | E109: 2014 | F109: 2015 | G109: 2016 | H109: 2017 | I109: 2018 | J109: 2019 | K109: 2020 | L109: 2021 | N109: =N$13 -> Enter Transition Year
A110: Reporting Basis | C110: =IF(C48=0, "", C48) ->  | N110: =IF(N$14=0, "", N$14) -> MIFRS
A111: 4390-Miscellaneous Non-Operating Income | G111: -170 | H111: -470 | I111: -2786.7 | J111: -2750 | K111: -1588.44 | L111: -900 | N111: 2012
A119: Total | C119: =SUM(C111:C118) -> 0 | D119: =SUM(D111:D118) -> 0 | E119: =SUM(E111:E118) -> 0 | F119: =SUM(F111:F118) -> 0 | G119: =SUM(G111:G118) -> -170 | H119: =SUM(H111:H118) -> -470 | I119: =SUM(I111:I118) -> -2786.7 | J119: =SUM(J111:J118) -> -2750 | K119: =SUM(K111:K118) -> -1588.44 | L119: =SUM(L111:L118) -> -900
A121: Account 4375 - Non Regulated Revenue
C122: =C$12 -> 2012 Actual² | D122: 2013 Actual² | E122: 2014 Actual² | F122: 2015 Actual² | G122: 2016 Actual² | H122: 2017 Actual² | I122: 2018 Actual² | J122: 2019 Actual | K122: Bridge Year | L122: Test Year | N122: =N$12 -> CGAAP
C123: =C$13 -> 2012 | D123: 2013 | E123: 2014 | F123: 2015 | G123: 2016 | H123: 2017 | I123: 2018 | J123: 2019 | K123: 2020 | L123: 2021 | N123: =N$13 -> Enter Transition Year
A124: Reporting Basis | C124: =IF(C62=0, "", C62) ->  | G124: MIFRS | H124: MIFRS | I124: MIFRS | J124: MIFRS | K124: MIFRS | L124: MIFRS | N124: =IF(N$14=0, "", N$14) -> MIFRS
A125: Outside Jobs | G125: =-150225.56-G126 -> -61700.26 | H125: =-160998.95-H126 -> -48464.45 | I125: =-181570.48-I126-I127 -> -47036.39 | J125: =-537757.38-J126 -> -424803.63 | K125: -53810 | L125: -53800 | N125: 2012
A126: Water & Sewer billing & collections | G126: =-(14805.74+12379.4+33342.96+27997.2) -> -88525.3 | H126: -112534.5 | I126: -112470 | J126: -112953.75 | K126: =-(8271.7+7327.5+18518.3+16367.5+3045+3065)*2 -> -113190 | L126: -113200 | N126: 2012
A127: CDM Revenue | I127: -22064.09
A133: Total | C133: =SUM(C125:C132) -> 0 | D133: =SUM(D125:D132) -> 0 | E133: =SUM(E125:E132) -> 0 | F133: =SUM(F125:F132) -> 0 | G133: =SUM(G125:G132) -> -150225.56 | H133: =SUM(H125:H132) -> -160998.95 | I133: =SUM(I125:I132) -> -181570.48 | J133: =SUM(J125:J132) -> -537757.38 | K133: =SUM(K125:K132) -> -167000 | L133: =SUM(L125:L132) -> -167000
A135: Account 4380 - Non Regulated Expenses
C136: =C$12 -> 2012 Actual² | D136: 2013 Actual² | E136: 2014 Actual² | F136: 2015 Actual² | G136: 2016 Actual² | H136: 2017 Actual² | I136: 2018 Actual² | J136: 2019 Actual | K136: Bridge Year | L136: Test Year | N136: =N$12 -> CGAAP
C137: =C$13 -> 2012 | D137: 2013 | E137: 2014 | F137: 2015 | G137: 2016 | H137: 2017 | I137: 2018 | J137: 2019 | K137: 2020 | L137: 2021 | N137: =N$13 -> Enter Transition Year
A138: Reporting Basis | C138: =IF(C76=0, "", C76) ->  | G138: =IF(G124=0, "", G124) -> MIFRS | H138: =IF(H124=0, "", H124) -> MIFRS | I138: MIFRS | J138: MIFRS | K138: MIFRS | L138: MIFRS | N138: =IF(N$14=0, "", N$14) -> MIFRS
A139: Job Labour | G139: =155562.8-G140-G141-G142-G143 -> 60741.77 | H139: =16602.69+14131.91+195.67 -> 30930.27 | I139: =8268.25+13672.14+1573.01+4859.25 -> 28372.65 | J139: =12156.81+55805.86+20566.82+9286 -> 97815.49 | K139: 41000 | L139: 41000 | N139: 2012
A140: Materials & Equipment | G140: 2634.05 | H140: 3578.18 | I140: 3935.44 | J140: =244964.34+19306.26 -> 264270.6 | K140: 3000 | L140: 3000 | N140: 2012
A141: Water & Sewer billing & collections | G141: 86867.98 | H141: 105347.79 | I141: 108265.99 | J141: 101080.96 | K141: 103000 | L141: 103000 | N141: 2012
A142: Materials, support & admin | G142: 4359 | H142: 2698 | I142: 0 | J142: 6065.08 | K142: 3000 | L142: 3000 | N142: 2012
A143: Contract Labour | G143: 960 | J143: 2285
A147: Total | C147: =SUM(C139:C146) -> 0 | D147: =SUM(D139:D146) -> 0 | E147: =SUM(E139:E146) -> 0 | F147: =SUM(F139:F146) -> 0 | G147: =SUM(G139:G146) -> 155562.8 | H147: =SUM(H139:H146) -> 142554.24 | I147: =SUM(I139:I146) -> 140574.08 | J147: =SUM(J139:J146) -> 471517.13 | K147: =SUM(K139:K146) -> 150000 | L147: =SUM(L139:L146) -> 150000
A149: Account 4405 - Interest and Dividend Income
C150: =C$12 -> 2012 Actual² | D150: 2013 Actual² | E150: 2014 Actual² | F150: 2015 Actual² | G150: 2016 Actual² | H150: 2017 Actual² | I150: 2018 Actual² | J150: 2019 Actual | K150: Bridge Year | L150: Test Year | N150: =N$12 -> CGAAP
